Workbook

Sheet Resultados
C3: Base de Remuneração Regulatória Líquida na data de início do Ciclo Tarifário | D3: BRRL0 | F3: =BRRL!J6 -> 980206.7374 | H3: mil R$
C4: Base de Remuneração Regulatória Líquida ao final do Ciclo Tarifário | D4: BRRLT | F4: =BRRL!O6 -> 1257653.519 | H4: mil R$
C5: Weighted Average Cost of Capital - WACC | D5: rWACC | F5: =ROUND(rWACC!D3,4) -> 0.0871
C7: Descrição | D7: Variável | I7: Ciclo Tarifário - 2024/2029
H8: 0 | I8: 1 | J8: 2 | K8: 3 | L8: 4 | M8: 5
C9: Base de Remuneração Regulatória Líquida ao longo do Ciclo Tarifário | D9: BRRLi | F9: mil R$ | H9: =F3 -> 980206.7374 | I9: =BRRL!K6 -> 1090579.995 | J9: =BRRL!L6 -> 1194087 | K9: =BRRL!M6 -> 1215246.288 | L9: =BRRL!N6 -> 1219632.258 | M9: =BRRL!O6 -> 1257653.519
C10: Variação anual da Base de Remuneração Regulatória Líquida | D10: BRRL (t+1 - t) | F10: mil R$ | H10: - | I10: =BRRL!K16 -> 110373.258 | J10: =BRRL!L16 -> 103507.0047 | K10: =BRRL!M16 -> 21159.28761 | L10: =BRRL!N16 -> 4385.97005 | M10: =BRRL!O16 -> 38021.26085
C11: Amortização anual projetada da Base de Remuneração Regulatória Líquida | D11: Amortização projetada | F11: mil R$ | H11: - | I11: =BRRL!K15 -> 35475.4224 | J11: =BRRL!L15 -> 40982.5761 | K11: =BRRL!M15 -> 45089.13524 | L11: =BRRL!N15 -> 47654.88225 | M11: =BRRL!O15 -> 50593.39988
C12: Custos operacionais e outras despesas/gastos operacionais e receitas irrecuperáveis | D12: Opex&Odesp | F12: mil R$ | H12: - | I12: =DRIVER_OPEX!G439/1000 -> 29993.56182 | J12: =DRIVER_OPEX!H439/1000 -> 35972.587 | K12: =DRIVER_OPEX!I439/1000 -> 42841.10398 | L12: =DRIVER_OPEX!J439/1000 -> 45314.09707 | M12: =DRIVER_OPEX!K439/1000 -> 46349.92408
C13: Investimentos | D13: Capex | F13: mil R$ | H13: - | I13: =CAPEX!D8 -> 145848.6804 | J13: =CAPEX!E8 -> 144489.5807 | K13: =CAPEX!F8 -> 66248.42286 | L13: =CAPEX!G8 -> 52040.8523 | M13: =CAPEX!H8 -> 88614.66073
C14: Variação do capital de giro | D14: VCG | F14: mil R$ | H14: - | I14: =VCG!E37/1000 -> 4.389143934 | J14: =VCG!E38/1000 -> 41.05886593 | K14: =VCG!E39/1000 -> 41.92505648 | L14: =VCG!E40/1000 -> 17.34317619 | M14: =VCG!E41/1000 -> 14.40233116
C15: Outras receitas consideradas na modicidade tarifária | D15: OR | F15: mil R$ | H15: - | I15: =OR!E9 -> 182.8426595 | J15: =OR!F9 -> 303.8492419 | K15: =OR!G9 -> 319.3251268 | L15: =OR!H9 -> 353.5824107 | M15: =OR!I9 -> 384.562326
C16: Valor do imposto de renda projetado | D16: IR | F16: mil R$ | H16: - | I16: =IR!D12 -> 11389.31658 | J16: =IR!E12 -> 47298.83395 | K16: =IR!F12 -> 48809.05214 | L16: =IR!G12 -> 58285.35188 | M16: =IR!H12 -> 67039.17688
C17: Atividades de Comercialização (mercado cativo) | D17: Encargos de Comercialização - mercado cativo | F17: mil R$ | H17: - | I17: =DRIVER_OPEX!G441/1000 -> 10698.4225 | J17: =DRIVER_OPEX!H441/1000 -> 11115.13058 | K17: =DRIVER_OPEX!I441/1000 -> 11491.27316 | L17: =DRIVER_OPEX!J441/1000 -> 11749.06194 | M17: =DRIVER_OPEX!K441/1000 -> 12063.27468
C18: Atividades de Gestão | D18: Encargos de Gestão - cativo + livre | F18: mil R$ | H18: - | I18: =DRIVER_OPEX!G440/1000 -> 35845.50776 | J18: =DRIVER_OPEX!H440/1000 -> 37038.8882 | K18: =DRIVER_OPEX!I440/1000 -> 37501.30094 | L18: =DRIVER_OPEX!J440/1000 -> 37629.87504 | M18: =DRIVER_OPEX!K440/1000 -> 37803.18723
C19: Volume distribuído do mercado cativo | D19: Volume: mercado cativo | F19: mil m³ | H19: - | I19: =VOLUME!E21/1000 -> 297937.4619 | J19: =VOLUME!F21/1000 -> 321383.391 | K19: =VOLUME!G21/1000 -> 345323.9427 | L19: =VOLUME!H21/1000 -> 355227.4525 | M19: =VOLUME!I21/1000 -> 363451.6454
C20: Volume distribuído do mercado livre | D20: Volume: mercado livre | F20: mil m³ | H20: - | I20: =SUM(VOLUME!E22:E23)/1000 -> 0 | J20: =SUM(VOLUME!F22:F23)/1000 -> 185021.765 | K20: =SUM(VOLUME!G22:G23)/1000 -> 186381.765 | L20: =SUM(VOLUME!H22:H23)/1000 -> 235283.765 | M20: =SUM(VOLUME!I22:I23)/1000 -> 280286.765
C21: Volume distribuído total (mercado cativo + mercado livre) | D21: Volume total | F21: mil m³ | H21: - | I21: =SUM(VOLUME!E21:E23)/1000 -> 297937.4619 | J21: =SUM(VOLUME!F21:F23)/1000 -> 506405.156 | K21: =SUM(VOLUME!G21:G23)/1000 -> 531705.7077 | L21: =SUM(VOLUME!H21:H23)/1000 -> 590511.2175 | M21: =SUM(VOLUME!I21:I23)/1000 -> 643738.4104
C22: Receita Direta (tarifária) | D22: Receita | F22: mil R$ | H22: - | I22: =(I19*$M$36+I20*$M$37) -> 166220.5996 | J22: =(J19*$M$36+J20*$M$37) -> 276226.5836 | K22: 290295.5698 | L22: 321438.5552 | M22: 349602.1145
C24: Fluxo de caixa | D24: - | F24: mil R$ | H24: =-F3/(1+$F$5)^H8 -> -980206.7374 | I24: =(I19*$M$36+I20*$M$37)-I12-I13-I14+I15-I16-I17-I18 -> -67376.43594 | J24: =(J19*$M$36+J20*$M$37)-J12-J13-J14+J15-J16-J17-J18 -> 574.3534579 | K24: 83681.81681 | L24: 116755.5562 | M24: =(M19*$M$36+M20*$M$37)-M12-M13-M14+M15-M16-M17-M18+M9 -> 1355755.569
C25: Fluxo de caixa descontado | D25: =SUM(H25:M25) -> 0 | F25: mil R$ | H25: =-F3/(1+$F$5)^H8 -> -980206.7374 | I25: =I24/(1+$F$5)^I8 -> -61978.13995 | J25: =J24/(1+$F$5)^J8 -> 486.0044531 | K25: =K24/(1+$F$5)^K8 -> 65136.22921 | L25: =L24/(1+$F$5)^L8 -> 83598.70966 | M25: =M24/(1+$F$5)^M8 -> 892963.934
C27: (+) | D27: =$F$3 -> 980206.7374 | F27: mil R$ | H27: Receita Mercado Cativo e Livre sem Encargos | I27: =$D$37*I21 -> 134019.8317 | J27: =$D$37*J21 -> 227793.8911 | K27: =$D$37*K21 -> 239174.7214 | L27: =$D$37*L21 -> 265626.9321 | M27: =$D$37*M21 -> 289569.8743
C28: (-) | D28: =$F$4/(1+$F$5)^5 -> 828349.3418 | F28: mil R$ | H28: Receita Encargos Mercado Cativo | I28: =$K$36*I19 -> 32200.76792 | J28: =$K$36*J19 -> 34734.77931 | K28: =$K$36*K19 -> 37322.24899 | L28: =$K$36*L19 -> 38392.60992 | M28: =$K$36*M19 -> 39281.47205
C29: (+) | D29: =NPV($F$5,I12:M12) -> 154350.0328 | F29: mil R$ | H29: Receita Encargos Mercado Livre | I29: =$K$37*I20 -> 0 | J29: =$K$37*J20 -> 13697.91311 | K29: =$K$37*K20 -> 13798.59944 | L29: =$K$37*L20 -> 17419.01322 | M29: =$K$37*M20 -> 20750.76818
C30: (+) | D30: =NPV($F$5,I13:M13) -> 403620.9827 | F30: mil R$ | H30: Outras Receitas | I30: =I15 -> 182.8426595 | J30: =J15 -> 303.8492419 | K30: =K15 -> 319.3251268 | L30: =L15 -> 353.5824107 | M30: =M15 -> 384.562326
C31: (+) | D31: =NPV($F$5,I14:M14) -> 93.31816384 | F31: mil R$ | H31: Receita Total | I31: =I27+I28+I29+I30 -> 166403.4422 | J31: =J27+J28+J29+J30 -> 276530.4328 | K31: 290614.8949 | L31: 321792.1376 | M31: 349986.6769
C32: (-) | D32: =NPV($F$5,I15:M15) -> 1180.320322 | F32: mil R$ | H32: VPL Receita | I32: =NPV($F$5,I31:M31) -> 1074198.795 | K32: MBR (R$) Margem Bruta Requerida | M32: =SUM(I19:M19)*1000*M36+SUM(I20:M20)*1000*M37 -> 1403783423
C33: (+) | D33: =NPV($F$5,I16:M16) -> 174380.2399 | F33: mil R$ | H33: VPL Gastos | I33: =D27-D28+D29+D30+D31+D33+NPV(F5,I17:M17)+NPV($F$5,I18:M18) -> 1074198.795 | K33: TUSD média global* (R$/m³) (TUSDc+TUSDL) | M33: =I32/D34 -> 0.5471521171
C34: (+) | D34: =NPV($F$5,I21:M21) -> 1963254.388 | F34: mil m³ | H34: VPL Receita - Gastos | I34: =(I32-I33) -> 2.328306437e-10 | K34: *Valor MÉDIO Glogal apenas a título de informação, não faz parte do modelo. A estrutura tarifária a ser proposta pela concessionária deve convergir para essa média
C36: Tarifa de Uso do Sistema de Distribuição [calculado] - TUSD (R$/m³) | D36: =(D27-D28+D29+D30+D31-D32+D33)/D34 -> 0.4498253788 | J36: Encargos (cativo) Ec (R$/m³) | K36: =NPV(F5,I17:M17)/NPV(F5,I19:M19)+NPV(F5,I18:M18)*(NPV(F5,I20:M20)/NPV(F5,I21:M21))/NPV(F5,I20:M20) -> 0.1080789496 | L36: TUSDC (R$/m³) | M36: =$D$37+K36 -> 0.5579043283
C37: Tarifa de Uso do Sistema de Distribuição [atingir meta] - TUSD (R$/m³) | D37: 0.4498253788 | J37: Encargos (livre) El (R$/m³) | K37: =NPV(F5,I18:M18)*(NPV(F5,I20:M20)/NPV(F5,I21:M21))/NPV(F5,I20:M20) -> 0.07403406358 | L37: TUSDL(R$/m³) | M37: =$D$37+K37 -> 0.5238594424

Sheet BRRL
C3: Base de Remuneração Regulatória Líquida | I3: Movimentação da Base de Ativos durante o Ciclo Tarifário
C4: Resumo da Base de Remuneração Regulatória Líquida | K4: 1° Ciclo Tarifário (ano)
C5: Descrição | D5: Observação | E5: R$ | I5: Descrição | J5: 0 | K5: 1 | L5: 2 | M5: 3 | N5: 4 | O5: 5
C6: (a) Base de Remuneração Regulatória Líquida | I6: (a) BRRL0-t* (mil R$) | J6: =E31/1000 -> 980206.7374 | K6: =J6+K8-K15 -> 1090579.995 | L6: =K6+L8-L15 -> 1194087 | M6: =L6+M8-M15 -> 1215246.288 | N6: 1219632.258 | O6: =N6+O8-O15 -> 1257653.519
C7: (a.1) Outorga = (a.2) + (a.3) | D7: Valor contabilizado no "Anexo 7 - BRRL Inicial" do Contrato de Concessão | E7: 508000000 | I7: (b) Amortização da BRRL0 (mil R$) | J7: 0 | K7: =$J$6/30 -> 32673.55791 | L7: =$J$6/30 -> 32673.55791 | M7: 32673.55791 | N7: 32673.55791 | O7: 32673.55791
C8: (a.2) Compensação de créditos | D8: Compensação de créditos em favor da Concessionária referente ao contrato anterior (item 1.3 do Contrato) | E8: 98000000 | I8: (c) Imobilizações (mil R$) | J8: 0 | K8: =CAPEX!D8 -> 145848.6804 | L8: =CAPEX!E8 -> 144489.5807 | M8: =CAPEX!F8 -> 66248.42286 | N8: =CAPEX!G8 -> 52040.8523 | O8: =CAPEX!H8 -> 88614.66073
C9: (a.3) Valor da Outorga pago | D9: Valor efetivamente pago em 28/12/2022. | E9: =E7-E8 -> 410000000 | I9: (d) Amortização de (c) (mil R$) | J9: 0 | K9: =SUM(K10:K14) -> 2801.864482 | L9: =SUM(L10:L14) -> 8309.018186 | M9: =SUM(M10:M14) -> 12415.57733 | N9: =SUM(N10:N14) -> 14981.32433 | O9: =SUM(O10:O14) -> 17919.84197
C10: (a.4) Passivo Regulatório | D10: Valor constante no item 10.12 do Contrato e referenciado no "Anexo 07 - BRRL Inicial"** | E10: 93106400.97 | I10: (d.1) Ano 1 (mil R$) | J10: 0 | K10: =(SUM(CAPEX!L48:L49)/1000)/2 -> 2801.864482 | L10: =K10*2 -> 5603.728964 | M10: =L10 -> 5603.728964 | N10: 5603.728964 | O10: 5603.728964
C11: (a.5) Outorga subtraído o Passivo Regulatório = (a.1) - (a.4) | D11: - | E11: =E7-E10 -> 414893599 | I11: (d.2) Ano 2 (mil R$) | J11: 0 | K11: 0 | L11: =(SUM(CAPEX!M48:M49)/1000)/2 -> 2705.289221 | M11: =L11*2 -> 5410.578443 | N11: =M11 -> 5410.578443 | O11: 5410.578443
C12: (a.6) Bens não amortizados até assinatura do Contrato* | D12: Valor contabilizado no "Anexo 7 - BRRL Inicial" do Contrato de Concessão, líquida das baixas identificadas | E12: 232239109.4 | I12: (d.3) Ano 3 (mil R$) | J12: 0 | K12: 0 | L12: 0 | M12: =(SUM(CAPEX!N48:N49)/1000)/2 -> 1401.269923 | N12: =M12*2 -> 2802.539846 | O12: =N12 -> 2802.539846
C13: (a.7) BRRL Inicial = (a.5) + (a.6) | D13: - | E13: =E11+E12 -> 647132708.4 | I13: (d.4) Ano 4 (mil R$) | J13: 0 | K13: 0 | L13: 0 | M13: 0 | N13: =(SUM(CAPEX!O48:O49)/1000)/2 -> 1164.47708 | O13: =N13*2 -> 2328.954161
C14: (b) Investimentos realizados entre 01/01/2022 e 06/07/2024 | I14: (d.5) Ano 5 (mil R$) | J14: 0 | K14: 0 | L14: 0 | M14: 0 | N14: 0 | O14: =(SUM(CAPEX!P48:P49)/1000)/2 -> 1774.040554
C15: (b.1) Investimentos realizados entre 01/01/2022 e 31/12/2023 | D15: Ativos imobilizados no período de 1/1/2022 a 31/12/2023, líquidas das baixas identificadas | E15: 23500670.56 | I15: (e) Amortização total (mil R$) = (b) + (d) | J15: 0 | K15: =K7+K9 -> 35475.4224 | L15: =L7+L9 -> 40982.5761 | M15: =M7+M9 -> 45089.13524 | N15: =N7+N9 -> 47654.88225 | O15: =O7+O9 -> 50593.39988
C16: (b.2) Amortização de (b.1) | D16: Amortização desde a data de entrada em serviço até 6/7/2024 | E16: 2190696.66 | I16: Variação anual da BRRL (mil R$) | J16: 0 | K16: =K6-J6 -> 110373.258 | L16: =L6-K6 -> 103507.0047 | M16: =M6-L6 -> 21159.28761 | N16: =N6-M6 -> 4385.97005 | O16: =O6-N6 -> 38021.26085
C17: (b.3) = (b.1) - (b.2) | D17: - | E17: =E15-E16 -> 21309973.9 | I17: *Ativos ainda não laudados.
C18: (b.4) Investimentos "em formação" entre 01/01/2022 e 31/12/2023 | D18: Ativos "em formação" no período de 1/1/2022 a 31/12/2023 | E18: 12535074.95
C19: (b.5) Investimentos projetados para no período de 01/01/2024 a 06/07/2024 | D19: Investimentos projetados no período de 01/01/2024 a 06/07/2024 | E19: 26948804.16 | K19: 2014 | L19: 2015 | M19: 2016 | N19: 2017 | O19: 2018
C20: (b.6) = (b.4) + (b.5) | D20: - | E20: =SUM(E18,E19) -> 39483879.11
C21: (c) Atualização monetária pelo IPCA do período
C22: (c.1) = (c.5) x (1+ΔIPCA) | D22: Atualização pelo IPCA desde 1/1/2022 até jul/2024 | E22: =ROUND(E11*(1+ ROUND(('Série - IPCA'!C444-'Série - IPCA'!C411)/'Série - IPCA'!C411,6)),2) -> 469459160.5
C23: (c.2) = (a.6) x (1+ΔIPCA) | D23: Atualização pelo IPCA desde 1/1/2022 até jul/2024 | E23: =ROUND(E12*(1+ ROUND(('Série - IPCA'!C444-'Série - IPCA'!C411)/'Série - IPCA'!C411,6)),2) -> 262782500.3
C24: (c.3) = (b.3) x (1+ΔIPCA) | D24: Atualização pelo IPCA desde a data de entrada em serviço até jul/2024 | E24: =ROUND(22506504.08*(1+ ROUND(('Série - IPCA'!C444-'Série - IPCA'!C441)/'Série - IPCA'!C441,6)),2) -> 22689301.91
C25: (c.4) = (b.6) | D25: - | E25: =E20 -> 39483879.11
C26: (d) Remuneração pela taxa WACC pro rata tempore do período
C27: (e.1) = (c.1) x (1+rWACC)^(Δdias/360) | D27: Capitalização de 1/1/2022 até 6/7/2024 | E27: =ROUND(E22*(1+9.125%)^(_xlfn.DAYS("6/7/2024","1/1/2022")/360),2) -> 586407244.9
C28: (e.2) = (c.2) x (1+rWACC)^(Δdias/360) | D28: Capitalização de 1/1/2022 até 6/7/2024 | E28: =ROUND(E23*(1+9.125%)^(_xlfn.DAYS("6/7/2024","1/1/2022")/360),2) -> 328244871.9
C29: (e.3) = (c.3) x (1+rWACC)^(Δdias/360) | D29: Capitalização desde a data de entrada em serviço até 6/7/2024 | E29: =ROUND(25860700.8238*(1+ ROUND(('Série - IPCA'!C444-'Série - IPCA'!C441)/'Série - IPCA'!C441,6)),2) -> 26070741.44
C30: (e.4) = (b.6) | D30: - | E30: =E20 -> 39483879.11
C31: BRRL0 = Ʃ(e) | D31: - | E31: =SUM(E27:E30) -> 980206737.4
C32: Ativos ainda em análise e não fiscalizados pela Agepar.
C33: Constatou-se uma diferença de R$ 539,44 entre o constante no item 10.12 do Contrato e o referenciado no "Anexo 07 - BRRL Inicial". Nesse caso, deu-se preferência ao valor constante no corpo do Contrato.

Sheet CAPEX
K2: Informações encaminhadas pela COMPAGAS | R2: Informações encaminhadas pela COMPAGAS (adaptado)
C3: Plano de Investimentos considerado* | K3: Fluxo de Investimentos | L3: 1º Ciclo Tarifário - R$ | R3: JOA | S3: 1º Ciclo Tarifário - R$
D4: 1° Ciclo Tarifário (ano) | L4: 2024/2025 | M4: 2025/2026 | N4: 2026/2027 | O4: 2027/2028 | P4: 2028/2029 | S4: 2024/2025 | T4: 2025/2026 | U4: 2026/2027 | V4: 2027/2028 | W4: 2028/2029
C5: Descrição | D5: 1 | E5: 2 | F5: 3 | G5: 4 | H5: 5 | K5: Expansão e Saturação | L5: =SUM(L6:L11) -> 121400990.9 | M5: =SUM(M6:M11) -> 121545314.9 | N5: 46408739.36 | O5: 36106744.02 | P5: 70371499.89 | R5: Expansão e Saturação | S5: =SUM(S6:S11) -> 1956272.257 | T5: =SUM(T6:T11) -> 1642928.495 | U5: 515281.0671 | V5: 439730.4615 | W5: 1154441.041
C6: CAPEX total proposto pela Concessionária (mil R$) | D6: =L29/1000 -> 145891.2232 | E6: =M29/1000 -> 146749.8315 | F6: 68508.67364 | G6: 54301.10308 | H6: 90874.91151 | K6: Expansão Londrina-Maringá | L6: 14850475.57 | M6: 9570323.429 | N6: 13546089.64 | O6: 13290557.47 | P6: 46975782.27 | R6: Expansão Londrina-Maringá | S6: =L6*((1+rWACC!$D$3)^(63/252)-1) -> 313303.2294 | T6: =M6*((1+rWACC!$D$3)^(63/252)-1) -> 201906.8832 | U6: =N6*((1+rWACC!$D$3)^(63/252)-1) -> 285784.3581 | V6: =O6*((1+rWACC!$D$3)^(63/252)-1) -> 280393.3487 | W6: =P6*((1+rWACC!$D$3)^(63/252)-1) -> 991056.7657
C7: Glosas adotadas pela Agepar (mil R$) | D7: =SUM(L40:L41)/1000 -> 42.54278 | E7: =SUM(M40:M41)/1000 -> 2260.25078 | F7: =SUM(N40:N41)/1000 -> 2260.25078 | G7: =SUM(O40:O41)/1000 -> 2260.25078 | H7: =SUM(P40:P41)/1000 -> 2260.25078 | K7: Expansão Lapa | L7: 63688044.18 | M7: 46695351.22 | N7: 0 | O7: 0 | P7: 0 | R7: Expansão Lapa | S7: =L7*((1+rWACC!$D$3)^(63/252)-1) -> 1343638.446 | T7: =M7*((1+rWACC!$D$3)^(63/252)-1) -> 985140.46 | U7: 0 | V7: 0 | W7: 0
C8: Total de investimentos considerados* (mil R$) | D8: =D6-D7 -> 145848.6804 | E8: =E6-E7 -> 144489.5807 | F8: 66248.42286 | G8: 52040.8523 | H8: 88614.66073 | K8: Corredores Sustentáveis | L8: 8436223.316 | M8: 0 | N8: 0 | O8: 0 | P8: 0 | R8: Corredores Sustentáveis | S8: =L8*((1+rWACC!$D$3)^(21/252)-1) -> 58914.46683 | T8: 0 | U8: 0 | V8: 0 | W8: 0
C9: *Mediante análise realizada pela Agepar. | K9: Programa de Desenvolvimento do Biometano | L9: 6885997.4 | M9: 35672331.93 | N9: 8541789.149 | O9: 0 | P9: 0 | R9: Programa de Desenvolvimento do Biometano | S9: =L9*((1+rWACC!$D$3)^(21/252)-1) -> 48088.44553 | T9: =M9*((1+rWACC!$D$3)^(21/252)-1) -> 249118.1584 | U9: =N9*((1+rWACC!$D$3)^(21/252)-1) -> 59651.6871 | V9: 0 | W9: 0
K10: Expansão RMC | L10: 5844806.055 | M10: 7140015.381 | N10: 140394.3319 | O10: 140394.3319 | P10: 140394.3319 | R10: Expansão RMC | S10: =L10*((1+rWACC!$D$3)^(21/252)-1) -> 40817.27327 | T10: =M10*((1+rWACC!$D$3)^(21/252)-1) -> 49862.38316 | U10: =N10*((1+rWACC!$D$3)^(21/252)-1) -> 980.4455026 | V10: =O10*((1+rWACC!$D$3)^(21/252)-1) -> 980.4455026 | W10: =P10*((1+rWACC!$D$3)^(21/252)-1) -> 980.4455026
K11: Programa de Saturação | L11: 21695444.43 | M11: 22467292.92 | N11: 24180466.24 | O11: 22675792.22 | P11: 23255323.28 | R11: Programa de Saturação | S11: =L11*((1+rWACC!$D$3)^(21/252)-1) -> 151510.3967 | T11: =M11*((1+rWACC!$D$3)^(21/252)-1) -> 156900.6099 | U11: =N11*((1+rWACC!$D$3)^(21/252)-1) -> 168864.5764 | V11: =O11*((1+rWACC!$D$3)^(21/252)-1) -> 158356.6673 | W11: =P11*((1+rWACC!$D$3)^(21/252)-1) -> 162403.8294
K12: Suporte Operacional | L12: =SUM(L13:L17) -> 8277438.663 | M12: =SUM(M13:M17) -> 8900862.102 | N12: 9225372.773 | O12: 5921488.749 | P12: 5817265.514 | R12: Suporte Operacional | S12: =SUM(S13:S17) -> 33499.99761 | T12: =SUM(T13:T17) -> 42020.17531 | U12: =SUM(U13:U17) -> 49805.61515 | V12: 28537.41279 | W12: 24092.22227
K13: INTEGRIDADE DE REDE | L13: 2524777.208 | M13: 2611017.21 | N13: 2611017.21 | O13: 2611017.21 | P13: 2611017.21 | R13: INTEGRIDADE DE REDE | S13: =L13*((1+rWACC!$D$3)^(21/252)-1) -> 17631.81195 | T13: =M13*((1+rWACC!$D$3)^(21/252)-1) -> 18234.07004 | U13: =N13*((1+rWACC!$D$3)^(21/252)-1) -> 18234.07004 | V13: =O13*((1+rWACC!$D$3)^(21/252)-1) -> 18234.07004 | W13: =P13*((1+rWACC!$D$3)^(21/252)-1) -> 18234.07004
K14: Redes de Distribuição - Ambiental | L14: 2272235.752 | M14: 2996942.548 | N14: 4520869.31 | O14: 1270833.678 | P14: 838854.7513 | R14: Redes de Distribuição - Ambiental | S14: =L14*((1+rWACC!$D$3)^(21/252)-1) -> 15868.18566 | T14: =M14*((1+rWACC!$D$3)^(21/252)-1) -> 20929.18427 | U14: =N14*((1+rWACC!$D$3)^(21/252)-1) -> 31571.54512 | V14: =O14*((1+rWACC!$D$3)^(21/252)-1) -> 8874.882252 | W14: =P14*((1+rWACC!$D$3)^(21/252)-1) -> 5858.152229
K15: Tachões e Equipamentos de GNC para atendimento a emergência | L15: 0 | M15: 409095.1659 | N15: 0 | O15: 204547.5829 | P15: 0 | R15: Tachões e Equipamentos de GNC para atendimento a emergência | S15: 0 | T15: =M15*((1+rWACC!$D$3)^(21/252)-1) -> 2856.921004 | U15: 0 | V15: =O15*((1+rWACC!$D$3)^(21/252)-1) -> 1428.460502 | W15: 0
K16: Troca de Medidores | L16: 2164775.65 | M16: 1568157.125 | N16: 777836.2 | O16: 519440.225 | P16: 1051743.5 | R16: Troca de Medidores | S16: 0 | T16: 0 | U16: 0 | V16: 0 | W16: 0
K17: Máquinas, Aparelhos e Equipamentos | L17: 1315650.053 | M17: 1315650.053 | N17: 1315650.053 | O17: 1315650.053 | P17: 1315650.053 | R17: Máquinas, Aparelhos e Equipamentos | S17: 0 | T17: 0 | U17: 0 | V17: 0 | W17: 0
K18: Suporte Outros | L18: =SUM(L19:L23) -> 9858486.991 | M18: =SUM(M19:M23) -> 9858486.991 | N18: 9858486.991 | O18: 9858486.991 | P18: 9858486.991 | R18: Suporte Administrativo | S18: =SUM(S19:S23) -> 0 | T18: =SUM(T19:T23) -> 0 | U18: 0 | V18: 0 | W18: 0
K19: Benfeitorias em Bens de Terceiros | L19: 200000 | M19: 200000 | N19: 200000 | O19: 200000 | P19: 200000 | R19: Benfeitorias em Bens de Terceiros | S19: 0 | T19: 0 | U19: 0 | V19: 0 | W19: 0
K20: Equipamentos de Processamento de Dados | L20: 5726178.674 | M20: 5726178.674 | N20: 5726178.674 | O20: 5726178.674 | P20: 5726178.674 | R20: Equipamentos de Processamento de Dados | S20: 0 | T20: 0 | U20: 0 | V20: 0 | W20: 0
K21: Softwares | L21: 3738107.078 | M21: 3738107.078 | N21: 3738107.078 | O21: 3738107.078 | P21: 3738107.078 | R21: Softwares | S21: 0 | T21: 0 | U21: 0 | V21: 0 | W21: 0
K22: Supervisório | L22: 133973.86 | M22: 133973.86 | N22: 133973.86 | O22: 133973.86 | P22: 133973.86 | R22: Supervisório | S22: 0 | T22: 0 | U22: 0 | V22: 0 | W22: 0
K23: Móveis e Utensílios | L23: 60227.37915 | M23: 60227.37915 | N23: 60227.37915 | O23: 60227.37915 | P23: 60227.37915 | R23: Móveis e Utensílios | S23: 0 | T23: 0 | U23: 0 | V23: 0 | W23: 0
K24: Total | L24: =SUM(L5,L12,L18) -> 139536916.6 | M24: =SUM(M5,M12,M18) -> 140304664 | N24: 65492599.13 | O24: 51886719.76 | P24: =SUM(P5,P12,P18) -> 86047252.39 | R24: Total | S24: =SUM(S5,S12,S18) -> 1989772.255 | T24: =SUM(T5,T12,T18) -> 1684948.67 | U24: 565086.6823 | V24: 468267.8743 | W24: 1178533.263
R25: Informações encaminhadas pela COMPAGAS (adaptado)
K26: JOA | L26: =S24 -> 1989772.255 | M26: =T24 -> 1684948.67 | N26: 565086.6823 | O26: 468267.8743 | P26: 1178533.263 | R26: MANPOWER (5%) | S26: 1º Ciclo Tarifário - R$
K27: Manpower estimado no CAPEX | L27: =S47*S49 -> 4364534.323 | M27: =T47*T49 -> 4760218.879 | N27: =U47*U49 -> 2450987.829 | O27: 1946115.441 | P27: 3649125.855 | S27: 2024/2025 | T27: 2025/2026 | U27: 2026/2027 | V27: 2027/2028 | W27: 2028/2029
R28: Expansão e Saturação | S28: =SUM(S29:S34) -> 6070049.547 | T28: =SUM(T29:T34) -> 6077265.744 | U28: 2320436.968 | V28: 1805337.201 | W28: 3518574.994
K29: CAPEX Total | L29: =L24+L26+L27 -> 145891223.2 | M29: =M24+M26+M27 -> 146749831.5 | N29: 68508673.64 | O29: 54301103.08 | P29: 90874911.51 | R29: Expansão Londrina-Maringá | S29: =5%*L6 -> 742523.7787 | T29: =5%*M6 -> 478516.1715 | U29: 677304.4819 | V29: 664527.8735 | W29: 2348789.114
R30: Expansão Lapa | S30: =5%*L7 -> 3184402.209 | T30: 2334767.561 | U30: 0 | V30: 0 | W30: 0
K31: Glosas | L31: 1º Ciclo Tarifário - R$ | R31: Corredores Sustentáveis | S31: 421811.1658 | T31: 0 | U31: 0 | V31: 0 | W31: 0
L32: 2024/2025 | M32: 2025/2026 | N32: 2026/2027 | O32: 2027/2028 | P32: 2028/2029 | R32: Programa de Desenvolvimento do Biometano | S32: 344299.87 | T32: =5%*M9 -> 1783616.597 | U32: =5%*N9 -> 427089.4575 | V32: 0 | W32: 0
K33: Equipamentos de Processamento de Dados | L33: =L20 -> 5726178.674 | M33: =M20 -> 5726178.674 | N33: 5726178.674 | O33: 5726178.674 | P33: 5726178.674 | R33: Expansão RMC | S33: 292240.3027 | T33: 357000.7691 | U33: 7019.716594 | V33: =5%*O10 -> 7019.716594 | W33: =5%*P10 -> 7019.716594
K34: Aquisição de monitores | L34: 173865.43 | M34: 173865.43 | N34: 173865.43 | O34: 173865.43 | P34: 173865.43 | R34: Programa de Saturação | S34: 1084772.221 | T34: 1123364.646 | U34: 1209023.312 | V34: 1133789.611 | W34: 1162766.164
K35: Aquisição de notebooks | L35: 2086385.35 | M35: 2086385.35 | N35: 2086385.35 | O35: 2086385.35 | P35: 2086385.35 | R35: Suporte Operacional | S35: =SUM(S36:S40) -> 126238.8604 | T35: =SUM(T36:T40) -> 151005.6188 | U35: 130550.8605 | V35: 140778.2396 | W35: 130550.8605
K36: Considerações Agepar | R36: INTEGRIDADE DE REDE | S36: 126238.8604 | T36: =5%*M13 -> 130550.8605 | U36: =5%*N13 -> 130550.8605 | V36: =5%*O13 -> 130550.8605 | W36: =5%*P13 -> 130550.8605
K37: Valor considerado Agepar - aquisição de monitores | L37: 173208 | M37: 0 | N37: 0 | O37: 0 | P37: 0 | R37: Redes de Distribuição - Ambiental | S37: 0 | T37: 0 | U37: 0 | V37: 0 | W37: 0
K38: Valor considerado Agepar - aquisição de notebooks | L38: 2044500 | M38: 0 | N38: 0 | O38: 0 | P38: 0 | R38: Tachões e Equipamentos de GNC para atendimento a emergência | S38: 0 | T38: 20454.75829 | U38: 0 | V38: 10227.37915 | W38: 0
K39: Valor final das glosas Agepar | R39: Troca de Medidores | S39: 0 | T39: 0 | U39: 0 | V39: 0 | W39: 0
K40: Glosa Agepar - aquisição de monitores | L40: =L34-L37 -> 657.43 | M40: 173865.43 | N40: 173865.43 | O40: 173865.43 | P40: 173865.43 | R40: Máquinas, Aparelhos e Equipamentos | S40: 0 | T40: 0 | U40: 0 | V40: 0 | W40: 0
K41: Glosa Agepar - aquisição de notebooks | L41: 41885.35 | M41: 2086385.35 | N41: 2086385.35 | O41: 2086385.35 | P41: 2086385.35 | R41: Suporte Administrativo | S41: =SUM(S42:S46) -> 0 | T41: =SUM(T42:T46) -> 0 | U41: 0 | V41: 0 | W41: 0
K42: Equipamentos de Processamento de Dados (pós glosas) | L42: =L20-SUM(L40:L41) -> 5683635.894 | M42: =M20-SUM(M40:M41) -> 3465927.894 | N42: =N20-SUM(N40:N41) -> 3465927.894 | O42: =O20-SUM(O40:O41) -> 3465927.894 | P42: =P20-SUM(P40:P41) -> 3465927.894 | R42: Benfeitorias em Bens de Terceiros | S42: 0 | T42: 0 | U42: 0 | V42: 0 | W42: 0
R43: Equipamentos de Processamento de Dados | S43: 0 | T43: 0 | U43: 0 | V43: 0 | W43: 0
K44: Amortização | L44: 1º Ciclo Tarifário - R$ | R44: Softwares | S44: 0 | T44: 0 | U44: 0 | V44: 0 | W44: 0
L45: 2024/2025 | M45: 2025/2026 | N45: 2026/2027 | O45: 2027/2028 | P45: 2028/2029 | R45: Supervisório | S45: 0 | T45: 0 | U45: 0 | V45: 0 | W45: 0
K46: Amortizável em 30 anos | L46: =SUM(S53,S61,S62,S63,S64) -> 134717086.1 | M46: =SUM(T53,T61,T62,T63,T64) -> 135575694.5 | N46: =SUM(U53,U61,U62,U63,U64) -> 57334536.59 | O46: =SUM(V53,V61,V62,V63,V64) -> 43126966.03 | P46: =SUM(W53,W61,W62,W63,W64) -> 79700774.47 | R46: Móveis e Utensílios | S46: 0 | T46: 0 | U46: 0 | V46: 0 | W46: 0
K47: Amortízável em 10 anos | L47: =SUM(S65,S66)-SUM(L40:L41) -> 11131594.26 | M47: =SUM(T65,T66)-SUM(M40:M41) -> 8913886.265 | N47: =SUM(U65,U66)-SUM(N40:N41) -> 8913886.265 | O47: =SUM(V65,V66)-SUM(O40:O41) -> 8913886.265 | P47: =SUM(W65,W66)-SUM(P40:P41) -> 8913886.265 | R47: Total | S47: =SUM(S28,S35,S41) -> 6196288.408 | T47: =SUM(T28,T35,T41) -> 6228271.363 | U47: 2450987.829 | V47: 1946115.441 | W47: 3649125.855
K48: Amortização anual para 30 anos | L48: =L46/30 -> 4490569.538 | M48: =M46/30 -> 4519189.816 | N48: =N46/30 -> 1911151.22 | O48: =O46/30 -> 1437565.534 | P48: =P46/30 -> 2656692.482
K49: Amortização anual para 10 anos | L49: =L47/10 -> 1113159.426 | M49: =M47/10 -> 891388.6265 | N49: =N47/10 -> 891388.6265 | O49: =O47/10 -> 891388.6265 | P49: =P47/10 -> 891388.6265 | R49: Fator | S49: =IF(S47>DRIVER_OPEX!G279,DRIVER_OPEX!G279,S47)/S47 -> 0.7043788209 | T49: =IF(T47>DRIVER_OPEX!H279,DRIVER_OPEX!H279,T47)/T47 -> 0.7642921448 | U49: =IF(U47>DRIVER_OPEX!I279,DRIVER_OPEX!I279,U47)/U47 -> 1 | V49: =IF(V47>DRIVER_OPEX!J279,DRIVER_OPEX!J279,V47)/V47 -> 1 | W49: =IF(W47>DRIVER_OPEX!K279,DRIVER_OPEX!K279,W47)/W47 -> 1
K50: Total | L50: =SUM(L48:L49) -> 5603728.964 | M50: =SUM(M48:M49) -> 5410578.443 | N50: =SUM(N48:N49) -> 2802539.846 | O50: =SUM(O48:O49) -> 2328954.161 | P50: =SUM(P48:P49) -> 3548081.109
R51: CAPEX total | S51: 1º Ciclo Tarifário - R$
S52: 2024/2025 | T52: 2025/2026 | U52: 2026/2027 | V52: 2027/2028 | W52: 2028/2029
R53: Expansão e Saturação | S53: =SUM(S54:S59) -> 127632877.5 | T53: =SUM(T54:T59) -> 127833049.9 | U53: 49244457.4 | V53: 38351811.68 | W53: 75044515.92
R54: Expansão Londrina-Maringá | S54: =L6+S6+S29*$S$49 -> 15686796.83 | T54: =M6+T6+T29*$T$49 -> 10137956.46 | U54: =N6+U6+U29*$U$49 -> 14509178.48 | V54: =O6+V6+V29*$V$49 -> 14235478.69 | W54: =P6+W6+W29*$W$49 -> 50315628.15
R55: Expansão Lapa | S55: =L7+S7+S30*$S$49 -> 67274708.09 | T55: =M7+T7+T30*$T$49 -> 49464936.19 | U55: =N7+U7+U30*$U$49 -> 0 | V55: =O7+V7+V30*$V$49 -> 0 | W55: =P7+W7+W30*$W$49 -> 0
R56: Corredores Sustentáveis | S56: =L8+S8+S31*$S$49 -> 8792252.634 | T56: 0 | U56: 0 | V56: 0 | W56: 0
R57: Programa de Desenvolvimento do Biometano | S57: 7176603.382 | T57: 37284654.25 | U57: 9028530.294 | V57: 0 | W57: 0
R58: Expansão RMC | S58: =L10+S10+S33*$S$49 -> 6091471.208 | T58: 7462730.648 | U58: 148394.494 | V58: 148394.494 | W58: 148394.494
R59: Programa de Saturação | S59: 22611045.4 | T59: 23482772.3 | U59: 25558354.13 | V59: 23967938.5 | W59: 24580493.28
R60: Suporte Operacional | S60: =SUM(S61:S65) -> 8399858.64 | T60: =SUM(T61:T65) -> 9058294.685 | U60: 9405729.249 | V60: 6090804.401 | W60: 5971908.597
R61: INTEGRIDADE DE REDE | S61: =L13+S13+S36*$S$49 -> 2631328.999 | T61: 2729030.277 | U61: 2759802.14 | V61: 2759802.14 | W61: 2759802.14
R62: Redes de Distribuição - Ambiental | S62: 2288103.937 | T62: 3017871.732 | U62: 4552440.855 | V62: 1279708.56 | W62: 844712.9036
R63: Tachões e Equipamentos de GNC para atendimento a emergência | S63: 0 | T63: 427585.498 | U63: 0 | V63: 216203.4226 | W63: 0
R64: Troca de Medidores | S64: =L16+S16+S39*$S$49 -> 2164775.65 | T64: =M16+T16+T39*$T$49 -> 1568157.125 | U64: =N16+U16+U39*$U$49 -> 777836.2 | V64: =O16+V16+V39*$V$49 -> 519440.225 | W64: =P16+W16+W39*$W$49 -> 1051743.5
R65: Máquinas, Aparelhos e Equipamentos | S65: 1315650.053 | T65: 1315650.053 | U65: 1315650.053 | V65: 1315650.053 | W65: 1315650.053
R66: Suporte Administrativo | S66: =SUM(S67:S71) -> 9858486.991 | T66: =SUM(T67:T71) -> 9858486.991 | U66: 9858486.991 | V66: 9858486.991 | W66: 9858486.991
R67: Benfeitorias em Bens de Terceiros | S67: 200000 | T67: 200000 | U67: 200000 | V67: 200000 | W67: 200000
R68: Equipamentos de Processamento de Dados | S68: =L20+S20+S43*$S$49 -> 5726178.674 | T68: 5726178.674 | U68: 5726178.674 | V68: 5726178.674 | W68: 5726178.674
R69: Softwares | S69: 3738107.078 | T69: 3738107.078 | U69: 3738107.078 | V69: 3738107.078 | W69: 3738107.078
R70: Supervisório | S70: 133973.86 | T70: 133973.86 | U70: 133973.86 | V70: 133973.86 | W70: 133973.86
R71: Móveis e Utensílios | S71: =L23+S23+S46*$S$49 -> 60227.37915 | T71: 60227.37915 | U71: 60227.37915 | V71: 60227.37915 | W71: 60227.37915
R72: Total | S72: =SUM(S53,S60,S66) -> 145891223.2 | T72: =SUM(T53,T60,T66) -> 146749831.5 | U72: =SUM(U53,U60,U66) -> 68508673.64 | V72: 54301103.08 | W72: 90874911.51

Sheet VCG
C3: Variação do Capital de Giro projetado*
C4: ITEM | D4: VARIÁVEL | E4: VALOR | F4: FONTE - Relatório da Administração 2023 (Compagas)
C5: CICLO OPERACIONAL E FINANCEIRO
C6: 1 | D6: Estoque Inicial de Gás (molécula sem tributos) | E6: 5694 | F6: Balanço patrimonial - Exercícios findos em 31 de dezembro 2022
C7: 2 | D7: Estoque Final de Gás (molécula sem tributos) | E7: 5383 | F7: Balanço patrimonial - Exercícios findos em 31 de dezembro 2023
C8: 3 | D8: Estoque Médio Anual do Gás | E8: =(E6+E7)/2 -> 5538.5 | F8: =(1)+(2)/2
C9: 4 | D9: Custo Anual de Aquisição do Gás sem Tributos | E9: =702662 -> 702662 | F9: Relatório da Administração - Exercício 2023, nota 18
C10: 5 | D10: PMRE | E10: =E8/E9*360 -> 2.837580515 | F10: =(3)/(4)*360
C11: 6 | D11: Contas a Receber Clientes Inicial | E11: 128579 | F11: Balanço patrimonial - Exercícios findos em 31 de dezembro
C12: =C11+1 -> 7 | D12: Contas a Receber Clientes Final | E12: 82981 | F12: Balanço patrimonial - Exercícios findos em 31 de dezembro
C13: =C12+1 -> 8 | D13: Contas a Receber Clientes Médio | E13: =(E11+E12)/2 -> 105780 | F13: =(6)+(7)/2
C14: 9 | D14: Total de Vendas - Receita Operacional Bruta (DRE) | E14: 1306678 | F14: Relatório da Administração - Exercício 2023, nota 17
C15: 10 | D15: PMR | E15: =((E13/E14)*360) -> 29.14321661 | F15: =(8)/(9)*360
C16: 11 | D16: Compras Anuais sem tributos | E16: =E6+E9-E7 -> 702973 | F16: =(4)+(1)-(2)
C17: 12 | D17: Compras Anuais + Pis/Cofins/ICMS | E17: =(E16+E6-E7)/(1-9.25%)/(1-12%) -> 880646.1307 | F17: =(11)/(1-9,25%)/(1-12%)
C18: 13 | D18: Fornecedores Inicial | E18: 97758 | F18: Balanço patrimonial - Exercícios findos em 31 de dezembro
C19: 14 | D19: Fornecedores Final | E19: 58010 | F19: Balanço patrimonial - Exercícios findos em 31 de dezembro
C20: 15 | D20: Fornecedores Médio | E20: =(E18+E19)/2 -> 77884 | F20: =(13)+(14)/2
C21: 16 | D21: PMP | E21: =E20/E17*360 -> 31.83825946 | F21: =(18)/(15)*360
C22: 17 | D22: Ciclo Financeiro estimado (dias) | E22: =E10+E15-E21 -> 0.1425376731 | F22: =(5)+(10)-(16) PMRE + PMR-PMP
C23: VOLUME PROJETADO
C24: 18 | D24: Volume Cativo 2024/2025 (ano) | E24: =VOLUME!E21 -> 297937461.9 | F24: Plano de Negócios da Compagás
C25: 19 | D25: Volume Cativo 2024/2026 (ano) | E25: =VOLUME!F21 -> 321383391 | F25: Plano de Negócios da Compagás
C26: 20 | D26: Volume Cativo 2024/2027 (ano) | E26: =VOLUME!G21 -> 345323942.7 | F26: Plano de Negócios da Compagás
C27: 21 | D27: Volume Cativo 2024/2028 (ano) | E27: =VOLUME!H21 -> 355227452.5 | F27: Plano de Negócios da Compagás
C28: 22 | D28: Volume Cativo 2024/2029 (ano) | E28: =VOLUME!I21 -> 363451645.4 | F28: Plano de Negócios da Compagás
C29: 23 | D29: Variação do Volume Médio Diário Projetado (24/25) | E29: =(E24/360)-E35 -> 6962.060933 | F29: =(18)/360-(28)
C30: 24 | D30: Variação do Volume Médio Diário Projetado (25/26) | E30: =(E25/360)-(E24/360) -> 65127.58084 | F30: =(19)/360-(18)/360
C31: 25 | D31: Variação do Volume Médio Diário Projetado (26/27) | E31: =(E26/360)-(E25/360) -> 66501.53246 | F31: =(20)/360-(19)/360
C32: 26 | D32: Variação do Volume Médio Diário Projetado (27/28) | E32: =(E27/360)-(E26/360) -> 27509.74933 | F32: =(21)/360-(20)/360
C33: 27 | D33: Variação do Volume Médio Diário Projetado (28/29) | E33: =(E28/360)-(E27/360) -> 22844.98038 | F33: =(22)/360-(21)/360
C34: VARIAÇÃO NO CAPITAL DE GIRO
C35: 28 | D35: Volume Total não térmico 2023 (dia) | E35: 820642 | F35: Relatório da Administração - Exercício 2023 - Distribuição de Gás
C36: 29 | D36: Média de Venda Unitário por dia (R$) | E36: =(E14*1000)/(E35*360) -> 4.42295314 | F36: =(9)*1000/(28)*360
C37: 30 | D37: VCG - 2024/2025 | E37: =$E$22*$E$36*E29 -> 4389.143934 | F37: =(17)*(29)*(23)
C38: 31 | D38: VCG - 2025/2026 | E38: =$E$22*$E$36*E30 -> 41058.86593 | F38: =(17)*(29)*(24)
C39: 32 | D39: VCG - 2026/2027 | E39: =$E$22*$E$36*E31 -> 41925.05648 | F39: =(17)*(29)*(25)
C40: 33 | D40: VCG - 2027/2028 | E40: =$E$22*$E$36*E32 -> 17343.17619 | F40: =(17)*(29)*(26)
C41: 34 | D41: VCG - 2028/2029 | E41: =$E$22*$E$36*E33 -> 14402.33116 | F41: =(17)*(29)*(27)
C42: 35 | D42: VCG TOTAL | E42: =SUM(E37:E41) -> 119118.5737 | F42: =(30)+(31)+(32)+(33)+(34)
C43: *Valores projetados com base nas Demonstrações Financeiras divulgadas pela Concessionária e no Plano de Negócios entregue.

Sheet OR
C3: Outras Receitas projetado*
E4: 1° Ciclo Tarifário (ano)
C5: Descrição | D5: Percentual de compartilhamento | E5: 1 | F5: 2 | G5: 3 | H5: 4 | I5: 5
C6: Receitas acessórias (mil R$) | D6: 0.2 | E6: =SUM(Resultados!I27:I29)*0.05%*$D$6 -> 16.62205996 | F6: =SUM(Resultados!J27:J29)*0.05%*$D$6 -> 27.62265836 | G6: =SUM(Resultados!K27:K29)*0.05%*$D$6 -> 29.02955698 | H6: =SUM(Resultados!L27:L29)*0.05%*$D$6 -> 32.14385552 | I6: =SUM(Resultados!M27:M29)*0.05%*$D$6 -> 34.96021145
C7: Receitas correlatas (mil R$) | D7: 0.1 | E7: =SUM(Resultados!I27:I29)*1%*$D$7 -> 166.2205996 | F7: =SUM(Resultados!J27:J29)*1%*$D$7 -> 276.2265836 | G7: =SUM(Resultados!K27:K29)*1%*$D$7 -> 290.2955698 | H7: =SUM(Resultados!L27:L29)*1%*$D$7 -> 321.4385552 | I7: =SUM(Resultados!M27:M29)*1%*$D$7 -> 349.6021145
C8: Receitas extraordinárias (mil R$) | D8: 0.5 | E8: 0 | F8: 0 | G8: 0 | H8: 0 | I8: 0
C9: Outras Receitas projetado (mil R$) | D9: - | E9: =SUM(E6:E8) -> 182.8426595 | F9: =SUM(F6:F8) -> 303.8492419 | G9: 319.3251268 | H9: 353.5824107 | I9: 384.562326
C10: *Valores projetados com base na TUSDC e TUSDL calculada.

Sheet IR
K2: Informações encaminhadas pela COMPAGAS
C3: Imposto de Renda projetado* | D3: Alíquota= | E3: 0.34 | L3: 0.03952458973 | M3: 0.03898728932 | N3: 0.03747336519 | O3: 0.03715927974 | P3: 0.03484601781
D4: 1° Ciclo Tarifário (ano) | K4: Projeção IPCA - Tendências | L4: 2024/2025 | M4: 2025/2026 | N4: 2026/2027 | O4: 2027/2028 | P4: 2028/2029
C5: Descrição | D5: 1 | E5: 2 | F5: 3 | G5: 4 | H5: 5 | K5: 2025 | L5: 1.03952459 | M5: 1.080052836 | N5: 1.12052605 | O5: 1.162163991 | P5: 1.202660778
C6: (+) Receita tarifária direta (mil R$) | D6: =SUM(Resultados!I27:I29) -> 166220.5996 | E6: =SUM(Resultados!J27:J29) -> 276226.5836 | F6: =SUM(Resultados!K27:K29) -> 290295.5698 | G6: =SUM(Resultados!L27:L29) -> 321438.5552 | H6: =SUM(Resultados!M27:M29) -> 349602.1145 | K6: 2026 | L6: 1 | M6: 1.038987289 | N6: 1.077921639 | O6: 1.117976431 | P6: 1.156933458
C7: (+) Outras receitas (mil R$) | D7: =OR!E9 -> 182.8426595 | E7: =OR!F9 -> 303.8492419 | F7: =OR!G9 -> 319.3251268 | G7: =OR!H9 -> 353.5824107 | H7: =OR!I9 -> 384.562326 | K7: 2027 | L7: 1 | M7: 1 | N7: 1.037473365 | O7: 1.076025128 | P7: 1.113520319
C8: (-) Despesas operacionais (mil R$) | D8: =SUM(DRIVER_OPEX!G439:G441)/1000 -> 76537.49207 | E8: =SUM(DRIVER_OPEX!H439:H441)/1000 -> 84126.60578 | F8: =SUM(DRIVER_OPEX!I439:I441)/1000 -> 91833.67807 | G8: =SUM(DRIVER_OPEX!J439:J441)/1000 -> 94693.03405 | H8: =SUM(DRIVER_OPEX!K439:K441)/1000 -> 96216.386 | K8: 2028 | L8: 1 | M8: 1 | N8: 1 | O8: 1.03715928 | P8: 1.07330015
C9: (-) Despesas financeiras (mil R$) | D9: ='We e Wd'!$L$4*rWACC!$D$18/L5 -> 22241.37705 | E9: ='We e Wd'!$L$6*rWACC!$D$18/M5 -> 15245.63594 | F9: ='We e Wd'!$L$6*rWACC!$D$18/N5 -> 14694.96611 | G9: ='We e Wd'!$L$6*rWACC!$D$18/O5 -> 14168.47576 | H9: ='We e Wd'!$L$6*rWACC!$D$18/P5 -> 13691.38549 | K9: 2029 | L9: 1 | M9: 1 | N9: 1 | O9: 1 | P9: 1.034846018
C10: (-) Depreciação/Amortização (mil R$) | D10: =L19/1000 -> 34126.5832 | E10: =M19/1000 -> 38043.97358 | F10: 40530.21504 | G10: 41503.12228 | H10: 42904.85573
C11: Base de cálculo do IRPJ/CSLL projetado | D11: =SUM(D6:D7)-SUM(D8:D10) -> 33497.98993 | E11: =IF(D11<0,SUM(E6:E7)-SUM(E8:E10)+D11,SUM(E6:E7)-SUM(E8:E10)) -> 139114.2175 | F11: =IF(E11<0,SUM(F6:F7)-SUM(F8:F10)+E11,SUM(F6:F7)-SUM(F8:F10)) -> 143556.0357 | G11: =IF(F11<0,SUM(G6:G7)-SUM(G8:G10)+F11,SUM(G6:G7)-SUM(G8:G10)) -> 171427.5055 | H11: =IF(G11<0,SUM(H6:H7)-SUM(H8:H10)+G11,SUM(H6:H7)-SUM(H8:H10)) -> 197174.0496
C12: IRPJ/CSLL projetado (mil R$) | D12: =IF(D11<0,0,D11*$E$3) -> 11389.31658 | E12: =IF(E11<0,0,E11*$E$3) -> 47298.83395 | F12: =IF(F11<0,0,F11*$E$3) -> 48809.05214 | G12: 58285.35188 | H12: 67039.17688 | K12: Contábil - IR/CSLL | L12: 2024/2025 | M12: 2025/2026 | N12: 2026/2027 | O12: 2027/2028 | P12: 2028/2029
C13: *Valores projetados com base na TUSDC e TUSDL calculada. | L13: =BRRL!K7*1000/L5 -> 31431250.63 | M13: =BRRL!L7*1000/M5 -> 30251814.39 | N13: =BRRL!M7*1000/N5 -> 29159123.89 | O13: =BRRL!N7*1000/O5 -> 28114412.57 | P13: =BRRL!O7*1000/P5 -> 27167725.52
K14: 2024/2025 | L14: =BRRL!K10*1000/IR!L5 -> 2695332.568 | M14: =BRRL!L10*1000/IR!M5 -> 5188384.104 | N14: =BRRL!M10*1000/IR!N5 -> 5000980.534 | O14: =BRRL!N10*1000/IR!O5 -> 4821805.707 | P14: =BRRL!O10*1000/IR!P5 -> 4659442.684
K15: 2025/2026 | L15: =BRRL!K11*1000/IR!L6 -> 0 | M15: =BRRL!L11*1000/IR!M6 -> 2603775.089 | N15: =BRRL!M11*1000/IR!N6 -> 5019454.332 | O15: =BRRL!N11*1000/IR!O6 -> 4839617.627 | P15: =BRRL!O11*1000/IR!P6 -> 4676654.829
K16: 2026/2027 | L16: =BRRL!K12*1000/IR!L7 -> 0 | M16: =BRRL!L12*1000/IR!M7 -> 0 | N16: =BRRL!M12*1000/IR!N7 -> 1350656.287 | O16: =BRRL!N12*1000/IR!O7 -> 2604530.111 | P16: =BRRL!O12*1000/IR!P7 -> 2516828.655
K17: 2027/2028 | L17: =BRRL!K13*1000/IR!L8 -> 0 | M17: =BRRL!L13*1000/IR!M8 -> 0 | N17: =BRRL!M13*1000/IR!N8 -> 0 | O17: =BRRL!N13*1000/IR!O8 -> 1122756.266 | P17: =BRRL!O13*1000/IR!P8 -> 2169900.153
K18: 2028/2029 | L18: =BRRL!K14*1000/IR!L9 -> 0 | M18: =BRRL!L14*1000/IR!M9 -> 0 | N18: =BRRL!M14*1000/IR!N9 -> 0 | O18: =BRRL!N14*1000/IR!O9 -> 0 | P18: =BRRL!O14*1000/IR!P9 -> 1714303.89
K19: Amortização Base | L19: =SUM(L13:L18) -> 34126583.2 | M19: =SUM(M13:M18) -> 38043973.58 | N19: =SUM(N13:N18) -> 40530215.04 | O19: 41503122.28 | P19: 42904855.73

Sheet VOLUME
C3: m³/ano | D3: Mercado | E3: 2024/2025 | F3: 2025/2026 | G3: 2026/2027 | H3: 2027/2028 | I3: 2028/2029
C4: TOTAL | D4: - | E4: =SUM(E5:E19) -> 297937461.9 | F4: =SUM(F5:F19) -> 506405156 | G4: =SUM(G5:G19) -> 531705707.7 | H4: =SUM(H5:H19) -> 590511217.5 | I4: =SUM(I5:I19) -> 643738410.4
C5: Ceramista | D5: Cativo | E5: 22841073.35 | F5: 24313073.35 | G5: 24313073.35 | H5: 24380184.94 | I5: 24313073.35
C6: Comercial | D6: Cativo | E6: 6587816.185 | F6: 6832067.703 | G6: 7094123.222 | H6: 7463353.196 | I6: 7836073.176
C7: Geração de Energia Elétrica Para Consumidor Final e Cogeração Usuários com Quantidade Diária Contratada (QDC) de até 16.000 m³/dia | D7: Cativo | E7: 57374.35 | F7: 57374.35 | G7: 57374.35 | H7: 57531.54 | I7: 57374.35
C8: GNC | D8: Cativo | E8: 4805955 | F8: 4805955 | G8: 4805955 | H8: 4819122 | I8: 4805955
C9: Industrial | D9: Cativo | E9: 126499577.1 | F9: 142695736.2 | G9: 157659015.3 | H9: 164483868.1 | I9: 165499974.2
C10: Interruptível | D10: Cativo | E10: 1131500 | F10: 1131500 | G10: 1131500 | H10: 1134600 | I10: 1131500
C11: Matéria Prima Quantidade Diária Contratada (QDC) de até 30.000 m³/dia | D11: Cativo | E11: 4259340 | F11: 4259340 | G11: 4259340 | H11: 4259340 | I11: 4259340
C12: Residencial - Medição INDIVIDUAL | D12: Cativo | E12: 10146858.28 | F12: 10870635.74 | G12: 11879016.02 | H12: 13326528.83 | I12: 15697913.63
C13: Residencial - Medição COLETIVA | D13: Cativo | E13: 3749617.691 | F13: 4161458.648 | G13: 4789670.436 | H13: 5731673.896 | I13: 6783066.664
C14: GNV | D14: Cativo | E14: 19128350 | F14: 20796250 | G14: 21014875 | H14: 21479250 | I14: 21562375
C15: Cogeração | D15: Cativo | E15: 14050000 | F15: 16780000 | G15: 25000000 | H15: 28670000 | I15: 32300000
C16: Unidades de Produção de Fertilizantes e Instalações de Refino de Petróleo Quantidade Diária Contratada (QDC) Acima de 500.000 m³/dia | D16: Livre | E16: 0 | F16: 0 | G16: 0 | H16: 44772000 | I16: 89790000
C17: Tabela Grandes Usuários Quantidade Diária Contratada (QDC) Acima de 100.000 m³/dia | D17: Livre
C18: Matéria Prima | D18: Cativo | E18: 84680000 | F18: 84680000 | G18: 84680000 | H18: 84912000 | I18: 84680000
C19: Termelétrico Quantidade Diária Contratada (QDC) Acima de 500.000 m³/dia | D19: Livre | E19: 0 | F19: 185021765 | G19: 185021765 | H19: 185021765 | I19: 185021765
C21: Cativo | D21: - | E21: =SUMIF($D$5:$D$20,$C21,E5:E19)-E23 -> 297937461.9 | F21: =SUMIF($D$5:$D$19,$C21,F5:F19)-F23 -> 321383391 | G21: =SUMIF($D$5:$D$19,$C21,G5:G19)-G23 -> 345323942.7 | H21: =SUMIF($D$5:$D$19,$C21,H5:H19)-H23 -> 355227452.5 | I21: =SUMIF($D$5:$D$19,$C21,I5:I19)-I23 -> 363451645.4
C22: Livre | D22: - | E22: =SUMIF($D$5:$D$19,$C22,E5:E19) -> 0 | F22: =SUMIF($D$5:$D$19,$C22,F5:F19) -> 185021765 | G22: =SUMIF($D$5:$D$19,$C22,G5:G19) -> 185021765 | H22: =SUMIF($D$5:$D$19,$C22,H5:H19) -> 229793765 | I22: =SUMIF($D$5:$D$19,$C22,I5:I19) -> 274811765
C23: Livre - INDUSTRIAL | D23: - | E23: 0 | F23: 0 | G23: 1360000 | H23: 5490000 | I23: 5475000

Sheet Série - IPCA
A2: SÉRIE HISTÓRICA DO IPCA
H3: (continua)
F4: VARIAÇÃO
A5: ANO | B5: MÊS | C5: NÚMERO ÍNDICE | D5: (%)
C6: (DEZ 93 = 100) | D6: NO | E6: 3 | F6: 6 | G6: NO | H6: 12
D7: MÊS | E7: MESES | F7: MESES | G7: ANO | H7: MESES
A9: 1994 | B9: JAN | C9: 141.31 | D9: 41.31 | E9: 162.13 | F9: 533.33 | G9: 41.31 | H9: 2693.84
B10: FEV | C10: 198.22 | D10: 40.27 | E10: 171.24 | F10: 568.17 | G10: 98.22 | H10: 3035.71
B11: MAR | C11: 282.96 | D11: 42.75 | E11: 182.96 | F11: 602.93 | G11: 182.96 | H11: 3417.39
B12: ABR | C12: 403.73 | D12: 42.68 | E12: 185.71 | F12: 648.92 | G12: 303.73 | H12: 3828.49
B13: MAI | C13: 581.49 | D13: 44.03 | E13: 193.36 | F13: 695.71 | G13: 481.49 | H13: 4331.19
B14: JUN | C14: 857.29 | D14: 47.43 | E14: 202.97 | F14: 757.29 | G14: 757.29 | H14: 4922.6
B15: JUL | C15: 915.93 | D15: 6.84 | E15: 126.87 | F15: 548.17 | G15: 815.93 | H15: 4005.08
B16: AGO | C16: 932.97 | D16: 1.86 | E16: 60.44 | F16: 370.67 | G16: 832.97 | H16: 3044.89
B17: SET | C17: 947.24 | D17: 1.53 | E17: 10.49 | F17: 234.76 | G17: 847.24 | H17: 2253.15
B18: OUT | C18: 972.06 | D18: 2.62 | E18: 6.13 | F18: 140.77 | G18: 872.06 | H18: 1703.17
B19: NOV | C19: 999.37 | D19: 2.81 | E19: 7.12 | F19: 71.86 | G19: 899.37 | H19: 1267.54
B20: DEZ | C20: 1016.46 | D20: 1.71 | E20: 7.31 | F20: 18.57 | G20: 916.46 | H20: 916.46
A22: 1995 | B22: JAN | C22: 1033.74 | D22: 1.7 | E22: 6.35 | F22: 12.86 | G22: 1.7 | H22: 631.54
B23: FEV | C23: 1044.28 | D23: 1.02 | E23: 4.49 | F23: 11.93 | G23: 2.74 | H23: 426.83
B24: MAR | C24: 1060.47 | D24: 1.55 | E24: 4.33 | F24: 11.95 | G24: 4.33 | H24: 274.78
B25: ABR | C25: 1086.24 | D25: 2.43 | E25: 5.08 | F25: 11.75 | G25: 6.87 | H25: 169.05
B26: MAI | C26: 1115.24 | D26: 2.67 | E26: 6.8 | F26: 11.59 | G26: 9.72 | H26: 91.79
B27: JUN | C27: 1140.44 | D27: 2.26 | E27: 7.54 | F27: 12.2 | G27: 12.2 | H27: 33.03
B28: JUL | C28: 1167.35 | D28: 2.36 | E28: 7.47 | F28: 12.92 | G28: 14.84 | H28: 27.45
B29: AGO | C29: 1178.91 | D29: 0.99 | E29: 5.71 | F29: 12.89 | G29: 15.98 | H29: 26.36
B30: SET | C30: 1190.58 | D30: 0.99 | E30: 4.4 | F30: 12.27 | G30: 17.13 | H30: 25.69
B31: OUT | C31: 1207.37 | D31: 1.41 | E31: 3.43 | F31: 11.15 | G31: 18.78 | H31: 24.21
B32: NOV | C32: 1225.12 | D32: 1.47 | E32: 3.92 | F32: 9.85 | G32: 20.53 | H32: 22.59
B33: DEZ | C33: 1244.23 | D33: 1.56 | E33: 4.51 | F33: 9.1 | G33: 22.41 | H33: 22.41
A35: 1996 | B35: JAN | C35: 1260.9 | D35: 1.34 | E35: 4.43 | F35: 8.01 | G35: 1.34 | H35: 21.97
B36: FEV | C36: 1273.89 | D36: 1.03 | E36: 3.98 | F36: 8.06 | G36: 2.38 | H36: 21.99
B37: MAR | C37: 1278.35 | D37: 0.35 | E37: 2.74 | F37: 7.37 | G37: 2.74 | H37: 20.55
B38: ABR | C38: 1294.46 | D38: 1.26 | E38: 2.66 | F38: 7.21 | G38: 4.04 | H38: 19.17
B39: MAI | C39: 1310.25 | D39: 1.22 | E39: 2.85 | F39: 6.95 | G39: 5.31 | H39: 17.49
B40: JUN | C40: 1325.84 | D40: 1.19 | E40: 3.71 | F40: 6.56 | G40: 6.56 | H40: 16.26
B41: JUL | C41: 1340.56 | D41: 1.11 | E41: 3.56 | F41: 6.32 | G41: 7.74 | H41: 14.84
B42: AGO | C42: 1346.46 | D42: 0.44 | E42: 2.76 | F42: 5.7 | G42: 8.22 | H42: 14.21
B43: SET | C43: 1348.48 | D43: 0.15 | E43: 1.71 | F43: 5.49 | G43: 8.38 | H43: 13.26
B44: OUT | C44: 1352.53 | D44: 0.3 | E44: 0.89 | F44: 4.49 | G44: 8.7 | H44: 12.02
B45: NOV | C45: 1356.86 | D45: 0.32 | E45: 0.77 | F45: 3.56 | G45: 9.05 | H45: 10.75
B46: DEZ | C46: 1363.24 | D46: 0.47 | E46: 1.09 | F46: 2.82 | G46: 9.56 | H46: 9.56
A48: 1997 | B48: JAN | C48: 1379.33 | D48: 1.18 | E48: 1.98 | F48: 2.89 | G48: 1.18 | H48: 9.39
B49: FEV | C49: 1386.23 | D49: 0.5 | E49: 2.16 | F49: 2.95 | G49: 1.69 | H49: 8.82
B50: MAR | C50: 1393.3 | D50: 0.51 | E50: 2.21 | F50: 3.32 | G50: 2.21 | H50: 8.99
B51: ABR | C51: 1405.56 | D51: 0.88 | E51: 1.9 | F51: 3.92 | G51: 3.1 | H51: 8.58
B52: MAI | C52: 1411.32 | D52: 0.41 | E52: 1.81 | F52: 4.01 | G52: 3.53 | H52: 7.71
B53: JUN | C53: 1418.94 | D53: 0.54 | E53: 1.84 | F53: 4.09 | G53: 4.09 | H53: 7.02
B54: JUL | C54: 1422.06 | D54: 0.22 | E54: 1.17 | F54: 3.1 | G54: 4.31 | H54: 6.08
B55: AGO | C55: 1421.78 | D55: -0.02 | E55: 0.74 | F55: 2.56 | G55: 4.29 | H55: 5.59
B56: SET | C56: 1422.63 | D56: 0.06 | E56: 0.26 | F56: 2.11 | G56: 4.36 | H56: 5.5
B57: OUT | C57: 1425.9 | D57: 0.23 | E57: 0.27 | F57: 1.45 | G57: 4.6 | H57: 5.42
B58: NOV | C58: 1428.32 | D58: 0.17 | E58: 0.46 | F58: 1.2 | G58: 4.77 | H58: 5.27
B59: DEZ | C59: 1434.46 | D59: 0.43 | E59: 0.83 | F59: 1.09 | G59: 5.22 | H59: 5.22
A61: 1998 | B61: JAN | C61: 1444.64 | D61: 0.71 | E61: 1.31 | F61: 1.59 | G61: 0.71 | H61: 4.73
B62: FEV | C62: 1451.29 | D62: 0.46 | E62: 1.61 | F62: 2.08 | G62: 1.17 | H62: 4.69
B63: MAR | C63: 1456.22 | D63: 0.34 | E63: 1.52 | F63: 2.36 | G63: 1.52 | H63: 4.52
B64: ABR | C64: 1459.71 | D64: 0.24 | E64: 1.04 | F64: 2.37 | G64: 1.76 | H64: 3.85
B65: MAI | C65: 1467.01 | D65: 0.5 | E65: 1.08 | F65: 2.71 | G65: 2.27 | H65: 3.95
B66: JUN | C66: 1467.3 | D66: 0.02 | E66: 0.76 | F66: 2.29 | G66: 2.29 | H66: 3.41
B67: JUL | C67: 1465.54 | D67: -0.12 | E67: 0.4 | F67: 1.45 | G67: 2.17 | H67: 3.06
B68: AGO | C68: 1458.07 | D68: -0.51 | E68: -0.61 | F68: 0.47 | G68: 1.65 | H68: 2.55
B69: SET | C69: 1454.86 | D69: -0.22 | E69: -0.85 | F69: -0.09 | G69: 1.42 | H69: 2.27
B70: OUT | C70: 1455.15 | D70: 0.02 | E70: -0.71 | F70: -0.31 | G70: 1.44 | H70: 2.05
B71: NOV | C71: 1453.4 | D71: -0.12 | E71: -0.32 | F71: -0.93 | G71: 1.32 | H71: 1.76
B72: DEZ | C72: 1458.2 | D72: 0.33 | E72: 0.23 | F72: -0.62 | G72: 1.65 | H72: 1.65
A75: SÉRIE HISTÓRICA DO IPCA
H76: (continuação)
F77: VARIAÇÃO
A78: ANO | B78: MÊS | C78: NÚMERO ÍNDICE | D78: (%)
C79: (DEZ 93 = 100) | D79: NO | E79: 3 | F79: 6 | G79: NO | H79: 12
D80: MÊS | E80: MESES | F80: MESES | G80: ANO | H80: MESES
A82: 1999 | B82: JAN | C82: 1468.41 | D82: 0.7 | E82: 0.91 | F82: 0.2 | G82: 0.7 | H82: 1.65
B83: FEV | C83: 1483.83 | D83: 1.05 | E83: 2.09 | F83: 1.77 | G83: 1.76 | H83: 2.24
B84: MAR | C84: 1500.15 | D84: 1.1 | E84: 2.88 | F84: 3.11 | G84: 2.88 | H84: 3.02
B85: ABR | C85: 1508.55 | D85: 0.56 | E85: 2.73 | F85: 3.67 | G85: 3.45 | H85: 3.35
B86: MAI | C86: 1513.08 | D86: 0.3 | E86: 1.97 | F86: 4.11 | G86: 3.76 | H86: 3.14
B87: JUN | C87: 1515.95 | D87: 0.19 | E87: 1.05 | F87: 3.96 | G87: 3.96 | H87: 3.32
B88: JUL | C88: 1532.47 | D88: 1.09 | E88: 1.59 | F88: 4.36 | G88: 5.09 | H88: 4.57
B89: AGO | C89: 1541.05 | D89: 0.56 | E89: 1.85 | F89: 3.86 | G89: 5.68 | H89: 5.69
B90: SET | C90: 1545.83 | D90: 0.31 | E90: 1.97 | F90: 3.05 | G90: 6.01 | H90: 6.25
B91: OUT | C91: 1564.23 | D91: 1.19 | E91: 2.07 | F91: 3.69 | G91: 7.27 | H91: 7.5
B92: NOV | C92: 1579.09 | D92: 0.95 | E92: 2.47 | F92: 4.36 | G92: 8.29 | H92: 8.65
B93: DEZ | C93: 1588.56 | D93: 0.6 | E93: 2.76 | F93: 4.79 | G93: 8.94 | H93: 8.94
A95: 2000 | B95: JAN | C95: 1598.41 | D95: 0.62 | E95: 2.19 | F95: 4.3 | G95: 0.62 | H95: 8.85
B96: FEV | C96: 1600.49 | D96: 0.13 | E96: 1.36 | F96: 3.86 | G96: 0.75 | H96: 7.86
B97: MAR | C97: 1604.01 | D97: 0.22 | E97: 0.97 | F97: 3.76 | G97: 0.97 | H97: 6.92
B98: ABR | C98: 1610.75 | D98: 0.42 | E98: 0.77 | F98: 2.97 | G98: 1.4 | H98: 6.77
B99: MAI | C99: 1610.91 | D99: 0.01 | E99: 0.65 | F99: 2.02 | G99: 1.41 | H99: 6.47
B100: JUN | C100: 1614.62 | D100: 0.23 | E100: 0.66 | F100: 1.64 | G100: 1.64 | H100: 6.51
B101: JUL | C101: 1640.62 | D101: 1.61 | E101: 1.85 | F101: 2.64 | G101: 3.28 | H101: 7.06
B102: AGO | C102: 1662.11 | D102: 1.31 | E102: 3.18 | F102: 3.85 | G102: 4.63 | H102: 7.86
B103: SET | C103: 1665.93 | D103: 0.23 | E103: 3.18 | F103: 3.86 | G103: 4.87 | H103: 7.77
B104: OUT | C104: 1668.26 | D104: 0.14 | E104: 1.68 | F104: 3.57 | G104: 5.02 | H104: 6.65
B105: NOV | C105: 1673.6 | D105: 0.32 | E105: 0.69 | F105: 3.89 | G105: 5.35 | H105: 5.99
B106: DEZ | C106: 1683.47 | D106: 0.59 | E106: 1.05 | F106: 4.26 | G106: 5.97 | H106: 5.97
A108: 2001 | B108: JAN | C108: 1693.07 | D108: 0.57 | E108: 1.49 | F108: 3.2 | G108: 0.57 | H108: 5.92
B109: FEV | C109: 1700.86 | D109: 0.46 | E109: 1.63 | F109: 2.33 | G109: 1.03 | H109: 6.27
B110: MAR | C110: 1707.32 | D110: 0.38 | E110: 1.42 | F110: 2.48 | G110: 1.42 | H110: 6.44
B111: ABR | C111: 1717.22 | D111: 0.58 | E111: 1.43 | F111: 2.93 | G111: 2 | H111: 6.61
B112: MAI | C112: 1724.26 | D112: 0.41 | E112: 1.38 | F112: 3.03 | G112: 2.42 | H112: 7.04
B113: JUN | C113: 1733.23 | D113: 0.52 | E113: 1.52 | F113: 2.96 | G113: 2.96 | H113: 7.35
B114: JUL | C114: 1756.28 | D114: 1.33 | E114: 2.27 | F114: 3.73 | G114: 4.32 | H114: 7.05
B115: AGO | C115: 1768.57 | D115: 0.7 | E115: 2.57 | F115: 3.98 | G115: 5.06 | H115: 6.41
B116: SET | C116: 1773.52 | D116: 0.28 | E116: 2.32 | F116: 3.88 | G116: 5.35 | H116: 6.46
B117: OUT | C117: 1788.24 | D117: 0.83 | E117: 1.82 | F117: 4.14 | G117: 6.22 | H117: 7.19
B118: NOV | C118: 1800.94 | D118: 0.71 | E118: 1.83 | F118: 4.45 | G118: 6.98 | H118: 7.61
B119: DEZ | C119: 1812.65 | D119: 0.65 | E119: 2.21 | F119: 4.58 | G119: 7.67 | H119: 7.67
A121: 2002 | B121: JAN | C121: 1822.08 | D121: 0.52 | E121: 1.89 | F121: 3.75 | G121: 0.52 | H121: 7.62
B122: FEV | C122: 1828.64 | D122: 0.36 | E122: 1.54 | F122: 3.4 | G122: 0.88 | H122: 7.51
B123: MAR | C123: 1839.61 | D123: 0.6 | E123: 1.49 | F123: 3.73 | G123: 1.49 | H123: 7.75
B124: ABR | C124: 1854.33 | D124: 0.8 | E124: 1.77 | F124: 3.7 | G124: 2.3 | H124: 7.98
B125: MAI | C125: 1858.22 | D125: 0.21 | E125: 1.62 | F125: 3.18 | G125: 2.51 | H125: 7.77
B126: JUN | C126: 1866.02 | D126: 0.42 | E126: 1.44 | F126: 2.94 | G126: 2.94 | H126: 7.66
B127: JUL | C127: 1888.23 | D127: 1.19 | E127: 1.83 | F127: 3.63 | G127: 4.17 | H127: 7.51
B128: AGO | C128: 1900.5 | D128: 0.65 | E128: 2.28 | F128: 3.93 | G128: 4.85 | H128: 7.46
B129: SET | C129: 1914.18 | D129: 0.72 | E129: 2.58 | F129: 4.05 | G129: 5.6 | H129: 7.93
B130: OUT | C130: 1939.26 | D130: 1.31 | E130: 2.7 | F130: 4.58 | G130: 6.98 | H130: 8.45
B131: NOV | C131: 1997.83 | D131: 3.02 | E131: 5.12 | F131: 7.51 | G131: 10.22 | H131: 10.93
B132: DEZ | C132: 2039.78 | D132: 2.1 | E132: 6.56 | F132: 9.31 | G132: 12.53 | H132: 12.53
A134: 2003 | B134: JAN | C134: 2085.68 | D134: 2.25 | E134: 7.55 | F134: 10.46 | G134: 2.25 | H134: 14.47
B135: FEV | C135: 2118.43 | D135: 1.57 | E135: 6.04 | F135: 11.47 | G135: 3.86 | H135: 15.85
B136: MAR | C136: 2144.49 | D136: 1.23 | E136: 5.13 | F136: 12.03 | G136: 5.13 | H136: 16.57
B137: ABR | C137: 2165.29 | D137: 0.97 | E137: 3.82 | F137: 11.66 | G137: 6.15 | H137: 16.77
B138: MAI | C138: 2178.5 | D138: 0.61 | E138: 2.84 | F138: 9.04 | G138: 6.8 | H138: 17.24
B139: JUN | C139: 2175.23 | D139: -0.15 | E139: 1.43 | F139: 6.64 | G139: 6.64 | H139: 16.57
B140: JUL | C140: 2179.58 | D140: 0.2 | E140: 0.66 | F140: 4.5 | G140: 6.85 | H140: 15.43
B141: AGO | C141: 2186.99 | D141: 0.34 | E141: 0.39 | F141: 3.24 | G141: 7.22 | H141: 15.07
B142: SET | C142: 2204.05 | D142: 0.78 | E142: 1.32 | F142: 2.78 | G142: 8.05 | H142: 15.14
B143: OUT | C143: 2210.44 | D143: 0.29 | E143: 1.42 | F143: 2.09 | G143: 8.37 | H143: 13.98
B144: NOV | C144: 2217.96 | D144: 0.34 | E144: 1.42 | F144: 1.81 | G144: 8.74 | H144: 11.02
B145: DEZ | C145: 2229.49 | D145: 0.52 | E145: 1.15 | F145: 2.49 | G145: 9.3 | H145: 9.3
A148: SÉRIE HISTÓRICA DO IPCA
H149: (continuação)
F150: VARIAÇÃO
A151: ANO | B151: MÊS | C151: NÚMERO ÍNDICE | D151: (%)
C152: (DEZ 93 = 100) | D152: NO | E152: 3 | F152: 6 | G152: NO | H152: 12
D153: MÊS | E153: MESES | F153: MESES | G153: ANO | H153: MESES
A155: 2004 | B155: JAN | C155: 2246.43 | D155: 0.76 | E155: 1.63 | F155: 3.07 | G155: 0.76 | H155: 7.71
B156: FEV | C156: 2260.13 | D156: 0.61 | E156: 1.9 | F156: 3.34 | G156: 1.37 | H156: 6.69
B157: MAR | C157: 2270.75 | D157: 0.47 | E157: 1.85 | F157: 3.03 | G157: 1.85 | H157: 5.89
B158: ABR | C158: 2279.15 | D158: 0.37 | E158: 1.46 | F158: 3.11 | G158: 2.23 | H158: 5.26
B159: MAI | C159: 2290.77 | D159: 0.51 | E159: 1.36 | F159: 3.28 | G159: 2.75 | H159: 5.15
B160: JUN | C160: 2307.03 | D160: 0.71 | E160: 1.6 | F160: 3.48 | G160: 3.48 | H160: 6.06
B161: JUL | C161: 2328.02 | D161: 0.91 | E161: 2.14 | F161: 3.63 | G161: 4.42 | H161: 6.81
B162: AGO | C162: 2344.08 | D162: 0.69 | E162: 2.33 | F162: 3.71 | G162: 5.14 | H162: 7.18
B163: SET | C163: 2351.82 | D163: 0.33 | E163: 1.94 | F163: 3.57 | G163: 5.49 | H163: 6.7
B164: OUT | C164: 2362.17 | D164: 0.44 | E164: 1.47 | F164: 3.64 | G164: 5.95 | H164: 6.86
B165: NOV | C165: 2378.47 | D165: 0.69 | E165: 1.47 | F165: 3.83 | G165: 6.68 | H165: 7.24
B166: DEZ | C166: 2398.92 | D166: 0.86 | E166: 2 | F166: 3.98 | G166: 7.6 | H166: 7.6
A168: 2005 | B168: JAN | C168: 2412.83 | D168: 0.58 | E168: 2.14 | F168: 3.64 | G168: 0.58 | H168: 7.41
B169: FEV | C169: 2427.07 | D169: 0.59 | E169: 2.04 | F169: 3.54 | G169: 1.17 | H169: 7.39
B170: MAR | C170: 2441.87 | D170: 0.61 | E170: 1.79 | F170: 3.83 | G170: 1.79 | H170: 7.54
B171: ABR | C171: 2463.11 | D171: 0.87 | E171: 2.08 | F171: 4.27 | G171: 2.68 | H171: 8.07
B172: MAI | C172: 2475.18 | D172: 0.49 | E172: 1.98 | F172: 4.07 | G172: 3.18 | H172: 8.05
B173: JUN | C173: 2474.68 | D173: -0.02 | E173: 1.34 | F173: 3.16 | G173: 3.16 | H173: 7.27
B174: JUL | C174: 2480.87 | D174: 0.25 | E174: 0.72 | F174: 2.82 | G174: 3.42 | H174: 6.57
B175: AGO | C175: 2485.09 | D175: 0.17 | E175: 0.4 | F175: 2.39 | G175: 3.59 | H175: 6.02
B176: SET | C176: 2493.79 | D176: 0.35 | E176: 0.77 | F176: 2.13 | G176: 3.95 | H176: 6.04
B177: OUT | C177: 2512.49 | D177: 0.75 | E177: 1.27 | F177: 2 | G177: 4.73 | H177: 6.36
B178: NOV | C178: 2526.31 | D178: 0.55 | E178: 1.66 | F178: 2.07 | G178: 5.31 | H178: 6.22
B179: DEZ | C179: 2535.4 | D179: 0.36 | E179: 1.67 | F179: 2.45 | G179: 5.69 | H179: 5.69
A181: 2006 | B181: JAN | C181: 2550.36 | D181: 0.59 | E181: 1.51 | F181: 2.8 | G181: 0.59 | H181: 5.7
B182: FEV | C182: 2560.82 | D182: 0.41 | E182: 1.37 | F182: 3.05 | G182: 1 | H182: 5.51
B183: MAR | C183: 2571.83 | D183: 0.43 | E183: 1.44 | F183: 3.13 | G183: 1.44 | H183: 5.32
B184: ABR | C184: 2577.23 | D184: 0.21 | E184: 1.05 | F184: 2.58 | G184: 1.65 | H184: 4.63
B185: MAI | C185: 2579.81 | D185: 0.1 | E185: 0.74 | F185: 2.12 | G185: 1.75 | H185: 4.23
B186: JUN | C186: 2574.39 | D186: -0.21 | E186: 0.1 | F186: 1.54 | G186: 1.54 | H186: 4.03
B187: JUL | C187: 2579.28 | D187: 0.19 | E187: 0.08 | F187: 1.13 | G187: 1.73 | H187: 3.97
B188: AGO | C188: 2580.57 | D188: 0.05 | E188: 0.03 | F188: 0.77 | G188: 1.78 | H188: 3.84
B189: SET | C189: 2585.99 | D189: 0.21 | E189: 0.45 | F189: 0.55 | G189: 2 | H189: 3.7
B190: OUT | C190: 2594.52 | D190: 0.33 | E190: 0.59 | F190: 0.67 | G190: 2.33 | H190: 3.26
B191: NOV | C191: 2602.56 | D191: 0.31 | E191: 0.85 | F191: 0.88 | G191: 2.65 | H191: 3.02
B192: DEZ | C192: 2615.05 | D192: 0.48 | E192: 1.12 | F192: 1.58 | G192: 3.14 | H192: 3.14
A194: 2007 | B194: JAN | C194: 2626.56 | D194: 0.44 | E194: 1.23 | F194: 1.83 | G194: 0.44 | H194: 2.99
B195: FEV | C195: 2638.12 | D195: 0.44 | E195: 1.37 | F195: 2.23 | G195: 0.88 | H195: 3.02
B196: MAR | C196: 2647.88 | D196: 0.37 | E196: 1.26 | F196: 2.39 | G196: 1.26 | H196: 2.96
B197: ABR | C197: 2654.5 | D197: 0.25 | E197: 1.06 | F197: 2.31 | G197: 1.51 | H197: 3
B198: MAI | C198: 2661.93 | D198: 0.28 | E198: 0.9 | F198: 2.28 | G198: 1.79 | H198: 3.18
B199: JUN | C199: 2669.38 | D199: 0.28 | E199: 0.81 | F199: 2.08 | G199: 2.08 | H199: 3.69
B200: JUL | C200: 2675.79 | D200: 0.24 | E200: 0.8 | F200: 1.87 | G200: 2.32 | H200: 3.74
B201: AGO | C201: 2688.37 | D201: 0.47 | E201: 0.99 | F201: 1.9 | G201: 2.8 | H201: 4.18
B202: SET | C202: 2693.21 | D202: 0.18 | E202: 0.89 | F202: 1.71 | G202: 2.99 | H202: 4.15
B203: OUT | C203: 2701.29 | D203: 0.3 | E203: 0.95 | F203: 1.76 | G203: 3.3 | H203: 4.12
B204: NOV | C204: 2711.55 | D204: 0.38 | E204: 0.86 | F204: 1.86 | G204: 3.69 | H204: 4.19
B205: DEZ | C205: 2731.62 | D205: 0.74 | E205: 1.43 | F205: 2.33 | G205: 4.46 | H205: 4.46
A207: 2008 | B207: JAN | C207: 2746.37 | D207: 0.54 | E207: 1.67 | F207: 2.64 | G207: 0.54 | H207: 4.56
B208: FEV | C208: 2759.83 | D208: 0.49 | E208: 1.78 | F208: 2.66 | G208: 1.03 | H208: 4.61
B209: MAR | C209: 2773.08 | D209: 0.48 | E209: 1.52 | F209: 2.97 | G209: 1.52 | H209: 4.73
B210: ABR | C210: 2788.33 | D210: 0.55 | E210: 1.53 | F210: 3.22 | G210: 2.08 | H210: 5.04
B211: MAI | C211: 2810.36 | D211: 0.79 | E211: 1.83 | F211: 3.64 | G211: 2.88 | H211: 5.58
B212: JUN | C212: 2831.16 | D212: 0.74 | E212: 2.09 | F212: 3.64 | G212: 3.64 | H212: 6.06
B213: JUL | C213: 2846.16 | D213: 0.53 | E213: 2.07 | F213: 3.63 | G213: 4.19 | H213: 6.37
B214: AGO | C214: 2854.13 | D214: 0.28 | E214: 1.56 | F214: 3.42 | G214: 4.48 | H214: 6.17
B215: SET | C215: 2861.55 | D215: 0.26 | E215: 1.07 | F215: 3.19 | G215: 4.76 | H215: 6.25
B216: OUT | C216: 2874.43 | D216: 0.45 | E216: 0.99 | F216: 3.09 | G216: 5.23 | H216: 6.41
B217: NOV | C217: 2884.78 | D217: 0.36 | E217: 1.07 | F217: 2.65 | G217: 5.61 | H217: 6.39
B218: DEZ | C218: 2892.86 | D218: 0.28 | E218: 1.09 | F218: 2.18 | G218: 5.9 | H218: 5.9
A221: SÉRIE HISTÓRICA DO IPCA
H222: (continuação)
... 206 more rows

Sheet Classificação OPEX (hidden)
B2: CUSTOS/DESPESAS COMERCIAIS/DESPESAS GERAIS E ADMINISTRATIVAS/OUTRAS RECEITAS E DESPESAS
B3: CONTA DETALHADA | C3: DESCRIÇÃO | D3: ANO DE 2019 | E3: ANO DE 2020 | F3: ANO DE 2021 | G3: ANO DE 2022 | H3: ANO DE 2023 | I3: MÉDIA 5 ANOS | J3: 2019 a preços de jul de 2024 | K3: 2020 a preços de jul de 2024 | L3: 2021 a preços de jul de 2024 | M3: 2022 a preços de jul de 2024 | N3: 2023 a preços de jul de 2024 | O3: Média a preços de jul 2024 | P3: C/D | Q3: MOLÉCULA, TRIBUTOS S/ A RECEITA, DEPRECIAÇÃO, AMORTIZAÇÃO e DEMAIS CONTAS NÃO APLICÁVEIS AO OPEX&ODESP/ENCARGOS | R3: EFICIENTE | S3: GLOSA | T3: CC | U3: CRITÉRIO | V3: Grupo - Plano Negócios | W3: CC Compagas - Plano Negócios | X3: CC Descrição - Plano Negócios | Y3: concatenar
D4: 36517787.36 | E4: 23459626.14 | F4: 42258081.16 | G4: 69206041.87 | H4: 45374757.14 | I4: =AVERAGE(D4:H4) -> 43363258.73 | J4: =D4*'Série - IPCA'!$C$444/'Série - IPCA'!$C$385 -> 47532184.21 | K4: =E4*'Série - IPCA'!$C$444/'Série - IPCA'!$C$398 -> 29215651.07 | L4: =F4*'Série - IPCA'!$C$444/'Série - IPCA'!$C$411 -> 47815738.61 | M4: =G4*'Série - IPCA'!$C$444/'Série - IPCA'!$C$424 -> 74025378.25 | N4: =H4*'Série - IPCA'!$C$444/'Série - IPCA'!$C$437 -> 46390738.06 | O4: =AVERAGE(J4:N4) -> 48995938.04 | P4: Custos | Q4: S | S4: NÃO | T4: OPEX | V4: Custos | W4: 9999 | X4: RATEIO | Y4: =B4&C4&P4&I4 -> Custos43363258,734
D5: 21410598.48 | E5: 0 | F5: 0 | G5: 0 | H5: 0 | I5: =AVERAGE(D5:H5) -> 4282119.696 | J5: =D5*'Série - IPCA'!$C$444/'Série - IPCA'!$C$385 -> 27868405.63 | K5: =E5*'Série - IPCA'!$C$444/'Série - IPCA'!$C$398 -> 0 | L5: =F5*'Série - IPCA'!$C$444/'Série - IPCA'!$C$411 -> 0 | M5: =G5*'Série - IPCA'!$C$444/'Série - IPCA'!$C$424 -> 0 | N5: =H5*'Série - IPCA'!$C$444/'Série - IPCA'!$C$437 -> 0 | O5: =AVERAGE(J5:N5) -> 5573681.126 | P5: Custos | Q5: S | T5: OPEX | V5: Custos | W5: 9999 | X5: RATEIO | Y5: =B5&C5&P5&I5 -> Custos4282119,696
D6: 2087207.9 | E6: 2236768.8 | F6: 3027361.54 | G6: 2361654.27 | H6: 179887.11 | I6: 1978575.924 | J6: =D6*'Série - IPCA'!$C$444/'Série - IPCA'!$C$385 -> 2716745.935 | K6: =E6*'Série - IPCA'!$C$444/'Série - IPCA'!$C$398 -> 2785579.633 | L6: =F6*'Série - IPCA'!$C$444/'Série - IPCA'!$C$411 -> 3425511.147 | M6: =G6*'Série - IPCA'!$C$444/'Série - IPCA'!$C$424 -> 2526113.991 | N6: =H6*'Série - IPCA'!$C$444/'Série - IPCA'!$C$437 -> 183914.9414 | O6: 2327573.13 | P6: Custos | Q6: S | T6: OPEX | V6: Custos | W6: 9999 | X6: RATEIO | Y6: Custos1978575,924
D7: 192015161.3 | E7: 160026471 | F7: 263751764 | G7: 473219888.5 | H7: 347870769.4 | I7: 287376810.8 | J7: =D7*'Série - IPCA'!$C$444/'Série - IPCA'!$C$385 -> 249930258 | K7: =E7*'Série - IPCA'!$C$444/'Série - IPCA'!$C$398 -> 199290368.5 | L7: =F7*'Série - IPCA'!$C$444/'Série - IPCA'!$C$411 -> 298439613.4 | M7: =G7*'Série - IPCA'!$C$444/'Série - IPCA'!$C$424 -> 506173742.9 | N7: =H7*'Série - IPCA'!$C$444/'Série - IPCA'!$C$437 -> 355659903.3 | O7: 321898777.2 | P7: Custos | Q7: S | T7: OPEX | V7: Custos | W7: 9999 | X7: RATEIO | Y7: Custos287376810,83
D8: 48270309.29 | E8: 45189847.99 | F8: 32041846.85 | G8: 83319540.01 | H8: 44798697.94 | I8: 50724048.42 | J8: =D8*'Série - IPCA'!$C$444/'Série - IPCA'!$C$385 -> 62829470.21 | K8: =E8*'Série - IPCA'!$C$444/'Série - IPCA'!$C$398 -> 56277573.34 | L8: =F8*'Série - IPCA'!$C$444/'Série - IPCA'!$C$411 -> 36255895.48 | M8: =G8*'Série - IPCA'!$C$444/'Série - IPCA'!$C$424 -> 89121705.24 | N8: =H8*'Série - IPCA'!$C$444/'Série - IPCA'!$C$437 -> 45801780.38 | O8: 58057284.93 | P8: Custos | Q8: S | T8: OPEX | V8: Custos | W8: 9999 | X8: RATEIO | Y8: Custos50724048,416
D9: 198430846.4 | E9: 14461745.33 | F9: 0 | G9: 0 | H9: 0 | I9: 42578518.36 | J9: =D9*'Série - IPCA'!$C$444/'Série - IPCA'!$C$385 -> 258281024.9 | K9: =E9*'Série - IPCA'!$C$444/'Série - IPCA'!$C$398 -> 18010061.32 | L9: =F9*'Série - IPCA'!$C$444/'Série - IPCA'!$C$411 -> 0 | M9: =G9*'Série - IPCA'!$C$444/'Série - IPCA'!$C$424 -> 0 | N9: =H9*'Série - IPCA'!$C$444/'Série - IPCA'!$C$437 -> 0 | O9: 55258217.24 | P9: Custos | Q9: S | T9: OPEX | V9: Custos | W9: 9999 | X9: RATEIO | Y9: Custos42578518,356
D10: 88234524.26 | E10: 90262805.72 | F10: 143431834 | G10: 273247913.2 | H10: 204074594.7 | I10: 159850334.4 | J10: =D10*'Série - IPCA'!$C$444/'Série - IPCA'!$C$385 -> 114847584.3 | K10: =E10*'Série - IPCA'!$C$444/'Série - IPCA'!$C$398 -> 112409576.4 | L10: =F10*'Série - IPCA'!$C$444/'Série - IPCA'!$C$411 -> 162295563.3 | M10: =G10*'Série - IPCA'!$C$444/'Série - IPCA'!$C$424 -> 292276217.3 | N10: =H10*'Série - IPCA'!$C$444/'Série - IPCA'!$C$437 -> 208644005.2 | O10: 178094589.3 | P10: Custos | Q10: S | T10: OPEX | V10: Custos | W10: 9999 | X10: RATEIO | Y10: Custos159850334,386
D11: 255348.93 | E11: 247026.72 | F11: 223045.23 | G11: 237768.44 | H11: 222433.94 | I11: 237124.652 | J11: =D11*'Série - IPCA'!$C$444/'Série - IPCA'!$C$385 -> 332366.5878 | K11: =E11*'Série - IPCA'!$C$444/'Série - IPCA'!$C$398 -> 307636.8912 | L11: =F11*'Série - IPCA'!$C$444/'Série - IPCA'!$C$411 -> 252379.4768 | M11: =G11*'Série - IPCA'!$C$444/'Série - IPCA'!$C$424 -> 254326.0419 | N11: =H11*'Série - IPCA'!$C$444/'Série - IPCA'!$C$437 -> 227414.4325 | O11: 274824.6861 | P11: Custos | Q11: S | T11: OPEX | V11: Custos | W11: 9999 | X11: RATEIO | Y11: Custos237124,652
D12: 5914821.2 | E12: 5253086.84 | F12: 6091552.33 | G12: 13166789.96 | H12: 9938294.69 | I12: 8072909.004 | J12: =D12*'Série - IPCA'!$C$444/'Série - IPCA'!$C$385 -> 7698833.669 | K12: =E12*'Série - IPCA'!$C$444/'Série - IPCA'!$C$398 -> 6541977.746 | L12: =F12*'Série - IPCA'!$C$444/'Série - IPCA'!$C$411 -> 6892695.218 | M12: =G12*'Série - IPCA'!$C$444/'Série - IPCA'!$C$424 -> 14083692.42 | N12: =H12*'Série - IPCA'!$C$444/'Série - IPCA'!$C$437 -> 10160821.89 | O12: 9075604.188 | P12: Custos | Q12: S | T12: OPEX | V12: Custos | W12: 9999 | X12: RATEIO | Y12: Custos8072909,004
D13: 14207307.53 | E13: 13568711.19 | F13: 21634616.12 | G13: 40118446.26 | H13: 29703887.95 | I13: 23846593.81 | J13: =D13*'Série - IPCA'!$C$444/'Série - IPCA'!$C$385 -> 18492477.43 | K13: =E13*'Série - IPCA'!$C$444/'Série - IPCA'!$C$398 -> 16897913.43 | L13: =F13*'Série - IPCA'!$C$444/'Série - IPCA'!$C$411 -> 24479936.64 | M13: =G13*'Série - IPCA'!$C$444/'Série - IPCA'!$C$424 -> 42912194.93 | N13: =H13*'Série - IPCA'!$C$444/'Série - IPCA'!$C$437 -> 30368984.25 | O13: 26630301.34 | P13: Custos | Q13: S | T13: OPEX | V13: Custos | W13: 9999 | X13: RATEIO | Y13: Custos23846593,81
D14: 8579680.53 | E14: 5397923.88 | F14: 9650388.38 | G14: 21057821.08 | H14: 15858055.1 | I14: 12108773.79 | J14: =D14*'Série - IPCA'!$C$444/'Série - IPCA'!$C$385 -> 11167460.71 | K14: =E14*'Série - IPCA'!$C$444/'Série - IPCA'!$C$398 -> 6722351.823 | L14: =F14*'Série - IPCA'!$C$444/'Série - IPCA'!$C$411 -> 10919578.83 | M14: =G14*'Série - IPCA'!$C$444/'Série - IPCA'!$C$424 -> 22524235.29 | N14: =H14*'Série - IPCA'!$C$444/'Série - IPCA'!$C$437 -> 16213130.97 | O14: 13509351.52 | P14: Custos | Q14: S | T14: OPEX | V14: Custos | W14: 9999 | X14: RATEIO | Y14: Custos12108773,794
D15: 245464.04 | E15: 0 | F15: 0 | G15: 0 | H15: 0 | I15: 49092.808 | J15: =D15*'Série - IPCA'!$C$444/'Série - IPCA'!$C$385 -> 319500.2438 | K15: =E15*'Série - IPCA'!$C$444/'Série - IPCA'!$C$398 -> 0 | L15: =F15*'Série - IPCA'!$C$444/'Série - IPCA'!$C$411 -> 0 | M15: =G15*'Série - IPCA'!$C$444/'Série - IPCA'!$C$424 -> 0 | N15: =H15*'Série - IPCA'!$C$444/'Série - IPCA'!$C$437 -> 0 | O15: 63900.04877 | P15: Custos | Q15: S | T15: OPEX | V15: Custos | W15: 9999 | X15: RATEIO | Y15: Custos49092,808
D16: -5525033.75 | E16: 1792148.06 | F16: 3695131.95 | G16: 4266922.46 | H16: 4640195.14 | I16: 1773872.772 | J16: =D16*'Série - IPCA'!$C$444/'Série - IPCA'!$C$385 -> -7191479.576 | K16: =E16*'Série - IPCA'!$C$444/'Série - IPCA'!$C$398 -> 2231867.297 | L16: =F16*'Série - IPCA'!$C$444/'Série - IPCA'!$C$411 -> 4181104.74 | M16: =G16*'Série - IPCA'!$C$444/'Série - IPCA'!$C$424 -> 4564060.312 | N16: =H16*'Série - IPCA'!$C$444/'Série - IPCA'!$C$437 -> 4744093.21 | O16: 1705929.197 | P16: Custos | Q16: S | T16: OPEX | V16: Custos | W16: 9999 | X16: RATEIO | Y16: Custos1773872,772
D17: 0 | E17: 0 | F17: -14266.97 | G17: 0 | H17: 0 | I17: -2853.394 | J17: =D17*'Série - IPCA'!$C$444/'Série - IPCA'!$C$385 -> 0 | K17: =E17*'Série - IPCA'!$C$444/'Série - IPCA'!$C$398 -> 0 | L17: =F17*'Série - IPCA'!$C$444/'Série - IPCA'!$C$411 -> -16143.31956 | M17: =G17*'Série - IPCA'!$C$444/'Série - IPCA'!$C$424 -> 0 | N17: =H17*'Série - IPCA'!$C$444/'Série - IPCA'!$C$437 -> 0 | O17: -3228.663912 | P17: Outras Receitas e Despesas | Q17: S | R17: NÃO | S17: SIM | T17: OPEX | U17: FIXO | V17: DESPESAS_GERAIS | W17: 9999 | X17: RATEIO | Y17: Outras Receitas e Despesas-2853,394
D18: -26610620.87 | E18: 0 | F18: 0 | G18: 0 | H18: 0 | I18: -5322124.174 | J18: =D18*'Série - IPCA'!$C$444/'Série - IPCA'!$C$385 -> -34636844.8 | K18: =E18*'Série - IPCA'!$C$444/'Série - IPCA'!$C$398 -> 0 | L18: =F18*'Série - IPCA'!$C$444/'Série - IPCA'!$C$411 -> 0 | M18: =G18*'Série - IPCA'!$C$444/'Série - IPCA'!$C$424 -> 0 | N18: =H18*'Série - IPCA'!$C$444/'Série - IPCA'!$C$437 -> 0 | O18: -6927368.959 | P18: Outras Receitas e Despesas | Q18: S | R18: NÃO | S18: SIM | T18: OPEX | U18: FIXO | V18: DESPESAS_GERAIS | W18: 4100 | X18: GERÊNCIA DE SERVIÇOS CORPORATIVOS | Y18: Outras Receitas e Despesas-5322124,174
D19: -2380823.5 | E19: -1336577.2 | F19: -618963.07 | G19: -709584.9 | H19: -1384620.81 | I19: -1286113.896 | J19: =D19*'Série - IPCA'!$C$444/'Série - IPCA'!$C$385 -> -3098921.083 | K19: =E19*'Série - IPCA'!$C$444/'Série - IPCA'!$C$398 -> -1664518.133 | L19: =F19*'Série - IPCA'!$C$444/'Série - IPCA'!$C$411 -> -700367.2564 | M19: =G19*'Série - IPCA'!$C$444/'Série - IPCA'!$C$424 -> -758998.625 | N19: =H19*'Série - IPCA'!$C$444/'Série - IPCA'!$C$437 -> -1415623.694 | O19: -1527685.758 | P19: Custos | Q19: S | R19: NÃO | S19: SIM | T19: OPEX | U19: FIXO | V19: PESSOAL | W19: 5100 | X19: GERÊNCIA DE ENGENHARIA | Y19: Custos-1286113,896
D20: 0 | E20: 0 | F20: 0 | G20: 0 | H20: 0 | I20: 0 | J20: =D20*'Série - IPCA'!$C$444/'Série - IPCA'!$C$385 -> 0 | K20: =E20*'Série - IPCA'!$C$444/'Série - IPCA'!$C$398 -> 0 | L20: =F20*'Série - IPCA'!$C$444/'Série - IPCA'!$C$411 -> 0 | M20: =G20*'Série - IPCA'!$C$444/'Série - IPCA'!$C$424 -> 0 | N20: =H20*'Série - IPCA'!$C$444/'Série - IPCA'!$C$437 -> 0 | O20: 0 | P20: Despesas Gerais e Administratias | Q20: S | R20: NÃO | S20: SIM | T20: ENCARGOS DE GESTÃO | U20: FIXO | V20: PESSOAL | W20: 4100 | X20: GERÊNCIA DE SERVIÇOS CORPORATIVOS | Y20: Despesas Gerais e Administratias0
D21: 0 | E21: 9442.66 | F21: 12580.72 | G21: 15425.34 | H21: 17255.8 | I21: 10940.904 | J21: =D21*'Série - IPCA'!$C$444/'Série - IPCA'!$C$385 -> 0 | K21: =E21*'Série - IPCA'!$C$444/'Série - IPCA'!$C$398 -> 11759.49941 | L21: =F21*'Série - IPCA'!$C$444/'Série - IPCA'!$C$411 -> 14235.29897 | M21: =G21*'Série - IPCA'!$C$444/'Série - IPCA'!$C$424 -> 16499.52226 | N21: =H21*'Série - IPCA'!$C$444/'Série - IPCA'!$C$437 -> 17642.17261 | O21: 12027.29865 | P21: Custos | Q21: N | R21: SIM | S21: NÃO | T21: OPEX | U21: FUNCIONÁRIOS | V21: PESSOAL | W21: 5100 | X21: GERÊNCIA DE ENGENHARIA | Y21: Custos10940,904
D22: 365541.06 | E22: 311870.13 | F22: 330156.42 | G22: 267375.9 | H22: 263615.01 | I22: 307711.704 | J22: =D22*'Série - IPCA'!$C$444/'Série - IPCA'!$C$385 -> 475794.5718 | K22: =E22*'Série - IPCA'!$C$444/'Série - IPCA'!$C$398 -> 388390.2003 | L22: =F22*'Série - IPCA'!$C$444/'Série - IPCA'!$C$411 -> 373577.6127 | M22: =G22*'Série - IPCA'!$C$444/'Série - IPCA'!$C$424 -> 285995.2917 | N22: =H22*'Série - IPCA'!$C$444/'Série - IPCA'!$C$437 -> 269517.5831 | O22: 358655.0519 | P22: Custos | Q22: N | R22: SIM | S22: NÃO | T22: OPEX | U22: FUNCIONÁRIOS | V22: PESSOAL | W22: 5200 | X22: GERÊNCIA DE OPERAÇÕES | Y22: Custos307711,704
D23: 0 | E23: 0 | F23: 44069.33 | G23: 50645.19 | H23: 53809.63 | I23: 29704.83 | J23: =D23*'Série - IPCA'!$C$444/'Série - IPCA'!$C$385 -> 0 | K23: =E23*'Série - IPCA'!$C$444/'Série - IPCA'!$C$398 -> 0 | L23: =F23*'Série - IPCA'!$C$444/'Série - IPCA'!$C$411 -> 49865.19752 | M23: =G23*'Série - IPCA'!$C$444/'Série - IPCA'!$C$424 -> 54171.99488 | N23: =H23*'Série - IPCA'!$C$444/'Série - IPCA'!$C$437 -> 55014.47518 | O23: 31810.33352 | P23: Despesas com Vendas | Q23: N | R23: SIM | S23: NÃO | T23: ENCARGOS DE COMERCIALIZAÇÃO | U23: FUNCIONÁRIOS | V23: PESSOAL | W23: 5300 | X23: GERÊNCIA COMERCIAL | Y23: Despesas com Vendas29704,83
D24: 0 | E24: 32084.63 | F24: 45095.36 | G24: 50523.29 | H24: 52782.8 | I24: 36097.216 | J24: =D24*'Série - IPCA'!$C$444/'Série - IPCA'!$C$385 -> 0 | K24: =E24*'Série - IPCA'!$C$444/'Série - IPCA'!$C$398 -> 39956.87523 | L24: =F24*'Série - IPCA'!$C$444/'Série - IPCA'!$C$411 -> 51026.16794 | M24: =G24*'Série - IPCA'!$C$444/'Série - IPCA'!$C$424 -> 54041.60607 | N24: =H24*'Série - IPCA'!$C$444/'Série - IPCA'!$C$437 -> 53964.65354 | O24: 39797.86056 | P24: Despesas Gerais e Administratias | Q24: N | R24: SIM | S24: NÃO | T24: ENCARGOS DE GESTÃO | U24: FUNCIONÁRIOS | V24: PESSOAL | W24: 2410 | X24: ASSESSORIA DE SEGURANÇA DO TRABALHO | Y24: Despesas Gerais e Administratias36097,216
D25: 636676.74 | E25: 591033.47 | F25: 644404.1 | G25: 675201.61 | H25: 730188.92 | I25: 655500.968 | J25: =D25*'Série - IPCA'!$C$444/'Série - IPCA'!$C$385 -> 828709.4667 | K25: =E25*'Série - IPCA'!$C$444/'Série - IPCA'!$C$398 -> 736048.713 | L25: =F25*'Série - IPCA'!$C$444/'Série - IPCA'!$C$411 -> 729154.2152 | M25: =G25*'Série - IPCA'!$C$444/'Série - IPCA'!$C$424 -> 722220.9683 | N25: =H25*'Série - IPCA'!$C$444/'Série - IPCA'!$C$437 -> 746538.4953 | O25: 752534.3717 | P25: Despesas Gerais e Administratias | Q25: N | R25: SIM | S25: NÃO | T25: ENCARGOS DE GESTÃO | U25: FIXO | V25: DESPESAS_GERAIS | W25: 2300 | X25: DIRETORIA COLEGIADA - DAF | Y25: Despesas Gerais e Administratias655500,968
D26: 626678.47 | E26: 629936.04 | F26: 314956.23 | G26: 601689.51 | H26: 739646.83 | I26: 582581.416 | J26: =D26*'Série - IPCA'!$C$444/'Série - IPCA'!$C$385 -> 815695.5453 | K26: =E26*'Série - IPCA'!$C$444/'Série - IPCA'!$C$398 -> 784496.3696 | L26: =F26*'Série - IPCA'!$C$444/'Série - IPCA'!$C$411 -> 356378.3389 | M26: =G26*'Série - IPCA'!$C$444/'Série - IPCA'!$C$424 -> 643589.6688 | N26: =H26*'Série - IPCA'!$C$444/'Série - IPCA'!$C$437 -> 756208.1763 | O26: 671273.6198 | P26: Despesas Gerais e Administratias | Q26: N | R26: SIM | S26: NÃO | T26: ENCARGOS DE GESTÃO | U26: FIXO | V26: DESPESAS_GERAIS | W26: 2400 | X26: DIRETORIA COLEGIADA - DTC | Y26: Despesas Gerais e Administratias582581,416
D27: 0 | E27: 598.41 | F27: 1250.54 | G27: 1496.77 | H27: 1740.2 | I27: 1017.184 | J27: =D27*'Série - IPCA'!$C$444/'Série - IPCA'!$C$385 -> 0 | K27: =E27*'Série - IPCA'!$C$444/'Série - IPCA'!$C$398 -> 745.2351393 | L27: =F27*'Série - IPCA'!$C$444/'Série - IPCA'!$C$411 -> 1415.00731 | M27: =G27*'Série - IPCA'!$C$444/'Série - IPCA'!$C$424 -> 1601.001335 | N27: =H27*'Série - IPCA'!$C$444/'Série - IPCA'!$C$437 -> 1779.164616 | O27: 1108.08168 | P27: Custos | Q27: N | R27: SIM | S27: NÃO | T27: OPEX | U27: FUNCIONÁRIOS | V27: DESPESAS_GERAIS | W27: 5100 | X27: GERÊNCIA DE ENGENHARIA | Y27: Custos1017,184
D28: 0 | E28: 1026.75 | F28: 1642.32 | G28: 2450.13 | H28: 2848.76 | I28: 1593.592 | J28: =D28*'Série - IPCA'!$C$444/'Série - IPCA'!$C$385 -> 0 | K28: =E28*'Série - IPCA'!$C$444/'Série - IPCA'!$C$398 -> 1278.672113 | L28: =F28*'Série - IPCA'!$C$444/'Série - IPCA'!$C$411 -> 1858.313053 | M28: =G28*'Série - IPCA'!$C$444/'Série - IPCA'!$C$424 -> 2620.75095 | N28: =H28*'Série - IPCA'!$C$444/'Série - IPCA'!$C$437 -> 2912.546254 | O28: 1734.056474 | P28: Custos | Q28: N | R28: SIM | S28: NÃO | T28: OPEX | U28: FUNCIONÁRIOS | V28: DESPESAS_GERAIS | W28: 5200 | X28: GERÊNCIA DE OPERAÇÕES | Y28: Custos1593,592
D29: 0 | E29: 604.59 | F29: 866.53 | G29: 1292.76 | H29: 1503 | I29: 853.376 | J29: =D29*'Série - IPCA'!$C$444/'Série - IPCA'!$C$385 -> 0 | K29: =E29*'Série - IPCA'!$C$444/'Série - IPCA'!$C$398 -> 752.9314565 | L29: =F29*'Série - IPCA'!$C$444/'Série - IPCA'!$C$411 -> 980.4934545 | M29: =G29*'Série - IPCA'!$C$444/'Série - IPCA'!$C$424 -> 1382.784586 | N29: =H29*'Série - IPCA'!$C$444/'Série - IPCA'!$C$437 -> 1536.653498 | O29: 930.5725991 | P29: Despesas com Vendas | Q29: N | R29: SIM | S29: NÃO | T29: ENCARGOS DE COMERCIALIZAÇÃO | U29: FUNCIONÁRIOS | V29: DESPESAS_GERAIS | W29: 5300 | X29: GERÊNCIA COMERCIAL | Y29: Despesas com Vendas853,376
D30: 0 | E30: 24.52 | F30: 45.35 | G30: 67.65 | H30: 78.66 | I30: 43.236 | J30: =D30*'Série - IPCA'!$C$444/'Série - IPCA'!$C$385 -> 0 | K30: =E30*'Série - IPCA'!$C$444/'Série - IPCA'!$C$398 -> 30.53619695 | L30: =F30*'Série - IPCA'!$C$444/'Série - IPCA'!$C$411 -> 51.31429744 | M30: =G30*'Série - IPCA'!$C$444/'Série - IPCA'!$C$424 -> 72.3609775 | N30: =H30*'Série - IPCA'!$C$444/'Série - IPCA'!$C$437 -> 80.42126692 | O30: 46.92654776 | P30: Despesas Gerais e Administratias | Q30: N | R30: SIM | S30: NÃO | T30: ENCARGOS DE GESTÃO | U30: FUNCIONÁRIOS | V30: DESPESAS_GERAIS | W30: 1005 | X30: AUDITORIA INTERNA | Y30: Despesas Gerais e Administratias43,236
D31: 0 | E31: 61.61 | F31: 91.41 | G31: 136.37 | H31: 158.53 | I31: 89.584 | J31: =D31*'Série - IPCA'!$C$444/'Série - IPCA'!$C$385 -> 0 | K31: =E31*'Série - IPCA'!$C$444/'Série - IPCA'!$C$398 -> 76.72655359 | L31: =F31*'Série - IPCA'!$C$444/'Série - IPCA'!$C$411 -> 103.431972 | M31: =G31*'Série - IPCA'!$C$444/'Série - IPCA'!$C$424 -> 145.8664671 | N31: =H31*'Série - IPCA'!$C$444/'Série - IPCA'!$C$437 -> 162.0796268 | O31: 97.6209239 | P31: Despesas Gerais e Administratias | Q31: N | R31: SIM | S31: NÃO | T31: ENCARGOS DE GESTÃO | U31: FUNCIONÁRIOS | V31: DESPESAS_GERAIS | W31: 2110 | X31: ASSESSORIA DA DIRETORIA EXECUTIVA | Y31: Despesas Gerais e Administratias89,584
D32: 0 | E32: 73.77 | F32: 136.76 | G32: 204.02 | H32: 237.19 | I32: 130.348 | J32: =D32*'Série - IPCA'!$C$444/'Série - IPCA'!$C$385 -> 0 | K32: =E32*'Série - IPCA'!$C$444/'Série - IPCA'!$C$398 -> 91.87011618 | L32: =F32*'Série - IPCA'!$C$444/'Série - IPCA'!$C$411 -> 154.7462694 | M32: =G32*'Série - IPCA'!$C$444/'Série - IPCA'!$C$424 -> 218.2274446 | N32: =H32*'Série - IPCA'!$C$444/'Série - IPCA'!$C$437 -> 242.5008937 | O32: 141.4689448 | P32: Despesas Gerais e Administratias | Q32: N | R32: SIM | S32: NÃO | T32: ENCARGOS DE GESTÃO | U32: FUNCIONÁRIOS | V32: DESPESAS_GERAIS | W32: 2120 | X32: ASSESSORIA DA PRESIDÊNCIA | Y32: Despesas Gerais e Administratias130,348
D33: 0 | E33: 24.46 | F33: 45.36 | G33: 67.65 | H33: 78.66 | I33: 43.226 | J33: =D33*'Série - IPCA'!$C$444/'Série - IPCA'!$C$385 -> 0 | K33: =E33*'Série - IPCA'!$C$444/'Série - IPCA'!$C$398 -> 30.46147542 | L33: =F33*'Série - IPCA'!$C$444/'Série - IPCA'!$C$411 -> 51.32561261 | M33: =G33*'Série - IPCA'!$C$444/'Série - IPCA'!$C$424 -> 72.3609775 | N33: =H33*'Série - IPCA'!$C$444/'Série - IPCA'!$C$437 -> 80.42126692 | O33: 46.91386649 | P33: Despesas Gerais e Administratias | Q33: N | R33: SIM | S33: NÃO | T33: ENCARGOS DE GESTÃO | U33: FUNCIONÁRIOS | V33: DESPESAS_GERAIS | W33: 2310 | X33: ASSESSORIA DAF | Y33: Despesas Gerais e Administratias43,226
D34: 0 | E34: 28.09 | F34: 0 | G34: 0 | H34: 0 | I34: 5.618 | J34: =D34*'Série - IPCA'!$C$444/'Série - IPCA'!$C$385 -> 0 | K34: =E34*'Série - IPCA'!$C$444/'Série - IPCA'!$C$398 -> 34.98212774 | L34: =F34*'Série - IPCA'!$C$444/'Série - IPCA'!$C$411 -> 0 | M34: =G34*'Série - IPCA'!$C$444/'Série - IPCA'!$C$424 -> 0 | N34: =H34*'Série - IPCA'!$C$444/'Série - IPCA'!$C$437 -> 0 | O34: 6.996425549 | P34: Despesas Gerais e Administratias | Q34: N | R34: SIM | S34: NÃO | T34: ENCARGOS DE GESTÃO | U34: FUNCIONÁRIOS | V34: DESPESAS_GERAIS | W34: 2200 | X34: DIRETORIA COLEGIADA - PRESIDÊNCIA | Y34: Despesas Gerais e Administratias5,618
D35: 0 | E35: 7.01 | F35: 0 | G35: 0 | H35: 0 | I35: 1.402 | J35: =D35*'Série - IPCA'!$C$444/'Série - IPCA'!$C$385 -> 0 | K35: =E35*'Série - IPCA'!$C$444/'Série - IPCA'!$C$398 -> 8.729964951 | L35: =F35*'Série - IPCA'!$C$444/'Série - IPCA'!$C$411 -> 0 | M35: =G35*'Série - IPCA'!$C$444/'Série - IPCA'!$C$424 -> 0 | N35: =H35*'Série - IPCA'!$C$444/'Série - IPCA'!$C$437 -> 0 | O35: 1.74599299 | P35: Despesas Gerais e Administratias | Q35: N | R35: SIM | S35: NÃO | T35: ENCARGOS DE GESTÃO | U35: FUNCIONÁRIOS | V35: DESPESAS_GERAIS | W35: 2300 | X35: DIRETORIA COLEGIADA - DAF | Y35: Despesas Gerais e Administratias1,402
D36: 0 | E36: 7.01 | F36: 0 | G36: 0 | H36: 0 | I36: 1.402 | J36: =D36*'Série - IPCA'!$C$444/'Série - IPCA'!$C$385 -> 0 | K36: =E36*'Série - IPCA'!$C$444/'Série - IPCA'!$C$398 -> 8.729964951 | L36: =F36*'Série - IPCA'!$C$444/'Série - IPCA'!$C$411 -> 0 | M36: =G36*'Série - IPCA'!$C$444/'Série - IPCA'!$C$424 -> 0 | N36: =H36*'Série - IPCA'!$C$444/'Série - IPCA'!$C$437 -> 0 | O36: 1.74599299 | P36: Despesas Gerais e Administratias | Q36: N | R36: SIM | S36: NÃO | T36: ENCARGOS DE GESTÃO | U36: FUNCIONÁRIOS | V36: DESPESAS_GERAIS | W36: 2400 | X36: DIRETORIA COLEGIADA - DTC | Y36: Despesas Gerais e Administratias1,402
D37: 0 | E37: 342.53 | F37: 546.98 | G37: 816.04 | H37: 948.75 | I37: 530.86 | J37: =D37*'Série - IPCA'!$C$444/'Série - IPCA'!$C$385 -> 0 | K37: =E37*'Série - IPCA'!$C$444/'Série - IPCA'!$C$398 -> 426.5727382 | L37: =F37*'Série - IPCA'!$C$444/'Série - IPCA'!$C$411 -> 618.9171866 | M37: =G37*'Série - IPCA'!$C$444/'Série - IPCA'!$C$424 -> 872.866993 | N37: =H37*'Série - IPCA'!$C$444/'Série - IPCA'!$C$437 -> 969.993351 | O37: 577.6700538 | P37: Despesas Gerais e Administratias | Q37: N | R37: SIM | S37: NÃO | T37: ENCARGOS DE GESTÃO | U37: FUNCIONÁRIOS | V37: DESPESAS_GERAIS | W37: 3200 | X37: GERÊNCIA DE PLANEJAMENTO E MEIO AMBIENTE | Y37: Despesas Gerais e Administratias530,86
D38: 0 | E38: 119.33 | F38: 182.1 | G38: 271.67 | H38: 315.83 | I38: 177.786 | J38: =D38*'Série - IPCA'!$C$444/'Série - IPCA'!$C$385 -> 0 | K38: =E38*'Série - IPCA'!$C$444/'Série - IPCA'!$C$398 -> 148.6086616 | L38: =F38*'Série - IPCA'!$C$444/'Série - IPCA'!$C$411 -> 206.0492517 | M38: =G38*'Série - IPCA'!$C$444/'Série - IPCA'!$C$424 -> 290.5884221 | N38: =H38*'Série - IPCA'!$C$444/'Série - IPCA'!$C$437 -> 322.9017128 | O38: 193.6296096 | P38: Despesas Gerais e Administratias | Q38: N | R38: SIM | S38: NÃO | T38: ENCARGOS DE GESTÃO | U38: FUNCIONÁRIOS | V38: DESPESAS_GERAIS | W38: 3300 | X38: GERÊNCIA JURÍDICA | Y38: Despesas Gerais e Administratias177,786
D39: 0 | E39: 122.84 | F39: 182.1 | G39: 271.67 | H39: 315.83 | I39: 178.488 | J39: =D39*'Série - IPCA'!$C$444/'Série - IPCA'!$C$385 -> 0 | K39: =E39*'Série - IPCA'!$C$444/'Série - IPCA'!$C$398 -> 152.9798708 | L39: =F39*'Série - IPCA'!$C$444/'Série - IPCA'!$C$411 -> 206.0492517 | M39: =G39*'Série - IPCA'!$C$444/'Série - IPCA'!$C$424 -> 290.5884221 | N39: =H39*'Série - IPCA'!$C$444/'Série - IPCA'!$C$437 -> 322.9017128 | O39: 194.5038515 | P39: Despesas Gerais e Administratias | Q39: N | R39: SIM | S39: NÃO | T39: ENCARGOS DE GESTÃO | U39: FUNCIONÁRIOS | V39: DESPESAS_GERAIS | W39: 3500 | X39: ASSESSORIA DE COMUNICAÇÃO INSTITUCIONAL | Y39: Despesas Gerais e Administratias178,488
D40: 0 | E40: 182.98 | F40: 319.56 | G40: 476.72 | H40: 554.25 | I40: 306.702 | J40: =D40*'Série - IPCA'!$C$444/'Série - IPCA'!$C$385 -> 0 | K40: =E40*'Série - IPCA'!$C$444/'Série - IPCA'!$C$398 -> 227.875747 | L40: =F40*'Série - IPCA'!$C$444/'Série - IPCA'!$C$411 -> 361.587583 | M40: =G40*'Série - IPCA'!$C$444/'Série - IPCA'!$C$424 -> 509.9175934 | N40: =H40*'Série - IPCA'!$C$444/'Série - IPCA'!$C$437 -> 566.6601474 | O40: 333.2082142 | P40: Despesas Gerais e Administratias | Q40: N | R40: SIM | S40: NÃO | T40: ENCARGOS DE GESTÃO | U40: FUNCIONÁRIOS | V40: DESPESAS_GERAIS | W40: 3600 | X40: GERÊNCIA DE GOVERNANÇA, RISCO E COMPLIANCE | Y40: Despesas Gerais e Administratias306,702
D41: 0 | E41: 537.78 | F41: 866.55 | G41: 1805.18 | H41: 1503 | I41: 942.502 | J41: =D41*'Série - IPCA'!$C$444/'Série - IPCA'!$C$385 -> 0 | K41: =E41*'Série - IPCA'!$C$444/'Série - IPCA'!$C$398 -> 669.7290373 | L41: =F41*'Série - IPCA'!$C$444/'Série - IPCA'!$C$411 -> 980.5160848 | M41: =G41*'Série - IPCA'!$C$444/'Série - IPCA'!$C$424 -> 1930.888239 | N41: =H41*'Série - IPCA'!$C$444/'Série - IPCA'!$C$437 -> 1536.653498 | O41: 1023.557372 | P41: Despesas Gerais e Administratias | Q41: N | R41: SIM | S41: NÃO | T41: ENCARGOS DE GESTÃO | U41: FUNCIONÁRIOS | V41: DESPESAS_GERAIS | W41: 4100 | X41: GERÊNCIA DE SERVIÇOS CORPORATIVOS | Y41: Despesas Gerais e Administratias942,502
D42: 0 | E42: 259.99 | F42: 410.23 | G42: 612.02 | H42: 711.55 | I42: 398.758 | J42: =D42*'Série - IPCA'!$C$444/'Série - IPCA'!$C$385 -> 0 | K42: =E42*'Série - IPCA'!$C$444/'Série - IPCA'!$C$398 -> 323.7808256 | L42: =F42*'Série - IPCA'!$C$444/'Série - IPCA'!$C$411 -> 464.1822324 | M42: =G42*'Série - IPCA'!$C$444/'Série - IPCA'!$C$424 -> 654.6395484 | N42: =H42*'Série - IPCA'!$C$444/'Série - IPCA'!$C$437 -> 727.4822334 | O42: 434.016968 | P42: Despesas Gerais e Administratias | Q42: N | R42: SIM | S42: NÃO | T42: ENCARGOS DE GESTÃO | U42: FUNCIONÁRIOS | V42: DESPESAS_GERAIS | W42: 4200 | X42: GERÊNCIA FINANCEIRA | Y42: Despesas Gerais e Administratias398,758
D43: 0 | E43: 240.52 | F43: 364.91 | G43: 544.36 | H43: 632.92 | I43: 356.542 | J43: =D43*'Série - IPCA'!$C$444/'Série - IPCA'!$C$385 -> 0 | K43: =E43*'Série - IPCA'!$C$444/'Série - IPCA'!$C$398 -> 299.5336904 | L43: =F43*'Série - IPCA'!$C$444/'Série - IPCA'!$C$411 -> 412.9018805 | M43: =G43*'Série - IPCA'!$C$444/'Série - IPCA'!$C$424 -> 582.2678745 | N43: =H43*'Série - IPCA'!$C$444/'Série - IPCA'!$C$437 -> 647.0916382 | O43: 388.3590167 | P43: Despesas Gerais e Administratias | Q43: N | R43: SIM | S43: NÃO | T43: ENCARGOS DE GESTÃO | U43: FUNCIONÁRIOS | V43: DESPESAS_GERAIS | W43: 4300 | X43: GERÊNCIA DE TECNOLOGIA E SISTEMAS DE INFORMAÇÃO | Y43: Despesas Gerais e Administratias356,542
D44: 0 | E44: 175.65 | F44: 273.5 | G44: 408.03 | H44: 474.4 | I44: 266.316 | J44: =D44*'Série - IPCA'!$C$444/'Série - IPCA'!$C$385 -> 0 | K44: =E44*'Série - IPCA'!$C$444/'Série - IPCA'!$C$398 -> 218.7472673 | L44: =F44*'Série - IPCA'!$C$444/'Série - IPCA'!$C$411 -> 309.4699085 | M44: =G44*'Série - IPCA'!$C$444/'Série - IPCA'!$C$424 -> 436.4441929 | N44: =H44*'Série - IPCA'!$C$444/'Série - IPCA'!$C$437 -> 485.0222353 | O44: 289.9367208 | P44: Despesas Gerais e Administratias | Q44: N | R44: SIM | S44: NÃO | T44: ENCARGOS DE GESTÃO | U44: FUNCIONÁRIOS | V44: DESPESAS_GERAIS | W44: 4500 | X44: GERÊNCIA CONTÁBIL | Y44: Despesas Gerais e Administratias266,316
D45: -8309.86 | E45: 0 | F45: 0 | G45: 0 | H45: 0 | I45: -1661.972 | J45: =D45*'Série - IPCA'!$C$444/'Série - IPCA'!$C$385 -> -10816.25763 | K45: =E45*'Série - IPCA'!$C$444/'Série - IPCA'!$C$398 -> 0 | L45: =F45*'Série - IPCA'!$C$444/'Série - IPCA'!$C$411 -> 0 | M45: =G45*'Série - IPCA'!$C$444/'Série - IPCA'!$C$424 -> 0 | N45: =H45*'Série - IPCA'!$C$444/'Série - IPCA'!$C$437 -> 0 | O45: -2163.251527 | P45: Despesas com Vendas | Q45: N | R45: SIM | S45: NÃO | T45: ENCARGOS DE COMERCIALIZAÇÃO | U45: FIXO | V45: ALUGUÉIS | W45: 5300 | X45: GERÊNCIA COMERCIAL | Y45: Despesas com Vendas-1661,972
D46: -18440.77 | E46: 0 | F46: 0 | G46: 0 | H46: 0 | I46: -3688.154 | J46: =D46*'Série - IPCA'!$C$444/'Série - IPCA'!$C$385 -> -24002.82547 | K46: =E46*'Série - IPCA'!$C$444/'Série - IPCA'!$C$398 -> 0 | L46: =F46*'Série - IPCA'!$C$444/'Série - IPCA'!$C$411 -> 0 | M46: =G46*'Série - IPCA'!$C$444/'Série - IPCA'!$C$424 -> 0 | N46: =H46*'Série - IPCA'!$C$444/'Série - IPCA'!$C$437 -> 0 | O46: -4800.565094 | P46: Despesas com Vendas | Q46: N | R46: SIM | S46: NÃO | T46: ENCARGOS DE COMERCIALIZAÇÃO | U46: FIXO | V46: ALUGUÉIS | W46: 5400 | X46: GERÊNCIA COMERCIAL (inativo) | Y46: Despesas com Vendas-3688,154
D47: -9229.24 | E47: 0 | F47: 0 | G47: 0 | H47: 0 | I47: -1845.848 | J47: =D47*'Série - IPCA'!$C$444/'Série - IPCA'!$C$385 -> -12012.93856 | K47: =E47*'Série - IPCA'!$C$444/'Série - IPCA'!$C$398 -> 0 | L47: =F47*'Série - IPCA'!$C$444/'Série - IPCA'!$C$411 -> 0 | M47: =G47*'Série - IPCA'!$C$444/'Série - IPCA'!$C$424 -> 0 | N47: =H47*'Série - IPCA'!$C$444/'Série - IPCA'!$C$437 -> 0 | O47: -2402.587711 | P47: Despesas com Vendas | Q47: N | R47: SIM | S47: NÃO | T47: ENCARGOS DE COMERCIALIZAÇÃO | U47: FIXO | V47: ALUGUÉIS | W47: 5500 | X47: GERÊNCIA COMERCIAL (inativo) | Y47: Despesas com Vendas-1845,848
D48: -3235.52 | E48: 0 | F48: 0 | G48: 0 | H48: 0 | I48: -647.104 | J48: =D48*'Série - IPCA'!$C$444/'Série - IPCA'!$C$385 -> -4211.408844 | K48: =E48*'Série - IPCA'!$C$444/'Série - IPCA'!$C$398 -> 0 | L48: =F48*'Série - IPCA'!$C$444/'Série - IPCA'!$C$411 -> 0 | M48: =G48*'Série - IPCA'!$C$444/'Série - IPCA'!$C$424 -> 0 | N48: =H48*'Série - IPCA'!$C$444/'Série - IPCA'!$C$437 -> 0 | O48: -842.2817688 | P48: Despesas Gerais e Administratias | Q48: N | R48: SIM | S48: NÃO | T48: ENCARGOS DE GESTÃO | U48: FIXO | V48: ALUGUÉIS | W48: 2100 | X48: SECRETARIA | Y48: Despesas Gerais e Administratias-647,104
D49: -7372.75 | E49: 0 | F49: 0 | G49: 0 | H49: 0 | I49: -1474.55 | J49: =D49*'Série - IPCA'!$C$444/'Série - IPCA'!$C$385 -> -9596.499034 | K49: =E49*'Série - IPCA'!$C$444/'Série - IPCA'!$C$398 -> 0 | L49: =F49*'Série - IPCA'!$C$444/'Série - IPCA'!$C$411 -> 0 | M49: =G49*'Série - IPCA'!$C$444/'Série - IPCA'!$C$424 -> 0 | N49: =H49*'Série - IPCA'!$C$444/'Série - IPCA'!$C$437 -> 0 | O49: -1919.299807 | P49: Despesas Gerais e Administratias | Q49: N | R49: SIM | S49: NÃO | T49: ENCARGOS DE GESTÃO | U49: FIXO | V49: ALUGUÉIS | W49: 2200 | X49: DIRETORIA COLEGIADA - PRESIDÊNCIA | Y49: Despesas Gerais e Administratias-1474,55
D50: -1838.76 | E50: 0 | F50: 0 | G50: 0 | H50: 0 | I50: -367.752 | J50: =D50*'Série - IPCA'!$C$444/'Série - IPCA'!$C$385 -> -2393.361848 | K50: =E50*'Série - IPCA'!$C$444/'Série - IPCA'!$C$398 -> 0 | L50: =F50*'Série - IPCA'!$C$444/'Série - IPCA'!$C$411 -> 0 | M50: =G50*'Série - IPCA'!$C$444/'Série - IPCA'!$C$424 -> 0 | N50: =H50*'Série - IPCA'!$C$444/'Série - IPCA'!$C$437 -> 0 | O50: -478.6723696 | P50: Despesas Gerais e Administratias | Q50: N | R50: SIM | S50: NÃO | T50: ENCARGOS DE GESTÃO | U50: FIXO | V50: ALUGUÉIS | W50: 2300 | X50: DIRETORIA COLEGIADA - DAF | Y50: Despesas Gerais e Administratias-367,752
D51: -1838.76 | E51: 0 | F51: 0 | G51: 0 | H51: 0 | I51: -367.752 | J51: =D51*'Série - IPCA'!$C$444/'Série - IPCA'!$C$385 -> -2393.361848 | K51: =E51*'Série - IPCA'!$C$444/'Série - IPCA'!$C$398 -> 0 | L51: =F51*'Série - IPCA'!$C$444/'Série - IPCA'!$C$411 -> 0 | M51: =G51*'Série - IPCA'!$C$444/'Série - IPCA'!$C$424 -> 0 | N51: =H51*'Série - IPCA'!$C$444/'Série - IPCA'!$C$437 -> 0 | O51: -478.6723696 | P51: Despesas Gerais e Administratias | Q51: N | R51: SIM | S51: NÃO | T51: ENCARGOS DE GESTÃO | U51: FIXO | V51: ALUGUÉIS | W51: 2400 | X51: DIRETORIA COLEGIADA - DTC | Y51: Despesas Gerais e Administratias-367,752
D52: -7832.47 | E52: 0 | F52: 0 | G52: 0 | H52: 0 | I52: -1566.494 | J52: =D52*'Série - IPCA'!$C$444/'Série - IPCA'!$C$385 -> -10194.87854 | K52: =E52*'Série - IPCA'!$C$444/'Série - IPCA'!$C$398 -> 0 | L52: =F52*'Série - IPCA'!$C$444/'Série - IPCA'!$C$411 -> 0 | M52: =G52*'Série - IPCA'!$C$444/'Série - IPCA'!$C$424 -> 0 | N52: =H52*'Série - IPCA'!$C$444/'Série - IPCA'!$C$437 -> 0 | O52: -2038.975709 | P52: Despesas Gerais e Administratias | Q52: N | R52: SIM | S52: NÃO | T52: ENCARGOS DE GESTÃO | U52: FIXO | V52: ALUGUÉIS | W52: 3100 | X52: SMS | Y52: Despesas Gerais e Administratias-1566,494
D53: -4614.61 | E53: 0 | F53: 0 | G53: 0 | H53: 0 | I53: -922.922 | J53: =D53*'Série - IPCA'!$C$444/'Série - IPCA'!$C$385 -> -6006.456262 | K53: =E53*'Série - IPCA'!$C$444/'Série - IPCA'!$C$398 -> 0 | L53: =F53*'Série - IPCA'!$C$444/'Série - IPCA'!$C$411 -> 0 | M53: =G53*'Série - IPCA'!$C$444/'Série - IPCA'!$C$424 -> 0 | N53: =H53*'Série - IPCA'!$C$444/'Série - IPCA'!$C$437 -> 0 | O53: -1201.291252 | P53: Despesas Gerais e Administratias | Q53: N | R53: SIM | S53: NÃO | T53: ENCARGOS DE GESTÃO | U53: FIXO | V53: ALUGUÉIS | W53: 3200 | X53: GERÊNCIA DE PLANEJAMENTO E MEIO AMBIENTE | Y53: Despesas Gerais e Administratias-922,922
D54: -5534.01 | E54: 0 | F54: 0 | G54: 0 | H54: 0 | I54: -1106.802 | J54: =D54*'Série - IPCA'!$C$444/'Série - IPCA'!$C$385 -> -7203.163218 | K54: =E54*'Série - IPCA'!$C$444/'Série - IPCA'!$C$398 -> 0 | L54: =F54*'Série - IPCA'!$C$444/'Série - IPCA'!$C$411 -> 0 | M54: =G54*'Série - IPCA'!$C$444/'Série - IPCA'!$C$424 -> 0 | N54: =H54*'Série - IPCA'!$C$444/'Série - IPCA'!$C$437 -> 0 | O54: -1440.632644 | P54: Despesas Gerais e Administratias | Q54: N | R54: SIM | S54: NÃO | T54: ENCARGOS DE GESTÃO | U54: FIXO | V54: ALUGUÉIS | W54: 3300 | X54: GERÊNCIA JURÍDICA | Y54: Despesas Gerais e Administratias-1106,802
D55: -6453.39 | E55: 0 | F55: 0 | G55: 0 | H55: 0 | I55: -1290.678 | J55: =D55*'Série - IPCA'!$C$444/'Série - IPCA'!$C$385 -> -8399.844142 | K55: =E55*'Série - IPCA'!$C$444/'Série - IPCA'!$C$398 -> 0 | L55: =F55*'Série - IPCA'!$C$444/'Série - IPCA'!$C$411 -> 0 | M55: =G55*'Série - IPCA'!$C$444/'Série - IPCA'!$C$424 -> 0 | N55: =H55*'Série - IPCA'!$C$444/'Série - IPCA'!$C$437 -> 0 | O55: -1679.968828 | P55: Despesas Gerais e Administratias | Q55: N | R55: SIM | S55: NÃO | T55: ENCARGOS DE GESTÃO | U55: FIXO | V55: ALUGUÉIS | W55: 3400 | X55: MARKETING | Y55: Despesas Gerais e Administratias-1290,678
D56: -2775.89 | E56: 0 | F56: 0 | G56: 0 | H56: 0 | I56: -555.178 | J56: =D56*'Série - IPCA'!$C$444/'Série - IPCA'!$C$385 -> -3613.146479 | K56: =E56*'Série - IPCA'!$C$444/'Série - IPCA'!$C$398 -> 0 | L56: =F56*'Série - IPCA'!$C$444/'Série - IPCA'!$C$411 -> 0 | M56: =G56*'Série - IPCA'!$C$444/'Série - IPCA'!$C$424 -> 0 | N56: =H56*'Série - IPCA'!$C$444/'Série - IPCA'!$C$437 -> 0 | O56: -722.6292958 | P56: Despesas Gerais e Administratias | Q56: N | R56: SIM | S56: NÃO | T56: ENCARGOS DE GESTÃO | U56: FIXO | V56: ALUGUÉIS | W56: 3600 | X56: GERÊNCIA DE GOVERNANÇA, RISCO E COMPLIANCE | Y56: Despesas Gerais e Administratias-555,178
D57: -12786.45 | E57: 0 | F57: 0 | G57: 0 | H57: 0 | I57: -2557.29 | J57: =D57*'Série - IPCA'!$C$444/'Série - IPCA'!$C$385 -> -16643.06467 | K57: =E57*'Série - IPCA'!$C$444/'Série - IPCA'!$C$398 -> 0 | L57: =F57*'Série - IPCA'!$C$444/'Série - IPCA'!$C$411 -> 0 | M57: =G57*'Série - IPCA'!$C$444/'Série - IPCA'!$C$424 -> 0 | N57: =H57*'Série - IPCA'!$C$444/'Série - IPCA'!$C$437 -> 0 | O57: -3328.612935 | P57: Despesas Gerais e Administratias | Q57: N | R57: SIM | S57: NÃO | T57: ENCARGOS DE GESTÃO | U57: FIXO | V57: ALUGUÉIS | W57: 4100 | X57: GERÊNCIA DE SERVIÇOS CORPORATIVOS | Y57: Despesas Gerais e Administratias-2557,29
D58: -10148.61 | E58: 0 | F58: 0 | G58: 0 | H58: 0 | I58: -2029.722 | J58: =D58*'Série - IPCA'!$C$444/'Série - IPCA'!$C$385 -> -13209.60646 | K58: =E58*'Série - IPCA'!$C$444/'Série - IPCA'!$C$398 -> 0 | L58: =F58*'Série - IPCA'!$C$444/'Série - IPCA'!$C$411 -> 0 | M58: =G58*'Série - IPCA'!$C$444/'Série - IPCA'!$C$424 -> 0 | N58: =H58*'Série - IPCA'!$C$444/'Série - IPCA'!$C$437 -> 0 | O58: -2641.921293 | P58: Despesas Gerais e Administratias | Q58: N | R58: SIM | S58: NÃO | T58: ENCARGOS DE GESTÃO | U58: FIXO | V58: ALUGUÉIS | W58: 4200 | X58: GERÊNCIA FINANCEIRA | Y58: Despesas Gerais e Administratias-2029,722
D59: -11456.97 | E59: 0 | F59: 0 | G59: 0 | H59: 0 | I59: -2291.394 | J59: =D59*'Série - IPCA'!$C$444/'Série - IPCA'!$C$385 -> -14912.59049 | K59: =E59*'Série - IPCA'!$C$444/'Série - IPCA'!$C$398 -> 0 | L59: =F59*'Série - IPCA'!$C$444/'Série - IPCA'!$C$411 -> 0 | M59: =G59*'Série - IPCA'!$C$444/'Série - IPCA'!$C$424 -> 0 | N59: =H59*'Série - IPCA'!$C$444/'Série - IPCA'!$C$437 -> 0 | O59: -2982.518098 | P59: Despesas Gerais e Administratias | Q59: N | R59: SIM | S59: NÃO | T59: ENCARGOS DE GESTÃO | U59: FIXO | V59: ALUGUÉIS | W59: 4300 | X59: GERÊNCIA DE TECNOLOGIA E SISTEMAS DE INFORMAÇÃO | Y59: Despesas Gerais e Administratias-2291,394
D60: -7372.77 | E60: 0 | F60: 0 | G60: 0 | H60: 0 | I60: -1474.554 | J60: =D60*'Série - IPCA'!$C$444/'Série - IPCA'!$C$385 -> -9596.525066 | K60: =E60*'Série - IPCA'!$C$444/'Série - IPCA'!$C$398 -> 0 | L60: =F60*'Série - IPCA'!$C$444/'Série - IPCA'!$C$411 -> 0 | M60: =G60*'Série - IPCA'!$C$444/'Série - IPCA'!$C$424 -> 0 | N60: =H60*'Série - IPCA'!$C$444/'Série - IPCA'!$C$437 -> 0 | O60: -1919.305013 | P60: Despesas Gerais e Administratias | Q60: N | R60: SIM | S60: NÃO | T60: ENCARGOS DE GESTÃO | U60: FIXO | V60: ALUGUÉIS | W60: 4500 | X60: GERÊNCIA CONTÁBIL | Y60: Despesas Gerais e Administratias-1474,554
D61: -6453.39 | E61: 0 | F61: 0 | G61: 0 | H61: 0 | I61: -1290.678 | J61: =D61*'Série - IPCA'!$C$444/'Série - IPCA'!$C$385 -> -8399.844142 | K61: =E61*'Série - IPCA'!$C$444/'Série - IPCA'!$C$398 -> 0 | L61: =F61*'Série - IPCA'!$C$444/'Série - IPCA'!$C$411 -> 0 | M61: =G61*'Série - IPCA'!$C$444/'Série - IPCA'!$C$424 -> 0 | N61: =H61*'Série - IPCA'!$C$444/'Série - IPCA'!$C$437 -> 0 | O61: -1679.968828 | P61: Despesas Gerais e Administratias | Q61: N | R61: SIM | S61: NÃO | T61: ENCARGOS DE GESTÃO | U61: FIXO | V61: ALUGUÉIS | W61: 4600 | X61: GERÊNCIA DE PESSOAS E CULTURA | Y61: Despesas Gerais e Administratias-1290,678
D62: 0 | E62: 0 | F62: 0 | G62: 1043.65 | H62: 4245.71 | I62: 1057.872 | J62: =D62*'Série - IPCA'!$C$444/'Série - IPCA'!$C$385 -> 0 | K62: =E62*'Série - IPCA'!$C$444/'Série - IPCA'!$C$398 -> 0 | L62: =F62*'Série - IPCA'!$C$444/'Série - IPCA'!$C$411 -> 0 | M62: =G62*'Série - IPCA'!$C$444/'Série - IPCA'!$C$424 -> 1116.327186 | N62: =H62*'Série - IPCA'!$C$444/'Série - IPCA'!$C$437 -> 4340.775199 | O62: 1091.420477 | P62: Custos | Q62: N | R62: SIM | S62: NÃO | T62: OPEX | U62: FIXO | V62: ALUGUÉIS | W62: 5100 | X62: GERÊNCIA DE ENGENHARIA | Y62: Custos1057,872
D63: 0 | E63: 0 | F63: 0 | G63: 0 | H63: 0 | I63: 0 | J63: =D63*'Série - IPCA'!$C$444/'Série - IPCA'!$C$385 -> 0 | K63: =E63*'Série - IPCA'!$C$444/'Série - IPCA'!$C$398 -> 0 | L63: =F63*'Série - IPCA'!$C$444/'Série - IPCA'!$C$411 -> 0 | M63: =G63*'Série - IPCA'!$C$444/'Série - IPCA'!$C$424 -> 0 | N63: =H63*'Série - IPCA'!$C$444/'Série - IPCA'!$C$437 -> 0 | O63: 0 | P63: Custos | Q63: N | R63: SIM | S63: NÃO | T63: OPEX | U63: FIXO | V63: ALUGUÉIS | W63: 5200 | X63: GERÊNCIA DE OPERAÇÕES | Y63: Custos0
D64: 142 | E64: 0 | F64: 0 | G64: 0 | H64: 0 | I64: 28.4 | J64: =D64*'Série - IPCA'!$C$444/'Série - IPCA'!$C$385 -> 184.8296582 | K64: =E64*'Série - IPCA'!$C$444/'Série - IPCA'!$C$398 -> 0 | L64: =F64*'Série - IPCA'!$C$444/'Série - IPCA'!$C$411 -> 0 | M64: =G64*'Série - IPCA'!$C$444/'Série - IPCA'!$C$424 -> 0 | N64: =H64*'Série - IPCA'!$C$444/'Série - IPCA'!$C$437 -> 0 | O64: 36.96593165 | P64: Despesas com Vendas | Q64: N | R64: SIM | S64: NÃO | T64: ENCARGOS DE COMERCIALIZAÇÃO | U64: FIXO | V64: ALUGUÉIS | W64: 5300 | X64: GERÊNCIA COMERCIAL | Y64: Despesas com Vendas28,4
D65: 0 | E65: 0 | F65: 0 | G65: 0 | H65: 663.4 | I65: 132.68 | J65: =D65*'Série - IPCA'!$C$444/'Série - IPCA'!$C$385 -> 0 | K65: =E65*'Série - IPCA'!$C$444/'Série - IPCA'!$C$398 -> 0 | L65: =F65*'Série - IPCA'!$C$444/'Série - IPCA'!$C$411 -> 0 | M65: =G65*'Série - IPCA'!$C$444/'Série - IPCA'!$C$424 -> 0 | N65: =H65*'Série - IPCA'!$C$444/'Série - IPCA'!$C$437 -> 678.2541123 | O65: 135.6508225 | P65: Despesas Gerais e Administratias | Q65: N | R65: SIM | S65: NÃO | T65: ENCARGOS DE GESTÃO | U65: FIXO | V65: ALUGUÉIS | W65: 2130 | X65: ASSESSORIA DE RELAÇÕES INSTITUCIONAIS E NOVOS NEGÓCIOS | Y65: Despesas Gerais e Administratias132,68
D66: 0 | E66: 0 | F66: 0 | G66: 425.17 | H66: 307.89 | I66: 146.612 | J66: =D66*'Série - IPCA'!$C$444/'Série - IPCA'!$C$385 -> 0 | K66: =E66*'Série - IPCA'!$C$444/'Série - IPCA'!$C$398 -> 0 | L66: =F66*'Série - IPCA'!$C$444/'Série - IPCA'!$C$411 -> 0 | M66: =G66*'Série - IPCA'!$C$444/'Série - IPCA'!$C$424 -> 454.7777798 | N66: =H66*'Série - IPCA'!$C$444/'Série - IPCA'!$C$437 -> 314.7839292 | O66: 153.9123418 | P66: Despesas Gerais e Administratias | Q66: N | R66: SIM | S66: NÃO | T66: ENCARGOS DE GESTÃO | U66: FIXO | V66: ALUGUÉIS | W66: 2200 | X66: DIRETORIA COLEGIADA - PRESIDÊNCIA | Y66: Despesas Gerais e Administratias146,612
D67: 0 | E67: 0 | F67: 0 | G67: 0 | H67: 219.41 | I67: 43.882 | J67: =D67*'Série - IPCA'!$C$444/'Série - IPCA'!$C$385 -> 0 | K67: =E67*'Série - IPCA'!$C$444/'Série - IPCA'!$C$398 -> 0 | L67: =F67*'Série - IPCA'!$C$444/'Série - IPCA'!$C$411 -> 0 | M67: =G67*'Série - IPCA'!$C$444/'Série - IPCA'!$C$424 -> 0 | N67: =H67*'Série - IPCA'!$C$444/'Série - IPCA'!$C$437 -> 224.3227838 | O67: 44.86455676 | P67: Despesas Gerais e Administratias | Q67: N | R67: SIM | S67: NÃO | T67: ENCARGOS DE GESTÃO | U67: FIXO | V67: ALUGUÉIS | W67: 2400 | X67: DIRETORIA COLEGIADA - DTC | Y67: Despesas Gerais e Administratias43,882
D68: 155 | E68: 0 | F68: 0 | G68: 0 | H68: 0 | I68: 31 | J68: =D68*'Série - IPCA'!$C$444/'Série - IPCA'!$C$385 -> 201.7506833 | K68: =E68*'Série - IPCA'!$C$444/'Série - IPCA'!$C$398 -> 0 | L68: =F68*'Série - IPCA'!$C$444/'Série - IPCA'!$C$411 -> 0 | M68: =G68*'Série - IPCA'!$C$444/'Série - IPCA'!$C$424 -> 0 | N68: =H68*'Série - IPCA'!$C$444/'Série - IPCA'!$C$437 -> 0 | O68: 40.35013666 | P68: Despesas Gerais e Administratias | Q68: N | R68: SIM | S68: NÃO | T68: ENCARGOS DE GESTÃO | U68: FIXO | V68: ALUGUÉIS | W68: 3200 | X68: GERÊNCIA DE PLANEJAMENTO E MEIO AMBIENTE | Y68: Despesas Gerais e Administratias31
D69: 0 | E69: 0 | F69: 0 | G69: 0 | H69: 1772.43 | I69: =AVERAGE(D69:H69) -> 354.486 | J69: =D69*'Série - IPCA'!$C$444/'Série - IPCA'!$C$385 -> 0 | K69: =E69*'Série - IPCA'!$C$444/'Série - IPCA'!$C$398 -> 0 | L69: =F69*'Série - IPCA'!$C$444/'Série - IPCA'!$C$411 -> 0 | M69: =G69*'Série - IPCA'!$C$444/'Série - IPCA'!$C$424 -> 0 | N69: =H69*'Série - IPCA'!$C$444/'Série - IPCA'!$C$437 -> 1812.116274 | O69: =AVERAGE(J69:N69) -> 362.4232549 | P69: Despesas Gerais e Administratias | Q69: N | R69: SIM | S69: NÃO | T69: ENCARGOS DE GESTÃO | U69: FIXO | V69: ALUGUÉIS | W69: 4100 | X69: GERÊNCIA DE SERVIÇOS CORPORATIVOS | Y69: =B69&C69&P69&I69 -> Despesas Gerais e Administratias354,486
D70: 0 | E70: 0 | F70: 4500 | G70: 0 | H70: 0 | I70: 900 | J70: =D70*'Série - IPCA'!$C$444/'Série - IPCA'!$C$385 -> 0 | K70: =E70*'Série - IPCA'!$C$444/'Série - IPCA'!$C$398 -> 0 | L70: =F70*'Série - IPCA'!$C$444/'Série - IPCA'!$C$411 -> 5091.826648 | M70: =G70*'Série - IPCA'!$C$444/'Série - IPCA'!$C$424 -> 0 | N70: =H70*'Série - IPCA'!$C$444/'Série - IPCA'!$C$437 -> 0 | O70: 1018.36533 | P70: Custos | Q70: N | R70: SIM | S70: NÃO | T70: OPEX | U70: EXTENSÃO | V70: ALUGUÉIS | W70: 5200 | X70: GERÊNCIA DE OPERAÇÕES | Y70: Custos900
D71: 83933.33 | E71: 101756.18 | F71: 109334.33 | G71: 109290.97 | H71: 113878.26 | I71: 103638.614 | J71: =D71*'Série - IPCA'!$C$444/'Série - IPCA'!$C$385 -> 109249.0753 | K71: =E71*'Série - IPCA'!$C$444/'Série - IPCA'!$C$398 -> 126722.9508 | L71: =F71*'Série - IPCA'!$C$444/'Série - IPCA'!$C$411 -> 123713.6567 | M71: =G71*'Série - IPCA'!$C$444/'Série - IPCA'!$C$424 -> 116901.7209 | N71: =H71*'Série - IPCA'!$C$444/'Série - IPCA'!$C$437 -> 116428.0949 | O71: 118603.0997 | P71: Despesas Gerais e Administratias | Q71: N | R71: SIM | S71: NÃO | T71: ENCARGOS DE GESTÃO | U71: FIXO | V71: ALUGUÉIS | W71: 4300 | X71: GERÊNCIA DE TECNOLOGIA E SISTEMAS DE INFORMAÇÃO | Y71: Despesas Gerais e Administratias103638,614
D72: 2663.5 | E72: 503.5 | F72: 1797.35 | G72: 498.3 | H72: 128.8 | I72: 1118.29 | J72: =D72*'Série - IPCA'!$C$444/'Série - IPCA'!$C$385 -> 3466.857709 | K72: =E72*'Série - IPCA'!$C$444/'Série - IPCA'!$C$398 -> 627.0381388 | L72: =F72*'Série - IPCA'!$C$444/'Série - IPCA'!$C$411 -> 2033.732139 | M72: =G72*'Série - IPCA'!$C$444/'Série - IPCA'!$C$424 -> 533.0003708 | N72: =H72*'Série - IPCA'!$C$444/'Série - IPCA'!$C$437 -> 131.6839458 | O72: 1358.462461 | P72: Custos | Q72: N | R72: NÃO | S72: NÃO | T72: OPEX | U72: FIXO | V72: DESPESAS_GERAIS | W72: 5100 | X72: GERÊNCIA DE ENGENHARIA | Y72: Custos1118,29
D73: 0 | E73: 4769.84 | F73: 0 | G73: 604.2 | H73: 0 | I73: 1074.808 | J73: =D73*'Série - IPCA'!$C$444/'Série - IPCA'!$C$385 -> 0 | K73: =E73*'Série - IPCA'!$C$444/'Série - IPCA'!$C$398 -> 5940.162057 | L73: =F73*'Série - IPCA'!$C$444/'Série - IPCA'!$C$411 -> 0 | M73: =G73*'Série - IPCA'!$C$444/'Série - IPCA'!$C$424 -> 646.274983 | N73: =H73*'Série - IPCA'!$C$444/'Série - IPCA'!$C$437 -> 0 | O73: 1317.287408 | P73: Custos | Q73: N | R73: NÃO | S73: NÃO | T73: OPEX | U73: FIXO | V73: DESPESAS_GERAIS | W73: 5200 | X73: GERÊNCIA DE OPERAÇÕES | Y73: Custos1074,808
D74: 0 | E74: 1795.49 | F74: 0 | G74: 0 | H74: 0 | I74: 359.098 | J74: =D74*'Série - IPCA'!$C$444/'Série - IPCA'!$C$385 -> 0 | K74: =E74*'Série - IPCA'!$C$444/'Série - IPCA'!$C$398 -> 2236.029211 | L74: =F74*'Série - IPCA'!$C$444/'Série - IPCA'!$C$411 -> 0 | M74: =G74*'Série - IPCA'!$C$444/'Série - IPCA'!$C$424 -> 0 | N74: =H74*'Série - IPCA'!$C$444/'Série - IPCA'!$C$437 -> 0 | O74: 447.2058422 | P74: Despesas com Vendas | Q74: N | R74: NÃO | S74: NÃO | T74: ENCARGOS DE COMERCIALIZAÇÃO | U74: FIXO | V74: DESPESAS_GERAIS | W74: 5300 | X74: GERÊNCIA COMERCIAL | Y74: Despesas com Vendas359,098
D75: 725 | E75: 1706.82 | F75: 0 | G75: 0 | H75: 0 | I75: 486.364 | J75: =D75*'Série - IPCA'!$C$444/'Série - IPCA'!$C$385 -> 943.6725509 | K75: =E75*'Série - IPCA'!$C$444/'Série - IPCA'!$C$398 -> 2125.603249 | L75: =F75*'Série - IPCA'!$C$444/'Série - IPCA'!$C$411 -> 0 | M75: =G75*'Série - IPCA'!$C$444/'Série - IPCA'!$C$424 -> 0 | N75: =H75*'Série - IPCA'!$C$444/'Série - IPCA'!$C$437 -> 0 | O75: 613.85516 | P75: Despesas Gerais e Administratias | Q75: N | R75: NÃO | S75: NÃO | T75: ENCARGOS DE GESTÃO | U75: FIXO | V75: DESPESAS_GERAIS | W75: 2100 | X75: SECRETARIA | Y75: Despesas Gerais e Administratias486,364
D76: 1504.8 | E76: 2370.06 | F76: 598.8 | G76: 6733.26 | H76: 6961.38 | I76: 3633.66 | J76: =D76*'Série - IPCA'!$C$444/'Série - IPCA'!$C$385 -> 1958.67373 | K76: =E76*'Série - IPCA'!$C$444/'Série - IPCA'!$C$398 -> 2951.574997 | L76: =F76*'Série - IPCA'!$C$444/'Série - IPCA'!$C$411 -> 677.5523993 | M76: =G76*'Série - IPCA'!$C$444/'Série - IPCA'!$C$424 -> 7202.147455 | N76: =H76*'Série - IPCA'!$C$444/'Série - IPCA'!$C$437 -> 7117.251451 | O76: 3981.440007 | P76: Despesas Gerais e Administratias | Q76: N | R76: NÃO | S76: NÃO | T76: ENCARGOS DE GESTÃO | U76: FIXO | V76: DESPESAS_GERAIS | W76: 2200 | X76: DIRETORIA COLEGIADA - PRESIDÊNCIA | Y76: Despesas Gerais e Administratias3633,66
D77: 1163.27 | E77: 1097.56 | F77: 0 | G77: 0 | H77: 0 | I77: 452.166 | J77: =D77*'Série - IPCA'!$C$444/'Série - IPCA'!$C$385 -> 1514.13237 | K77: =E77*'Série - IPCA'!$C$444/'Série - IPCA'!$C$398 -> 1366.855967 | L77: =F77*'Série - IPCA'!$C$444/'Série - IPCA'!$C$411 -> 0 | M77: =G77*'Série - IPCA'!$C$444/'Série - IPCA'!$C$424 -> 0 | N77: =H77*'Série - IPCA'!$C$444/'Série - IPCA'!$C$437 -> 0 | O77: 576.1976675 | P77: Despesas Gerais e Administratias | Q77: N | R77: NÃO | S77: NÃO | T77: ENCARGOS DE GESTÃO | U77: FIXO | V77: DESPESAS_GERAIS | W77: 2300 | X77: DIRETORIA COLEGIADA - DAF | Y77: Despesas Gerais e Administratias452,166
D78: 0 | E78: 491.35 | F78: 62.8 | G78: 134.5 | H78: 168 | I78: 171.33 | J78: =D78*'Série - IPCA'!$C$444/'Série - IPCA'!$C$385 -> 0 | K78: =E78*'Série - IPCA'!$C$444/'Série - IPCA'!$C$398 -> 611.9070298 | L78: =F78*'Série - IPCA'!$C$444/'Série - IPCA'!$C$411 -> 71.05926966 | M78: =G78*'Série - IPCA'!$C$444/'Série - IPCA'!$C$424 -> 143.866245 | N78: =H78*'Série - IPCA'!$C$444/'Série - IPCA'!$C$437 -> 171.7616685 | O78: 199.7188426 | P78: Despesas Gerais e Administratias | Q78: N | R78: NÃO | S78: NÃO | T78: ENCARGOS DE GESTÃO | U78: FIXO | V78: DESPESAS_GERAIS | W78: 2410 | X78: ASSESSORIA DE SEGURANÇA DO TRABALHO | Y78: Despesas Gerais e Administratias171,33
D79: 7463.72 | E79: 0 | F79: 2307.06 | G79: 0 | H79: 0 | I79: 1954.156 | J79: =D79*'Série - IPCA'!$C$444/'Série - IPCA'!$C$385 -> 9714.907161 | K79: =E79*'Série - IPCA'!$C$444/'Série - IPCA'!$C$398 -> 0 | L79: =F79*'Série - IPCA'!$C$444/'Série - IPCA'!$C$411 -> 2610.477686 | M79: =G79*'Série - IPCA'!$C$444/'Série - IPCA'!$C$424 -> 0 | N79: =H79*'Série - IPCA'!$C$444/'Série - IPCA'!$C$437 -> 0 | O79: 2465.076969 | P79: Despesas Gerais e Administratias | Q79: N | R79: NÃO | S79: NÃO | T79: ENCARGOS DE GESTÃO | U79: FIXO | V79: DESPESAS_GERAIS | W79: 3100 | X79: SMS | Y79: Despesas Gerais e Administratias1954,156
D80: 1024.41 | E80: 7593.5 | F80: 7663.34 | G80: 2797.97 | H80: 874.05 | I80: 3990.654 | J80: =D80*'Série - IPCA'!$C$444/'Série - IPCA'!$C$385 -> 1333.38979 | K80: =E80*'Série - IPCA'!$C$444/'Série - IPCA'!$C$398 -> 9456.631791 | L80: =F80*'Série - IPCA'!$C$444/'Série - IPCA'!$C$411 -> 8671.199739 | M80: =G80*'Série - IPCA'!$C$444/'Série - IPCA'!$C$424 -> 2992.813662 | N80: =H80*'Série - IPCA'!$C$444/'Série - IPCA'!$C$437 -> 893.620752 | O80: 4669.531147 | P80: Despesas Gerais e Administratias | Q80: N | R80: NÃO | S80: NÃO | T80: ENCARGOS DE GESTÃO | U80: FIXO | V80: DESPESAS_GERAIS | W80: 3200 | X80: GERÊNCIA DE PLANEJAMENTO E MEIO AMBIENTE | Y80: Despesas Gerais e Administratias3990,654
D81: 503.7 | E81: 0 | F81: 0 | G81: 1197 | H81: 0 | I81: 340.14 | J81: =D81*'Série - IPCA'!$C$444/'Série - IPCA'!$C$385 -> 655.6246398 | K81: =E81*'Série - IPCA'!$C$444/'Série - IPCA'!$C$398 -> 0 | L81: =F81*'Série - IPCA'!$C$444/'Série - IPCA'!$C$411 -> 0 | M81: =G81*'Série - IPCA'!$C$444/'Série - IPCA'!$C$424 -> 1280.356098 | N81: =H81*'Série - IPCA'!$C$444/'Série - IPCA'!$C$437 -> 0 | O81: 387.1961477 | P81: Despesas Gerais e Administratias | Q81: N | R81: NÃO | S81: NÃO | T81: ENCARGOS DE GESTÃO | U81: FIXO | V81: DESPESAS_GERAIS | W81: 3300 | X81: GERÊNCIA JURÍDICA | Y81: Despesas Gerais e Administratias340,14
D82: 0 | E82: 850 | F82: 1690 | G82: 7371 | H82: 23196 | I82: 6621.4 | J82: =D82*'Série - IPCA'!$C$444/'Série - IPCA'!$C$385 -> 0 | K82: =E82*'Série - IPCA'!$C$444/'Série - IPCA'!$C$398 -> 1058.554951 | L82: =F82*'Série - IPCA'!$C$444/'Série - IPCA'!$C$411 -> 1912.263786 | M82: =G82*'Série - IPCA'!$C$444/'Série - IPCA'!$C$424 -> 7884.29808 | N82: =H82*'Série - IPCA'!$C$444/'Série - IPCA'!$C$437 -> 23715.37894 | O82: 6914.099152 | P82: Despesas Gerais e Administratias | Q82: N | R82: NÃO | S82: NÃO | T82: ENCARGOS DE GESTÃO | U82: FIXO | V82: DESPESAS_GERAIS | W82: 3500 | X82: ASSESSORIA DE COMUNICAÇÃO INSTITUCIONAL | Y82: Despesas Gerais e Administratias6621,4
D83: 0 | E83: 318.2 | F83: 152 | G83: 0 | H83: 143.97 | I83: 122.834 | J83: =D83*'Série - IPCA'!$C$444/'Série - IPCA'!$C$385 -> 0 | K83: =E83*'Série - IPCA'!$C$444/'Série - IPCA'!$C$398 -> 396.2731594 | L83: =F83*'Série - IPCA'!$C$444/'Série - IPCA'!$C$411 -> 171.990589 | M83: =G83*'Série - IPCA'!$C$444/'Série - IPCA'!$C$424 -> 0 | N83: =H83*'Série - IPCA'!$C$444/'Série - IPCA'!$C$437 -> 147.1936155 | O83: 143.0914728 | P83: Despesas Gerais e Administratias | Q83: N | R83: NÃO | S83: NÃO | T83: ENCARGOS DE GESTÃO | U83: FIXO | V83: DESPESAS_GERAIS | W83: 3600 | X83: GERÊNCIA DE GOVERNANÇA, RISCO E COMPLIANCE | Y83: Despesas Gerais e Administratias122,834
D84: 0 | E84: 0 | F84: 1198.8 | G84: 0 | H84: 0 | I84: 239.76 | J84: =D84*'Série - IPCA'!$C$444/'Série - IPCA'!$C$385 -> 0 | K84: =E84*'Série - IPCA'!$C$444/'Série - IPCA'!$C$398 -> 0 | L84: =F84*'Série - IPCA'!$C$444/'Série - IPCA'!$C$411 -> 1356.462619 | M84: =G84*'Série - IPCA'!$C$444/'Série - IPCA'!$C$424 -> 0 | N84: =H84*'Série - IPCA'!$C$444/'Série - IPCA'!$C$437 -> 0 | O84: 271.2925238 | P84: Despesas Gerais e Administratias | Q84: N | R84: NÃO | S84: NÃO | T84: ENCARGOS DE GESTÃO | U84: FIXO | V84: DESPESAS_GERAIS | W84: 3700 | X84: GERÊNCIA DE REGULAÇÃO | Y84: Despesas Gerais e Administratias239,76
D85: 408.5 | E85: 1199.57 | F85: 145 | G85: 114 | H85: 2318.9 | I85: 837.194 | J85: =D85*'Série - IPCA'!$C$444/'Série - IPCA'!$C$385 -> 531.7106718 | K85: =E85*'Série - IPCA'!$C$444/'Série - IPCA'!$C$398 -> 1493.895015 | L85: =F85*'Série - IPCA'!$C$444/'Série - IPCA'!$C$411 -> 164.0699698 | M85: =G85*'Série - IPCA'!$C$444/'Série - IPCA'!$C$424 -> 121.938676 | N85: =H85*'Série - IPCA'!$C$444/'Série - IPCA'!$C$437 -> 2370.822221 | O85: 936.4873107 | P85: Despesas Gerais e Administratias | Q85: N | R85: NÃO | S85: NÃO | T85: ENCARGOS DE GESTÃO | U85: FIXO | V85: DESPESAS_GERAIS | W85: 4100 | X85: GERÊNCIA DE SERVIÇOS CORPORATIVOS | Y85: Despesas Gerais e Administratias837,194
D86: 202577.78 | E86: 203460.16 | F86: 207979.92 | G86: 197874.61 | H86: 203325.1 | I86: 203043.514 | J86: =D86*'Série - IPCA'!$C$444/'Série - IPCA'!$C$385 -> 263678.7454 | K86: =E86*'Série - IPCA'!$C$444/'Série - IPCA'!$C$398 -> 253380.8938 | L86: =F86*'Série - IPCA'!$C$444/'Série - IPCA'!$C$411 -> 235332.822 | M86: =G86*'Série - IPCA'!$C$444/'Série - IPCA'!$C$424 -> 211654.105 | N86: =H86*'Série - IPCA'!$C$444/'Série - IPCA'!$C$437 -> 207877.7287 | O86: 234384.859 | P86: Despesas Gerais e Administratias | Q86: N | R86: NÃO | S86: NÃO | T86: ENCARGOS DE GESTÃO | U86: FIXO | V86: DESPESAS_GERAIS | W86: 4200 | X86: GERÊNCIA FINANCEIRA | Y86: Despesas Gerais e Administratias203043,514
D87: 1968 | E87: 25521.84 | F87: 2182.4 | G87: 2411.2 | H87: 2801.02 | I87: 6976.892 | J87: =D87*'Série - IPCA'!$C$444/'Série - IPCA'!$C$385 -> 2561.582869 | K87: =E87*'Série - IPCA'!$C$444/'Série - IPCA'!$C$398 -> 31783.84717 | L87: =F87*'Série - IPCA'!$C$444/'Série - IPCA'!$C$411 -> 2469.422773 | M87: =G87*'Série - IPCA'!$C$444/'Série - IPCA'!$C$424 -> 2579.109962 | N87: =H87*'Série - IPCA'!$C$444/'Série - IPCA'!$C$437 -> 2863.737313 | O87: 8451.540018 | P87: Despesas Gerais e Administratias | Q87: N | R87: NÃO | S87: NÃO | T87: ENCARGOS DE GESTÃO | U87: FIXO | V87: DESPESAS_GERAIS | W87: 4500 | X87: GERÊNCIA CONTÁBIL | Y87: Despesas Gerais e Administratias6976,892
D88: 121577.82 | E88: 242474.09 | F88: 314555.82 | G88: 312636.7 | H88: 371129.55 | I88: 272474.796 | J88: =D88*'Série - IPCA'!$C$444/'Série - IPCA'!$C$385 -> 158247.7952 | K88: =E88*'Série - IPCA'!$C$444/'Série - IPCA'!$C$398 -> 301967.2336 | L88: =F88*'Série - IPCA'!$C$444/'Série - IPCA'!$C$411 -> 355925.2681 | M88: =G88*'Série - IPCA'!$C$444/'Série - IPCA'!$C$424 -> 334407.9411 | N88: =H88*'Série - IPCA'!$C$444/'Série - IPCA'!$C$437 -> 379439.4686 | O88: 305997.5413 | P88: Despesas com Vendas | Q88: N | R88: NÃO | S88: NÃO | T88: ENCARGOS DE COMERCIALIZAÇÃO | U88: FUNCIONÁRIOS | V88: PESSOAL | W88: 5300 | X88: GERÊNCIA COMERCIAL | Y88: Despesas com Vendas272474,796
D89: 0 | E89: 15311.76 | F89: 15870.08 | G89: 16864.36 | H89: 21135.56 | I89: 13836.352 | J89: =D89*'Série - IPCA'!$C$444/'Série - IPCA'!$C$385 -> 0 | K89: =E89*'Série - IPCA'!$C$444/'Série - IPCA'!$C$398 -> 19068.63454 | L89: =F89*'Série - IPCA'!$C$444/'Série - IPCA'!$C$411 -> 17957.26583 | M89: =G89*'Série - IPCA'!$C$444/'Série - IPCA'!$C$424 -> 18038.75202 | N89: =H89*'Série - IPCA'!$C$444/'Série - IPCA'!$C$437 -> 21608.80387 | O89: 15334.69125 | P89: Despesas Gerais e Administratias | Q89: N | R89: NÃO | S89: NÃO | T89: ENCARGOS DE GESTÃO | U89: FUNCIONÁRIOS | V89: PESSOAL | W89: 1005 | X89: AUDITORIA INTERNA | Y89: Despesas Gerais e Administratias13836,352
D90: 0 | E90: 0 | F90: 28660.56 | G90: 27686.88 | H90: 27763.25 | I90: 16822.138 | J90: =D90*'Série - IPCA'!$C$444/'Série - IPCA'!$C$385 -> 0 | K90: =E90*'Série - IPCA'!$C$444/'Série - IPCA'!$C$398 -> 0 | L90: =F90*'Série - IPCA'!$C$444/'Série - IPCA'!$C$411 -> 32429.91181 | M90: =G90*'Série - IPCA'!$C$444/'Série - IPCA'!$C$424 -> 29614.92536 | N90: =H90*'Série - IPCA'!$C$444/'Série - IPCA'!$C$437 -> 28384.89371 | O90: 18085.94618 | P90: Despesas Gerais e Administratias | Q90: N | R90: NÃO | S90: NÃO | T90: ENCARGOS DE GESTÃO | U90: FUNCIONÁRIOS | V90: PESSOAL | W90: 1010 | X90: GOVERNANÇA SOCIETÁRIA | Y90: Despesas Gerais e Administratias16822,138
D91: 0 | E91: 0 | F91: 0 | G91: 0 | H91: 0 | I91: 0 | J91: =D91*'Série - IPCA'!$C$444/'Série - IPCA'!$C$385 -> 0 | K91: =E91*'Série - IPCA'!$C$444/'Série - IPCA'!$C$398 -> 0 | L91: =F91*'Série - IPCA'!$C$444/'Série - IPCA'!$C$411 -> 0 | M91: =G91*'Série - IPCA'!$C$444/'Série - IPCA'!$C$424 -> 0 | N91: =H91*'Série - IPCA'!$C$444/'Série - IPCA'!$C$437 -> 0 | O91: 0 | P91: Despesas Gerais e Administratias | Q91: N | R91: NÃO | S91: NÃO | T91: ENCARGOS DE GESTÃO | U91: FUNCIONÁRIOS | V91: PESSOAL | W91: 2100 | X91: SECRETARIA | Y91: Despesas Gerais e Administratias0
D92: 6683.8 | E92: 24478.25 | F92: 22755.56 | G92: 18186.66 | H92: 13994.89 | I92: 17219.832 | J92: =D92*'Série - IPCA'!$C$444/'Série - IPCA'!$C$385 -> 8699.749787 | K92: =E92*'Série - IPCA'!$C$444/'Série - IPCA'!$C$398 -> 30484.20322 | L92: =F92*'Série - IPCA'!$C$444/'Série - IPCA'!$C$411 -> 25748.30373 | M92: =G92*'Série - IPCA'!$C$444/'Série - IPCA'!$C$424 -> 19453.1337 | N92: =H92*'Série - IPCA'!$C$444/'Série - IPCA'!$C$437 -> 14308.24796 | O92: 19738.72768 | P92: Despesas Gerais e Administratias | Q92: N | R92: NÃO | S92: NÃO | T92: ENCARGOS DE GESTÃO | U92: FUNCIONÁRIOS | V92: PESSOAL | W92: 2110 | X92: ASSESSORIA DA DIRETORIA EXECUTIVA | Y92: Despesas Gerais e Administratias17219,832
D93: 8033.63 | E93: 31355.16 | F93: 29473.11 | G93: 29836.38 | H93: 35343.86 | I93: 26808.428 | J93: =D93*'Série - IPCA'!$C$444/'Série - IPCA'!$C$385 -> 10456.71188 | K93: =E93*'Série - IPCA'!$C$444/'Série - IPCA'!$C$398 -> 39048.42337 | L93: =F93*'Série - IPCA'!$C$444/'Série - IPCA'!$C$411 -> 33349.32598 | M93: =G93*'Série - IPCA'!$C$444/'Série - IPCA'!$C$424 -> 31914.11119 | N93: =H93*'Série - IPCA'!$C$444/'Série - IPCA'!$C$437 -> 36135.24026 | O93: 30180.76254 | P93: Despesas Gerais e Administratias | Q93: N | R93: NÃO | S93: NÃO | T93: ENCARGOS DE GESTÃO | U93: FUNCIONÁRIOS | V93: PESSOAL | W93: 2120 | X93: ASSESSORIA DA PRESIDÊNCIA | Y93: Despesas Gerais e Administratias26808,428
D94: 0 | E94: 1198 | F94: 14986.94 | G94: 16381.2 | H94: 18773.04 | I94: 10267.836 | J94: =D94*'Série - IPCA'!$C$444/'Série - IPCA'!$C$385 -> 0 | K94: =E94*'Série - IPCA'!$C$444/'Série - IPCA'!$C$398 -> 1491.939802 | L94: =F94*'Série - IPCA'!$C$444/'Série - IPCA'!$C$411 -> 16957.97788 | M94: =G94*'Série - IPCA'!$C$444/'Série - IPCA'!$C$424 -> 17521.94597 | N94: =H94*'Série - IPCA'!$C$444/'Série - IPCA'!$C$437 -> 19193.38496 | O94: 11033.04972 | P94: Despesas Gerais e Administratias | Q94: N | R94: NÃO | S94: NÃO | T94: ENCARGOS DE GESTÃO | U94: FUNCIONÁRIOS | V94: PESSOAL | W94: 2130 | X94: ASSESSORIA DE RELAÇÕES INSTITUCIONAIS E NOVOS NEGÓCIOS | Y94: Despesas Gerais e Administratias10267,836
D95: 17679.34 | E95: 406.52 | F95: 0 | G95: 0 | H95: 350 | I95: 3687.172 | J95: =D95*'Série - IPCA'!$C$444/'Série - IPCA'!$C$385 -> 23011.735 | K95: =E95*'Série - IPCA'!$C$444/'Série - IPCA'!$C$398 -> 506.2632456 | L95: =F95*'Série - IPCA'!$C$444/'Série - IPCA'!$C$411 -> 0 | M95: =G95*'Série - IPCA'!$C$444/'Série - IPCA'!$C$424 -> 0 | N95: =H95*'Série - IPCA'!$C$444/'Série - IPCA'!$C$437 -> 357.8368093 | O95: 4775.167011 | P95: Despesas Gerais e Administratias | Q95: N | R95: NÃO | S95: NÃO | T95: ENCARGOS DE GESTÃO | U95: FUNCIONÁRIOS | V95: PESSOAL | W95: 2200 | X95: DIRETORIA COLEGIADA - PRESIDÊNCIA | Y95: Despesas Gerais e Administratias3687,172
D96: -100.27 | E96: 12951.45 | F96: 13543.82 | G96: 0 | H96: 0 | I96: 5279 | J96: =D96*'Série - IPCA'!$C$444/'Série - IPCA'!$C$385 -> -130.5131678 | K96: =E96*'Série - IPCA'!$C$444/'Série - IPCA'!$C$398 -> 16129.20179 | L96: =F96*'Série - IPCA'!$C$444/'Série - IPCA'!$C$411 -> 15325.06302 | M96: =G96*'Série - IPCA'!$C$444/'Série - IPCA'!$C$424 -> 0 | N96: =H96*'Série - IPCA'!$C$444/'Série - IPCA'!$C$437 -> 0 | O96: 6264.750329 | P96: Despesas Gerais e Administratias | Q96: N | R96: NÃO | S96: NÃO | T96: ENCARGOS DE GESTÃO | U96: FUNCIONÁRIOS | V96: PESSOAL | W96: 2300 | X96: DIRETORIA COLEGIADA - DAF | Y96: Despesas Gerais e Administratias5279
D97: 0 | E97: 1522.82 | F97: 827.6 | G97: 483.16 | H97: 928.08 | I97: 752.332 | J97: =D97*'Série - IPCA'!$C$444/'Série - IPCA'!$C$385 -> 0 | K97: =E97*'Série - IPCA'!$C$444/'Série - IPCA'!$C$398 -> 1896.457236 | L97: =F97*'Série - IPCA'!$C$444/'Série - IPCA'!$C$411 -> 936.4434964 | M97: =G97*'Série - IPCA'!$C$444/'Série - IPCA'!$C$424 -> 516.8060589 | N97: =H97*'Série - IPCA'!$C$444/'Série - IPCA'!$C$437 -> 948.8605315 | O97: 859.7134646 | P97: Despesas Gerais e Administratias | Q97: N | R97: NÃO | S97: NÃO | T97: ENCARGOS DE GESTÃO | U97: FUNCIONÁRIOS | V97: PESSOAL | W97: 2310 | X97: ASSESSORIA DAF | Y97: Despesas Gerais e Administratias752,332
D98: 9185.28 | E98: 101.38 | F98: 0 | G98: 0 | H98: 0 | I98: 1857.332 | J98: =D98*'Série - IPCA'!$C$444/'Série - IPCA'!$C$385 -> 11955.71946 | K98: =E98*'Série - IPCA'!$C$444/'Série - IPCA'!$C$398 -> 126.2544717 | L98: =F98*'Série - IPCA'!$C$444/'Série - IPCA'!$C$411 -> 0 | M98: =G98*'Série - IPCA'!$C$444/'Série - IPCA'!$C$424 -> 0 | N98: =H98*'Série - IPCA'!$C$444/'Série - IPCA'!$C$437 -> 0 | O98: 2416.394786 | P98: Despesas Gerais e Administratias | Q98: N | R98: NÃO | S98: NÃO | T98: ENCARGOS DE GESTÃO | U98: FUNCIONÁRIOS | V98: PESSOAL | W98: 2400 | X98: DIRETORIA COLEGIADA - DTC | Y98: Despesas Gerais e Administratias1857,332
D99: 16886.04 | E99: 52759.89 | F99: 56098.14 | G99: 63422.4 | H99: 81619.32 | I99: 54157.158 | J99: =D99*'Série - IPCA'!$C$444/'Série - IPCA'!$C$385 -> 21979.16199 | K99: =E99*'Série - IPCA'!$C$444/'Série - IPCA'!$C$398 -> 65704.99152 | L99: =F99*'Série - IPCA'!$C$444/'Série - IPCA'!$C$411 -> 63476.00092 | M99: =G99*'Série - IPCA'!$C$444/'Série - IPCA'!$C$424 -> 67838.97796 | N99: =H99*'Série - IPCA'!$C$444/'Série - IPCA'!$C$437 -> 83446.84871 | O99: 60489.19622 | P99: Despesas Gerais e Administratias | Q99: N | R99: NÃO | S99: NÃO | T99: ENCARGOS DE GESTÃO | U99: FUNCIONÁRIOS | V99: PESSOAL | W99: 2410 | X99: ASSESSORIA DE SEGURANÇA DO TRABALHO | Y99: Despesas Gerais e Administratias54157,158
D100: 44723.85 | E100: 25738.2 | F100: 0 | G100: 0 | H100: 0 | I100: 14092.41 | J100: =D100*'Série - IPCA'!$C$444/'Série - IPCA'!$C$385 -> 58213.3374 | K100: =E100*'Série - IPCA'!$C$444/'Série - IPCA'!$C$398 -> 32053.293 | L100: =F100*'Série - IPCA'!$C$444/'Série - IPCA'!$C$411 -> 0 | M100: =G100*'Série - IPCA'!$C$444/'Série - IPCA'!$C$424 -> 0 | N100: =H100*'Série - IPCA'!$C$444/'Série - IPCA'!$C$437 -> 0 | O100: 18053.32608 | P100: Despesas Gerais e Administratias | Q100: N | R100: NÃO | S100: NÃO | T100: ENCARGOS DE GESTÃO | U100: FUNCIONÁRIOS | V100: PESSOAL | W100: 3100 | X100: SMS | Y100: Despesas Gerais e Administratias14092,41
D101: 48299.61 | E101: 68778.93 | F101: 87196.68 | G101: 85542.71 | H101: 103982.48 | I101: 78760.082 | J101: =D101*'Série - IPCA'!$C$444/'Série - IPCA'!$C$385 -> 62867.60852 | K101: =E101*'Série - IPCA'!$C$444/'Série - IPCA'!$C$398 -> 85654.44341 | L101: =F101*'Série - IPCA'!$C$444/'Série - IPCA'!$C$411 -> 98664.52863 | M101: =G101*'Série - IPCA'!$C$444/'Série - IPCA'!$C$424 -> 91499.69125 | N101: =H101*'Série - IPCA'!$C$444/'Série - IPCA'!$C$437 -> 106310.7396 | O101: 88999.40229 | P101: Despesas Gerais e Administratias | Q101: N | R101: NÃO | S101: NÃO | T101: ENCARGOS DE GESTÃO | U101: FUNCIONÁRIOS | V101: PESSOAL | W101: 3200 | X101: GERÊNCIA DE PLANEJAMENTO E MEIO AMBIENTE | Y101: Despesas Gerais e Administratias78760,082
D102: 44280.58 | E102: 53379.14 | F102: 44911.92 | G102: 43104.74 | H102: 51386.54 | I102: 47412.584 | J102: =D102*'Série - IPCA'!$C$444/'Série - IPCA'!$C$385 -> 57636.36949 | K102: =E102*'Série - IPCA'!$C$444/'Série - IPCA'!$C$398 -> 66476.17993 | L102: =F102*'Série - IPCA'!$C$444/'Série - IPCA'!$C$411 -> 50818.60246 | M102: =G102*'Série - IPCA'!$C$444/'Série - IPCA'!$C$424 -> 46106.44673 | N102: =H102*'Série - IPCA'!$C$444/'Série - IPCA'!$C$437 -> 52537.13005 | O102: 54714.94573 | P102: Despesas Gerais e Administratias | Q102: N | R102: NÃO | S102: NÃO | T102: ENCARGOS DE GESTÃO | U102: FUNCIONÁRIOS | V102: PESSOAL | W102: 3300 | X102: GERÊNCIA JURÍDICA | Y102: Despesas Gerais e Administratias47412,584
D103: 12426.91 | E103: 46270.66 | F103: 43123.27 | G103: 41365.9 | H103: 39277.11 | I103: 36492.77 | J103: =D103*'Série - IPCA'!$C$444/'Série - IPCA'!$C$385 -> 16175.08119 | K103: =E103*'Série - IPCA'!$C$444/'Série - IPCA'!$C$398 -> 57623.57205 | L103: =F103*'Série - IPCA'!$C$444/'Série - IPCA'!$C$411 -> 48794.71452 | M103: =G103*'Série - IPCA'!$C$444/'Série - IPCA'!$C$424 -> 44246.51824 | N103: =H103*'Série - IPCA'!$C$444/'Série - IPCA'!$C$437 -> 40156.55921 | O103: 41399.28904 | P103: Despesas Gerais e Administratias | Q103: N | R103: NÃO | S103: NÃO | T103: ENCARGOS DE GESTÃO | U103: FUNCIONÁRIOS | V103: PESSOAL | W103: 3500 | X103: ASSESSORIA DE COMUNICAÇÃO INSTITUCIONAL | Y103: Despesas Gerais e Administratias36492,77
D104: 32031.33 | E104: 62079.56 | F104: 43154.35 | G104: 56769.32 | H104: 63406.06 | I104: 51488.124 | J104: =D104*'Série - IPCA'!$C$444/'Série - IPCA'!$C$385 -> 41692.53364 | K104: =E104*'Série - IPCA'!$C$444/'Série - IPCA'!$C$398 -> 77311.32425 | L104: =F104*'Série - IPCA'!$C$444/'Série - IPCA'!$C$411 -> 48829.88207 | M104: =G104*'Série - IPCA'!$C$444/'Série - IPCA'!$C$424 -> 60722.59404 | N104: =H104*'Série - IPCA'!$C$444/'Série - IPCA'!$C$437 -> 64825.77772 | O104: 58676.42234 | P104: Despesas Gerais e Administratias | Q104: N | R104: NÃO | S104: NÃO | T104: ENCARGOS DE GESTÃO | U104: FUNCIONÁRIOS | V104: PESSOAL | W104: 3600 | X104: GERÊNCIA DE GOVERNANÇA, RISCO E COMPLIANCE | Y104: Despesas Gerais e Administratias51488,124
D105: 0 | E105: 820.97 | F105: 9851.64 | G105: 10728.36 | H105: 12294.83 | I105: 6739.16 | J105: =D105*'Série - IPCA'!$C$444/'Série - IPCA'!$C$385 -> 0 | K105: =E105*'Série - IPCA'!$C$444/'Série - IPCA'!$C$398 -> 1022.402186 | L105: =F105*'Série - IPCA'!$C$444/'Série - IPCA'!$C$411 -> 11147.29846 | M105: =G105*'Série - IPCA'!$C$444/'Série - IPCA'!$C$424 -> 11475.45627 | N105: =H105*'Série - IPCA'!$C$444/'Série - IPCA'!$C$437 -> 12570.12211 | O105: 7243.055805 | P105: Despesas Gerais e Administratias | Q105: N | R105: NÃO | S105: NÃO | T105: ENCARGOS DE GESTÃO | U105: FUNCIONÁRIOS | V105: PESSOAL | W105: 3700 | X105: GERÊNCIA DE REGULAÇÃO | Y105: Despesas Gerais e Administratias6739,16
D106: 88931.2 | E106: 160993 | F106: 325653.38 | G106: 67392.56 | H106: 155947.4 | I106: 159783.508 | J106: =D106*'Série - IPCA'!$C$444/'Série - IPCA'!$C$385 -> 115754.3895 | K106: =E106*'Série - IPCA'!$C$444/'Série - IPCA'!$C$398 -> 200494.0438 | L106: =F106*'Série - IPCA'!$C$444/'Série - IPCA'!$C$411 -> 368482.3463 | M106: =G106*'Série - IPCA'!$C$444/'Série - IPCA'!$C$424 -> 72085.61002 | N106: =H106*'Série - IPCA'!$C$444/'Série - IPCA'!$C$437 -> 159439.2001 | O106: 183251.1179 | P106: Despesas Gerais e Administratias | Q106: N | R106: NÃO | S106: NÃO | T106: ENCARGOS DE GESTÃO | U106: FUNCIONÁRIOS | V106: PESSOAL | W106: 4100 | X106: GERÊNCIA DE SERVIÇOS CORPORATIVOS | Y106: Despesas Gerais e Administratias159783,508
D107: 82070.9 | E107: 98209.95 | F107: 82854.98 | G107: 87867.52 | H107: 105099.44 | I107: 91220.558 | J107: =D107*'Série - IPCA'!$C$444/'Série - IPCA'!$C$385 -> 106824.9042 | K107: =E107*'Série - IPCA'!$C$444/'Série - IPCA'!$C$398 -> 122306.6222 | L107: =F107*'Série - IPCA'!$C$444/'Série - IPCA'!$C$411 -> 93751.82113 | M107: =G107*'Série - IPCA'!$C$444/'Série - IPCA'!$C$424 -> 93986.39523 | N107: =H107*'Série - IPCA'!$C$444/'Série - IPCA'!$C$437 -> 107452.7094 | O107: 104864.4904 | P107: Despesas Gerais e Administratias | Q107: N | R107: NÃO | S107: NÃO | T107: ENCARGOS DE GESTÃO | U107: FUNCIONÁRIOS | V107: PESSOAL | W107: 4200 | X107: GERÊNCIA FINANCEIRA | Y107: Despesas Gerais e Administratias91220,558
D108: 87597.41 | E108: 110015.4 | F108: 98017.89 | G108: 82418.77 | H108: 87174.1 | I108: 93044.714 | J108: =D108*'Série - IPCA'!$C$444/'Série - IPCA'!$C$385 -> 114018.3053 | K108: =E108*'Série - IPCA'!$C$444/'Série - IPCA'!$C$398 -> 137008.6428 | L108: =F108*'Série - IPCA'!$C$444/'Série - IPCA'!$C$411 -> 110908.9121 | M108: =G108*'Série - IPCA'!$C$444/'Série - IPCA'!$C$424 -> 88158.20785 | N108: =H108*'Série - IPCA'!$C$444/'Série - IPCA'!$C$437 -> 89126.00515 | O108: 107844.0146 | P108: Despesas Gerais e Administratias | Q108: N | R108: NÃO | S108: NÃO | T108: ENCARGOS DE GESTÃO | U108: FUNCIONÁRIOS | V108: PESSOAL | W108: 4300 | X108: GERÊNCIA DE TECNOLOGIA E SISTEMAS DE INFORMAÇÃO | Y108: Despesas Gerais e Administratias93044,714
D109: 58456.08 | E109: 70440.66 | F109: 71666.85 | G109: 79970.46 | H109: 92956.99 | I109: 74698.208 | J109: =D109*'Série - IPCA'!$C$444/'Série - IPCA'!$C$385 -> 76087.44569 | K109: =E109*'Série - IPCA'!$C$444/'Série - IPCA'!$C$398 -> 87723.89343 | L109: =F109*'Série - IPCA'!$C$444/'Série - IPCA'!$C$411 -> 81092.26147 | M109: =G109*'Série - IPCA'!$C$444/'Série - IPCA'!$C$424 -> 85539.40364 | N109: =H109*'Série - IPCA'!$C$444/'Série - IPCA'!$C$437 -> 95038.37917 | O109: 85096.27668 | P109: Despesas Gerais e Administratias | Q109: N | R109: NÃO | S109: NÃO | T109: ENCARGOS DE GESTÃO | U109: FUNCIONÁRIOS | V109: PESSOAL | W109: 4500 | X109: GERÊNCIA CONTÁBIL | Y109: Despesas Gerais e Administratias74698,208
D110: 51661.61 | E110: 0 | F110: 0 | G110: 0 | H110: 9636.06 | I110: 12259.534 | J110: =D110*'Série - IPCA'!$C$444/'Série - IPCA'!$C$385 -> 67243.64592 | K110: =E110*'Série - IPCA'!$C$444/'Série - IPCA'!$C$398 -> 0 | L110: =F110*'Série - IPCA'!$C$444/'Série - IPCA'!$C$411 -> 0 | M110: =G110*'Série - IPCA'!$C$444/'Série - IPCA'!$C$424 -> 0 | N110: =H110*'Série - IPCA'!$C$444/'Série - IPCA'!$C$437 -> 9851.8199 | O110: 15419.09316 | P110: Despesas Gerais e Administratias | Q110: N | R110: NÃO | S110: NÃO | T110: ENCARGOS DE GESTÃO | U110: FUNCIONÁRIOS | V110: PESSOAL | W110: 4600 | X110: GERÊNCIA DE PESSOAS E CULTURA | Y110: Despesas Gerais e Administratias12259,534
D111: 263536.54 | E111: 291931.44 | F111: 140077.92 | G111: 129079.07 | H111: 168788.42 | I111: 198682.678 | J111: =D111*'Série - IPCA'!$C$444/'Série - IPCA'!$C$385 -> 343023.7227 | K111: =E111*'Série - IPCA'!$C$444/'Série - IPCA'!$C$398 -> 363559.3779 | L111: =F111*'Série - IPCA'!$C$444/'Série - IPCA'!$C$411 -> 158500.5524 | M111: =G111*'Série - IPCA'!$C$444/'Série - IPCA'!$C$424 -> 138067.8149 | N111: =H111*'Série - IPCA'!$C$444/'Série - IPCA'!$C$437 -> 172567.7419 | O111: 235143.842 | P111: Custos | Q111: N | R111: NÃO | S111: NÃO | T111: OPEX | U111: FUNCIONÁRIOS | V111: PESSOAL | W111: 5100 | X111: GERÊNCIA DE ENGENHARIA | Y111: Custos198682,678
D112: 415267.13 | E112: 515047 | F112: 486137.1 | G112: 509385.22 | H112: 579861.13 | I112: 501139.516 | J112: =D112*'Série - IPCA'!$C$444/'Série - IPCA'!$C$385 -> 540518.8853 | K112: =E112*'Série - IPCA'!$C$444/'Série - IPCA'!$C$398 -> 641418.2965 | L112: =F112*'Série - IPCA'!$C$444/'Série - IPCA'!$C$411 -> 550072.409 | M112: =G112*'Série - IPCA'!$C$444/'Série - IPCA'!$C$424 -> 544857.5379 | N112: =H112*'Série - IPCA'!$C$444/'Série - IPCA'!$C$437 -> 592844.7332 | O112: 573942.3724 | P112: Custos | Q112: N | R112: NÃO | S112: NÃO | T112: OPEX | U112: FUNCIONÁRIOS | V112: PESSOAL | W112: 5200 | X112: GERÊNCIA DE OPERAÇÕES | Y112: Custos501139,516
D113: 70393.17 | E113: 0 | F113: 0 | G113: 0 | H113: 0 | I113: 14078.634 | J113: =D113*'Série - IPCA'!$C$444/'Série - IPCA'!$C$385 -> 91624.96869 | K113: =E113*'Série - IPCA'!$C$444/'Série - IPCA'!$C$398 -> 0 | L113: =F113*'Série - IPCA'!$C$444/'Série - IPCA'!$C$411 -> 0 | M113: =G113*'Série - IPCA'!$C$444/'Série - IPCA'!$C$424 -> 0 | N113: =H113*'Série - IPCA'!$C$444/'Série - IPCA'!$C$437 -> 0 | O113: 18324.99374 | P113: Despesas com Vendas | Q113: N | R113: NÃO | S113: NÃO | T113: ENCARGOS DE COMERCIALIZAÇÃO | U113: FUNCIONÁRIOS | V113: PESSOAL | W113: 5400 | X113: GERÊNCIA COMERCIAL (inativo) | Y113: Despesas com Vendas14078,634
D114: 40807.8 | E114: 0 | F114: 0 | G114: 0 | H114: 0 | I114: 8161.56 | J114: =D114*'Série - IPCA'!$C$444/'Série - IPCA'!$C$385 -> 53116.13893 | K114: =E114*'Série - IPCA'!$C$444/'Série - IPCA'!$C$398 -> 0 | L114: =F114*'Série - IPCA'!$C$444/'Série - IPCA'!$C$411 -> 0 | M114: =G114*'Série - IPCA'!$C$444/'Série - IPCA'!$C$424 -> 0 | N114: =H114*'Série - IPCA'!$C$444/'Série - IPCA'!$C$437 -> 0 | O114: 10623.22779 | P114: Despesas com Vendas | Q114: N | R114: NÃO | S114: NÃO | T114: ENCARGOS DE COMERCIALIZAÇÃO | U114: FUNCIONÁRIOS | V114: PESSOAL | W114: 5500 | X114: GERÊNCIA COMERCIAL (inativo) | Y114: Despesas com Vendas8161,56
D115: 27467.15 | E115: 0 | F115: 0 | G115: 0 | H115: 0 | I115: 5493.43 | J115: =D115*'Série - IPCA'!$C$444/'Série - IPCA'!$C$385 -> 35751.71794 | K115: =E115*'Série - IPCA'!$C$444/'Série - IPCA'!$C$398 -> 0 | L115: =F115*'Série - IPCA'!$C$444/'Série - IPCA'!$C$411 -> 0 | M115: =G115*'Série - IPCA'!$C$444/'Série - IPCA'!$C$424 -> 0 | N115: =H115*'Série - IPCA'!$C$444/'Série - IPCA'!$C$437 -> 0 | O115: 7150.343588 | P115: Despesas Gerais e Administratias | Q115: N | R115: NÃO | S115: NÃO | T115: ENCARGOS DE GESTÃO | U115: FUNCIONÁRIOS | V115: PESSOAL | W115: 2100 | X115: SECRETARIA | Y115: Despesas Gerais e Administratias5493,43
D116: 43743.13 | E116: 0 | F116: 0 | G116: 0 | H116: 0 | I116: 8748.626 | J116: =D116*'Série - IPCA'!$C$444/'Série - IPCA'!$C$385 -> 56936.81527 | K116: =E116*'Série - IPCA'!$C$444/'Série - IPCA'!$C$398 -> 0 | L116: =F116*'Série - IPCA'!$C$444/'Série - IPCA'!$C$411 -> 0 | M116: =G116*'Série - IPCA'!$C$444/'Série - IPCA'!$C$424 -> 0 | N116: =H116*'Série - IPCA'!$C$444/'Série - IPCA'!$C$437 -> 0 | O116: 11387.36305 | P116: Despesas Gerais e Administratias | Q116: N | R116: NÃO | S116: NÃO | T116: ENCARGOS DE GESTÃO | U116: FUNCIONÁRIOS | V116: PESSOAL | W116: 3400 | X116: MARKETING | Y116: Despesas Gerais e Administratias8748,626
D117: 67412.74 | E117: 0 | F117: 0 | G117: 0 | H117: 0 | I117: 13482.548 | J117: =D117*'Série - IPCA'!$C$444/'Série - IPCA'!$C$385 -> 87745.5894 | K117: =E117*'Série - IPCA'!$C$444/'Série - IPCA'!$C$398 -> 0 | L117: =F117*'Série - IPCA'!$C$444/'Série - IPCA'!$C$411 -> 0 | M117: =G117*'Série - IPCA'!$C$444/'Série - IPCA'!$C$424 -> 0 | N117: =H117*'Série - IPCA'!$C$444/'Série - IPCA'!$C$437 -> 0 | O117: 17549.11788 | P117: Despesas com Vendas | Q117: N | R117: SIM | S117: NÃO | T117: ENCARGOS DE COMERCIALIZAÇÃO | U117: FIXO | V117: DESPESAS_INSTITUCIONAIS | W117: 5400 | X117: GERÊNCIA COMERCIAL (inativo) | Y117: Despesas com Vendas13482,548
D118: 33738.7 | E118: 0 | F118: 0 | G118: 0 | H118: 0 | I118: 6747.74 | J118: =D118*'Série - IPCA'!$C$444/'Série - IPCA'!$C$385 -> 43914.87599 | K118: =E118*'Série - IPCA'!$C$444/'Série - IPCA'!$C$398 -> 0 | L118: =F118*'Série - IPCA'!$C$444/'Série - IPCA'!$C$411 -> 0 | M118: =G118*'Série - IPCA'!$C$444/'Série - IPCA'!$C$424 -> 0 | N118: =H118*'Série - IPCA'!$C$444/'Série - IPCA'!$C$437 -> 0 | O118: 8782.975198 | P118: Despesas com Vendas | Q118: N | R118: SIM | S118: NÃO | T118: ENCARGOS DE COMERCIALIZAÇÃO | U118: FIXO | V118: DESPESAS_INSTITUCIONAIS | W118: 5500 | X118: GERÊNCIA COMERCIAL (inativo) | Y118: Despesas com Vendas6747,74
D119: 11827.97 | E119: 0 | F119: 0 | G119: 0 | H119: 0 | I119: 2365.594 | J119: =D119*'Série - IPCA'!$C$444/'Série - IPCA'!$C$385 -> 15395.49051 | K119: =E119*'Série - IPCA'!$C$444/'Série - IPCA'!$C$398 -> 0 | L119: =F119*'Série - IPCA'!$C$444/'Série - IPCA'!$C$411 -> 0 | M119: =G119*'Série - IPCA'!$C$444/'Série - IPCA'!$C$424 -> 0 | N119: =H119*'Série - IPCA'!$C$444/'Série - IPCA'!$C$437 -> 0 | O119: 3079.098103 | P119: Despesas Gerais e Administratias | Q119: N | R119: SIM | S119: NÃO | T119: ENCARGOS DE GESTÃO | U119: FIXO | V119: DESPESAS_INSTITUCIONAIS | W119: 2100 | X119: SECRETARIA | Y119: Despesas Gerais e Administratias2365,594
D120: 26952.18 | E120: 0 | F120: 0 | G120: 0 | H120: 0 | I120: 5390.436 | J120: =D120*'Série - IPCA'!$C$444/'Série - IPCA'!$C$385 -> 35081.42407 | K120: =E120*'Série - IPCA'!$C$444/'Série - IPCA'!$C$398 -> 0 | L120: =F120*'Série - IPCA'!$C$444/'Série - IPCA'!$C$411 -> 0 | M120: =G120*'Série - IPCA'!$C$444/'Série - IPCA'!$C$424 -> 0 | N120: =H120*'Série - IPCA'!$C$444/'Série - IPCA'!$C$437 -> 0 | O120: 7016.284814 | P120: Despesas Gerais e Administratias | Q120: N | R120: SIM | S120: NÃO | T120: ENCARGOS DE GESTÃO | U120: FIXO | V120: DESPESAS_INSTITUCIONAIS | W120: 2200 | X120: DIRETORIA COLEGIADA - PRESIDÊNCIA | Y120: Despesas Gerais e Administratias5390,436
D121: 9221.88 | E121: 0 | F121: 0 | G121: 0 | H121: 0 | I121: 1844.376 | J121: =D121*'Série - IPCA'!$C$444/'Série - IPCA'!$C$385 -> 12003.35865 | K121: =E121*'Série - IPCA'!$C$444/'Série - IPCA'!$C$398 -> 0 | L121: =F121*'Série - IPCA'!$C$444/'Série - IPCA'!$C$411 -> 0 | M121: =G121*'Série - IPCA'!$C$444/'Série - IPCA'!$C$424 -> 0 | N121: =H121*'Série - IPCA'!$C$444/'Série - IPCA'!$C$437 -> 0 | O121: 2400.671731 | P121: Despesas Gerais e Administratias | Q121: N | R121: SIM | S121: NÃO | T121: ENCARGOS DE GESTÃO | U121: FIXO | V121: DESPESAS_INSTITUCIONAIS | W121: 2300 | X121: DIRETORIA COLEGIADA - DAF | Y121: Despesas Gerais e Administratias1844,376
D122: 6721.88 | E122: 0 | F122: 0 | G122: 0 | H122: 0 | I122: 1344.376 | J122: =D122*'Série - IPCA'!$C$444/'Série - IPCA'!$C$385 -> 8749.315374 | K122: =E122*'Série - IPCA'!$C$444/'Série - IPCA'!$C$398 -> 0 | L122: =F122*'Série - IPCA'!$C$444/'Série - IPCA'!$C$411 -> 0 | M122: =G122*'Série - IPCA'!$C$444/'Série - IPCA'!$C$424 -> 0 | N122: =H122*'Série - IPCA'!$C$444/'Série - IPCA'!$C$437 -> 0 | O122: 1749.863075 | P122: Despesas Gerais e Administratias | Q122: N | R122: SIM | S122: NÃO | T122: ENCARGOS DE GESTÃO | U122: FIXO | V122: DESPESAS_INSTITUCIONAIS | W122: 2400 | X122: DIRETORIA COLEGIADA - DTC | Y122: Despesas Gerais e Administratias1344,376
D123: 28632.65 | E123: 0 | F123: 0 | G123: 0 | H123: 0 | I123: 5726.53 | J123: =D123*'Série - IPCA'!$C$444/'Série - IPCA'!$C$385 -> 37268.75292 | K123: =E123*'Série - IPCA'!$C$444/'Série - IPCA'!$C$398 -> 0 | L123: =F123*'Série - IPCA'!$C$444/'Série - IPCA'!$C$411 -> 0 | M123: =G123*'Série - IPCA'!$C$444/'Série - IPCA'!$C$424 -> 0 | N123: =H123*'Série - IPCA'!$C$444/'Série - IPCA'!$C$437 -> 0 | O123: 7453.750583 | P123: Despesas Gerais e Administratias | Q123: N | R123: SIM | S123: NÃO | T123: ENCARGOS DE GESTÃO | U123: FIXO | V123: DESPESAS_INSTITUCIONAIS | W123: 3100 | X123: SMS | Y123: Despesas Gerais e Administratias5726,53
D124: 16869.34 | E124: 0 | F124: 0 | G124: 0 | H124: 0 | I124: 3373.868 | J124: =D124*'Série - IPCA'!$C$444/'Série - IPCA'!$C$385 -> 21957.42498 | K124: =E124*'Série - IPCA'!$C$444/'Série - IPCA'!$C$398 -> 0 | L124: =F124*'Série - IPCA'!$C$444/'Série - IPCA'!$C$411 -> 0 | M124: =G124*'Série - IPCA'!$C$444/'Série - IPCA'!$C$424 -> 0 | N124: =H124*'Série - IPCA'!$C$444/'Série - IPCA'!$C$437 -> 0 | O124: 4391.484996 | P124: Despesas Gerais e Administratias | Q124: N | R124: SIM | S124: NÃO | T124: ENCARGOS DE GESTÃO | U124: FIXO | V124: DESPESAS_INSTITUCIONAIS | W124: 3200 | X124: GERÊNCIA DE PLANEJAMENTO E MEIO AMBIENTE | Y124: Despesas Gerais e Administratias3373,868
D125: 47471.4 | E125: 21113.67 | F125: 2691.94 | G125: 2691.94 | H125: 3216.69 | I125: 15437.128 | J125: =D125*'Série - IPCA'!$C$444/'Série - IPCA'!$C$385 -> 61789.59604 | K125: =E125*'Série - IPCA'!$C$444/'Série - IPCA'!$C$398 -> 26294.09402 | L125: =F125*'Série - IPCA'!$C$444/'Série - IPCA'!$C$411 -> 3045.975961 | M125: =G125*'Série - IPCA'!$C$444/'Série - IPCA'!$C$424 -> 2879.399996 | N125: =H125*'Série - IPCA'!$C$444/'Série - IPCA'!$C$437 -> 3288.714532 | O125: 19459.55611 | P125: Custos | Q125: S | T125: OPEX | V125: SERVIÇOS | W125: 5100 | X125: GERÊNCIA DE ENGENHARIA | Y125: Custos15437,128
D126: 27.8 | E126: 0 | F126: 0 | G126: 0 | H126: 0 | I126: 5.56 | J126: =D126*'Série - IPCA'!$C$444/'Série - IPCA'!$C$385 -> 36.18496126 | K126: =E126*'Série - IPCA'!$C$444/'Série - IPCA'!$C$398 -> 0 | L126: =F126*'Série - IPCA'!$C$444/'Série - IPCA'!$C$411 -> 0 | M126: =G126*'Série - IPCA'!$C$444/'Série - IPCA'!$C$424 -> 0 | N126: =H126*'Série - IPCA'!$C$444/'Série - IPCA'!$C$437 -> 0 | O126: 7.236992252 | P126: Custos | Q126: S | R126: NÃO | T126: OPEX | V126: DESPESAS GERAIS | W126: 5100 | X126: GERÊNCIA DE ENGENHARIA | Y126: Custos5,56
D127: 25536845.82 | E127: 28098186.46 | F127: 28142776.17 | G127: 30437686.47 | H127: 27452997.9 | I127: 27933698.56 | J127: =D127*'Série - IPCA'!$C$444/'Série - IPCA'!$C$385 -> 33239200.6 | K127: =E127*'Série - IPCA'!$C$444/'Série - IPCA'!$C$398 -> 34992322.82 | L127: =F127*'Série - IPCA'!$C$444/'Série - IPCA'!$C$411 -> 31844030.59 | M127: =G127*'Série - IPCA'!$C$444/'Série - IPCA'!$C$424 -> 32557291.14 | N127: =H127*'Série - IPCA'!$C$444/'Série - IPCA'!$C$437 -> 28067694.79 | O127: 32140107.99 | P127: Custos | Q127: S | T127: OPEX | V127: SERVIÇOS | W127: 5200 | X127: GERÊNCIA DE OPERAÇÕES | Y127: Custos27933698,564
D128: 2353554.54 | E128: 0 | F128: 0 | G128: 0 | H128: 0 | I128: 470710.908 | J128: =D128*'Série - IPCA'!$C$444/'Série - IPCA'!$C$385 -> 3063427.333 | K128: =E128*'Série - IPCA'!$C$444/'Série - IPCA'!$C$398 -> 0 | L128: =F128*'Série - IPCA'!$C$444/'Série - IPCA'!$C$411 -> 0 | M128: =G128*'Série - IPCA'!$C$444/'Série - IPCA'!$C$424 -> 0 | N128: =H128*'Série - IPCA'!$C$444/'Série - IPCA'!$C$437 -> 0 | O128: 612685.4666 | P128: Custos | Q128: S | R128: NÃO | T128: OPEX | V128: DESPESAS GERAIS | W128: 5200 | X128: GERÊNCIA DE OPERAÇÕES | Y128: Custos470710,908
D129: 268.36 | E129: 0 | F129: 0 | G129: 0 | H129: 0 | I129: 53.672 | J129: =D129*'Série - IPCA'!$C$444/'Série - IPCA'!$C$385 -> 349.3020217 | K129: =E129*'Série - IPCA'!$C$444/'Série - IPCA'!$C$398 -> 0 | L129: =F129*'Série - IPCA'!$C$444/'Série - IPCA'!$C$411 -> 0 | M129: =G129*'Série - IPCA'!$C$444/'Série - IPCA'!$C$424 -> 0 | N129: =H129*'Série - IPCA'!$C$444/'Série - IPCA'!$C$437 -> 0 | O129: 69.86040435 | P129: Custos | Q129: S | R129: NÃO | T129: OPEX | V129: DESPESAS GERAIS | W129: 5200 | X129: GERÊNCIA DE OPERAÇÕES | Y129: Custos53,672
D130: 20230.31 | E130: 0 | F130: 0 | G130: 0 | H130: 0 | I130: 4046.062 | J130: =D130*'Série - IPCA'!$C$444/'Série - IPCA'!$C$385 -> 26332.12171 | K130: =E130*'Série - IPCA'!$C$444/'Série - IPCA'!$C$398 -> 0 | L130: =F130*'Série - IPCA'!$C$444/'Série - IPCA'!$C$411 -> 0 | M130: =G130*'Série - IPCA'!$C$444/'Série - IPCA'!$C$424 -> 0 | N130: =H130*'Série - IPCA'!$C$444/'Série - IPCA'!$C$437 -> 0 | O130: 5266.424343 | P130: Despesas Gerais e Administratias | Q130: N | R130: SIM | S130: NÃO | T130: ENCARGOS DE GESTÃO | U130: FIXO | V130: DESPESAS_INSTITUCIONAIS | W130: 3300 | X130: GERÊNCIA JURÍDICA | Y130: Despesas Gerais e Administratias4046,062
D131: 23591.25 | E131: 0 | F131: 0 | G131: 0 | H131: 0 | I131: 4718.25 | J131: =D131*'Série - IPCA'!$C$444/'Série - IPCA'!$C$385 -> 30706.7794 | K131: =E131*'Série - IPCA'!$C$444/'Série - IPCA'!$C$398 -> 0 | L131: =F131*'Série - IPCA'!$C$444/'Série - IPCA'!$C$411 -> 0 | M131: =G131*'Série - IPCA'!$C$444/'Série - IPCA'!$C$424 -> 0 | N131: =H131*'Série - IPCA'!$C$444/'Série - IPCA'!$C$437 -> 0 | O131: 6141.35588 | P131: Despesas Gerais e Administratias | Q131: N | R131: SIM | S131: NÃO | T131: ENCARGOS DE GESTÃO | U131: FIXO | V131: DESPESAS_INSTITUCIONAIS | W131: 3400 | X131: MARKETING | Y131: Despesas Gerais e Administratias4718,25
D132: 10147.45 | E132: 0 | F132: 0 | G132: 0 | H132: 0 | I132: 2029.49 | J132: =D132*'Série - IPCA'!$C$444/'Série - IPCA'!$C$385 -> 13208.09659 | K132: =E132*'Série - IPCA'!$C$444/'Série - IPCA'!$C$398 -> 0 | L132: =F132*'Série - IPCA'!$C$444/'Série - IPCA'!$C$411 -> 0 | M132: =G132*'Série - IPCA'!$C$444/'Série - IPCA'!$C$424 -> 0 | N132: =H132*'Série - IPCA'!$C$444/'Série - IPCA'!$C$437 -> 0 | O132: 2641.619318 | P132: Despesas Gerais e Administratias | Q132: N | R132: SIM | S132: NÃO | T132: ENCARGOS DE GESTÃO | U132: FIXO | V132: DESPESAS_INSTITUCIONAIS | W132: 3600 | X132: GERÊNCIA DE GOVERNANÇA, RISCO E COMPLIANCE | Y132: Despesas Gerais e Administratias2029,49
D133: 53821.53 | E133: 0 | F133: 0 | G133: 0 | H133: 0 | I133: =AVERAGE(D133:H133) -> 10764.306 | J133: =D133*'Série - IPCA'!$C$444/'Série - IPCA'!$C$385 -> 70055.03518 | K133: =E133*'Série - IPCA'!$C$444/'Série - IPCA'!$C$398 -> 0 | L133: =F133*'Série - IPCA'!$C$444/'Série - IPCA'!$C$411 -> 0 | M133: =G133*'Série - IPCA'!$C$444/'Série - IPCA'!$C$424 -> 0 | N133: =H133*'Série - IPCA'!$C$444/'Série - IPCA'!$C$437 -> 0 | O133: =AVERAGE(J133:N133) -> 14011.00704 | P133: Despesas Gerais e Administratias | Q133: N | R133: SIM | S133: NÃO | T133: ENCARGOS DE GESTÃO | U133: FIXO | V133: DESPESAS_INSTITUCIONAIS | W133: 4100 | X133: GERÊNCIA DE SERVIÇOS CORPORATIVOS | Y133: =B133&C133&P133&I133 -> Despesas Gerais e Administratias10764,306
D134: 37099.65 | E134: 0 | F134: 0 | G134: 0 | H134: 0 | I134: 7419.93 | J134: =D134*'Série - IPCA'!$C$444/'Série - IPCA'!$C$385 -> 48289.54669 | K134: =E134*'Série - IPCA'!$C$444/'Série - IPCA'!$C$398 -> 0 | L134: =F134*'Série - IPCA'!$C$444/'Série - IPCA'!$C$411 -> 0 | M134: =G134*'Série - IPCA'!$C$444/'Série - IPCA'!$C$424 -> 0 | N134: =H134*'Série - IPCA'!$C$444/'Série - IPCA'!$C$437 -> 0 | O134: 9657.909339 | P134: Despesas Gerais e Administratias | Q134: N | R134: SIM | S134: NÃO | T134: ENCARGOS DE GESTÃO | U134: FIXO | V134: DESPESAS_INSTITUCIONAIS | W134: 4200 | X134: GERÊNCIA FINANCEIRA | Y134: Despesas Gerais e Administratias7419,93
D135: 41882.55 | E135: 0 | F135: 0 | G135: 0 | H135: 0 | I135: 8376.51 | J135: =D135*'Série - IPCA'!$C$444/'Série - IPCA'!$C$385 -> 54515.05213 | K135: =E135*'Série - IPCA'!$C$444/'Série - IPCA'!$C$398 -> 0 | L135: =F135*'Série - IPCA'!$C$444/'Série - IPCA'!$C$411 -> 0 | M135: =G135*'Série - IPCA'!$C$444/'Série - IPCA'!$C$424 -> 0 | N135: =H135*'Série - IPCA'!$C$444/'Série - IPCA'!$C$437 -> 0 | O135: 10903.01043 | P135: Despesas Gerais e Administratias | Q135: N | R135: SIM | S135: NÃO | T135: ENCARGOS DE GESTÃO | U135: FIXO | V135: DESPESAS_INSTITUCIONAIS | W135: 4300 | X135: GERÊNCIA DE TECNOLOGIA E SISTEMAS DE INFORMAÇÃO | Y135: Despesas Gerais e Administratias8376,51
D136: 26952.17 | E136: 0 | F136: 0 | G136: 0 | H136: 0 | I136: 5390.434 | J136: =D136*'Série - IPCA'!$C$444/'Série - IPCA'!$C$385 -> 35081.41106 | K136: =E136*'Série - IPCA'!$C$444/'Série - IPCA'!$C$398 -> 0 | L136: =F136*'Série - IPCA'!$C$444/'Série - IPCA'!$C$411 -> 0 | M136: =G136*'Série - IPCA'!$C$444/'Série - IPCA'!$C$424 -> 0 | N136: =H136*'Série - IPCA'!$C$444/'Série - IPCA'!$C$437 -> 0 | O136: 7016.282211 | P136: Despesas Gerais e Administratias | Q136: N | R136: SIM | S136: NÃO | T136: ENCARGOS DE GESTÃO | U136: FIXO | V136: DESPESAS_INSTITUCIONAIS | W136: 4500 | X136: GERÊNCIA CONTÁBIL | Y136: Despesas Gerais e Administratias5390,434
D137: 23591.25 | E137: 0 | F137: 0 | G137: 0 | H137: 0 | I137: 4718.25 | J137: =D137*'Série - IPCA'!$C$444/'Série - IPCA'!$C$385 -> 30706.7794 | K137: =E137*'Série - IPCA'!$C$444/'Série - IPCA'!$C$398 -> 0 | L137: =F137*'Série - IPCA'!$C$444/'Série - IPCA'!$C$411 -> 0 | M137: =G137*'Série - IPCA'!$C$444/'Série - IPCA'!$C$424 -> 0 | N137: =H137*'Série - IPCA'!$C$444/'Série - IPCA'!$C$437 -> 0 | O137: 6141.35588 | P137: Despesas Gerais e Administratias | Q137: N | R137: SIM | S137: NÃO | T137: ENCARGOS DE GESTÃO | U137: FIXO | V137: DESPESAS_INSTITUCIONAIS | W137: 4600 | X137: GERÊNCIA DE PESSOAS E CULTURA | Y137: Despesas Gerais e Administratias4718,25
D138: 140248.3 | E138: 0 | F138: 0 | G138: 0 | H138: 0 | I138: 28049.66 | J138: =D138*'Série - IPCA'!$C$444/'Série - IPCA'!$C$385 -> 182549.6152 | K138: =E138*'Série - IPCA'!$C$444/'Série - IPCA'!$C$398 -> 0 | L138: =F138*'Série - IPCA'!$C$444/'Série - IPCA'!$C$411 -> 0 | M138: =G138*'Série - IPCA'!$C$444/'Série - IPCA'!$C$424 -> 0 | N138: =H138*'Série - IPCA'!$C$444/'Série - IPCA'!$C$437 -> 0 | O138: 36509.92304 | P138: Despesas Gerais e Administratias | Q138: N | R138: NÃO | S138: NÃO | T138: ENCARGOS DE GESTÃO | U138: FIXO | V138: DESPESAS_GERAIS | W138: 2100 | X138: SECRETARIA | Y138: Despesas Gerais e Administratias28049,66
D139: 8735.68 | E139: 7097.74 | F139: 19241.87 | G139: 15607.89 | H139: 11749.14 | I139: 12486.464 | J139: =D139*'Série - IPCA'!$C$444/'Série - IPCA'!$C$385 -> 11370.51232 | K139: =E139*'Série - IPCA'!$C$444/'Série - IPCA'!$C$398 -> 8839.232729 | L139: =F139*'Série - IPCA'!$C$444/'Série - IPCA'!$C$411 -> 21772.50365 | M139: =G139*'Série - IPCA'!$C$444/'Série - IPCA'!$C$424 -> 16694.78458 | N139: =H139*'Série - IPCA'!$C$444/'Série - IPCA'!$C$437 -> 12012.21363 | O139: 14137.84938 | P139: Despesas com Vendas | Q139: N | R139: SIM | S139: NÃO | T139: ENCARGOS DE COMERCIALIZAÇÃO | U139: FUNCIONÁRIOS | V139: PESSOAL | W139: 5300 | X139: GERÊNCIA COMERCIAL | Y139: Despesas com Vendas12486,464
D140: 65517.6 | E140: 63333.68 | F140: 44514.07 | G140: 37091.61 | H140: 37141.38 | I140: 49519.668 | J140: =D140*'Série - IPCA'!$C$444/'Série - IPCA'!$C$385 -> 85278.84237 | K140: =E140*'Série - IPCA'!$C$444/'Série - IPCA'!$C$398 -> 78873.15358 | L140: =F140*'Série - IPCA'!$C$444/'Série - IPCA'!$C$411 -> 50368.42841 | M140: =G140*'Série - IPCA'!$C$444/'Série - IPCA'!$C$424 -> 39674.57733 | N140: =H140*'Série - IPCA'!$C$444/'Série - IPCA'!$C$437 -> 37973.00833 | O140: 58433.602 | P140: Custos | Q140: N | R140: SIM | S140: NÃO | T140: OPEX | U140: FUNCIONÁRIOS | V140: PESSOAL | W140: 5100 | X140: GERÊNCIA DE ENGENHARIA | Y140: Custos49519,668
D141: 80259.06 | E141: 70431.42 | F141: 75319.72 | G141: 101440.35 | H141: 86217.48 | I141: 82733.606 | J141: =D141*'Série - IPCA'!$C$444/'Série - IPCA'!$C$385 -> 104466.5819 | K141: =E141*'Série - IPCA'!$C$444/'Série - IPCA'!$C$398 -> 87712.38631 | L141: =F141*'Série - IPCA'!$C$444/'Série - IPCA'!$C$411 -> 85225.54609 | M141: =G141*'Série - IPCA'!$C$444/'Série - IPCA'!$C$424 -> 108504.4033 | N141: =H141*'Série - IPCA'!$C$444/'Série - IPCA'!$C$437 -> 88147.96558 | O141: 94811.37664 | P141: Custos | Q141: N | R141: SIM | S141: NÃO | T141: OPEX | U141: FUNCIONÁRIOS | V141: PESSOAL | W141: 5200 | X141: GERÊNCIA DE OPERAÇÕES | Y141: Custos82733,606
D142: 8735.68 | E142: 0 | F142: 0 | G142: 0 | H142: 0 | I142: 1747.136 | J142: =D142*'Série - IPCA'!$C$444/'Série - IPCA'!$C$385 -> 11370.51232 | K142: =E142*'Série - IPCA'!$C$444/'Série - IPCA'!$C$398 -> 0 | L142: =F142*'Série - IPCA'!$C$444/'Série - IPCA'!$C$411 -> 0 | M142: =G142*'Série - IPCA'!$C$444/'Série - IPCA'!$C$424 -> 0 | N142: =H142*'Série - IPCA'!$C$444/'Série - IPCA'!$C$437 -> 0 | O142: 2274.102463 | P142: Despesas com Vendas | Q142: N | R142: SIM | S142: NÃO | T142: ENCARGOS DE COMERCIALIZAÇÃO | U142: FUNCIONÁRIOS | V142: PESSOAL | W142: 5500 | X142: GERÊNCIA COMERCIAL (inativo) | Y142: Despesas com Vendas1747,136
D143: 0 | E143: 12011.56 | F143: 7687.91 | G143: 6977.61 | H143: 7556.76 | I143: 6846.768 | J143: =D143*'Série - IPCA'!$C$444/'Série - IPCA'!$C$385 -> 0 | K143: =E143*'Série - IPCA'!$C$444/'Série - IPCA'!$C$398 -> 14958.70154 | L143: =F143*'Série - IPCA'!$C$444/'Série - IPCA'!$C$411 -> 8699.001112 | M143: =G143*'Série - IPCA'!$C$444/'Série - IPCA'!$C$424 -> 7463.51338 | N143: =H143*'Série - IPCA'!$C$444/'Série - IPCA'!$C$437 -> 7725.962535 | O143: 7769.435714 | P143: Despesas Gerais e Administratias | Q143: N | R143: SIM | S143: NÃO | T143: ENCARGOS DE GESTÃO | U143: FUNCIONÁRIOS | V143: PESSOAL | W143: 1005 | X143: AUDITORIA INTERNA | Y143: Despesas Gerais e Administratias6846,768
D144: 0 | E144: 0 | F144: 1106.69 | G144: 0 | H144: 0 | I144: 221.338 | J144: =D144*'Série - IPCA'!$C$444/'Série - IPCA'!$C$385 -> 0 | K144: =E144*'Série - IPCA'!$C$444/'Série - IPCA'!$C$398 -> 0 | L144: =F144*'Série - IPCA'!$C$444/'Série - IPCA'!$C$411 -> 1252.238585 | M144: =G144*'Série - IPCA'!$C$444/'Série - IPCA'!$C$424 -> 0 | N144: =H144*'Série - IPCA'!$C$444/'Série - IPCA'!$C$437 -> 0 | O144: 250.447717 | P144: Despesas Gerais e Administratias | Q144: N | R144: SIM | S144: NÃO | T144: ENCARGOS DE GESTÃO | U144: FUNCIONÁRIOS | V144: PESSOAL | W144: 1010 | X144: GOVERNANÇA SOCIETÁRIA | Y144: Despesas Gerais e Administratias221,338
D145: 17471.36 | E145: 0 | F145: 0 | G145: 0 | H145: 0 | I145: 3494.272 | J145: =D145*'Série - IPCA'!$C$444/'Série - IPCA'!$C$385 -> 22741.02463 | K145: =E145*'Série - IPCA'!$C$444/'Série - IPCA'!$C$398 -> 0 | L145: =F145*'Série - IPCA'!$C$444/'Série - IPCA'!$C$411 -> 0 | M145: =G145*'Série - IPCA'!$C$444/'Série - IPCA'!$C$424 -> 0 | N145: =H145*'Série - IPCA'!$C$444/'Série - IPCA'!$C$437 -> 0 | O145: 4548.204926 | P145: Despesas Gerais e Administratias | Q145: N | R145: SIM | S145: NÃO | T145: ENCARGOS DE GESTÃO | U145: FUNCIONÁRIOS | V145: PESSOAL | W145: 2100 | X145: SECRETARIA | Y145: Despesas Gerais e Administratias3494,272
D146: 4367.84 | E146: 9281.66 | F146: 6595.95 | G146: 3305.34 | H146: 0 | I146: 4710.158 | J146: =D146*'Série - IPCA'!$C$444/'Série - IPCA'!$C$385 -> 5685.256158 | K146: =E146*'Série - IPCA'!$C$444/'Série - IPCA'!$C$398 -> 11558.99665 | L146: =F146*'Série - IPCA'!$C$444/'Série - IPCA'!$C$411 -> 7463.429773 | M146: =G146*'Série - IPCA'!$C$444/'Série - IPCA'!$C$424 -> 3535.515645 | N146: =H146*'Série - IPCA'!$C$444/'Série - IPCA'!$C$437 -> 0 | O146: 5648.639644 | P146: Despesas Gerais e Administratias | Q146: N | R146: SIM | S146: NÃO | T146: ENCARGOS DE GESTÃO | U146: FUNCIONÁRIOS | V146: PESSOAL | W146: 2110 | X146: ASSESSORIA DA DIRETORIA EXECUTIVA | Y146: Despesas Gerais e Administratias4710,158
D147: 0 | E147: 0 | F147: 0 | G147: 0 | H147: 6965.1 | I147: 1393.02 | J147: =D147*'Série - IPCA'!$C$444/'Série - IPCA'!$C$385 -> 0 | K147: =E147*'Série - IPCA'!$C$444/'Série - IPCA'!$C$398 -> 0 | L147: =F147*'Série - IPCA'!$C$444/'Série - IPCA'!$C$411 -> 0 | M147: =G147*'Série - IPCA'!$C$444/'Série - IPCA'!$C$424 -> 0 | N147: =H147*'Série - IPCA'!$C$444/'Série - IPCA'!$C$437 -> 7121.054745 | O147: 1424.210949 | P147: Despesas Gerais e Administratias | Q147: N | R147: SIM | S147: NÃO | T147: ENCARGOS DE GESTÃO | U147: FUNCIONÁRIOS | V147: PESSOAL | W147: 2140 | X147: ASSESSORIA DTC | Y147: Despesas Gerais e Administratias1393,02
D148: 0 | E148: 5459.8 | F148: 6045.06 | G148: 0 | H148: 0 | I148: 2300.972 | J148: =D148*'Série - IPCA'!$C$444/'Série - IPCA'!$C$385 -> 0 | K148: =E148*'Série - IPCA'!$C$444/'Série - IPCA'!$C$398 -> 6799.409792 | L148: =F148*'Série - IPCA'!$C$444/'Série - IPCA'!$C$411 -> 6840.088355 | M148: =G148*'Série - IPCA'!$C$444/'Série - IPCA'!$C$424 -> 0 | N148: =H148*'Série - IPCA'!$C$444/'Série - IPCA'!$C$437 -> 0 | O148: 2727.899629 | P148: Despesas Gerais e Administratias | Q148: N | R148: SIM | S148: NÃO | T148: ENCARGOS DE GESTÃO | U148: FUNCIONÁRIOS | V148: PESSOAL | W148: 2300 | X148: DIRETORIA COLEGIADA - DAF | Y148: Despesas Gerais e Administratias2300,972
D149: 8735.68 | E149: 0 | F149: 0 | G149: 0 | H149: 0 | I149: 1747.136 | J149: =D149*'Série - IPCA'!$C$444/'Série - IPCA'!$C$385 -> 11370.51232 | K149: =E149*'Série - IPCA'!$C$444/'Série - IPCA'!$C$398 -> 0 | L149: =F149*'Série - IPCA'!$C$444/'Série - IPCA'!$C$411 -> 0 | M149: =G149*'Série - IPCA'!$C$444/'Série - IPCA'!$C$424 -> 0 | N149: =H149*'Série - IPCA'!$C$444/'Série - IPCA'!$C$437 -> 0 | O149: 2274.102463 | P149: Despesas Gerais e Administratias | Q149: N | R149: SIM | S149: NÃO | T149: ENCARGOS DE GESTÃO | U149: FUNCIONÁRIOS | V149: PESSOAL | W149: 2400 | X149: DIRETORIA COLEGIADA - DTC | Y149: Despesas Gerais e Administratias1747,136
D150: 6551.76 | E150: 12557.54 | F150: 13191.9 | G150: 10405.26 | H150: 6914.34 | I150: 9924.16 | J150: =D150*'Série - IPCA'!$C$444/'Série - IPCA'!$C$385 -> 8527.884237 | K150: =E150*'Série - IPCA'!$C$444/'Série - IPCA'!$C$398 -> 15638.64252 | L150: =F150*'Série - IPCA'!$C$444/'Série - IPCA'!$C$411 -> 14926.85955 | M150: =G150*'Série - IPCA'!$C$444/'Série - IPCA'!$C$424 -> 11129.85639 | N150: =H150*'Série - IPCA'!$C$444/'Série - IPCA'!$C$437 -> 7069.158184 | O150: 11458.48018 | P150: Despesas Gerais e Administratias | Q150: N | R150: SIM | S150: NÃO | T150: ENCARGOS DE GESTÃO | U150: FUNCIONÁRIOS | V150: PESSOAL | W150: 2410 | X150: ASSESSORIA DE SEGURANÇA DO TRABALHO | Y150: Despesas Gerais e Administratias9924,16
D151: 15287.44 | E151: 0 | F151: 0 | G151: 0 | H151: 0 | I151: 3057.488 | J151: =D151*'Série - IPCA'!$C$444/'Série - IPCA'!$C$385 -> 19898.39655 | K151: =E151*'Série - IPCA'!$C$444/'Série - IPCA'!$C$398 -> 0 | L151: =F151*'Série - IPCA'!$C$444/'Série - IPCA'!$C$411 -> 0 | M151: =G151*'Série - IPCA'!$C$444/'Série - IPCA'!$C$424 -> 0 | N151: =H151*'Série - IPCA'!$C$444/'Série - IPCA'!$C$437 -> 0 | O151: 3979.679311 | P151: Despesas Gerais e Administratias | Q151: N | R151: SIM | S151: NÃO | T151: ENCARGOS DE GESTÃO | U151: FUNCIONÁRIOS | V151: PESSOAL | W151: 3100 | X151: SMS | Y151: Despesas Gerais e Administratias3057,488
D152: 26207.04 | E152: 29482.92 | F152: 21425.79 | G152: 29644.65 | H152: 30176.28 | I152: 27387.336 | J152: =D152*'Série - IPCA'!$C$444/'Série - IPCA'!$C$385 -> 34111.53695 | K152: =E152*'Série - IPCA'!$C$444/'Série - IPCA'!$C$398 -> 36716.81288 | L152: =F152*'Série - IPCA'!$C$444/'Série - IPCA'!$C$411 -> 24243.64633 | M152: =G152*'Série - IPCA'!$C$444/'Série - IPCA'!$C$424 -> 31709.02959 | N152: =H152*'Série - IPCA'!$C$444/'Série - IPCA'!$C$437 -> 30851.95358 | O152: 31526.59586 | P152: Despesas Gerais e Administratias | Q152: N | R152: SIM | S152: NÃO | T152: ENCARGOS DE GESTÃO | U152: FUNCIONÁRIOS | V152: PESSOAL | W152: 3200 | X152: GERÊNCIA DE PLANEJAMENTO E MEIO AMBIENTE | Y152: Despesas Gerais e Administratias27387,336
D153: 19655.28 | E153: 20747.24 | F153: 17013.76 | G153: 13955.22 | H153: 8740.08 | I153: 16022.316 | J153: =D153*'Série - IPCA'!$C$444/'Série - IPCA'!$C$385 -> 25583.65271 | K153: =E153*'Série - IPCA'!$C$444/'Série - IPCA'!$C$398 -> 25837.75721 | L153: =F153*'Série - IPCA'!$C$444/'Série - IPCA'!$C$411 -> 19251.35923 | M153: =G153*'Série - IPCA'!$C$444/'Série - IPCA'!$C$424 -> 14927.02676 | N153: =H153*'Série - IPCA'!$C$444/'Série - IPCA'!$C$437 -> 8935.778116 | O153: 18907.11481 | P153: Despesas Gerais e Administratias | Q153: N | R153: SIM | S153: NÃO | T153: ENCARGOS DE GESTÃO | U153: FUNCIONÁRIOS | V153: PESSOAL | W153: 3300 | X153: GERÊNCIA JURÍDICA | Y153: Despesas Gerais e Administratias16022,316
D154: 8735.68 | E154: 0 | F154: 0 | G154: 0 | H154: 0 | I154: 1747.136 | J154: =D154*'Série - IPCA'!$C$444/'Série - IPCA'!$C$385 -> 11370.51232 | K154: =E154*'Série - IPCA'!$C$444/'Série - IPCA'!$C$398 -> 0 | L154: =F154*'Série - IPCA'!$C$444/'Série - IPCA'!$C$411 -> 0 | M154: =G154*'Série - IPCA'!$C$444/'Série - IPCA'!$C$424 -> 0 | N154: =H154*'Série - IPCA'!$C$444/'Série - IPCA'!$C$437 -> 0 | O154: 2274.102463 | P154: Despesas Gerais e Administratias | Q154: N | R154: SIM | S154: NÃO | T154: ENCARGOS DE GESTÃO | U154: FUNCIONÁRIOS | V154: PESSOAL | W154: 3400 | X154: MARKETING | Y154: Despesas Gerais e Administratias1747,136
D155: 2183.92 | E155: 6551.76 | F155: 6595.95 | G155: 0 | H155: 0 | I155: 3066.326 | J155: =D155*'Série - IPCA'!$C$444/'Série - IPCA'!$C$385 -> 2842.628079 | K155: =E155*'Série - IPCA'!$C$444/'Série - IPCA'!$C$398 -> 8159.29175 | L155: =F155*'Série - IPCA'!$C$444/'Série - IPCA'!$C$411 -> 7463.429773 | M155: =G155*'Série - IPCA'!$C$444/'Série - IPCA'!$C$424 -> 0 | N155: =H155*'Série - IPCA'!$C$444/'Série - IPCA'!$C$437 -> 0 | O155: 3693.06992 | P155: Despesas Gerais e Administratias | Q155: N | R155: SIM | S155: NÃO | T155: ENCARGOS DE GESTÃO | U155: FUNCIONÁRIOS | V155: PESSOAL | W155: 3500 | X155: ASSESSORIA DE COMUNICAÇÃO INSTITUCIONAL | Y155: Despesas Gerais e Administratias3066,326
D156: 2183.92 | E156: 6551.76 | F156: 1637.94 | G156: 3672.27 | H156: 7556.76 | I156: 4320.53 | J156: =D156*'Série - IPCA'!$C$444/'Série - IPCA'!$C$385 -> 2842.628079 | K156: =E156*'Série - IPCA'!$C$444/'Série - IPCA'!$C$398 -> 8159.29175 | L156: =F156*'Série - IPCA'!$C$444/'Série - IPCA'!$C$411 -> 1853.357009 | M156: =G156*'Série - IPCA'!$C$444/'Série - IPCA'!$C$424 -> 3927.997736 | N156: =H156*'Série - IPCA'!$C$444/'Série - IPCA'!$C$437 -> 7725.962535 | O156: 4901.847422 | P156: Despesas Gerais e Administratias | Q156: N | R156: SIM | S156: NÃO | T156: ENCARGOS DE GESTÃO | U156: FUNCIONÁRIOS | V156: PESSOAL | W156: 3600 | X156: GERÊNCIA DE GOVERNANÇA, RISCO E COMPLIANCE | Y156: Despesas Gerais e Administratias4320,53
D157: 11465.58 | E157: 25661.06 | F157: 14283.86 | G157: 8630.28 | H157: 7556.76 | I157: 13519.508 | J157: =D157*'Série - IPCA'!$C$444/'Série - IPCA'!$C$385 -> 14923.79742 | K157: =E157*'Série - IPCA'!$C$444/'Série - IPCA'!$C$398 -> 31957.22602 | L157: =F157*'Série - IPCA'!$C$444/'Série - IPCA'!$C$411 -> 16162.43089 | M157: =G157*'Série - IPCA'!$C$444/'Série - IPCA'!$C$424 -> 9231.271203 | N157: =H157*'Série - IPCA'!$C$444/'Série - IPCA'!$C$437 -> 7725.962535 | O157: 16000.13761 | P157: Despesas Gerais e Administratias | Q157: N | R157: SIM | S157: NÃO | T157: ENCARGOS DE GESTÃO | U157: FUNCIONÁRIOS | V157: PESSOAL | W157: 4100 | X157: GERÊNCIA DE SERVIÇOS CORPORATIVOS | Y157: Despesas Gerais e Administratias13519,508
D158: 2729.9 | E158: 6005.78 | F158: 0 | G158: 0 | H158: 642.42 | I158: 1875.62 | J158: =D158*'Série - IPCA'!$C$444/'Série - IPCA'!$C$385 -> 3553.285099 | K158: =E158*'Série - IPCA'!$C$444/'Série - IPCA'!$C$398 -> 7479.350771 | L158: =F158*'Série - IPCA'!$C$444/'Série - IPCA'!$C$411 -> 0 | M158: =G158*'Série - IPCA'!$C$444/'Série - IPCA'!$C$424 -> 0 | N158: =H158*'Série - IPCA'!$C$444/'Série - IPCA'!$C$437 -> 656.8043516 | O158: 2337.888044 | P158: Despesas Gerais e Administratias | Q158: N | R158: SIM | S158: NÃO | T158: ENCARGOS DE GESTÃO | U158: FUNCIONÁRIOS | V158: PESSOAL | W158: 4200 | X158: GERÊNCIA FINANCEIRA | Y158: Despesas Gerais e Administratias1875,62
D159: 21293.22 | E159: 19655.28 | F159: 13732.97 | G159: 6977.61 | H159: 7556.76 | I159: 13843.168 | J159: =D159*'Série - IPCA'!$C$444/'Série - IPCA'!$C$385 -> 27715.62377 | K159: =E159*'Série - IPCA'!$C$444/'Série - IPCA'!$C$398 -> 24477.87525 | L159: =F159*'Série - IPCA'!$C$444/'Série - IPCA'!$C$411 -> 15539.08947 | M159: =G159*'Série - IPCA'!$C$444/'Série - IPCA'!$C$424 -> 7463.51338 | N159: =H159*'Série - IPCA'!$C$444/'Série - IPCA'!$C$437 -> 7725.962535 | O159: 16584.41288 | P159: Despesas Gerais e Administratias | Q159: N | R159: SIM | S159: NÃO | T159: ENCARGOS DE GESTÃO | U159: FUNCIONÁRIOS | V159: PESSOAL | W159: 4300 | X159: GERÊNCIA DE TECNOLOGIA E SISTEMAS DE INFORMAÇÃO | Y159: Despesas Gerais e Administratias13843,168
D160: 1661582.16 | E160: 0 | F160: 0 | G160: 0 | H160: 0 | I160: 332316.432 | J160: =D160*'Série - IPCA'!$C$444/'Série - IPCA'!$C$385 -> 2162744.104 | K160: =E160*'Série - IPCA'!$C$444/'Série - IPCA'!$C$398 -> 0 | L160: =F160*'Série - IPCA'!$C$444/'Série - IPCA'!$C$411 -> 0 | M160: =G160*'Série - IPCA'!$C$444/'Série - IPCA'!$C$424 -> 0 | N160: =H160*'Série - IPCA'!$C$444/'Série - IPCA'!$C$437 -> 0 | O160: 432548.8208 | P160: Custos | Q160: S | T160: OPEX | V160: SERVIÇOS | W160: 4100 | X160: GERÊNCIA DE SERVIÇOS CORPORATIVOS | Y160: Custos332316,432
D161: 364849.65 | E161: 0 | F161: 0 | G161: 0 | H161: 0 | I161: 72969.93 | J161: =D161*'Série - IPCA'!$C$444/'Série - IPCA'!$C$385 -> 474894.6206 | K161: =E161*'Série - IPCA'!$C$444/'Série - IPCA'!$C$398 -> 0 | L161: =F161*'Série - IPCA'!$C$444/'Série - IPCA'!$C$411 -> 0 | M161: =G161*'Série - IPCA'!$C$444/'Série - IPCA'!$C$424 -> 0 | N161: =H161*'Série - IPCA'!$C$444/'Série - IPCA'!$C$437 -> 0 | O161: 94978.92411 | P161: Custos | Q161: S | T161: OPEX | V161: SERVIÇOS | W161: 4100 | X161: GERÊNCIA DE SERVIÇOS CORPORATIVOS | Y161: Custos72969,93
D162: 16925.38 | E162: 13103.52 | F162: 6595.95 | G162: 6977.61 | H162: 7556.76 | I162: 10231.844 | J162: =D162*'Série - IPCA'!$C$444/'Série - IPCA'!$C$385 -> 22030.36761 | K162: =E162*'Série - IPCA'!$C$444/'Série - IPCA'!$C$398 -> 16318.5835 | L162: =F162*'Série - IPCA'!$C$444/'Série - IPCA'!$C$411 -> 7463.429773 | M162: =G162*'Série - IPCA'!$C$444/'Série - IPCA'!$C$424 -> 7463.51338 | N162: =H162*'Série - IPCA'!$C$444/'Série - IPCA'!$C$437 -> 7725.962535 | O162: 12200.37136 | P162: Despesas Gerais e Administratias | Q162: N | R162: SIM | S162: NÃO | T162: ENCARGOS DE GESTÃO | U162: FUNCIONÁRIOS | V162: PESSOAL | W162: 4500 | X162: GERÊNCIA CONTÁBIL | Y162: Despesas Gerais e Administratias10231,844
D163: 50412.69 | E163: 17786.8 | F163: 1064.85 | G163: 42185.44 | H163: 22924.95 | I163: 26874.946 | J163: =D163*'Série - IPCA'!$C$444/'Série - IPCA'!$C$385 -> 65618.03003 | K163: =E163*'Série - IPCA'!$C$444/'Série - IPCA'!$C$398 -> 22150.9473 | L163: =F163*'Série - IPCA'!$C$444/'Série - IPCA'!$C$411 -> 1204.895912 | M163: =G163*'Série - IPCA'!$C$444/'Série - IPCA'!$C$424 -> 45123.12897 | N163: =H163*'Série - IPCA'!$C$444/'Série - IPCA'!$C$437 -> 23438.25989 | O163: 31507.05242 | P163: Custos | Q163: S | T163: OPEX | V163: TRIBUTOS_E_TAXAS_FISCAIS | W163: 5100 | X163: GERÊNCIA DE ENGENHARIA | Y163: Custos26874,946
D164: 42330.46 | E164: 37263.92 | F164: 1670.58 | G164: 86048.11 | H164: 36685.11 | I164: 40799.636 | J164: =D164*'Série - IPCA'!$C$444/'Série - IPCA'!$C$385 -> 55098.05954 | K164: =E164*'Série - IPCA'!$C$444/'Série - IPCA'!$C$398 -> 46406.94944 | L164: =F164*'Série - IPCA'!$C$444/'Série - IPCA'!$C$411 -> 1890.289725 | M164: =G164*'Série - IPCA'!$C$444/'Série - IPCA'!$C$424 -> 92040.28605 | N164: =H164*'Série - IPCA'!$C$444/'Série - IPCA'!$C$437 -> 37506.52204 | O164: 46588.42136 | P164: Custos | Q164: S | T164: OPEX | V164: TRIBUTOS_E_TAXAS_FISCAIS | W164: 5200 | X164: GERÊNCIA DE OPERAÇÕES | Y164: Custos40799,636
D165: 5459.8 | E165: 0 | F165: 0 | G165: 0 | H165: 642.42 | I165: 1220.444 | J165: =D165*'Série - IPCA'!$C$444/'Série - IPCA'!$C$385 -> 7106.570198 | K165: =E165*'Série - IPCA'!$C$444/'Série - IPCA'!$C$398 -> 0 | L165: =F165*'Série - IPCA'!$C$444/'Série - IPCA'!$C$411 -> 0 | M165: =G165*'Série - IPCA'!$C$444/'Série - IPCA'!$C$424 -> 0 | N165: =H165*'Série - IPCA'!$C$444/'Série - IPCA'!$C$437 -> 656.8043516 | O165: 1552.67491 | P165: Despesas Gerais e Administratias | Q165: N | R165: SIM | S165: NÃO | T165: ENCARGOS DE GESTÃO | U165: FUNCIONÁRIOS | V165: PESSOAL | W165: 4600 | X165: GERÊNCIA DE PESSOAS E CULTURA | Y165: Despesas Gerais e Administratias1220,444
D166: 1490.83 | E166: 0 | F166: 0 | G166: 0 | H166: 0 | I166: 298.166 | J166: =D166*'Série - IPCA'!$C$444/'Série - IPCA'!$C$385 -> 1940.490137 | K166: =E166*'Série - IPCA'!$C$444/'Série - IPCA'!$C$398 -> 0 | L166: =F166*'Série - IPCA'!$C$444/'Série - IPCA'!$C$411 -> 0 | M166: =G166*'Série - IPCA'!$C$444/'Série - IPCA'!$C$424 -> 0 | N166: =H166*'Série - IPCA'!$C$444/'Série - IPCA'!$C$437 -> 0 | O166: 388.0980273 | P166: Custos | Q166: N | R166: SIM | S166: NÃO | T166: OPEX | U166: FUNCIONÁRIOS | V166: PESSOAL | W166: 5200 | X166: GERÊNCIA DE OPERAÇÕES | Y166: Custos298,166
D167: 24008.14 | E167: 0 | F167: 0 | G167: 0 | H167: 0 | I167: 4801.628 | J167: =D167*'Série - IPCA'!$C$444/'Série - IPCA'!$C$385 -> 31249.41064 | K167: =E167*'Série - IPCA'!$C$444/'Série - IPCA'!$C$398 -> 0 | L167: =F167*'Série - IPCA'!$C$444/'Série - IPCA'!$C$411 -> 0 | M167: =G167*'Série - IPCA'!$C$444/'Série - IPCA'!$C$424 -> 0 | N167: =H167*'Série - IPCA'!$C$444/'Série - IPCA'!$C$437 -> 0 | O167: 6249.882128 | P167: Custos | Q167: N | R167: SIM | S167: NÃO | T167: OPEX | U167: FUNCIONÁRIOS | V167: PESSOAL | W167: 5300 | X167: GERÊNCIA COMERCIAL | Y167: Custos4801,628
D168: 1663.3 | E168: 0 | F168: 0 | G168: 0 | H168: 0 | I168: 332.66 | J168: =D168*'Série - IPCA'!$C$444/'Série - IPCA'!$C$385 -> 2164.980074 | K168: =E168*'Série - IPCA'!$C$444/'Série - IPCA'!$C$398 -> 0 | L168: =F168*'Série - IPCA'!$C$444/'Série - IPCA'!$C$411 -> 0 | M168: =G168*'Série - IPCA'!$C$444/'Série - IPCA'!$C$424 -> 0 | N168: =H168*'Série - IPCA'!$C$444/'Série - IPCA'!$C$437 -> 0 | O168: 432.9960149 | P168: Despesas Gerais e Administratias | Q168: N | R168: SIM | S168: NÃO | T168: ENCARGOS DE GESTÃO | U168: FUNCIONÁRIOS | V168: PESSOAL | W168: 4300 | X168: GERÊNCIA DE TECNOLOGIA E SISTEMAS DE INFORMAÇÃO | Y168: Despesas Gerais e Administratias332,66
D169: 23608.32 | E169: 0 | F169: 0 | G169: 0 | H169: 0 | I169: 4721.664 | J169: =D169*'Série - IPCA'!$C$444/'Série - IPCA'!$C$385 -> 30728.99801 | K169: =E169*'Série - IPCA'!$C$444/'Série - IPCA'!$C$398 -> 0 | L169: =F169*'Série - IPCA'!$C$444/'Série - IPCA'!$C$411 -> 0 | M169: =G169*'Série - IPCA'!$C$444/'Série - IPCA'!$C$424 -> 0 | N169: =H169*'Série - IPCA'!$C$444/'Série - IPCA'!$C$437 -> 0 | O169: 6145.799602 | P169: Despesas com Vendas | Q169: N | R169: SIM | S169: NÃO | T169: ENCARGOS DE COMERCIALIZAÇÃO | U169: FUNCIONÁRIOS | V169: PESSOAL | W169: 5400 | X169: GERÊNCIA COMERCIAL (inativo) | Y169: Despesas com Vendas4721,664
D170: 14749.36 | E170: 0 | F170: 0 | G170: 0 | H170: 0 | I170: 2949.872 | J170: =D170*'Série - IPCA'!$C$444/'Série - IPCA'!$C$385 -> 19198.02231 | K170: =E170*'Série - IPCA'!$C$444/'Série - IPCA'!$C$398 -> 0 | L170: =F170*'Série - IPCA'!$C$444/'Série - IPCA'!$C$411 -> 0 | M170: =G170*'Série - IPCA'!$C$444/'Série - IPCA'!$C$424 -> 0 | N170: =H170*'Série - IPCA'!$C$444/'Série - IPCA'!$C$437 -> 0 | O170: 3839.604462 | P170: Despesas com Vendas | Q170: N | R170: SIM | S170: NÃO | T170: ENCARGOS DE COMERCIALIZAÇÃO | U170: FUNCIONÁRIOS | V170: PESSOAL | W170: 5500 | X170: GERÊNCIA COMERCIAL (inativo) | Y170: Despesas com Vendas2949,872
D171: 7869.44 | E171: 0 | F171: 0 | G171: 0 | H171: 0 | I171: 1573.888 | J171: =D171*'Série - IPCA'!$C$444/'Série - IPCA'!$C$385 -> 10242.99934 | K171: =E171*'Série - IPCA'!$C$444/'Série - IPCA'!$C$398 -> 0 | L171: =F171*'Série - IPCA'!$C$444/'Série - IPCA'!$C$411 -> 0 | M171: =G171*'Série - IPCA'!$C$444/'Série - IPCA'!$C$424 -> 0 | N171: =H171*'Série - IPCA'!$C$444/'Série - IPCA'!$C$437 -> 0 | O171: 2048.599867 | P171: Despesas Gerais e Administratias | Q171: N | R171: SIM | S171: NÃO | T171: ENCARGOS DE GESTÃO | U171: FUNCIONÁRIOS | V171: PESSOAL | W171: 2100 | X171: SECRETARIA | Y171: Despesas Gerais e Administratias1573,888
D172: 5410.24 | E172: 0 | F172: 0 | G172: 0 | H172: 0 | I172: 1082.048 | J172: =D172*'Série - IPCA'!$C$444/'Série - IPCA'!$C$385 -> 7042.062044 | K172: =E172*'Série - IPCA'!$C$444/'Série - IPCA'!$C$398 -> 0 | L172: =F172*'Série - IPCA'!$C$444/'Série - IPCA'!$C$411 -> 0 | M172: =G172*'Série - IPCA'!$C$444/'Série - IPCA'!$C$424 -> 0 | N172: =H172*'Série - IPCA'!$C$444/'Série - IPCA'!$C$437 -> 0 | O172: 1408.412409 | P172: Despesas Gerais e Administratias | Q172: N | R172: SIM | S172: NÃO | T172: ENCARGOS DE GESTÃO | U172: FUNCIONÁRIOS | V172: PESSOAL | W172: 2200 | X172: DIRETORIA COLEGIADA - PRESIDÊNCIA | Y172: Despesas Gerais e Administratias1082,048
D173: 15738.88 | E173: 0 | F173: 0 | G173: 0 | H173: 0 | I173: 3147.776 | J173: =D173*'Série - IPCA'!$C$444/'Série - IPCA'!$C$385 -> 20485.99867 | K173: =E173*'Série - IPCA'!$C$444/'Série - IPCA'!$C$398 -> 0 | L173: =F173*'Série - IPCA'!$C$444/'Série - IPCA'!$C$411 -> 0 | M173: =G173*'Série - IPCA'!$C$444/'Série - IPCA'!$C$424 -> 0 | N173: =H173*'Série - IPCA'!$C$444/'Série - IPCA'!$C$437 -> 0 | O173: 4097.199735 | P173: Despesas Gerais e Administratias | Q173: N | R173: SIM | S173: NÃO | T173: ENCARGOS DE GESTÃO | U173: FUNCIONÁRIOS | V173: PESSOAL | W173: 3400 | X173: MARKETING | Y173: Despesas Gerais e Administratias3147,776
D174: 0 | E174: 0 | F174: 0 | G174: 0 | H174: 73 | I174: 14.6 | J174: =D174*'Série - IPCA'!$C$444/'Série - IPCA'!$C$385 -> 0 | K174: =E174*'Série - IPCA'!$C$444/'Série - IPCA'!$C$398 -> 0 | L174: =F174*'Série - IPCA'!$C$444/'Série - IPCA'!$C$411 -> 0 | M174: =G174*'Série - IPCA'!$C$444/'Série - IPCA'!$C$424 -> 0 | N174: =H174*'Série - IPCA'!$C$444/'Série - IPCA'!$C$437 -> 74.63453452 | O174: 14.9269069 | P174: Custos | Q174: N | R174: SIM | S174: NÃO | T174: OPEX | U174: FIXO | V174: DESPESAS_GERAIS | W174: 5100 | X174: GERÊNCIA DE ENGENHARIA | Y174: Custos14,6
D175: 0 | E175: 189 | F175: 0 | G175: 0 | H175: 0 | I175: 37.8 | J175: =D175*'Série - IPCA'!$C$444/'Série - IPCA'!$C$385 -> 0 | K175: =E175*'Série - IPCA'!$C$444/'Série - IPCA'!$C$398 -> 235.3728068 | L175: =F175*'Série - IPCA'!$C$444/'Série - IPCA'!$C$411 -> 0 | M175: =G175*'Série - IPCA'!$C$444/'Série - IPCA'!$C$424 -> 0 | N175: =H175*'Série - IPCA'!$C$444/'Série - IPCA'!$C$437 -> 0 | O175: 47.07456136 | P175: Despesas com Vendas | Q175: N | R175: SIM | S175: NÃO | T175: ENCARGOS DE COMERCIALIZAÇÃO | U175: FIXO | V175: DESPESAS_GERAIS | W175: 5300 | X175: GERÊNCIA COMERCIAL | Y175: Despesas com Vendas37,8
D176: 0 | E176: 0 | F176: 0 | G176: 0 | H176: 484.01 | I176: 96.802 | J176: =D176*'Série - IPCA'!$C$444/'Série - IPCA'!$C$385 -> 0 | K176: =E176*'Série - IPCA'!$C$444/'Série - IPCA'!$C$398 -> 0 | L176: =F176*'Série - IPCA'!$C$444/'Série - IPCA'!$C$411 -> 0 | M176: =G176*'Série - IPCA'!$C$444/'Série - IPCA'!$C$424 -> 0 | N176: =H176*'Série - IPCA'!$C$444/'Série - IPCA'!$C$437 -> 494.8474117 | O176: 98.96948234 | P176: Despesas Gerais e Administratias | Q176: N | R176: SIM | S176: NÃO | T176: ENCARGOS DE GESTÃO | U176: FIXO | V176: DESPESAS_GERAIS | W176: 2110 | X176: ASSESSORIA DA DIRETORIA EXECUTIVA | Y176: Despesas Gerais e Administratias96,802
D177: 0 | E177: 0 | F177: 0 | G177: 480 | H177: 0 | I177: 96 | J177: =D177*'Série - IPCA'!$C$444/'Série - IPCA'!$C$385 -> 0 | K177: =E177*'Série - IPCA'!$C$444/'Série - IPCA'!$C$398 -> 0 | L177: =F177*'Série - IPCA'!$C$444/'Série - IPCA'!$C$411 -> 0 | M177: =G177*'Série - IPCA'!$C$444/'Série - IPCA'!$C$424 -> 513.4260044 | N177: =H177*'Série - IPCA'!$C$444/'Série - IPCA'!$C$437 -> 0 | O177: 102.6852009 | P177: Despesas Gerais e Administratias | Q177: N | R177: SIM | S177: NÃO | T177: ENCARGOS DE GESTÃO | U177: FIXO | V177: DESPESAS_GERAIS | W177: 2400 | X177: DIRETORIA COLEGIADA - DTC | Y177: Despesas Gerais e Administratias96
D178: 0 | E178: 0 | F178: 359 | G178: 0 | H178: 0 | I178: 71.8 | J178: =D178*'Série - IPCA'!$C$444/'Série - IPCA'!$C$385 -> 0 | K178: =E178*'Série - IPCA'!$C$444/'Série - IPCA'!$C$398 -> 0 | L178: =F178*'Série - IPCA'!$C$444/'Série - IPCA'!$C$411 -> 406.2146148 | M178: =G178*'Série - IPCA'!$C$444/'Série - IPCA'!$C$424 -> 0 | N178: =H178*'Série - IPCA'!$C$444/'Série - IPCA'!$C$437 -> 0 | O178: 81.24292296 | P178: Despesas Gerais e Administratias | Q178: N | R178: SIM | S178: NÃO | T178: ENCARGOS DE GESTÃO | U178: FIXO | V178: DESPESAS_GERAIS | W178: 2410 | X178: ASSESSORIA DE SEGURANÇA DO TRABALHO | Y178: Despesas Gerais e Administratias71,8
D179: 0 | E179: 0 | F179: 0 | G179: 900 | H179: 2768.8 | I179: 733.76 | J179: =D179*'Série - IPCA'!$C$444/'Série - IPCA'!$C$385 -> 0 | K179: =E179*'Série - IPCA'!$C$444/'Série - IPCA'!$C$398 -> 0 | L179: =F179*'Série - IPCA'!$C$444/'Série - IPCA'!$C$411 -> 0 | M179: =G179*'Série - IPCA'!$C$444/'Série - IPCA'!$C$424 -> 962.6737583 | N179: =H179*'Série - IPCA'!$C$444/'Série - IPCA'!$C$437 -> 2830.795879 | O179: 758.6939275 | P179: Despesas Gerais e Administratias | Q179: N | R179: SIM | S179: NÃO | T179: ENCARGOS DE GESTÃO | U179: FIXO | V179: DESPESAS_GERAIS | W179: 2200 | X179: DIRETORIA COLEGIADA - PRESIDÊNCIA | Y179: Despesas Gerais e Administratias733,76
D180: 0 | E180: 1152 | F180: 0 | G180: 0 | H180: 0 | I180: 230.4 | J180: =D180*'Série - IPCA'!$C$444/'Série - IPCA'!$C$385 -> 0 | K180: =E180*'Série - IPCA'!$C$444/'Série - IPCA'!$C$398 -> 1434.653299 | L180: =F180*'Série - IPCA'!$C$444/'Série - IPCA'!$C$411 -> 0 | M180: =G180*'Série - IPCA'!$C$444/'Série - IPCA'!$C$424 -> 0 | N180: =H180*'Série - IPCA'!$C$444/'Série - IPCA'!$C$437 -> 0 | O180: 286.9306597 | P180: Despesas Gerais e Administratias | Q180: N | R180: SIM | S180: NÃO | T180: ENCARGOS DE GESTÃO | U180: FIXO | V180: DESPESAS_GERAIS | W180: 2310 | X180: ASSESSORIA DAF | Y180: Despesas Gerais e Administratias230,4
D181: 0 | E181: 0 | F181: 0 | G181: 30.45 | H181: 0 | I181: 6.09 | J181: =D181*'Série - IPCA'!$C$444/'Série - IPCA'!$C$385 -> 0 | K181: =E181*'Série - IPCA'!$C$444/'Série - IPCA'!$C$398 -> 0 | L181: =F181*'Série - IPCA'!$C$444/'Série - IPCA'!$C$411 -> 0 | M181: =G181*'Série - IPCA'!$C$444/'Série - IPCA'!$C$424 -> 32.57046215 | N181: =H181*'Série - IPCA'!$C$444/'Série - IPCA'!$C$437 -> 0 | O181: 6.514092431 | P181: Despesas Gerais e Administratias | Q181: N | R181: SIM | S181: NÃO | T181: ENCARGOS DE GESTÃO | U181: FIXO | V181: DESPESAS_GERAIS | W181: 3300 | X181: GERÊNCIA JURÍDICA | Y181: Despesas Gerais e Administratias6,09
D182: 3464.75 | E182: 2162.66 | F182: 0 | G182: 6125.8 | H182: 23638.33 | I182: 7078.308 | J182: =D182*'Série - IPCA'!$C$444/'Série - IPCA'!$C$385 -> 4509.77858 | K182: =E182*'Série - IPCA'!$C$444/'Série - IPCA'!$C$398 -> 2693.287589 | L182: =F182*'Série - IPCA'!$C$444/'Série - IPCA'!$C$411 -> 0 | M182: =G182*'Série - IPCA'!$C$444/'Série - IPCA'!$C$424 -> 6552.385454 | N182: =H182*'Série - IPCA'!$C$444/'Série - IPCA'!$C$437 -> 24167.6131 | O182: 7584.612945 | P182: Despesas Gerais e Administratias | Q182: N | R182: SIM | S182: NÃO | T182: ENCARGOS DE GESTÃO | U182: FIXO | V182: DESPESAS_GERAIS | W182: 4100 | X182: GERÊNCIA DE SERVIÇOS CORPORATIVOS | Y182: Despesas Gerais e Administratias7078,308
D183: 538.46 | E183: 0 | F183: 0 | G183: 0 | H183: 0 | I183: 107.692 | J183: =D183*'Série - IPCA'!$C$444/'Série - IPCA'!$C$385 -> 700.8688576 | K183: =E183*'Série - IPCA'!$C$444/'Série - IPCA'!$C$398 -> 0 | L183: =F183*'Série - IPCA'!$C$444/'Série - IPCA'!$C$411 -> 0 | M183: =G183*'Série - IPCA'!$C$444/'Série - IPCA'!$C$424 -> 0 | N183: =H183*'Série - IPCA'!$C$444/'Série - IPCA'!$C$437 -> 0 | O183: 140.1737715 | P183: Despesas Gerais e Administratias | Q183: N | R183: SIM | S183: NÃO | T183: ENCARGOS DE GESTÃO | U183: FIXO | V183: DESPESAS_GERAIS | W183: 4300 | X183: GERÊNCIA DE TECNOLOGIA E SISTEMAS DE INFORMAÇÃO | Y183: Despesas Gerais e Administratias107,692
D184: 21617.86 | E184: 19363.38 | F184: 15466.77 | G184: 23049.91 | H184: 38589.58 | I184: 23617.5 | J184: =D184*'Série - IPCA'!$C$444/'Série - IPCA'!$C$385 -> 28138.18081 | K184: =E184*'Série - IPCA'!$C$444/'Série - IPCA'!$C$398 -> 24114.35503 | L184: =F184*'Série - IPCA'!$C$444/'Série - IPCA'!$C$411 -> 17500.9137 | M184: =G184*'Série - IPCA'!$C$444/'Série - IPCA'!$C$424 -> 24655.04832 | N184: =H184*'Série - IPCA'!$C$444/'Série - IPCA'!$C$437 -> 39453.6348 | O184: 26772.42653 | P184: Custos | Q184: N | R184: SIM | S184: NÃO | T184: OPEX | U184: FUNCIONÁRIOS | V184: PESSOAL | W184: 5100 | X184: GERÊNCIA DE ENGENHARIA | Y184: Custos23617,5
D185: 0 | E185: 1525.42 | F185: 55085.33 | G185: 72472.88 | H185: 69065.41 | I185: 39629.808 | J185: =D185*'Série - IPCA'!$C$444/'Série - IPCA'!$C$385 -> 0 | K185: =E185*'Série - IPCA'!$C$444/'Série - IPCA'!$C$398 -> 1899.695169 | L185: =F185*'Série - IPCA'!$C$444/'Série - IPCA'!$C$411 -> 62329.98916 | M185: =G185*'Série - IPCA'!$C$444/'Série - IPCA'!$C$424 -> 77519.71085 | N185: =H185*'Série - IPCA'!$C$444/'Série - IPCA'!$C$437 -> 70611.84557 | O185: 42472.24815 | P185: Custos | Q185: N | R185: SIM | S185: NÃO | T185: OPEX | U185: FUNCIONÁRIOS | V185: PESSOAL | W185: 5200 | X185: GERÊNCIA DE OPERAÇÕES | Y185: Custos39629,808
D186: 6944.94 | E186: 20133.56 | F186: 16679.9 | G186: 25521.28 | H186: 70067.31 | I186: 27869.398 | J186: =D186*'Série - IPCA'!$C$444/'Série - IPCA'!$C$385 -> 9039.654132 | K186: =E186*'Série - IPCA'!$C$444/'Série - IPCA'!$C$398 -> 25073.50544 | L186: =F186*'Série - IPCA'!$C$444/'Série - IPCA'!$C$411 -> 18873.59096 | M186: =G186*'Série - IPCA'!$C$444/'Série - IPCA'!$C$424 -> 27298.51837 | N186: =H186*'Série - IPCA'!$C$444/'Série - IPCA'!$C$437 -> 71636.179 | O186: 30384.28958 | P186: Despesas com Vendas | Q186: N | R186: SIM | S186: NÃO | T186: ENCARGOS DE COMERCIALIZAÇÃO | U186: FUNCIONÁRIOS | V186: PESSOAL | W186: 5300 | X186: GERÊNCIA COMERCIAL | Y186: Despesas com Vendas27869,398
D187: 0 | E187: 0 | F187: 3097.65 | G187: 11900.58 | H187: 26764.9 | I187: 8352.626 | J187: =D187*'Série - IPCA'!$C$444/'Série - IPCA'!$C$385 -> 0 | K187: =E187*'Série - IPCA'!$C$444/'Série - IPCA'!$C$398 -> 0 | L187: =F187*'Série - IPCA'!$C$444/'Série - IPCA'!$C$411 -> 3505.043737 | M187: =G187*'Série - IPCA'!$C$444/'Série - IPCA'!$C$424 -> 12729.30675 | N187: =H187*'Série - IPCA'!$C$444/'Série - IPCA'!$C$437 -> 27364.18977 | O187: 8719.708051 | P187: Despesas Gerais e Administratias | Q187: N | R187: SIM | S187: NÃO | T187: ENCARGOS DE GESTÃO | U187: FUNCIONÁRIOS | V187: PESSOAL | W187: 1010 | X187: GOVERNANÇA SOCIETÁRIA | Y187: Despesas Gerais e Administratias8352,626
D188: 20028.4 | E188: 7613.89 | F188: 0 | G188: 0 | H188: 0 | I188: 5528.458 | J188: =D188*'Série - IPCA'!$C$444/'Série - IPCA'!$C$385 -> 26069.31216 | K188: =E188*'Série - IPCA'!$C$444/'Série - IPCA'!$C$398 -> 9482.024656 | L188: =F188*'Série - IPCA'!$C$444/'Série - IPCA'!$C$411 -> 0 | M188: =G188*'Série - IPCA'!$C$444/'Série - IPCA'!$C$424 -> 0 | N188: =H188*'Série - IPCA'!$C$444/'Série - IPCA'!$C$437 -> 0 | O188: 7110.267364 | P188: Despesas Gerais e Administratias | Q188: N | R188: SIM | S188: NÃO | T188: ENCARGOS DE GESTÃO | U188: FUNCIONÁRIOS | V188: PESSOAL | W188: 2100 | X188: SECRETARIA | Y188: Despesas Gerais e Administratias5528,458
D189: 0 | E189: 0 | F189: 0 | G189: 22229.5 | H189: 53339.17 | I189: 15113.734 | J189: =D189*'Série - IPCA'!$C$444/'Série - IPCA'!$C$385 -> 0 | K189: =E189*'Série - IPCA'!$C$444/'Série - IPCA'!$C$398 -> 0 | L189: =F189*'Série - IPCA'!$C$444/'Série - IPCA'!$C$411 -> 0 | M189: =G189*'Série - IPCA'!$C$444/'Série - IPCA'!$C$424 -> 23777.50701 | N189: =H189*'Série - IPCA'!$C$444/'Série - IPCA'!$C$437 -> 54533.48116 | O189: 15662.19763 | P189: Despesas Gerais e Administratias | Q189: N | R189: SIM | S189: NÃO | T189: ENCARGOS DE GESTÃO | U189: FUNCIONÁRIOS | V189: PESSOAL | W189: 2110 | X189: ASSESSORIA DA DIRETORIA EXECUTIVA | Y189: Despesas Gerais e Administratias15113,734
D190: 403.96 | E190: 0 | F190: 0 | G190: 5632.74 | H190: 26629.8 | I190: 6533.3 | J190: =D190*'Série - IPCA'!$C$444/'Série - IPCA'!$C$385 -> 525.8013292 | K190: =E190*'Série - IPCA'!$C$444/'Série - IPCA'!$C$398 -> 0 | L190: =F190*'Série - IPCA'!$C$444/'Série - IPCA'!$C$411 -> 0 | M190: =G190*'Série - IPCA'!$C$444/'Série - IPCA'!$C$424 -> 6024.989983 | N190: =H190*'Série - IPCA'!$C$444/'Série - IPCA'!$C$437 -> 27226.06476 | O190: 6755.371214 | P190: Despesas Gerais e Administratias | Q190: N | R190: SIM | S190: NÃO | T190: ENCARGOS DE GESTÃO | U190: FUNCIONÁRIOS | V190: PESSOAL | W190: 2410 | X190: ASSESSORIA DE SEGURANÇA DO TRABALHO | Y190: Despesas Gerais e Administratias6533,3
D191: 32793.72 | E191: 0 | F191: 11192 | G191: 14495.29 | H191: 0 | I191: 11696.202 | J191: =D191*'Série - IPCA'!$C$444/'Série - IPCA'!$C$385 -> 42684.87366 | K191: =E191*'Série - IPCA'!$C$444/'Série - IPCA'!$C$398 -> 0 | L191: =F191*'Série - IPCA'!$C$444/'Série - IPCA'!$C$411 -> 12663.93863 | M191: =G191*'Série - IPCA'!$C$444/'Série - IPCA'!$C$424 -> 15504.70589 | N191: =H191*'Série - IPCA'!$C$444/'Série - IPCA'!$C$437 -> 0 | O191: 14170.70364 | P191: Despesas Gerais e Administratias | Q191: N | R191: SIM | S191: NÃO | T191: ENCARGOS DE GESTÃO | U191: FUNCIONÁRIOS | V191: PESSOAL | W191: 3100 | X191: SMS | Y191: Despesas Gerais e Administratias11696,202
D192: 0 | E192: 0 | F192: 6071.7 | G192: 23080.71 | H192: 26638.1 | I192: 11158.102 | J192: =D192*'Série - IPCA'!$C$444/'Série - IPCA'!$C$385 -> 0 | K192: =E192*'Série - IPCA'!$C$444/'Série - IPCA'!$C$398 -> 0 | L192: =F192*'Série - IPCA'!$C$444/'Série - IPCA'!$C$411 -> 6870.231968 | M192: =G192*'Série - IPCA'!$C$444/'Série - IPCA'!$C$424 -> 24687.99315 | N192: =H192*'Série - IPCA'!$C$444/'Série - IPCA'!$C$437 -> 27234.5506 | O192: 11758.55515 | P192: Despesas Gerais e Administratias | Q192: N | R192: SIM | S192: NÃO | T192: ENCARGOS DE GESTÃO | U192: FUNCIONÁRIOS | V192: PESSOAL | W192: 3200 | X192: GERÊNCIA DE PLANEJAMENTO E MEIO AMBIENTE | Y192: Despesas Gerais e Administratias11158,102
D193: 0 | E193: 2103.53 | F193: 18860.21 | G193: 24065.42 | H193: 24806.74 | I193: 13967.18 | J193: =D193*'Série - IPCA'!$C$444/'Série - IPCA'!$C$385 -> 0 | K193: =E193*'Série - IPCA'!$C$444/'Série - IPCA'!$C$398 -> 2619.649525 | L193: =F193*'Série - IPCA'!$C$444/'Série - IPCA'!$C$411 -> 21340.64886 | M193: =G193*'Série - IPCA'!$C$444/'Série - IPCA'!$C$424 -> 25741.27591 | N193: =H193*'Série - IPCA'!$C$444/'Série - IPCA'!$C$437 -> 25362.18483 | O193: 15012.75182 | P193: Despesas Gerais e Administratias | Q193: N | R193: SIM | S193: NÃO | T193: ENCARGOS DE GESTÃO | U193: FUNCIONÁRIOS | V193: PESSOAL | W193: 3300 | X193: GERÊNCIA JURÍDICA | Y193: Despesas Gerais e Administratias13967,18
D194: 9527.95 | E194: 0 | F194: 19764.55 | G194: 10285.74 | H194: 1789.26 | I194: 8273.5 | J194: =D194*'Série - IPCA'!$C$444/'Série - IPCA'!$C$385 -> 12401.74466 | K194: =E194*'Série - IPCA'!$C$444/'Série - IPCA'!$C$398 -> 0 | L194: =F194*'Série - IPCA'!$C$444/'Série - IPCA'!$C$411 -> 22363.92497 | M194: =G194*'Série - IPCA'!$C$444/'Série - IPCA'!$C$424 -> 11002.01331 | N194: =H194*'Série - IPCA'!$C$444/'Série - IPCA'!$C$437 -> 1829.323113 | O194: 9519.401212 | P194: Despesas Gerais e Administratias | Q194: N | R194: SIM | S194: NÃO | T194: ENCARGOS DE GESTÃO | U194: FUNCIONÁRIOS | V194: PESSOAL | W194: 3400 | X194: MARKETING | Y194: Despesas Gerais e Administratias8273,5
D195: 0 | E195: 14779.94 | F195: 0 | G195: 10461.65 | H195: 24986.48 | I195: 10045.614 | J195: =D195*'Série - IPCA'!$C$444/'Série - IPCA'!$C$385 -> 0 | K195: =E195*'Série - IPCA'!$C$444/'Série - IPCA'!$C$398 -> 18406.32784 | L195: =F195*'Série - IPCA'!$C$444/'Série - IPCA'!$C$411 -> 0 | M195: =G195*'Série - IPCA'!$C$444/'Série - IPCA'!$C$424 -> 11190.17325 | N195: =H195*'Série - IPCA'!$C$444/'Série - IPCA'!$C$437 -> 25545.94937 | O195: 11028.49009 | P195: Despesas Gerais e Administratias | Q195: N | R195: SIM | S195: NÃO | T195: ENCARGOS DE GESTÃO | U195: FUNCIONÁRIOS | V195: PESSOAL | W195: 3500 | X195: ASSESSORIA DE COMUNICAÇÃO INSTITUCIONAL | Y195: Despesas Gerais e Administratias10045,614
D196: 22494.25 | E196: 8398.85 | F196: 16284.16 | G196: 2957.7 | H196: 0 | I196: 10026.992 | J196: =D196*'Série - IPCA'!$C$444/'Série - IPCA'!$C$385 -> 29278.90521 | K196: =E196*'Série - IPCA'!$C$444/'Série - IPCA'!$C$398 -> 10459.58147 | L196: =F196*'Série - IPCA'!$C$444/'Série - IPCA'!$C$411 -> 18425.80441 | M196: =G196*'Série - IPCA'!$C$444/'Série - IPCA'!$C$424 -> 3163.666861 | N196: =H196*'Série - IPCA'!$C$444/'Série - IPCA'!$C$437 -> 0 | O196: 12265.59159 | P196: Despesas Gerais e Administratias | Q196: N | R196: SIM | S196: NÃO | T196: ENCARGOS DE GESTÃO | U196: FUNCIONÁRIOS | V196: PESSOAL | W196: 3600 | X196: GERÊNCIA DE GOVERNANÇA, RISCO E COMPLIANCE | Y196: Despesas Gerais e Administratias10026,992
D197: 0 | E197: 0 | F197: 10216.36 | G197: 12144.5 | H197: 28431.8 | I197: =AVERAGE(D197:H197) -> 10158.532 | J197: =D197*'Série - IPCA'!$C$444/'Série - IPCA'!$C$385 -> 0 | K197: =E197*'Série - IPCA'!$C$444/'Série - IPCA'!$C$398 -> 0 | L197: =F197*'Série - IPCA'!$C$444/'Série - IPCA'!$C$411 -> 11559.98535 | M197: =G197*'Série - IPCA'!$C$444/'Série - IPCA'!$C$424 -> 12990.21273 | N197: =H197*'Série - IPCA'!$C$444/'Série - IPCA'!$C$437 -> 29068.41313 | O197: =AVERAGE(J197:N197) -> 10723.72224 | P197: Despesas Gerais e Administratias | Q197: N | R197: SIM | S197: NÃO | T197: ENCARGOS DE GESTÃO | U197: FUNCIONÁRIOS | V197: PESSOAL | W197: 3700 | X197: GERÊNCIA DE REGULAÇÃO | Y197: =B197&C197&P197&I197 -> Despesas Gerais e Administratias10158,532
D198: 10354.81 | E198: 16357.37 | F198: 21767.94 | G198: 20720.03 | H198: 26759.82 | I198: 19191.994 | J198: =D198*'Série - IPCA'!$C$444/'Série - IPCA'!$C$385 -> 13477.99995 | K198: =E198*'Série - IPCA'!$C$444/'Série - IPCA'!$C$398 -> 20370.79412 | L198: =F198*'Série - IPCA'!$C$444/'Série - IPCA'!$C$411 -> 24630.79488 | M198: =G198*'Série - IPCA'!$C$444/'Série - IPCA'!$C$424 -> 22162.92128 | N198: =H198*'Série - IPCA'!$C$444/'Série - IPCA'!$C$437 -> 27358.99602 | O198: 21600.30125 | P198: Despesas Gerais e Administratias | Q198: N | R198: SIM | S198: NÃO | T198: ENCARGOS DE GESTÃO | U198: FUNCIONÁRIOS | V198: PESSOAL | W198: 4100 | X198: GERÊNCIA DE SERVIÇOS CORPORATIVOS | Y198: Despesas Gerais e Administratias19191,994
D199: 17813.17 | E199: 17698.4 | F199: 23069.71 | G199: 55218.96 | H199: 50161.31 | I199: 32792.31 | J199: =D199*'Série - IPCA'!$C$444/'Série - IPCA'!$C$385 -> 23185.93045 | K199: =E199*'Série - IPCA'!$C$444/'Série - IPCA'!$C$398 -> 22040.85759 | L199: =F199*'Série - IPCA'!$C$444/'Série - IPCA'!$C$411 -> 26103.76981 | M199: =G199*'Série - IPCA'!$C$444/'Série - IPCA'!$C$424 -> 59064.27083 | N199: =H199*'Série - IPCA'!$C$444/'Série - IPCA'!$C$437 -> 51284.46607 | O199: 36335.85895 | P199: Despesas Gerais e Administratias | Q199: N | R199: SIM | S199: NÃO | T199: ENCARGOS DE GESTÃO | U199: FUNCIONÁRIOS | V199: PESSOAL | W199: 4200 | X199: GERÊNCIA FINANCEIRA | Y199: Despesas Gerais e Administratias32792,31
D200: 61790.61 | E200: 25514.12 | F200: 36249.47 | G200: 44534.16 | H200: 48419.41 | I200: 43301.554 | J200: =D200*'Série - IPCA'!$C$444/'Série - IPCA'!$C$385 -> 80427.72767 | K200: =E200*'Série - IPCA'!$C$444/'Série - IPCA'!$C$398 -> 31774.233 | L200: =F200*'Série - IPCA'!$C$444/'Série - IPCA'!$C$411 -> 41016.89274 | M200: =G200*'Série - IPCA'!$C$444/'Série - IPCA'!$C$424 -> 47635.40798 | N200: =H200*'Série - IPCA'!$C$444/'Série - IPCA'!$C$437 -> 49503.56339 | O200: 50071.56495 | P200: Despesas Gerais e Administratias | Q200: N | R200: SIM | S200: NÃO | T200: ENCARGOS DE GESTÃO | U200: FUNCIONÁRIOS | V200: PESSOAL | W200: 4300 | X200: GERÊNCIA DE TECNOLOGIA E SISTEMAS DE INFORMAÇÃO | Y200: Despesas Gerais e Administratias43301,554
D201: 41935.7 | E201: 11559.13 | F201: 19351.5 | G201: 23261.42 | H201: 26908.15 | I201: 24603.18 | J201: =D201*'Série - IPCA'!$C$444/'Série - IPCA'!$C$385 -> 54584.23309 | K201: =E201*'Série - IPCA'!$C$444/'Série - IPCA'!$C$398 -> 14395.26388 | L201: =F201*'Série - IPCA'!$C$444/'Série - IPCA'!$C$411 -> 21896.55186 | M201: =G201*'Série - IPCA'!$C$444/'Série - IPCA'!$C$424 -> 24881.28735 | N201: =H201*'Série - IPCA'!$C$444/'Série - IPCA'!$C$437 -> 27510.64726 | O201: 28653.59669 | P201: Despesas Gerais e Administratias | Q201: N | R201: SIM | S201: NÃO | T201: ENCARGOS DE GESTÃO | U201: FUNCIONÁRIOS | V201: PESSOAL | W201: 4500 | X201: GERÊNCIA CONTÁBIL | Y201: Despesas Gerais e Administratias24603,18
... 1467 more rows

Sheet DRIVER_OPEX
A1: Grupo de Gastos | B1: Centro de Custo | C1: Descrição do Centro de Custo | E1: Critérios | F1: Orçamento Base | G1: 2024/2025 | H1: 2025/2026 | I1: 2026/2027 | J1: 2027/2028 | K1: 2028/2029
F2: =SUMIF($C$3:$C$436,$C$3,F3:F436) -> 69466314.89 | G2: =SUMIF($C$3:$C$436,$C$3,G3:G436) -> 75458204.51 | H2: 81785596.94 | I2: 89492669.23 | J2: 92352025.21 | K2: 93875377.16
A3: ALUGUÉIS | B3: TOTAL | C3: TOTAL | D3: ALOCAÇÃO | F3: =SUM(F4:F38) -> 2438344.054 | G3: =SUM(G4:G38) -> 2438344.054 | H3: 2438344.054 | I3: 2438344.054 | J3: 2438344.054 | K3: 2438344.054
A4: ALUGUÉIS | B4: 2130 | C4: =VLOOKUP(B4,Centro_Custo!$A$2:$B$36,2,0) -> ASSESSORIA DE RELAÇÕES INSTITUCIONAIS E NOVOS NEGÓCIOS | D4: =VLOOKUP(B4,Centro_Custo!$A$2:$C$36,3) -> Encargos de Gestão | E4: Fixo | F4: =SUMIFS('Classificação OPEX'!$O$4:$O$1666,'Classificação OPEX'!$Q$4:$Q$1666,"N",'Classificação OPEX'!$S$4:$S$1666,"NÃO",'Classificação OPEX'!$V$4:$V$1666,DRIVER_OPEX!A4,'Classificação OPEX'!$W$4:$W$1666,DRIVER_OPEX!B4) -> 135.6508225 | G4: =IF($F4="",0,VLOOKUP($E4,Drivers!$A$26:$F$48,MATCH(G$1,Drivers!$A$25:$F$25,0),0)*$F4) -> 135.6508225 | H4: =IF($F4="",0,VLOOKUP($E4,Drivers!$A$26:$F$48,MATCH(H$1,Drivers!$A$25:$F$25,0),0)*$F4) -> 135.6508225 | I4: =IF($F4="",0,VLOOKUP($E4,Drivers!$A$26:$F$48,MATCH(I$1,Drivers!$A$25:$F$25,0),0)*$F4) -> 135.6508225 | J4: =IF($F4="",0,VLOOKUP($E4,Drivers!$A$26:$F$48,MATCH(J$1,Drivers!$A$25:$F$25,0),0)*$F4) -> 135.6508225 | K4: =IF($F4="",0,VLOOKUP($E4,Drivers!$A$26:$F$48,MATCH(K$1,Drivers!$A$25:$F$25,0),0)*$F4) -> 135.6508225
A5: ALUGUÉIS | B5: 2400 | C5: =VLOOKUP(B5,Centro_Custo!$A$2:$B$36,2,0) -> DIRETORIA COLEGIADA - DTC | D5: =VLOOKUP(B5,Centro_Custo!$A$2:$C$36,3) -> Encargos de Comercialização | E5: Fixo | F5: =SUMIFS('Classificação OPEX'!$O$4:$O$1666,'Classificação OPEX'!$Q$4:$Q$1666,"N",'Classificação OPEX'!$S$4:$S$1666,"NÃO",'Classificação OPEX'!$V$4:$V$1666,DRIVER_OPEX!A5,'Classificação OPEX'!$W$4:$W$1666,DRIVER_OPEX!B5) -> 475.0441573 | G5: =IF($F5="",0,VLOOKUP($E5,Drivers!$A$26:$F$48,MATCH(G$1,Drivers!$A$25:$F$25,0),0)*$F5) -> 475.0441573 | H5: =IF($F5="",0,VLOOKUP($E5,Drivers!$A$26:$F$48,MATCH(H$1,Drivers!$A$25:$F$25,0),0)*$F5) -> 475.0441573 | I5: =IF($F5="",0,VLOOKUP($E5,Drivers!$A$26:$F$48,MATCH(I$1,Drivers!$A$25:$F$25,0),0)*$F5) -> 475.0441573 | J5: =IF($F5="",0,VLOOKUP($E5,Drivers!$A$26:$F$48,MATCH(J$1,Drivers!$A$25:$F$25,0),0)*$F5) -> 475.0441573 | K5: =IF($F5="",0,VLOOKUP($E5,Drivers!$A$26:$F$48,MATCH(K$1,Drivers!$A$25:$F$25,0),0)*$F5) -> 475.0441573
A6: ALUGUÉIS | B6: 4100 | C6: =VLOOKUP(B6,Centro_Custo!$A$2:$B$36,2,0) -> GERÊNCIA DE SERVIÇOS CORPORATIVOS | D6: =VLOOKUP(B6,Centro_Custo!$A$2:$C$36,3) -> Encargos de Gestão | E6: Fixo | F6: =SUMIFS('Classificação OPEX'!$O$4:$O$1666,'Classificação OPEX'!$Q$4:$Q$1666,"N",'Classificação OPEX'!$S$4:$S$1666,"NÃO",'Classificação OPEX'!$V$4:$V$1666,DRIVER_OPEX!A6,'Classificação OPEX'!$W$4:$W$1666,DRIVER_OPEX!B6) -> 1998063.827 | G6: =IF($F6="",0,VLOOKUP($E6,Drivers!$A$26:$F$48,MATCH(G$1,Drivers!$A$25:$F$25,0),0)*$F6) -> 1998063.827 | H6: =IF($F6="",0,VLOOKUP($E6,Drivers!$A$26:$F$48,MATCH(H$1,Drivers!$A$25:$F$25,0),0)*$F6) -> 1998063.827 | I6: =IF($F6="",0,VLOOKUP($E6,Drivers!$A$26:$F$48,MATCH(I$1,Drivers!$A$25:$F$25,0),0)*$F6) -> 1998063.827 | J6: =IF($F6="",0,VLOOKUP($E6,Drivers!$A$26:$F$48,MATCH(J$1,Drivers!$A$25:$F$25,0),0)*$F6) -> 1998063.827 | K6: =IF($F6="",0,VLOOKUP($E6,Drivers!$A$26:$F$48,MATCH(K$1,Drivers!$A$25:$F$25,0),0)*$F6) -> 1998063.827
A7: ALUGUÉIS | B7: 4300 | C7: =VLOOKUP(B7,Centro_Custo!$A$2:$B$36,2,0) -> GERÊNCIA DE TECNOLOGIA E SISTEMAS DE INFORMAÇÃO | D7: =VLOOKUP(B7,Centro_Custo!$A$2:$C$36,3) -> Encargos de Gestão | E7: Fixo | F7: =SUMIFS('Classificação OPEX'!$O$4:$O$1666,'Classificação OPEX'!$Q$4:$Q$1666,"N",'Classificação OPEX'!$S$4:$S$1666,"NÃO",'Classificação OPEX'!$V$4:$V$1666,DRIVER_OPEX!A7,'Classificação OPEX'!$W$4:$W$1666,DRIVER_OPEX!B7) -> 138429.0379 | G7: =IF($F7="",0,VLOOKUP($E7,Drivers!$A$26:$F$48,MATCH(G$1,Drivers!$A$25:$F$25,0),0)*$F7) -> 138429.0379 | H7: =IF($F7="",0,VLOOKUP($E7,Drivers!$A$26:$F$48,MATCH(H$1,Drivers!$A$25:$F$25,0),0)*$F7) -> 138429.0379 | I7: =IF($F7="",0,VLOOKUP($E7,Drivers!$A$26:$F$48,MATCH(I$1,Drivers!$A$25:$F$25,0),0)*$F7) -> 138429.0379 | J7: =IF($F7="",0,VLOOKUP($E7,Drivers!$A$26:$F$48,MATCH(J$1,Drivers!$A$25:$F$25,0),0)*$F7) -> 138429.0379 | K7: =IF($F7="",0,VLOOKUP($E7,Drivers!$A$26:$F$48,MATCH(K$1,Drivers!$A$25:$F$25,0),0)*$F7) -> 138429.0379
A8: ALUGUÉIS | B8: 5100 | C8: =VLOOKUP(B8,Centro_Custo!$A$2:$B$36,2,0) -> GERÊNCIA DE ENGENHARIA | D8: =VLOOKUP(B8,Centro_Custo!$A$2:$C$36,3) -> OPEX&ODESP | E8: Fixo | F8: =SUMIFS('Classificação OPEX'!$O$4:$O$1666,'Classificação OPEX'!$Q$4:$Q$1666,"N",'Classificação OPEX'!$S$4:$S$1666,"NÃO",'Classificação OPEX'!$V$4:$V$1666,DRIVER_OPEX!A8,'Classificação OPEX'!$W$4:$W$1666,DRIVER_OPEX!B8) -> 50121.41833 | G8: =IF($F8="",0,VLOOKUP($E8,Drivers!$A$26:$F$48,MATCH(G$1,Drivers!$A$25:$F$25,0),0)*$F8) -> 50121.41833 | H8: =IF($F8="",0,VLOOKUP($E8,Drivers!$A$26:$F$48,MATCH(H$1,Drivers!$A$25:$F$25,0),0)*$F8) -> 50121.41833 | I8: =IF($F8="",0,VLOOKUP($E8,Drivers!$A$26:$F$48,MATCH(I$1,Drivers!$A$25:$F$25,0),0)*$F8) -> 50121.41833 | J8: =IF($F8="",0,VLOOKUP($E8,Drivers!$A$26:$F$48,MATCH(J$1,Drivers!$A$25:$F$25,0),0)*$F8) -> 50121.41833 | K8: =IF($F8="",0,VLOOKUP($E8,Drivers!$A$26:$F$48,MATCH(K$1,Drivers!$A$25:$F$25,0),0)*$F8) -> 50121.41833
A9: ALUGUÉIS | B9: 5200 | C9: =VLOOKUP(B9,Centro_Custo!$A$2:$B$36,2,0) -> GERÊNCIA DE OPERAÇÕES | D9: =VLOOKUP(B9,Centro_Custo!$A$2:$C$36,3) -> OPEX&ODESP | E9: Fixo | F9: =SUMIFS('Classificação OPEX'!$O$4:$O$1666,'Classificação OPEX'!$Q$4:$Q$1666,"N",'Classificação OPEX'!$S$4:$S$1666,"NÃO",'Classificação OPEX'!$V$4:$V$1666,DRIVER_OPEX!A9,'Classificação OPEX'!$W$4:$W$1666,DRIVER_OPEX!B9) -> 86249.53195 | G9: =IF($F9="",0,VLOOKUP($E9,Drivers!$A$26:$F$48,MATCH(G$1,Drivers!$A$25:$F$25,0),0)*$F9) -> 86249.53195 | H9: =IF($F9="",0,VLOOKUP($E9,Drivers!$A$26:$F$48,MATCH(H$1,Drivers!$A$25:$F$25,0),0)*$F9) -> 86249.53195 | I9: =IF($F9="",0,VLOOKUP($E9,Drivers!$A$26:$F$48,MATCH(I$1,Drivers!$A$25:$F$25,0),0)*$F9) -> 86249.53195 | J9: =IF($F9="",0,VLOOKUP($E9,Drivers!$A$26:$F$48,MATCH(J$1,Drivers!$A$25:$F$25,0),0)*$F9) -> 86249.53195 | K9: =IF($F9="",0,VLOOKUP($E9,Drivers!$A$26:$F$48,MATCH(K$1,Drivers!$A$25:$F$25,0),0)*$F9) -> 86249.53195
A10: ALUGUÉIS | B10: 9999 | C10: =VLOOKUP(B10,Centro_Custo!$A$2:$B$36,2,0) -> RATEIO | D10: =VLOOKUP(B10,Centro_Custo!$A$2:$C$36,3) -> Encargos de Gestão | E10: Município | F10: =SUMIFS('Classificação OPEX'!$O$4:$O$1666,'Classificação OPEX'!$Q$4:$Q$1666,"N",'Classificação OPEX'!$S$4:$S$1666,"NÃO",'Classificação OPEX'!$V$4:$V$1666,DRIVER_OPEX!A10,'Classificação OPEX'!$W$4:$W$1666,DRIVER_OPEX!B10) -> 0 | G10: =IF($F10="",0,VLOOKUP($E10,Drivers!$A$26:$F$48,MATCH(G$1,Drivers!$A$25:$F$25,0),0)*$F10) -> 0 | H10: =IF($F10="",0,VLOOKUP($E10,Drivers!$A$26:$F$48,MATCH(H$1,Drivers!$A$25:$F$25,0),0)*$F10) -> 0 | I10: =IF($F10="",0,VLOOKUP($E10,Drivers!$A$26:$F$48,MATCH(I$1,Drivers!$A$25:$F$25,0),0)*$F10) -> 0 | J10: =IF($F10="",0,VLOOKUP($E10,Drivers!$A$26:$F$48,MATCH(J$1,Drivers!$A$25:$F$25,0),0)*$F10) -> 0 | K10: =IF($F10="",0,VLOOKUP($E10,Drivers!$A$26:$F$48,MATCH(K$1,Drivers!$A$25:$F$25,0),0)*$F10) -> 0
A11: ALUGUÉIS | B11: 1001 | C11: CONSELHO DE ADMINISTRAÇÃO | D11: =VLOOKUP(B11,Centro_Custo!$A$2:$C$36,3) -> Encargos de Gestão | E11: Fixo | F11: =SUMIFS('Classificação OPEX'!$O$4:$O$1666,'Classificação OPEX'!$Q$4:$Q$1666,"N",'Classificação OPEX'!$S$4:$S$1666,"NÃO",'Classificação OPEX'!$V$4:$V$1666,DRIVER_OPEX!A11,'Classificação OPEX'!$W$4:$W$1666,DRIVER_OPEX!B11) -> 0 | G11: =IF($F11="",0,VLOOKUP($E11,Drivers!$A$26:$F$48,MATCH(G$1,Drivers!$A$25:$F$25,0),0)*$F11) -> 0 | H11: =IF($F11="",0,VLOOKUP($E11,Drivers!$A$26:$F$48,MATCH(H$1,Drivers!$A$25:$F$25,0),0)*$F11) -> 0 | I11: =IF($F11="",0,VLOOKUP($E11,Drivers!$A$26:$F$48,MATCH(I$1,Drivers!$A$25:$F$25,0),0)*$F11) -> 0 | J11: =IF($F11="",0,VLOOKUP($E11,Drivers!$A$26:$F$48,MATCH(J$1,Drivers!$A$25:$F$25,0),0)*$F11) -> 0 | K11: =IF($F11="",0,VLOOKUP($E11,Drivers!$A$26:$F$48,MATCH(K$1,Drivers!$A$25:$F$25,0),0)*$F11) -> 0
A12: ALUGUÉIS | B12: 1002 | C12: CONSELHO FISCAL | D12: =VLOOKUP(B12,Centro_Custo!$A$2:$C$36,3) -> Encargos de Gestão | E12: Fixo | F12: =SUMIFS('Classificação OPEX'!$O$4:$O$1666,'Classificação OPEX'!$Q$4:$Q$1666,"N",'Classificação OPEX'!$S$4:$S$1666,"NÃO",'Classificação OPEX'!$V$4:$V$1666,DRIVER_OPEX!A12,'Classificação OPEX'!$W$4:$W$1666,DRIVER_OPEX!B12) -> 0 | G12: =IF($F12="",0,VLOOKUP($E12,Drivers!$A$26:$F$48,MATCH(G$1,Drivers!$A$25:$F$25,0),0)*$F12) -> 0 | H12: =IF($F12="",0,VLOOKUP($E12,Drivers!$A$26:$F$48,MATCH(H$1,Drivers!$A$25:$F$25,0),0)*$F12) -> 0 | I12: =IF($F12="",0,VLOOKUP($E12,Drivers!$A$26:$F$48,MATCH(I$1,Drivers!$A$25:$F$25,0),0)*$F12) -> 0 | J12: =IF($F12="",0,VLOOKUP($E12,Drivers!$A$26:$F$48,MATCH(J$1,Drivers!$A$25:$F$25,0),0)*$F12) -> 0 | K12: =IF($F12="",0,VLOOKUP($E12,Drivers!$A$26:$F$48,MATCH(K$1,Drivers!$A$25:$F$25,0),0)*$F12) -> 0
A13: ALUGUÉIS | B13: 1003 | C13: COMITÊ DE INDICAÇÃO E AVALIAÇÃO | D13: =VLOOKUP(B13,Centro_Custo!$A$2:$C$36,3) -> Encargos de Gestão | E13: Fixo | F13: =SUMIFS('Classificação OPEX'!$O$4:$O$1666,'Classificação OPEX'!$Q$4:$Q$1666,"N",'Classificação OPEX'!$S$4:$S$1666,"NÃO",'Classificação OPEX'!$V$4:$V$1666,DRIVER_OPEX!A13,'Classificação OPEX'!$W$4:$W$1666,DRIVER_OPEX!B13) -> 0 | G13: =IF($F13="",0,VLOOKUP($E13,Drivers!$A$26:$F$48,MATCH(G$1,Drivers!$A$25:$F$25,0),0)*$F13) -> 0 | H13: =IF($F13="",0,VLOOKUP($E13,Drivers!$A$26:$F$48,MATCH(H$1,Drivers!$A$25:$F$25,0),0)*$F13) -> 0 | I13: =IF($F13="",0,VLOOKUP($E13,Drivers!$A$26:$F$48,MATCH(I$1,Drivers!$A$25:$F$25,0),0)*$F13) -> 0 | J13: =IF($F13="",0,VLOOKUP($E13,Drivers!$A$26:$F$48,MATCH(J$1,Drivers!$A$25:$F$25,0),0)*$F13) -> 0 | K13: =IF($F13="",0,VLOOKUP($E13,Drivers!$A$26:$F$48,MATCH(K$1,Drivers!$A$25:$F$25,0),0)*$F13) -> 0
A14: ALUGUÉIS | B14: 1004 | C14: COMITÊ DE AUDITORIA ESTATUTÁRIA | D14: =VLOOKUP(B14,Centro_Custo!$A$2:$C$36,3) -> Encargos de Gestão | E14: Fixo | F14: =SUMIFS('Classificação OPEX'!$O$4:$O$1666,'Classificação OPEX'!$Q$4:$Q$1666,"N",'Classificação OPEX'!$S$4:$S$1666,"NÃO",'Classificação OPEX'!$V$4:$V$1666,DRIVER_OPEX!A14,'Classificação OPEX'!$W$4:$W$1666,DRIVER_OPEX!B14) -> 0 | G14: =IF($F14="",0,VLOOKUP($E14,Drivers!$A$26:$F$48,MATCH(G$1,Drivers!$A$25:$F$25,0),0)*$F14) -> 0 | H14: =IF($F14="",0,VLOOKUP($E14,Drivers!$A$26:$F$48,MATCH(H$1,Drivers!$A$25:$F$25,0),0)*$F14) -> 0 | I14: =IF($F14="",0,VLOOKUP($E14,Drivers!$A$26:$F$48,MATCH(I$1,Drivers!$A$25:$F$25,0),0)*$F14) -> 0 | J14: =IF($F14="",0,VLOOKUP($E14,Drivers!$A$26:$F$48,MATCH(J$1,Drivers!$A$25:$F$25,0),0)*$F14) -> 0 | K14: =IF($F14="",0,VLOOKUP($E14,Drivers!$A$26:$F$48,MATCH(K$1,Drivers!$A$25:$F$25,0),0)*$F14) -> 0
A15: ALUGUÉIS | B15: 1005 | C15: AUDITORIA INTERNA | D15: =VLOOKUP(B15,Centro_Custo!$A$2:$C$36,3) -> Encargos de Gestão | E15: Fixo | F15: =SUMIFS('Classificação OPEX'!$O$4:$O$1666,'Classificação OPEX'!$Q$4:$Q$1666,"N",'Classificação OPEX'!$S$4:$S$1666,"NÃO",'Classificação OPEX'!$V$4:$V$1666,DRIVER_OPEX!A15,'Classificação OPEX'!$W$4:$W$1666,DRIVER_OPEX!B15) -> 1733.968821 | G15: =IF($F15="",0,VLOOKUP($E15,Drivers!$A$26:$F$48,MATCH(G$1,Drivers!$A$25:$F$25,0),0)*$F15) -> 1733.968821 | H15: =IF($F15="",0,VLOOKUP($E15,Drivers!$A$26:$F$48,MATCH(H$1,Drivers!$A$25:$F$25,0),0)*$F15) -> 1733.968821 | I15: =IF($F15="",0,VLOOKUP($E15,Drivers!$A$26:$F$48,MATCH(I$1,Drivers!$A$25:$F$25,0),0)*$F15) -> 1733.968821 | J15: =IF($F15="",0,VLOOKUP($E15,Drivers!$A$26:$F$48,MATCH(J$1,Drivers!$A$25:$F$25,0),0)*$F15) -> 1733.968821 | K15: =IF($F15="",0,VLOOKUP($E15,Drivers!$A$26:$F$48,MATCH(K$1,Drivers!$A$25:$F$25,0),0)*$F15) -> 1733.968821
A16: ALUGUÉIS | B16: 1010 | C16: GOVERNANÇA SOCIETÁRIA | D16: =VLOOKUP(B16,Centro_Custo!$A$2:$C$36,3) -> Encargos de Gestão | E16: Fixo | F16: =SUMIFS('Classificação OPEX'!$O$4:$O$1666,'Classificação OPEX'!$Q$4:$Q$1666,"N",'Classificação OPEX'!$S$4:$S$1666,"NÃO",'Classificação OPEX'!$V$4:$V$1666,DRIVER_OPEX!A16,'Classificação OPEX'!$W$4:$W$1666,DRIVER_OPEX!B16) -> 0 | G16: =IF($F16="",0,VLOOKUP($E16,Drivers!$A$26:$F$48,MATCH(G$1,Drivers!$A$25:$F$25,0),0)*$F16) -> 0 | H16: =IF($F16="",0,VLOOKUP($E16,Drivers!$A$26:$F$48,MATCH(H$1,Drivers!$A$25:$F$25,0),0)*$F16) -> 0 | I16: =IF($F16="",0,VLOOKUP($E16,Drivers!$A$26:$F$48,MATCH(I$1,Drivers!$A$25:$F$25,0),0)*$F16) -> 0 | J16: =IF($F16="",0,VLOOKUP($E16,Drivers!$A$26:$F$48,MATCH(J$1,Drivers!$A$25:$F$25,0),0)*$F16) -> 0 | K16: =IF($F16="",0,VLOOKUP($E16,Drivers!$A$26:$F$48,MATCH(K$1,Drivers!$A$25:$F$25,0),0)*$F16) -> 0
A17: ALUGUÉIS | B17: 2100 | C17: SECRETARIA | D17: =VLOOKUP(B17,Centro_Custo!$A$2:$C$36,3) -> Encargos de Gestão | E17: Fixo | F17: =SUMIFS('Classificação OPEX'!$O$4:$O$1666,'Classificação OPEX'!$Q$4:$Q$1666,"N",'Classificação OPEX'!$S$4:$S$1666,"NÃO",'Classificação OPEX'!$V$4:$V$1666,DRIVER_OPEX!A17,'Classificação OPEX'!$W$4:$W$1666,DRIVER_OPEX!B17) -> 270.5750003 | G17: =IF($F17="",0,VLOOKUP($E17,Drivers!$A$26:$F$48,MATCH(G$1,Drivers!$A$25:$F$25,0),0)*$F17) -> 270.5750003 | H17: =IF($F17="",0,VLOOKUP($E17,Drivers!$A$26:$F$48,MATCH(H$1,Drivers!$A$25:$F$25,0),0)*$F17) -> 270.5750003 | I17: =IF($F17="",0,VLOOKUP($E17,Drivers!$A$26:$F$48,MATCH(I$1,Drivers!$A$25:$F$25,0),0)*$F17) -> 270.5750003 | J17: =IF($F17="",0,VLOOKUP($E17,Drivers!$A$26:$F$48,MATCH(J$1,Drivers!$A$25:$F$25,0),0)*$F17) -> 270.5750003 | K17: =IF($F17="",0,VLOOKUP($E17,Drivers!$A$26:$F$48,MATCH(K$1,Drivers!$A$25:$F$25,0),0)*$F17) -> 270.5750003
A18: ALUGUÉIS | B18: 2110 | C18: ASSESSORIA DA DIRETORIA EXECUTIVA | D18: =VLOOKUP(B18,Centro_Custo!$A$2:$C$36,3) -> Encargos de Gestão | E18: Fixo | F18: =SUMIFS('Classificação OPEX'!$O$4:$O$1666,'Classificação OPEX'!$Q$4:$Q$1666,"N",'Classificação OPEX'!$S$4:$S$1666,"NÃO",'Classificação OPEX'!$V$4:$V$1666,DRIVER_OPEX!A18,'Classificação OPEX'!$W$4:$W$1666,DRIVER_OPEX!B18) -> 4253.288801 | G18: =IF($F18="",0,VLOOKUP($E18,Drivers!$A$26:$F$48,MATCH(G$1,Drivers!$A$25:$F$25,0),0)*$F18) -> 4253.288801 | H18: =IF($F18="",0,VLOOKUP($E18,Drivers!$A$26:$F$48,MATCH(H$1,Drivers!$A$25:$F$25,0),0)*$F18) -> 4253.288801 | I18: =IF($F18="",0,VLOOKUP($E18,Drivers!$A$26:$F$48,MATCH(I$1,Drivers!$A$25:$F$25,0),0)*$F18) -> 4253.288801 | J18: =IF($F18="",0,VLOOKUP($E18,Drivers!$A$26:$F$48,MATCH(J$1,Drivers!$A$25:$F$25,0),0)*$F18) -> 4253.288801 | K18: =IF($F18="",0,VLOOKUP($E18,Drivers!$A$26:$F$48,MATCH(K$1,Drivers!$A$25:$F$25,0),0)*$F18) -> 4253.288801
A19: ALUGUÉIS | B19: 2120 | C19: ASSESSORIA DA PRESIDÊNCIA | D19: =VLOOKUP(B19,Centro_Custo!$A$2:$C$36,3) -> Encargos de Gestão | E19: Fixo | F19: =SUMIFS('Classificação OPEX'!$O$4:$O$1666,'Classificação OPEX'!$Q$4:$Q$1666,"N",'Classificação OPEX'!$S$4:$S$1666,"NÃO",'Classificação OPEX'!$V$4:$V$1666,DRIVER_OPEX!A19,'Classificação OPEX'!$W$4:$W$1666,DRIVER_OPEX!B19) -> 5259.073908 | G19: =IF($F19="",0,VLOOKUP($E19,Drivers!$A$26:$F$48,MATCH(G$1,Drivers!$A$25:$F$25,0),0)*$F19) -> 5259.073908 | H19: =IF($F19="",0,VLOOKUP($E19,Drivers!$A$26:$F$48,MATCH(H$1,Drivers!$A$25:$F$25,0),0)*$F19) -> 5259.073908 | I19: =IF($F19="",0,VLOOKUP($E19,Drivers!$A$26:$F$48,MATCH(I$1,Drivers!$A$25:$F$25,0),0)*$F19) -> 5259.073908 | J19: =IF($F19="",0,VLOOKUP($E19,Drivers!$A$26:$F$48,MATCH(J$1,Drivers!$A$25:$F$25,0),0)*$F19) -> 5259.073908 | K19: =IF($F19="",0,VLOOKUP($E19,Drivers!$A$26:$F$48,MATCH(K$1,Drivers!$A$25:$F$25,0),0)*$F19) -> 5259.073908
A20: ALUGUÉIS | B20: 2140 | C20: ASSESSORIA DTC | D20: =VLOOKUP(B20,Centro_Custo!$A$2:$C$36,3) -> Encargos de Comercialização | E20: Fixo | F20: =SUMIFS('Classificação OPEX'!$O$4:$O$1666,'Classificação OPEX'!$Q$4:$Q$1666,"N",'Classificação OPEX'!$S$4:$S$1666,"NÃO",'Classificação OPEX'!$V$4:$V$1666,DRIVER_OPEX!A20,'Classificação OPEX'!$W$4:$W$1666,DRIVER_OPEX!B20) -> 0 | G20: =IF($F20="",0,VLOOKUP($E20,Drivers!$A$26:$F$48,MATCH(G$1,Drivers!$A$25:$F$25,0),0)*$F20) -> 0 | H20: =IF($F20="",0,VLOOKUP($E20,Drivers!$A$26:$F$48,MATCH(H$1,Drivers!$A$25:$F$25,0),0)*$F20) -> 0 | I20: =IF($F20="",0,VLOOKUP($E20,Drivers!$A$26:$F$48,MATCH(I$1,Drivers!$A$25:$F$25,0),0)*$F20) -> 0 | J20: =IF($F20="",0,VLOOKUP($E20,Drivers!$A$26:$F$48,MATCH(J$1,Drivers!$A$25:$F$25,0),0)*$F20) -> 0 | K20: =IF($F20="",0,VLOOKUP($E20,Drivers!$A$26:$F$48,MATCH(K$1,Drivers!$A$25:$F$25,0),0)*$F20) -> 0
A21: ALUGUÉIS | B21: 2200 | C21: DIRETORIA COLEGIADA - PRESIDÊNCIA | D21: =VLOOKUP(B21,Centro_Custo!$A$2:$C$36,3) -> Encargos de Gestão | E21: Fixo | F21: =SUMIFS('Classificação OPEX'!$O$4:$O$1666,'Classificação OPEX'!$Q$4:$Q$1666,"N",'Classificação OPEX'!$S$4:$S$1666,"NÃO",'Classificação OPEX'!$V$4:$V$1666,DRIVER_OPEX!A21,'Classificação OPEX'!$W$4:$W$1666,DRIVER_OPEX!B21) -> -652.7275513 | G21: =IF($F21="",0,VLOOKUP($E21,Drivers!$A$26:$F$48,MATCH(G$1,Drivers!$A$25:$F$25,0),0)*$F21) -> -652.7275513 | H21: =IF($F21="",0,VLOOKUP($E21,Drivers!$A$26:$F$48,MATCH(H$1,Drivers!$A$25:$F$25,0),0)*$F21) -> -652.7275513 | I21: =IF($F21="",0,VLOOKUP($E21,Drivers!$A$26:$F$48,MATCH(I$1,Drivers!$A$25:$F$25,0),0)*$F21) -> -652.7275513 | J21: =IF($F21="",0,VLOOKUP($E21,Drivers!$A$26:$F$48,MATCH(J$1,Drivers!$A$25:$F$25,0),0)*$F21) -> -652.7275513 | K21: =IF($F21="",0,VLOOKUP($E21,Drivers!$A$26:$F$48,MATCH(K$1,Drivers!$A$25:$F$25,0),0)*$F21) -> -652.7275513
A22: ALUGUÉIS | B22: 2300 | C22: DIRETORIA COLEGIADA - DAF | D22: =VLOOKUP(B22,Centro_Custo!$A$2:$C$36,3) -> Encargos de Gestão | E22: Fixo | F22: =SUMIFS('Classificação OPEX'!$O$4:$O$1666,'Classificação OPEX'!$Q$4:$Q$1666,"N",'Classificação OPEX'!$S$4:$S$1666,"NÃO",'Classificação OPEX'!$V$4:$V$1666,DRIVER_OPEX!A22,'Classificação OPEX'!$W$4:$W$1666,DRIVER_OPEX!B22) -> 430.1796006 | G22: =IF($F22="",0,VLOOKUP($E22,Drivers!$A$26:$F$48,MATCH(G$1,Drivers!$A$25:$F$25,0),0)*$F22) -> 430.1796006 | H22: =IF($F22="",0,VLOOKUP($E22,Drivers!$A$26:$F$48,MATCH(H$1,Drivers!$A$25:$F$25,0),0)*$F22) -> 430.1796006 | I22: =IF($F22="",0,VLOOKUP($E22,Drivers!$A$26:$F$48,MATCH(I$1,Drivers!$A$25:$F$25,0),0)*$F22) -> 430.1796006 | J22: =IF($F22="",0,VLOOKUP($E22,Drivers!$A$26:$F$48,MATCH(J$1,Drivers!$A$25:$F$25,0),0)*$F22) -> 430.1796006 | K22: =IF($F22="",0,VLOOKUP($E22,Drivers!$A$26:$F$48,MATCH(K$1,Drivers!$A$25:$F$25,0),0)*$F22) -> 430.1796006
A23: ALUGUÉIS | B23: 2310 | C23: ASSESSORIA DAF | D23: =VLOOKUP(B23,Centro_Custo!$A$2:$C$36,3) -> Encargos de Gestão | E23: Fixo | F23: =SUMIFS('Classificação OPEX'!$O$4:$O$1666,'Classificação OPEX'!$Q$4:$Q$1666,"N",'Classificação OPEX'!$S$4:$S$1666,"NÃO",'Classificação OPEX'!$V$4:$V$1666,DRIVER_OPEX!A23,'Classificação OPEX'!$W$4:$W$1666,DRIVER_OPEX!B23) -> 1733.973347 | G23: =IF($F23="",0,VLOOKUP($E23,Drivers!$A$26:$F$48,MATCH(G$1,Drivers!$A$25:$F$25,0),0)*$F23) -> 1733.973347 | H23: =IF($F23="",0,VLOOKUP($E23,Drivers!$A$26:$F$48,MATCH(H$1,Drivers!$A$25:$F$25,0),0)*$F23) -> 1733.973347 | I23: =IF($F23="",0,VLOOKUP($E23,Drivers!$A$26:$F$48,MATCH(I$1,Drivers!$A$25:$F$25,0),0)*$F23) -> 1733.973347 | J23: =IF($F23="",0,VLOOKUP($E23,Drivers!$A$26:$F$48,MATCH(J$1,Drivers!$A$25:$F$25,0),0)*$F23) -> 1733.973347 | K23: =IF($F23="",0,VLOOKUP($E23,Drivers!$A$26:$F$48,MATCH(K$1,Drivers!$A$25:$F$25,0),0)*$F23) -> 1733.973347
A24: ALUGUÉIS | B24: 2410 | C24: ASSESSORIA DE SEGURANÇA DO TRABALHO | D24: =VLOOKUP(B24,Centro_Custo!$A$2:$C$36,3) -> OPEX&ODESP | E24: Fixo | F24: =SUMIFS('Classificação OPEX'!$O$4:$O$1666,'Classificação OPEX'!$Q$4:$Q$1666,"N",'Classificação OPEX'!$S$4:$S$1666,"NÃO",'Classificação OPEX'!$V$4:$V$1666,DRIVER_OPEX!A24,'Classificação OPEX'!$W$4:$W$1666,DRIVER_OPEX!B24) -> 0 | G24: =IF($F24="",0,VLOOKUP($E24,Drivers!$A$26:$F$48,MATCH(G$1,Drivers!$A$25:$F$25,0),0)*$F24) -> 0 | H24: =IF($F24="",0,VLOOKUP($E24,Drivers!$A$26:$F$48,MATCH(H$1,Drivers!$A$25:$F$25,0),0)*$F24) -> 0 | I24: =IF($F24="",0,VLOOKUP($E24,Drivers!$A$26:$F$48,MATCH(I$1,Drivers!$A$25:$F$25,0),0)*$F24) -> 0 | J24: =IF($F24="",0,VLOOKUP($E24,Drivers!$A$26:$F$48,MATCH(J$1,Drivers!$A$25:$F$25,0),0)*$F24) -> 0 | K24: =IF($F24="",0,VLOOKUP($E24,Drivers!$A$26:$F$48,MATCH(K$1,Drivers!$A$25:$F$25,0),0)*$F24) -> 0
A25: ALUGUÉIS | B25: 3100 | C25: SMS | D25: =VLOOKUP(B25,Centro_Custo!$A$2:$C$36,3) -> OPEX&ODESP | E25: Fixo | F25: =SUMIFS('Classificação OPEX'!$O$4:$O$1666,'Classificação OPEX'!$Q$4:$Q$1666,"N",'Classificação OPEX'!$S$4:$S$1666,"NÃO",'Classificação OPEX'!$V$4:$V$1666,DRIVER_OPEX!A25,'Classificação OPEX'!$W$4:$W$1666,DRIVER_OPEX!B25) -> 105.129027 | G25: =IF($F25="",0,VLOOKUP($E25,Drivers!$A$26:$F$48,MATCH(G$1,Drivers!$A$25:$F$25,0),0)*$F25) -> 105.129027 | H25: =IF($F25="",0,VLOOKUP($E25,Drivers!$A$26:$F$48,MATCH(H$1,Drivers!$A$25:$F$25,0),0)*$F25) -> 105.129027 | I25: =IF($F25="",0,VLOOKUP($E25,Drivers!$A$26:$F$48,MATCH(I$1,Drivers!$A$25:$F$25,0),0)*$F25) -> 105.129027 | J25: =IF($F25="",0,VLOOKUP($E25,Drivers!$A$26:$F$48,MATCH(J$1,Drivers!$A$25:$F$25,0),0)*$F25) -> 105.129027 | K25: =IF($F25="",0,VLOOKUP($E25,Drivers!$A$26:$F$48,MATCH(K$1,Drivers!$A$25:$F$25,0),0)*$F25) -> 105.129027
A26: ALUGUÉIS | B26: 3200 | C26: GERÊNCIA DE PLANEJAMENTO E MEIO AMBIENTE | D26: =VLOOKUP(B26,Centro_Custo!$A$2:$C$36,3) -> OPEX&ODESP | E26: Fixo | F26: =SUMIFS('Classificação OPEX'!$O$4:$O$1666,'Classificação OPEX'!$Q$4:$Q$1666,"N",'Classificação OPEX'!$S$4:$S$1666,"NÃO",'Classificação OPEX'!$V$4:$V$1666,DRIVER_OPEX!A26,'Classificação OPEX'!$W$4:$W$1666,DRIVER_OPEX!B26) -> 24820.18142 | G26: =IF($F26="",0,VLOOKUP($E26,Drivers!$A$26:$F$48,MATCH(G$1,Drivers!$A$25:$F$25,0),0)*$F26) -> 24820.18142 | H26: =IF($F26="",0,VLOOKUP($E26,Drivers!$A$26:$F$48,MATCH(H$1,Drivers!$A$25:$F$25,0),0)*$F26) -> 24820.18142 | I26: =IF($F26="",0,VLOOKUP($E26,Drivers!$A$26:$F$48,MATCH(I$1,Drivers!$A$25:$F$25,0),0)*$F26) -> 24820.18142 | J26: =IF($F26="",0,VLOOKUP($E26,Drivers!$A$26:$F$48,MATCH(J$1,Drivers!$A$25:$F$25,0),0)*$F26) -> 24820.18142 | K26: =IF($F26="",0,VLOOKUP($E26,Drivers!$A$26:$F$48,MATCH(K$1,Drivers!$A$25:$F$25,0),0)*$F26) -> 24820.18142
A27: ALUGUÉIS | B27: 3300 | C27: GERÊNCIA JURÍDICA | D27: =VLOOKUP(B27,Centro_Custo!$A$2:$C$36,3) -> Encargos de Gestão | E27: Fixo | F27: =SUMIFS('Classificação OPEX'!$O$4:$O$1666,'Classificação OPEX'!$Q$4:$Q$1666,"N",'Classificação OPEX'!$S$4:$S$1666,"NÃO",'Classificação OPEX'!$V$4:$V$1666,DRIVER_OPEX!A27,'Classificação OPEX'!$W$4:$W$1666,DRIVER_OPEX!B27) -> 8751.492991 | G27: =IF($F27="",0,VLOOKUP($E27,Drivers!$A$26:$F$48,MATCH(G$1,Drivers!$A$25:$F$25,0),0)*$F27) -> 8751.492991 | H27: =IF($F27="",0,VLOOKUP($E27,Drivers!$A$26:$F$48,MATCH(H$1,Drivers!$A$25:$F$25,0),0)*$F27) -> 8751.492991 | I27: =IF($F27="",0,VLOOKUP($E27,Drivers!$A$26:$F$48,MATCH(I$1,Drivers!$A$25:$F$25,0),0)*$F27) -> 8751.492991 | J27: =IF($F27="",0,VLOOKUP($E27,Drivers!$A$26:$F$48,MATCH(J$1,Drivers!$A$25:$F$25,0),0)*$F27) -> 8751.492991 | K27: =IF($F27="",0,VLOOKUP($E27,Drivers!$A$26:$F$48,MATCH(K$1,Drivers!$A$25:$F$25,0),0)*$F27) -> 8751.492991
A28: ALUGUÉIS | B28: 3400 | C28: MARKETING | D28: =VLOOKUP(B28,Centro_Custo!$A$2:$C$36,3) -> Encargos de Comercialização | E28: Fixo | F28: =SUMIFS('Classificação OPEX'!$O$4:$O$1666,'Classificação OPEX'!$Q$4:$Q$1666,"N",'Classificação OPEX'!$S$4:$S$1666,"NÃO",'Classificação OPEX'!$V$4:$V$1666,DRIVER_OPEX!A28,'Classificação OPEX'!$W$4:$W$1666,DRIVER_OPEX!B28) -> 2066.650696 | G28: =IF($F28="",0,VLOOKUP($E28,Drivers!$A$26:$F$48,MATCH(G$1,Drivers!$A$25:$F$25,0),0)*$F28) -> 2066.650696 | H28: =IF($F28="",0,VLOOKUP($E28,Drivers!$A$26:$F$48,MATCH(H$1,Drivers!$A$25:$F$25,0),0)*$F28) -> 2066.650696 | I28: =IF($F28="",0,VLOOKUP($E28,Drivers!$A$26:$F$48,MATCH(I$1,Drivers!$A$25:$F$25,0),0)*$F28) -> 2066.650696 | J28: =IF($F28="",0,VLOOKUP($E28,Drivers!$A$26:$F$48,MATCH(J$1,Drivers!$A$25:$F$25,0),0)*$F28) -> 2066.650696 | K28: =IF($F28="",0,VLOOKUP($E28,Drivers!$A$26:$F$48,MATCH(K$1,Drivers!$A$25:$F$25,0),0)*$F28) -> 2066.650696
A29: ALUGUÉIS | B29: 3500 | C29: ASSESSORIA DE COMUNICAÇÃO INSTITUCIONAL | D29: =VLOOKUP(B29,Centro_Custo!$A$2:$C$36,3) -> Encargos de Gestão | E29: Fixo | F29: =SUMIFS('Classificação OPEX'!$O$4:$O$1666,'Classificação OPEX'!$Q$4:$Q$1666,"N",'Classificação OPEX'!$S$4:$S$1666,"NÃO",'Classificação OPEX'!$V$4:$V$1666,DRIVER_OPEX!A29,'Classificação OPEX'!$W$4:$W$1666,DRIVER_OPEX!B29) -> 9353.237424 | G29: =IF($F29="",0,VLOOKUP($E29,Drivers!$A$26:$F$48,MATCH(G$1,Drivers!$A$25:$F$25,0),0)*$F29) -> 9353.237424 | H29: =IF($F29="",0,VLOOKUP($E29,Drivers!$A$26:$F$48,MATCH(H$1,Drivers!$A$25:$F$25,0),0)*$F29) -> 9353.237424 | I29: =IF($F29="",0,VLOOKUP($E29,Drivers!$A$26:$F$48,MATCH(I$1,Drivers!$A$25:$F$25,0),0)*$F29) -> 9353.237424 | J29: =IF($F29="",0,VLOOKUP($E29,Drivers!$A$26:$F$48,MATCH(J$1,Drivers!$A$25:$F$25,0),0)*$F29) -> 9353.237424 | K29: =IF($F29="",0,VLOOKUP($E29,Drivers!$A$26:$F$48,MATCH(K$1,Drivers!$A$25:$F$25,0),0)*$F29) -> 9353.237424
A30: ALUGUÉIS | B30: 3600 | C30: GERÊNCIA DE GOVERNANÇA, RISCO E COMPLIANCE | D30: =VLOOKUP(B30,Centro_Custo!$A$2:$C$36,3) -> Encargos de Gestão | E30: Fixo | F30: =SUMIFS('Classificação OPEX'!$O$4:$O$1666,'Classificação OPEX'!$Q$4:$Q$1666,"N",'Classificação OPEX'!$S$4:$S$1666,"NÃO",'Classificação OPEX'!$V$4:$V$1666,DRIVER_OPEX!A30,'Classificação OPEX'!$W$4:$W$1666,DRIVER_OPEX!B30) -> 11597.46183 | G30: =IF($F30="",0,VLOOKUP($E30,Drivers!$A$26:$F$48,MATCH(G$1,Drivers!$A$25:$F$25,0),0)*$F30) -> 11597.46183 | H30: =IF($F30="",0,VLOOKUP($E30,Drivers!$A$26:$F$48,MATCH(H$1,Drivers!$A$25:$F$25,0),0)*$F30) -> 11597.46183 | I30: =IF($F30="",0,VLOOKUP($E30,Drivers!$A$26:$F$48,MATCH(I$1,Drivers!$A$25:$F$25,0),0)*$F30) -> 11597.46183 | J30: =IF($F30="",0,VLOOKUP($E30,Drivers!$A$26:$F$48,MATCH(J$1,Drivers!$A$25:$F$25,0),0)*$F30) -> 11597.46183 | K30: =IF($F30="",0,VLOOKUP($E30,Drivers!$A$26:$F$48,MATCH(K$1,Drivers!$A$25:$F$25,0),0)*$F30) -> 11597.46183
A31: ALUGUÉIS | B31: 3700 | C31: GERÊNCIA DE REGULAÇÃO | D31: =VLOOKUP(B31,Centro_Custo!$A$2:$C$36,3) -> Encargos de Gestão | E31: Fixo | F31: =SUMIFS('Classificação OPEX'!$O$4:$O$1666,'Classificação OPEX'!$Q$4:$Q$1666,"N",'Classificação OPEX'!$S$4:$S$1666,"NÃO",'Classificação OPEX'!$V$4:$V$1666,DRIVER_OPEX!A31,'Classificação OPEX'!$W$4:$W$1666,DRIVER_OPEX!B31) -> 0 | G31: =IF($F31="",0,VLOOKUP($E31,Drivers!$A$26:$F$48,MATCH(G$1,Drivers!$A$25:$F$25,0),0)*$F31) -> 0 | H31: =IF($F31="",0,VLOOKUP($E31,Drivers!$A$26:$F$48,MATCH(H$1,Drivers!$A$25:$F$25,0),0)*$F31) -> 0 | I31: =IF($F31="",0,VLOOKUP($E31,Drivers!$A$26:$F$48,MATCH(I$1,Drivers!$A$25:$F$25,0),0)*$F31) -> 0 | J31: =IF($F31="",0,VLOOKUP($E31,Drivers!$A$26:$F$48,MATCH(J$1,Drivers!$A$25:$F$25,0),0)*$F31) -> 0 | K31: =IF($F31="",0,VLOOKUP($E31,Drivers!$A$26:$F$48,MATCH(K$1,Drivers!$A$25:$F$25,0),0)*$F31) -> 0
A32: ALUGUÉIS | B32: 4200 | C32: GERÊNCIA FINANCEIRA | D32: =VLOOKUP(B32,Centro_Custo!$A$2:$C$36,3) -> Encargos de Gestão | E32: Fixo | F32: =SUMIFS('Classificação OPEX'!$O$4:$O$1666,'Classificação OPEX'!$Q$4:$Q$1666,"N",'Classificação OPEX'!$S$4:$S$1666,"NÃO",'Classificação OPEX'!$V$4:$V$1666,DRIVER_OPEX!A32,'Classificação OPEX'!$W$4:$W$1666,DRIVER_OPEX!B32) -> 21852.3387 | G32: =IF($F32="",0,VLOOKUP($E32,Drivers!$A$26:$F$48,MATCH(G$1,Drivers!$A$25:$F$25,0),0)*$F32) -> 21852.3387 | H32: =IF($F32="",0,VLOOKUP($E32,Drivers!$A$26:$F$48,MATCH(H$1,Drivers!$A$25:$F$25,0),0)*$F32) -> 21852.3387 | I32: =IF($F32="",0,VLOOKUP($E32,Drivers!$A$26:$F$48,MATCH(I$1,Drivers!$A$25:$F$25,0),0)*$F32) -> 21852.3387 | J32: =IF($F32="",0,VLOOKUP($E32,Drivers!$A$26:$F$48,MATCH(J$1,Drivers!$A$25:$F$25,0),0)*$F32) -> 21852.3387 | K32: =IF($F32="",0,VLOOKUP($E32,Drivers!$A$26:$F$48,MATCH(K$1,Drivers!$A$25:$F$25,0),0)*$F32) -> 21852.3387
A33: ALUGUÉIS | B33: 4500 | C33: GERÊNCIA CONTÁBIL | D33: =VLOOKUP(B33,Centro_Custo!$A$2:$C$36,3) -> Encargos de Gestão | E33: Fixo | F33: =SUMIFS('Classificação OPEX'!$O$4:$O$1666,'Classificação OPEX'!$Q$4:$Q$1666,"N",'Classificação OPEX'!$S$4:$S$1666,"NÃO",'Classificação OPEX'!$V$4:$V$1666,DRIVER_OPEX!A33,'Classificação OPEX'!$W$4:$W$1666,DRIVER_OPEX!B33) -> 14628.47582 | G33: =IF($F33="",0,VLOOKUP($E33,Drivers!$A$26:$F$48,MATCH(G$1,Drivers!$A$25:$F$25,0),0)*$F33) -> 14628.47582 | H33: =IF($F33="",0,VLOOKUP($E33,Drivers!$A$26:$F$48,MATCH(H$1,Drivers!$A$25:$F$25,0),0)*$F33) -> 14628.47582 | I33: =IF($F33="",0,VLOOKUP($E33,Drivers!$A$26:$F$48,MATCH(I$1,Drivers!$A$25:$F$25,0),0)*$F33) -> 14628.47582 | J33: =IF($F33="",0,VLOOKUP($E33,Drivers!$A$26:$F$48,MATCH(J$1,Drivers!$A$25:$F$25,0),0)*$F33) -> 14628.47582 | K33: =IF($F33="",0,VLOOKUP($E33,Drivers!$A$26:$F$48,MATCH(K$1,Drivers!$A$25:$F$25,0),0)*$F33) -> 14628.47582
A34: ALUGUÉIS | B34: 4600 | C34: GERÊNCIA DE PESSOAS E CULTURA | D34: =VLOOKUP(B34,Centro_Custo!$A$2:$C$36,3) -> Encargos de Gestão | E34: Fixo | F34: =SUMIFS('Classificação OPEX'!$O$4:$O$1666,'Classificação OPEX'!$Q$4:$Q$1666,"N",'Classificação OPEX'!$S$4:$S$1666,"NÃO",'Classificação OPEX'!$V$4:$V$1666,DRIVER_OPEX!A34,'Classificação OPEX'!$W$4:$W$1666,DRIVER_OPEX!B34) -> 2066.650696 | G34: =IF($F34="",0,VLOOKUP($E34,Drivers!$A$26:$F$48,MATCH(G$1,Drivers!$A$25:$F$25,0),0)*$F34) -> 2066.650696 | H34: =IF($F34="",0,VLOOKUP($E34,Drivers!$A$26:$F$48,MATCH(H$1,Drivers!$A$25:$F$25,0),0)*$F34) -> 2066.650696 | I34: =IF($F34="",0,VLOOKUP($E34,Drivers!$A$26:$F$48,MATCH(I$1,Drivers!$A$25:$F$25,0),0)*$F34) -> 2066.650696 | J34: =IF($F34="",0,VLOOKUP($E34,Drivers!$A$26:$F$48,MATCH(J$1,Drivers!$A$25:$F$25,0),0)*$F34) -> 2066.650696 | K34: =IF($F34="",0,VLOOKUP($E34,Drivers!$A$26:$F$48,MATCH(K$1,Drivers!$A$25:$F$25,0),0)*$F34) -> 2066.650696
A35: ALUGUÉIS | B35: 5300 | C35: GERÊNCIA COMERCIAL | D35: =VLOOKUP(B35,Centro_Custo!$A$2:$C$36,3) -> Encargos de Comercialização | E35: Fixo | F35: =SUMIFS('Classificação OPEX'!$O$4:$O$1666,'Classificação OPEX'!$Q$4:$Q$1666,"N",'Classificação OPEX'!$S$4:$S$1666,"NÃO",'Classificação OPEX'!$V$4:$V$1666,DRIVER_OPEX!A35,'Classificação OPEX'!$W$4:$W$1666,DRIVER_OPEX!B35) -> 48097.30369 | G35: =IF($F35="",0,VLOOKUP($E35,Drivers!$A$26:$F$48,MATCH(G$1,Drivers!$A$25:$F$25,0),0)*$F35) -> 48097.30369 | H35: =IF($F35="",0,VLOOKUP($E35,Drivers!$A$26:$F$48,MATCH(H$1,Drivers!$A$25:$F$25,0),0)*$F35) -> 48097.30369 | I35: =IF($F35="",0,VLOOKUP($E35,Drivers!$A$26:$F$48,MATCH(I$1,Drivers!$A$25:$F$25,0),0)*$F35) -> 48097.30369 | J35: =IF($F35="",0,VLOOKUP($E35,Drivers!$A$26:$F$48,MATCH(J$1,Drivers!$A$25:$F$25,0),0)*$F35) -> 48097.30369 | K35: =IF($F35="",0,VLOOKUP($E35,Drivers!$A$26:$F$48,MATCH(K$1,Drivers!$A$25:$F$25,0),0)*$F35) -> 48097.30369
A36: ALUGUÉIS | B36: 0000 | C36: RATEIO | D36: =VLOOKUP(B36,Centro_Custo!$A$2:$C$36,3) -> Encargos de Gestão | E36: Município | F36: =SUMIFS('Classificação OPEX'!$O$4:$O$1666,'Classificação OPEX'!$Q$4:$Q$1666,"N",'Classificação OPEX'!$S$4:$S$1666,"NÃO",'Classificação OPEX'!$V$4:$V$1666,DRIVER_OPEX!A36,'Classificação OPEX'!$W$4:$W$1666,DRIVER_OPEX!B36) -> 0 | G36: =IF($F36="",0,VLOOKUP($E36,Drivers!$A$26:$F$48,MATCH(G$1,Drivers!$A$25:$F$25,0),0)*$F36) -> 0 | H36: =IF($F36="",0,VLOOKUP($E36,Drivers!$A$26:$F$48,MATCH(H$1,Drivers!$A$25:$F$25,0),0)*$F36) -> 0 | I36: =IF($F36="",0,VLOOKUP($E36,Drivers!$A$26:$F$48,MATCH(I$1,Drivers!$A$25:$F$25,0),0)*$F36) -> 0 | J36: =IF($F36="",0,VLOOKUP($E36,Drivers!$A$26:$F$48,MATCH(J$1,Drivers!$A$25:$F$25,0),0)*$F36) -> 0 | K36: =IF($F36="",0,VLOOKUP($E36,Drivers!$A$26:$F$48,MATCH(K$1,Drivers!$A$25:$F$25,0),0)*$F36) -> 0
A37: ALUGUÉIS | B37: 5400 | C37: GERÊNCIA COMERCIAL | D37: =VLOOKUP(B37,Centro_Custo!$A$2:$C$36,3) -> Encargos de Gestão | E37: Fixo | F37: =SUMIFS('Classificação OPEX'!$O$4:$O$1666,'Classificação OPEX'!$Q$4:$Q$1666,"N",'Classificação OPEX'!$S$4:$S$1666,"NÃO",'Classificação OPEX'!$V$4:$V$1666,DRIVER_OPEX!A37,'Classificação OPEX'!$W$4:$W$1666,DRIVER_OPEX!B37) -> 8049.232693 | G37: =IF($F37="",0,VLOOKUP($E37,Drivers!$A$26:$F$48,MATCH(G$1,Drivers!$A$25:$F$25,0),0)*$F37) -> 8049.232693 | H37: =IF($F37="",0,VLOOKUP($E37,Drivers!$A$26:$F$48,MATCH(H$1,Drivers!$A$25:$F$25,0),0)*$F37) -> 8049.232693 | I37: =IF($F37="",0,VLOOKUP($E37,Drivers!$A$26:$F$48,MATCH(I$1,Drivers!$A$25:$F$25,0),0)*$F37) -> 8049.232693 | J37: =IF($F37="",0,VLOOKUP($E37,Drivers!$A$26:$F$48,MATCH(J$1,Drivers!$A$25:$F$25,0),0)*$F37) -> 8049.232693 | K37: =IF($F37="",0,VLOOKUP($E37,Drivers!$A$26:$F$48,MATCH(K$1,Drivers!$A$25:$F$25,0),0)*$F37) -> 8049.232693
A38: ALUGUÉIS | B38: 5500 | C38: GERÊNCIA COMERCIAL | D38: =VLOOKUP(B38,Centro_Custo!$A$2:$C$36,3) -> Encargos de Gestão | E38: Fixo | F38: =SUMIFS('Classificação OPEX'!$O$4:$O$1666,'Classificação OPEX'!$Q$4:$Q$1666,"N",'Classificação OPEX'!$S$4:$S$1666,"NÃO",'Classificação OPEX'!$V$4:$V$1666,DRIVER_OPEX!A38,'Classificação OPEX'!$W$4:$W$1666,DRIVER_OPEX!B38) -> 453.0565409 | G38: =IF($F38="",0,VLOOKUP($E38,Drivers!$A$26:$F$48,MATCH(G$1,Drivers!$A$25:$F$25,0),0)*$F38) -> 453.0565409 | H38: =IF($F38="",0,VLOOKUP($E38,Drivers!$A$26:$F$48,MATCH(H$1,Drivers!$A$25:$F$25,0),0)*$F38) -> 453.0565409 | I38: =IF($F38="",0,VLOOKUP($E38,Drivers!$A$26:$F$48,MATCH(I$1,Drivers!$A$25:$F$25,0),0)*$F38) -> 453.0565409 | J38: =IF($F38="",0,VLOOKUP($E38,Drivers!$A$26:$F$48,MATCH(J$1,Drivers!$A$25:$F$25,0),0)*$F38) -> 453.0565409 | K38: =IF($F38="",0,VLOOKUP($E38,Drivers!$A$26:$F$48,MATCH(K$1,Drivers!$A$25:$F$25,0),0)*$F38) -> 453.0565409
A39: CUSTO_ODORIZAÇAO | B39: TOTAL | C39: TOTAL | F39: =SUM(F40:F74) -> 230980.7693 | G39: =SUM(G40:G74) -> 229748.482 | H39: =SUM(H40:H74) -> 247828.3387 | I39: 267338.3503 | J39: 312685.0365 | K39: 353730.1159
A40: CUSTO_ODORIZAÇAO | B40: 5200 | C40: =VLOOKUP(B40,Centro_Custo!$A$2:$B$36,2,0) -> GERÊNCIA DE OPERAÇÕES | D40: =VLOOKUP(B40,Centro_Custo!$A$2:$C$36,3) -> OPEX&ODESP | E40: Volume distribuído - Sem Termoelétrica | F40: =SUMIFS('Classificação OPEX'!$O$4:$O$1666,'Classificação OPEX'!$Q$4:$Q$1666,"N",'Classificação OPEX'!$S$4:$S$1666,"NÃO",'Classificação OPEX'!$V$4:$V$1666,DRIVER_OPEX!A40,'Classificação OPEX'!$W$4:$W$1666,DRIVER_OPEX!B40) -> 230980.7693 | G40: =IF($F40="",0,VLOOKUP($E40,Drivers!$A$26:$F$48,MATCH(G$1,Drivers!$A$25:$F$25,0),0)*$F40) -> 229748.482 | H40: =IF($F40="",0,VLOOKUP($E40,Drivers!$A$26:$F$48,MATCH(H$1,Drivers!$A$25:$F$25,0),0)*$F40) -> 247828.3387 | I40: =IF($F40="",0,VLOOKUP($E40,Drivers!$A$26:$F$48,MATCH(I$1,Drivers!$A$25:$F$25,0),0)*$F40) -> 267338.3503 | J40: =IF($F40="",0,VLOOKUP($E40,Drivers!$A$26:$F$48,MATCH(J$1,Drivers!$A$25:$F$25,0),0)*$F40) -> 312685.0365 | K40: =IF($F40="",0,VLOOKUP($E40,Drivers!$A$26:$F$48,MATCH(K$1,Drivers!$A$25:$F$25,0),0)*$F40) -> 353730.1159
A41: CUSTO_ODORIZAÇAO | B41: 0000 | C41: RATEIO | D41: =VLOOKUP(B41,Centro_Custo!$A$2:$C$36,3) -> Encargos de Gestão | E41: Fixo | F41: =SUMIFS('Classificação OPEX'!$O$4:$O$1666,'Classificação OPEX'!$Q$4:$Q$1666,"N",'Classificação OPEX'!$S$4:$S$1666,"NÃO",'Classificação OPEX'!$V$4:$V$1666,DRIVER_OPEX!A41,'Classificação OPEX'!$W$4:$W$1666,DRIVER_OPEX!B41) -> 0 | G41: =IF($F41="",0,VLOOKUP($E41,Drivers!$A$26:$F$48,MATCH(G$1,Drivers!$A$25:$F$25,0),0)*$F41) -> 0 | H41: =IF($F41="",0,VLOOKUP($E41,Drivers!$A$26:$F$48,MATCH(H$1,Drivers!$A$25:$F$25,0),0)*$F41) -> 0 | I41: =IF($F41="",0,VLOOKUP($E41,Drivers!$A$26:$F$48,MATCH(I$1,Drivers!$A$25:$F$25,0),0)*$F41) -> 0 | J41: =IF($F41="",0,VLOOKUP($E41,Drivers!$A$26:$F$48,MATCH(J$1,Drivers!$A$25:$F$25,0),0)*$F41) -> 0 | K41: =IF($F41="",0,VLOOKUP($E41,Drivers!$A$26:$F$48,MATCH(K$1,Drivers!$A$25:$F$25,0),0)*$F41) -> 0
A42: CUSTO_ODORIZAÇAO | B42: 1001 | C42: CONSELHO DE ADMINISTRAÇÃO | D42: =VLOOKUP(B42,Centro_Custo!$A$2:$C$36,3) -> Encargos de Gestão | E42: Fixo | F42: =SUMIFS('Classificação OPEX'!$O$4:$O$1666,'Classificação OPEX'!$Q$4:$Q$1666,"N",'Classificação OPEX'!$S$4:$S$1666,"NÃO",'Classificação OPEX'!$V$4:$V$1666,DRIVER_OPEX!A42,'Classificação OPEX'!$W$4:$W$1666,DRIVER_OPEX!B42) -> 0 | G42: =IF($F42="",0,VLOOKUP($E42,Drivers!$A$26:$F$48,MATCH(G$1,Drivers!$A$25:$F$25,0),0)*$F42) -> 0 | H42: =IF($F42="",0,VLOOKUP($E42,Drivers!$A$26:$F$48,MATCH(H$1,Drivers!$A$25:$F$25,0),0)*$F42) -> 0 | I42: =IF($F42="",0,VLOOKUP($E42,Drivers!$A$26:$F$48,MATCH(I$1,Drivers!$A$25:$F$25,0),0)*$F42) -> 0 | J42: =IF($F42="",0,VLOOKUP($E42,Drivers!$A$26:$F$48,MATCH(J$1,Drivers!$A$25:$F$25,0),0)*$F42) -> 0 | K42: =IF($F42="",0,VLOOKUP($E42,Drivers!$A$26:$F$48,MATCH(K$1,Drivers!$A$25:$F$25,0),0)*$F42) -> 0
A43: CUSTO_ODORIZAÇAO | B43: 1002 | C43: CONSELHO FISCAL | D43: =VLOOKUP(B43,Centro_Custo!$A$2:$C$36,3) -> Encargos de Gestão | E43: Fixo | F43: =SUMIFS('Classificação OPEX'!$O$4:$O$1666,'Classificação OPEX'!$Q$4:$Q$1666,"N",'Classificação OPEX'!$S$4:$S$1666,"NÃO",'Classificação OPEX'!$V$4:$V$1666,DRIVER_OPEX!A43,'Classificação OPEX'!$W$4:$W$1666,DRIVER_OPEX!B43) -> 0 | G43: =IF($F43="",0,VLOOKUP($E43,Drivers!$A$26:$F$48,MATCH(G$1,Drivers!$A$25:$F$25,0),0)*$F43) -> 0 | H43: =IF($F43="",0,VLOOKUP($E43,Drivers!$A$26:$F$48,MATCH(H$1,Drivers!$A$25:$F$25,0),0)*$F43) -> 0 | I43: =IF($F43="",0,VLOOKUP($E43,Drivers!$A$26:$F$48,MATCH(I$1,Drivers!$A$25:$F$25,0),0)*$F43) -> 0 | J43: =IF($F43="",0,VLOOKUP($E43,Drivers!$A$26:$F$48,MATCH(J$1,Drivers!$A$25:$F$25,0),0)*$F43) -> 0 | K43: =IF($F43="",0,VLOOKUP($E43,Drivers!$A$26:$F$48,MATCH(K$1,Drivers!$A$25:$F$25,0),0)*$F43) -> 0
A44: CUSTO_ODORIZAÇAO | B44: 1003 | C44: COMITÊ DE INDICAÇÃO E AVALIAÇÃO | D44: =VLOOKUP(B44,Centro_Custo!$A$2:$C$36,3) -> Encargos de Gestão | E44: Fixo | F44: =SUMIFS('Classificação OPEX'!$O$4:$O$1666,'Classificação OPEX'!$Q$4:$Q$1666,"N",'Classificação OPEX'!$S$4:$S$1666,"NÃO",'Classificação OPEX'!$V$4:$V$1666,DRIVER_OPEX!A44,'Classificação OPEX'!$W$4:$W$1666,DRIVER_OPEX!B44) -> 0 | G44: =IF($F44="",0,VLOOKUP($E44,Drivers!$A$26:$F$48,MATCH(G$1,Drivers!$A$25:$F$25,0),0)*$F44) -> 0 | H44: =IF($F44="",0,VLOOKUP($E44,Drivers!$A$26:$F$48,MATCH(H$1,Drivers!$A$25:$F$25,0),0)*$F44) -> 0 | I44: =IF($F44="",0,VLOOKUP($E44,Drivers!$A$26:$F$48,MATCH(I$1,Drivers!$A$25:$F$25,0),0)*$F44) -> 0 | J44: =IF($F44="",0,VLOOKUP($E44,Drivers!$A$26:$F$48,MATCH(J$1,Drivers!$A$25:$F$25,0),0)*$F44) -> 0 | K44: =IF($F44="",0,VLOOKUP($E44,Drivers!$A$26:$F$48,MATCH(K$1,Drivers!$A$25:$F$25,0),0)*$F44) -> 0
A45: CUSTO_ODORIZAÇAO | B45: 1004 | C45: COMITÊ DE AUDITORIA ESTATUTÁRIA | D45: =VLOOKUP(B45,Centro_Custo!$A$2:$C$36,3) -> Encargos de Gestão | E45: Fixo | F45: =SUMIFS('Classificação OPEX'!$O$4:$O$1666,'Classificação OPEX'!$Q$4:$Q$1666,"N",'Classificação OPEX'!$S$4:$S$1666,"NÃO",'Classificação OPEX'!$V$4:$V$1666,DRIVER_OPEX!A45,'Classificação OPEX'!$W$4:$W$1666,DRIVER_OPEX!B45) -> 0 | G45: =IF($F45="",0,VLOOKUP($E45,Drivers!$A$26:$F$48,MATCH(G$1,Drivers!$A$25:$F$25,0),0)*$F45) -> 0 | H45: =IF($F45="",0,VLOOKUP($E45,Drivers!$A$26:$F$48,MATCH(H$1,Drivers!$A$25:$F$25,0),0)*$F45) -> 0 | I45: =IF($F45="",0,VLOOKUP($E45,Drivers!$A$26:$F$48,MATCH(I$1,Drivers!$A$25:$F$25,0),0)*$F45) -> 0 | J45: =IF($F45="",0,VLOOKUP($E45,Drivers!$A$26:$F$48,MATCH(J$1,Drivers!$A$25:$F$25,0),0)*$F45) -> 0 | K45: =IF($F45="",0,VLOOKUP($E45,Drivers!$A$26:$F$48,MATCH(K$1,Drivers!$A$25:$F$25,0),0)*$F45) -> 0
A46: CUSTO_ODORIZAÇAO | B46: 1005 | C46: AUDITORIA INTERNA | D46: =VLOOKUP(B46,Centro_Custo!$A$2:$C$36,3) -> Encargos de Gestão | E46: Fixo | F46: =SUMIFS('Classificação OPEX'!$O$4:$O$1666,'Classificação OPEX'!$Q$4:$Q$1666,"N",'Classificação OPEX'!$S$4:$S$1666,"NÃO",'Classificação OPEX'!$V$4:$V$1666,DRIVER_OPEX!A46,'Classificação OPEX'!$W$4:$W$1666,DRIVER_OPEX!B46) -> 0 | G46: =IF($F46="",0,VLOOKUP($E46,Drivers!$A$26:$F$48,MATCH(G$1,Drivers!$A$25:$F$25,0),0)*$F46) -> 0 | H46: =IF($F46="",0,VLOOKUP($E46,Drivers!$A$26:$F$48,MATCH(H$1,Drivers!$A$25:$F$25,0),0)*$F46) -> 0 | I46: =IF($F46="",0,VLOOKUP($E46,Drivers!$A$26:$F$48,MATCH(I$1,Drivers!$A$25:$F$25,0),0)*$F46) -> 0 | J46: =IF($F46="",0,VLOOKUP($E46,Drivers!$A$26:$F$48,MATCH(J$1,Drivers!$A$25:$F$25,0),0)*$F46) -> 0 | K46: =IF($F46="",0,VLOOKUP($E46,Drivers!$A$26:$F$48,MATCH(K$1,Drivers!$A$25:$F$25,0),0)*$F46) -> 0
A47: CUSTO_ODORIZAÇAO | B47: 1010 | C47: GOVERNANÇA SOCIETÁRIA | D47: =VLOOKUP(B47,Centro_Custo!$A$2:$C$36,3) -> Encargos de Gestão | E47: Fixo | F47: =SUMIFS('Classificação OPEX'!$O$4:$O$1666,'Classificação OPEX'!$Q$4:$Q$1666,"N",'Classificação OPEX'!$S$4:$S$1666,"NÃO",'Classificação OPEX'!$V$4:$V$1666,DRIVER_OPEX!A47,'Classificação OPEX'!$W$4:$W$1666,DRIVER_OPEX!B47) -> 0 | G47: =IF($F47="",0,VLOOKUP($E47,Drivers!$A$26:$F$48,MATCH(G$1,Drivers!$A$25:$F$25,0),0)*$F47) -> 0 | H47: =IF($F47="",0,VLOOKUP($E47,Drivers!$A$26:$F$48,MATCH(H$1,Drivers!$A$25:$F$25,0),0)*$F47) -> 0 | I47: =IF($F47="",0,VLOOKUP($E47,Drivers!$A$26:$F$48,MATCH(I$1,Drivers!$A$25:$F$25,0),0)*$F47) -> 0 | J47: =IF($F47="",0,VLOOKUP($E47,Drivers!$A$26:$F$48,MATCH(J$1,Drivers!$A$25:$F$25,0),0)*$F47) -> 0 | K47: =IF($F47="",0,VLOOKUP($E47,Drivers!$A$26:$F$48,MATCH(K$1,Drivers!$A$25:$F$25,0),0)*$F47) -> 0
A48: CUSTO_ODORIZAÇAO | B48: 2100 | C48: SECRETARIA | D48: =VLOOKUP(B48,Centro_Custo!$A$2:$C$36,3) -> Encargos de Gestão | E48: Fixo | F48: =SUMIFS('Classificação OPEX'!$O$4:$O$1666,'Classificação OPEX'!$Q$4:$Q$1666,"N",'Classificação OPEX'!$S$4:$S$1666,"NÃO",'Classificação OPEX'!$V$4:$V$1666,DRIVER_OPEX!A48,'Classificação OPEX'!$W$4:$W$1666,DRIVER_OPEX!B48) -> 0 | G48: =IF($F48="",0,VLOOKUP($E48,Drivers!$A$26:$F$48,MATCH(G$1,Drivers!$A$25:$F$25,0),0)*$F48) -> 0 | H48: =IF($F48="",0,VLOOKUP($E48,Drivers!$A$26:$F$48,MATCH(H$1,Drivers!$A$25:$F$25,0),0)*$F48) -> 0 | I48: =IF($F48="",0,VLOOKUP($E48,Drivers!$A$26:$F$48,MATCH(I$1,Drivers!$A$25:$F$25,0),0)*$F48) -> 0 | J48: =IF($F48="",0,VLOOKUP($E48,Drivers!$A$26:$F$48,MATCH(J$1,Drivers!$A$25:$F$25,0),0)*$F48) -> 0 | K48: =IF($F48="",0,VLOOKUP($E48,Drivers!$A$26:$F$48,MATCH(K$1,Drivers!$A$25:$F$25,0),0)*$F48) -> 0
A49: CUSTO_ODORIZAÇAO | B49: 2110 | C49: ASSESSORIA DA DIRETORIA EXECUTIVA | D49: =VLOOKUP(B49,Centro_Custo!$A$2:$C$36,3) -> Encargos de Gestão | E49: Fixo | F49: =SUMIFS('Classificação OPEX'!$O$4:$O$1666,'Classificação OPEX'!$Q$4:$Q$1666,"N",'Classificação OPEX'!$S$4:$S$1666,"NÃO",'Classificação OPEX'!$V$4:$V$1666,DRIVER_OPEX!A49,'Classificação OPEX'!$W$4:$W$1666,DRIVER_OPEX!B49) -> 0 | G49: =IF($F49="",0,VLOOKUP($E49,Drivers!$A$26:$F$48,MATCH(G$1,Drivers!$A$25:$F$25,0),0)*$F49) -> 0 | H49: =IF($F49="",0,VLOOKUP($E49,Drivers!$A$26:$F$48,MATCH(H$1,Drivers!$A$25:$F$25,0),0)*$F49) -> 0 | I49: =IF($F49="",0,VLOOKUP($E49,Drivers!$A$26:$F$48,MATCH(I$1,Drivers!$A$25:$F$25,0),0)*$F49) -> 0 | J49: =IF($F49="",0,VLOOKUP($E49,Drivers!$A$26:$F$48,MATCH(J$1,Drivers!$A$25:$F$25,0),0)*$F49) -> 0 | K49: =IF($F49="",0,VLOOKUP($E49,Drivers!$A$26:$F$48,MATCH(K$1,Drivers!$A$25:$F$25,0),0)*$F49) -> 0
A50: CUSTO_ODORIZAÇAO | B50: 2120 | C50: ASSESSORIA DA PRESIDÊNCIA | D50: =VLOOKUP(B50,Centro_Custo!$A$2:$C$36,3) -> Encargos de Gestão | E50: Fixo | F50: =SUMIFS('Classificação OPEX'!$O$4:$O$1666,'Classificação OPEX'!$Q$4:$Q$1666,"N",'Classificação OPEX'!$S$4:$S$1666,"NÃO",'Classificação OPEX'!$V$4:$V$1666,DRIVER_OPEX!A50,'Classificação OPEX'!$W$4:$W$1666,DRIVER_OPEX!B50) -> 0 | G50: =IF($F50="",0,VLOOKUP($E50,Drivers!$A$26:$F$48,MATCH(G$1,Drivers!$A$25:$F$25,0),0)*$F50) -> 0 | H50: =IF($F50="",0,VLOOKUP($E50,Drivers!$A$26:$F$48,MATCH(H$1,Drivers!$A$25:$F$25,0),0)*$F50) -> 0 | I50: =IF($F50="",0,VLOOKUP($E50,Drivers!$A$26:$F$48,MATCH(I$1,Drivers!$A$25:$F$25,0),0)*$F50) -> 0 | J50: =IF($F50="",0,VLOOKUP($E50,Drivers!$A$26:$F$48,MATCH(J$1,Drivers!$A$25:$F$25,0),0)*$F50) -> 0 | K50: =IF($F50="",0,VLOOKUP($E50,Drivers!$A$26:$F$48,MATCH(K$1,Drivers!$A$25:$F$25,0),0)*$F50) -> 0
A51: CUSTO_ODORIZAÇAO | B51: 2130 | C51: ASSESSORIA DE RELAÇÕES INSTITUCIONAIS E NOVOS NEGÓCIOS | D51: =VLOOKUP(B51,Centro_Custo!$A$2:$C$36,3) -> Encargos de Gestão | E51: Fixo | F51: =SUMIFS('Classificação OPEX'!$O$4:$O$1666,'Classificação OPEX'!$Q$4:$Q$1666,"N",'Classificação OPEX'!$S$4:$S$1666,"NÃO",'Classificação OPEX'!$V$4:$V$1666,DRIVER_OPEX!A51,'Classificação OPEX'!$W$4:$W$1666,DRIVER_OPEX!B51) -> 0 | G51: =IF($F51="",0,VLOOKUP($E51,Drivers!$A$26:$F$48,MATCH(G$1,Drivers!$A$25:$F$25,0),0)*$F51) -> 0 | H51: =IF($F51="",0,VLOOKUP($E51,Drivers!$A$26:$F$48,MATCH(H$1,Drivers!$A$25:$F$25,0),0)*$F51) -> 0 | I51: =IF($F51="",0,VLOOKUP($E51,Drivers!$A$26:$F$48,MATCH(I$1,Drivers!$A$25:$F$25,0),0)*$F51) -> 0 | J51: =IF($F51="",0,VLOOKUP($E51,Drivers!$A$26:$F$48,MATCH(J$1,Drivers!$A$25:$F$25,0),0)*$F51) -> 0 | K51: =IF($F51="",0,VLOOKUP($E51,Drivers!$A$26:$F$48,MATCH(K$1,Drivers!$A$25:$F$25,0),0)*$F51) -> 0
A52: CUSTO_ODORIZAÇAO | B52: 2140 | C52: ASSESSORIA DTC | D52: =VLOOKUP(B52,Centro_Custo!$A$2:$C$36,3) -> Encargos de Comercialização | E52: Fixo | F52: =SUMIFS('Classificação OPEX'!$O$4:$O$1666,'Classificação OPEX'!$Q$4:$Q$1666,"N",'Classificação OPEX'!$S$4:$S$1666,"NÃO",'Classificação OPEX'!$V$4:$V$1666,DRIVER_OPEX!A52,'Classificação OPEX'!$W$4:$W$1666,DRIVER_OPEX!B52) -> 0 | G52: =IF($F52="",0,VLOOKUP($E52,Drivers!$A$26:$F$48,MATCH(G$1,Drivers!$A$25:$F$25,0),0)*$F52) -> 0 | H52: =IF($F52="",0,VLOOKUP($E52,Drivers!$A$26:$F$48,MATCH(H$1,Drivers!$A$25:$F$25,0),0)*$F52) -> 0 | I52: =IF($F52="",0,VLOOKUP($E52,Drivers!$A$26:$F$48,MATCH(I$1,Drivers!$A$25:$F$25,0),0)*$F52) -> 0 | J52: =IF($F52="",0,VLOOKUP($E52,Drivers!$A$26:$F$48,MATCH(J$1,Drivers!$A$25:$F$25,0),0)*$F52) -> 0 | K52: =IF($F52="",0,VLOOKUP($E52,Drivers!$A$26:$F$48,MATCH(K$1,Drivers!$A$25:$F$25,0),0)*$F52) -> 0
A53: CUSTO_ODORIZAÇAO | B53: 2200 | C53: DIRETORIA COLEGIADA - PRESIDÊNCIA | D53: =VLOOKUP(B53,Centro_Custo!$A$2:$C$36,3) -> Encargos de Gestão | E53: Fixo | F53: =SUMIFS('Classificação OPEX'!$O$4:$O$1666,'Classificação OPEX'!$Q$4:$Q$1666,"N",'Classificação OPEX'!$S$4:$S$1666,"NÃO",'Classificação OPEX'!$V$4:$V$1666,DRIVER_OPEX!A53,'Classificação OPEX'!$W$4:$W$1666,DRIVER_OPEX!B53) -> 0 | G53: =IF($F53="",0,VLOOKUP($E53,Drivers!$A$26:$F$48,MATCH(G$1,Drivers!$A$25:$F$25,0),0)*$F53) -> 0 | H53: =IF($F53="",0,VLOOKUP($E53,Drivers!$A$26:$F$48,MATCH(H$1,Drivers!$A$25:$F$25,0),0)*$F53) -> 0 | I53: =IF($F53="",0,VLOOKUP($E53,Drivers!$A$26:$F$48,MATCH(I$1,Drivers!$A$25:$F$25,0),0)*$F53) -> 0 | J53: =IF($F53="",0,VLOOKUP($E53,Drivers!$A$26:$F$48,MATCH(J$1,Drivers!$A$25:$F$25,0),0)*$F53) -> 0 | K53: =IF($F53="",0,VLOOKUP($E53,Drivers!$A$26:$F$48,MATCH(K$1,Drivers!$A$25:$F$25,0),0)*$F53) -> 0
A54: CUSTO_ODORIZAÇAO | B54: 2300 | C54: DIRETORIA COLEGIADA - DAF | D54: =VLOOKUP(B54,Centro_Custo!$A$2:$C$36,3) -> Encargos de Gestão | E54: Fixo | F54: =SUMIFS('Classificação OPEX'!$O$4:$O$1666,'Classificação OPEX'!$Q$4:$Q$1666,"N",'Classificação OPEX'!$S$4:$S$1666,"NÃO",'Classificação OPEX'!$V$4:$V$1666,DRIVER_OPEX!A54,'Classificação OPEX'!$W$4:$W$1666,DRIVER_OPEX!B54) -> 0 | G54: =IF($F54="",0,VLOOKUP($E54,Drivers!$A$26:$F$48,MATCH(G$1,Drivers!$A$25:$F$25,0),0)*$F54) -> 0 | H54: =IF($F54="",0,VLOOKUP($E54,Drivers!$A$26:$F$48,MATCH(H$1,Drivers!$A$25:$F$25,0),0)*$F54) -> 0 | I54: =IF($F54="",0,VLOOKUP($E54,Drivers!$A$26:$F$48,MATCH(I$1,Drivers!$A$25:$F$25,0),0)*$F54) -> 0 | J54: =IF($F54="",0,VLOOKUP($E54,Drivers!$A$26:$F$48,MATCH(J$1,Drivers!$A$25:$F$25,0),0)*$F54) -> 0 | K54: =IF($F54="",0,VLOOKUP($E54,Drivers!$A$26:$F$48,MATCH(K$1,Drivers!$A$25:$F$25,0),0)*$F54) -> 0
A55: CUSTO_ODORIZAÇAO | B55: 2310 | C55: ASSESSORIA DAF | D55: =VLOOKUP(B55,Centro_Custo!$A$2:$C$36,3) -> Encargos de Gestão | E55: Fixo | F55: =SUMIFS('Classificação OPEX'!$O$4:$O$1666,'Classificação OPEX'!$Q$4:$Q$1666,"N",'Classificação OPEX'!$S$4:$S$1666,"NÃO",'Classificação OPEX'!$V$4:$V$1666,DRIVER_OPEX!A55,'Classificação OPEX'!$W$4:$W$1666,DRIVER_OPEX!B55) -> 0 | G55: =IF($F55="",0,VLOOKUP($E55,Drivers!$A$26:$F$48,MATCH(G$1,Drivers!$A$25:$F$25,0),0)*$F55) -> 0 | H55: =IF($F55="",0,VLOOKUP($E55,Drivers!$A$26:$F$48,MATCH(H$1,Drivers!$A$25:$F$25,0),0)*$F55) -> 0 | I55: =IF($F55="",0,VLOOKUP($E55,Drivers!$A$26:$F$48,MATCH(I$1,Drivers!$A$25:$F$25,0),0)*$F55) -> 0 | J55: =IF($F55="",0,VLOOKUP($E55,Drivers!$A$26:$F$48,MATCH(J$1,Drivers!$A$25:$F$25,0),0)*$F55) -> 0 | K55: =IF($F55="",0,VLOOKUP($E55,Drivers!$A$26:$F$48,MATCH(K$1,Drivers!$A$25:$F$25,0),0)*$F55) -> 0
A56: CUSTO_ODORIZAÇAO | B56: 2400 | C56: DIRETORIA COLEGIADA - DTC | D56: =VLOOKUP(B56,Centro_Custo!$A$2:$C$36,3) -> Encargos de Comercialização | E56: Fixo | F56: =SUMIFS('Classificação OPEX'!$O$4:$O$1666,'Classificação OPEX'!$Q$4:$Q$1666,"N",'Classificação OPEX'!$S$4:$S$1666,"NÃO",'Classificação OPEX'!$V$4:$V$1666,DRIVER_OPEX!A56,'Classificação OPEX'!$W$4:$W$1666,DRIVER_OPEX!B56) -> 0 | G56: =IF($F56="",0,VLOOKUP($E56,Drivers!$A$26:$F$48,MATCH(G$1,Drivers!$A$25:$F$25,0),0)*$F56) -> 0 | H56: =IF($F56="",0,VLOOKUP($E56,Drivers!$A$26:$F$48,MATCH(H$1,Drivers!$A$25:$F$25,0),0)*$F56) -> 0 | I56: =IF($F56="",0,VLOOKUP($E56,Drivers!$A$26:$F$48,MATCH(I$1,Drivers!$A$25:$F$25,0),0)*$F56) -> 0 | J56: =IF($F56="",0,VLOOKUP($E56,Drivers!$A$26:$F$48,MATCH(J$1,Drivers!$A$25:$F$25,0),0)*$F56) -> 0 | K56: =IF($F56="",0,VLOOKUP($E56,Drivers!$A$26:$F$48,MATCH(K$1,Drivers!$A$25:$F$25,0),0)*$F56) -> 0
A57: CUSTO_ODORIZAÇAO | B57: 2410 | C57: ASSESSORIA DE SEGURANÇA DO TRABALHO | D57: =VLOOKUP(B57,Centro_Custo!$A$2:$C$36,3) -> OPEX&ODESP | E57: Fixo | F57: =SUMIFS('Classificação OPEX'!$O$4:$O$1666,'Classificação OPEX'!$Q$4:$Q$1666,"N",'Classificação OPEX'!$S$4:$S$1666,"NÃO",'Classificação OPEX'!$V$4:$V$1666,DRIVER_OPEX!A57,'Classificação OPEX'!$W$4:$W$1666,DRIVER_OPEX!B57) -> 0 | G57: =IF($F57="",0,VLOOKUP($E57,Drivers!$A$26:$F$48,MATCH(G$1,Drivers!$A$25:$F$25,0),0)*$F57) -> 0 | H57: =IF($F57="",0,VLOOKUP($E57,Drivers!$A$26:$F$48,MATCH(H$1,Drivers!$A$25:$F$25,0),0)*$F57) -> 0 | I57: =IF($F57="",0,VLOOKUP($E57,Drivers!$A$26:$F$48,MATCH(I$1,Drivers!$A$25:$F$25,0),0)*$F57) -> 0 | J57: =IF($F57="",0,VLOOKUP($E57,Drivers!$A$26:$F$48,MATCH(J$1,Drivers!$A$25:$F$25,0),0)*$F57) -> 0 | K57: =IF($F57="",0,VLOOKUP($E57,Drivers!$A$26:$F$48,MATCH(K$1,Drivers!$A$25:$F$25,0),0)*$F57) -> 0
A58: CUSTO_ODORIZAÇAO | B58: 3100 | C58: SMS | D58: =VLOOKUP(B58,Centro_Custo!$A$2:$C$36,3) -> OPEX&ODESP | E58: Fixo | F58: =SUMIFS('Classificação OPEX'!$O$4:$O$1666,'Classificação OPEX'!$Q$4:$Q$1666,"N",'Classificação OPEX'!$S$4:$S$1666,"NÃO",'Classificação OPEX'!$V$4:$V$1666,DRIVER_OPEX!A58,'Classificação OPEX'!$W$4:$W$1666,DRIVER_OPEX!B58) -> 0 | G58: =IF($F58="",0,VLOOKUP($E58,Drivers!$A$26:$F$48,MATCH(G$1,Drivers!$A$25:$F$25,0),0)*$F58) -> 0 | H58: =IF($F58="",0,VLOOKUP($E58,Drivers!$A$26:$F$48,MATCH(H$1,Drivers!$A$25:$F$25,0),0)*$F58) -> 0 | I58: =IF($F58="",0,VLOOKUP($E58,Drivers!$A$26:$F$48,MATCH(I$1,Drivers!$A$25:$F$25,0),0)*$F58) -> 0 | J58: =IF($F58="",0,VLOOKUP($E58,Drivers!$A$26:$F$48,MATCH(J$1,Drivers!$A$25:$F$25,0),0)*$F58) -> 0 | K58: =IF($F58="",0,VLOOKUP($E58,Drivers!$A$26:$F$48,MATCH(K$1,Drivers!$A$25:$F$25,0),0)*$F58) -> 0
A59: CUSTO_ODORIZAÇAO | B59: 3200 | C59: GERÊNCIA DE PLANEJAMENTO E MEIO AMBIENTE | D59: =VLOOKUP(B59,Centro_Custo!$A$2:$C$36,3) -> OPEX&ODESP | E59: Fixo | F59: =SUMIFS('Classificação OPEX'!$O$4:$O$1666,'Classificação OPEX'!$Q$4:$Q$1666,"N",'Classificação OPEX'!$S$4:$S$1666,"NÃO",'Classificação OPEX'!$V$4:$V$1666,DRIVER_OPEX!A59,'Classificação OPEX'!$W$4:$W$1666,DRIVER_OPEX!B59) -> 0 | G59: =IF($F59="",0,VLOOKUP($E59,Drivers!$A$26:$F$48,MATCH(G$1,Drivers!$A$25:$F$25,0),0)*$F59) -> 0 | H59: =IF($F59="",0,VLOOKUP($E59,Drivers!$A$26:$F$48,MATCH(H$1,Drivers!$A$25:$F$25,0),0)*$F59) -> 0 | I59: =IF($F59="",0,VLOOKUP($E59,Drivers!$A$26:$F$48,MATCH(I$1,Drivers!$A$25:$F$25,0),0)*$F59) -> 0 | J59: =IF($F59="",0,VLOOKUP($E59,Drivers!$A$26:$F$48,MATCH(J$1,Drivers!$A$25:$F$25,0),0)*$F59) -> 0 | K59: =IF($F59="",0,VLOOKUP($E59,Drivers!$A$26:$F$48,MATCH(K$1,Drivers!$A$25:$F$25,0),0)*$F59) -> 0
A60: CUSTO_ODORIZAÇAO | B60: 3300 | C60: GERÊNCIA JURÍDICA | D60: =VLOOKUP(B60,Centro_Custo!$A$2:$C$36,3) -> Encargos de Gestão | E60: Fixo | F60: =SUMIFS('Classificação OPEX'!$O$4:$O$1666,'Classificação OPEX'!$Q$4:$Q$1666,"N",'Classificação OPEX'!$S$4:$S$1666,"NÃO",'Classificação OPEX'!$V$4:$V$1666,DRIVER_OPEX!A60,'Classificação OPEX'!$W$4:$W$1666,DRIVER_OPEX!B60) -> 0 | G60: =IF($F60="",0,VLOOKUP($E60,Drivers!$A$26:$F$48,MATCH(G$1,Drivers!$A$25:$F$25,0),0)*$F60) -> 0 | H60: =IF($F60="",0,VLOOKUP($E60,Drivers!$A$26:$F$48,MATCH(H$1,Drivers!$A$25:$F$25,0),0)*$F60) -> 0 | I60: =IF($F60="",0,VLOOKUP($E60,Drivers!$A$26:$F$48,MATCH(I$1,Drivers!$A$25:$F$25,0),0)*$F60) -> 0 | J60: =IF($F60="",0,VLOOKUP($E60,Drivers!$A$26:$F$48,MATCH(J$1,Drivers!$A$25:$F$25,0),0)*$F60) -> 0 | K60: =IF($F60="",0,VLOOKUP($E60,Drivers!$A$26:$F$48,MATCH(K$1,Drivers!$A$25:$F$25,0),0)*$F60) -> 0
A61: CUSTO_ODORIZAÇAO | B61: 3400 | C61: MARKETING | D61: =VLOOKUP(B61,Centro_Custo!$A$2:$C$36,3) -> Encargos de Comercialização | E61: Fixo | F61: =SUMIFS('Classificação OPEX'!$O$4:$O$1666,'Classificação OPEX'!$Q$4:$Q$1666,"N",'Classificação OPEX'!$S$4:$S$1666,"NÃO",'Classificação OPEX'!$V$4:$V$1666,DRIVER_OPEX!A61,'Classificação OPEX'!$W$4:$W$1666,DRIVER_OPEX!B61) -> 0 | G61: =IF($F61="",0,VLOOKUP($E61,Drivers!$A$26:$F$48,MATCH(G$1,Drivers!$A$25:$F$25,0),0)*$F61) -> 0 | H61: =IF($F61="",0,VLOOKUP($E61,Drivers!$A$26:$F$48,MATCH(H$1,Drivers!$A$25:$F$25,0),0)*$F61) -> 0 | I61: =IF($F61="",0,VLOOKUP($E61,Drivers!$A$26:$F$48,MATCH(I$1,Drivers!$A$25:$F$25,0),0)*$F61) -> 0 | J61: =IF($F61="",0,VLOOKUP($E61,Drivers!$A$26:$F$48,MATCH(J$1,Drivers!$A$25:$F$25,0),0)*$F61) -> 0 | K61: =IF($F61="",0,VLOOKUP($E61,Drivers!$A$26:$F$48,MATCH(K$1,Drivers!$A$25:$F$25,0),0)*$F61) -> 0
A62: CUSTO_ODORIZAÇAO | B62: 3500 | C62: ASSESSORIA DE COMUNICAÇÃO INSTITUCIONAL | D62: =VLOOKUP(B62,Centro_Custo!$A$2:$C$36,3) -> Encargos de Gestão | E62: Fixo | F62: =SUMIFS('Classificação OPEX'!$O$4:$O$1666,'Classificação OPEX'!$Q$4:$Q$1666,"N",'Classificação OPEX'!$S$4:$S$1666,"NÃO",'Classificação OPEX'!$V$4:$V$1666,DRIVER_OPEX!A62,'Classificação OPEX'!$W$4:$W$1666,DRIVER_OPEX!B62) -> 0 | G62: =IF($F62="",0,VLOOKUP($E62,Drivers!$A$26:$F$48,MATCH(G$1,Drivers!$A$25:$F$25,0),0)*$F62) -> 0 | H62: =IF($F62="",0,VLOOKUP($E62,Drivers!$A$26:$F$48,MATCH(H$1,Drivers!$A$25:$F$25,0),0)*$F62) -> 0 | I62: =IF($F62="",0,VLOOKUP($E62,Drivers!$A$26:$F$48,MATCH(I$1,Drivers!$A$25:$F$25,0),0)*$F62) -> 0 | J62: =IF($F62="",0,VLOOKUP($E62,Drivers!$A$26:$F$48,MATCH(J$1,Drivers!$A$25:$F$25,0),0)*$F62) -> 0 | K62: =IF($F62="",0,VLOOKUP($E62,Drivers!$A$26:$F$48,MATCH(K$1,Drivers!$A$25:$F$25,0),0)*$F62) -> 0
A63: CUSTO_ODORIZAÇAO | B63: 3600 | C63: GERÊNCIA DE GOVERNANÇA, RISCO E COMPLIANCE | D63: =VLOOKUP(B63,Centro_Custo!$A$2:$C$36,3) -> Encargos de Gestão | E63: Fixo | F63: =SUMIFS('Classificação OPEX'!$O$4:$O$1666,'Classificação OPEX'!$Q$4:$Q$1666,"N",'Classificação OPEX'!$S$4:$S$1666,"NÃO",'Classificação OPEX'!$V$4:$V$1666,DRIVER_OPEX!A63,'Classificação OPEX'!$W$4:$W$1666,DRIVER_OPEX!B63) -> 0 | G63: =IF($F63="",0,VLOOKUP($E63,Drivers!$A$26:$F$48,MATCH(G$1,Drivers!$A$25:$F$25,0),0)*$F63) -> 0 | H63: =IF($F63="",0,VLOOKUP($E63,Drivers!$A$26:$F$48,MATCH(H$1,Drivers!$A$25:$F$25,0),0)*$F63) -> 0 | I63: =IF($F63="",0,VLOOKUP($E63,Drivers!$A$26:$F$48,MATCH(I$1,Drivers!$A$25:$F$25,0),0)*$F63) -> 0 | J63: =IF($F63="",0,VLOOKUP($E63,Drivers!$A$26:$F$48,MATCH(J$1,Drivers!$A$25:$F$25,0),0)*$F63) -> 0 | K63: =IF($F63="",0,VLOOKUP($E63,Drivers!$A$26:$F$48,MATCH(K$1,Drivers!$A$25:$F$25,0),0)*$F63) -> 0
A64: CUSTO_ODORIZAÇAO | B64: 3700 | C64: GERÊNCIA DE REGULAÇÃO | D64: =VLOOKUP(B64,Centro_Custo!$A$2:$C$36,3) -> Encargos de Gestão | E64: Fixo | F64: =SUMIFS('Classificação OPEX'!$O$4:$O$1666,'Classificação OPEX'!$Q$4:$Q$1666,"N",'Classificação OPEX'!$S$4:$S$1666,"NÃO",'Classificação OPEX'!$V$4:$V$1666,DRIVER_OPEX!A64,'Classificação OPEX'!$W$4:$W$1666,DRIVER_OPEX!B64) -> 0 | G64: =IF($F64="",0,VLOOKUP($E64,Drivers!$A$26:$F$48,MATCH(G$1,Drivers!$A$25:$F$25,0),0)*$F64) -> 0 | H64: =IF($F64="",0,VLOOKUP($E64,Drivers!$A$26:$F$48,MATCH(H$1,Drivers!$A$25:$F$25,0),0)*$F64) -> 0 | I64: =IF($F64="",0,VLOOKUP($E64,Drivers!$A$26:$F$48,MATCH(I$1,Drivers!$A$25:$F$25,0),0)*$F64) -> 0 | J64: =IF($F64="",0,VLOOKUP($E64,Drivers!$A$26:$F$48,MATCH(J$1,Drivers!$A$25:$F$25,0),0)*$F64) -> 0 | K64: =IF($F64="",0,VLOOKUP($E64,Drivers!$A$26:$F$48,MATCH(K$1,Drivers!$A$25:$F$25,0),0)*$F64) -> 0
A65: CUSTO_ODORIZAÇAO | B65: 4100 | C65: GERÊNCIA DE SERVIÇOS CORPORATIVOS | D65: =VLOOKUP(B65,Centro_Custo!$A$2:$C$36,3) -> Encargos de Gestão | E65: Fixo | F65: =SUMIFS('Classificação OPEX'!$O$4:$O$1666,'Classificação OPEX'!$Q$4:$Q$1666,"N",'Classificação OPEX'!$S$4:$S$1666,"NÃO",'Classificação OPEX'!$V$4:$V$1666,DRIVER_OPEX!A65,'Classificação OPEX'!$W$4:$W$1666,DRIVER_OPEX!B65) -> 0 | G65: =IF($F65="",0,VLOOKUP($E65,Drivers!$A$26:$F$48,MATCH(G$1,Drivers!$A$25:$F$25,0),0)*$F65) -> 0 | H65: =IF($F65="",0,VLOOKUP($E65,Drivers!$A$26:$F$48,MATCH(H$1,Drivers!$A$25:$F$25,0),0)*$F65) -> 0 | I65: =IF($F65="",0,VLOOKUP($E65,Drivers!$A$26:$F$48,MATCH(I$1,Drivers!$A$25:$F$25,0),0)*$F65) -> 0 | J65: =IF($F65="",0,VLOOKUP($E65,Drivers!$A$26:$F$48,MATCH(J$1,Drivers!$A$25:$F$25,0),0)*$F65) -> 0 | K65: =IF($F65="",0,VLOOKUP($E65,Drivers!$A$26:$F$48,MATCH(K$1,Drivers!$A$25:$F$25,0),0)*$F65) -> 0
A66: CUSTO_ODORIZAÇAO | B66: 4200 | C66: GERÊNCIA FINANCEIRA | D66: =VLOOKUP(B66,Centro_Custo!$A$2:$C$36,3) -> Encargos de Gestão | E66: Fixo | F66: =SUMIFS('Classificação OPEX'!$O$4:$O$1666,'Classificação OPEX'!$Q$4:$Q$1666,"N",'Classificação OPEX'!$S$4:$S$1666,"NÃO",'Classificação OPEX'!$V$4:$V$1666,DRIVER_OPEX!A66,'Classificação OPEX'!$W$4:$W$1666,DRIVER_OPEX!B66) -> 0 | G66: =IF($F66="",0,VLOOKUP($E66,Drivers!$A$26:$F$48,MATCH(G$1,Drivers!$A$25:$F$25,0),0)*$F66) -> 0 | H66: =IF($F66="",0,VLOOKUP($E66,Drivers!$A$26:$F$48,MATCH(H$1,Drivers!$A$25:$F$25,0),0)*$F66) -> 0 | I66: =IF($F66="",0,VLOOKUP($E66,Drivers!$A$26:$F$48,MATCH(I$1,Drivers!$A$25:$F$25,0),0)*$F66) -> 0 | J66: =IF($F66="",0,VLOOKUP($E66,Drivers!$A$26:$F$48,MATCH(J$1,Drivers!$A$25:$F$25,0),0)*$F66) -> 0 | K66: =IF($F66="",0,VLOOKUP($E66,Drivers!$A$26:$F$48,MATCH(K$1,Drivers!$A$25:$F$25,0),0)*$F66) -> 0
A67: CUSTO_ODORIZAÇAO | B67: 4300 | C67: GERÊNCIA DE TECNOLOGIA E SISTEMAS DE INFORMAÇÃO | D67: =VLOOKUP(B67,Centro_Custo!$A$2:$C$36,3) -> Encargos de Gestão | E67: Fixo | F67: =SUMIFS('Classificação OPEX'!$O$4:$O$1666,'Classificação OPEX'!$Q$4:$Q$1666,"N",'Classificação OPEX'!$S$4:$S$1666,"NÃO",'Classificação OPEX'!$V$4:$V$1666,DRIVER_OPEX!A67,'Classificação OPEX'!$W$4:$W$1666,DRIVER_OPEX!B67) -> 0 | G67: =IF($F67="",0,VLOOKUP($E67,Drivers!$A$26:$F$48,MATCH(G$1,Drivers!$A$25:$F$25,0),0)*$F67) -> 0 | H67: =IF($F67="",0,VLOOKUP($E67,Drivers!$A$26:$F$48,MATCH(H$1,Drivers!$A$25:$F$25,0),0)*$F67) -> 0 | I67: =IF($F67="",0,VLOOKUP($E67,Drivers!$A$26:$F$48,MATCH(I$1,Drivers!$A$25:$F$25,0),0)*$F67) -> 0 | J67: =IF($F67="",0,VLOOKUP($E67,Drivers!$A$26:$F$48,MATCH(J$1,Drivers!$A$25:$F$25,0),0)*$F67) -> 0 | K67: =IF($F67="",0,VLOOKUP($E67,Drivers!$A$26:$F$48,MATCH(K$1,Drivers!$A$25:$F$25,0),0)*$F67) -> 0
A68: CUSTO_ODORIZAÇAO | B68: 4500 | C68: GERÊNCIA CONTÁBIL | D68: =VLOOKUP(B68,Centro_Custo!$A$2:$C$36,3) -> Encargos de Gestão | E68: Fixo | F68: =SUMIFS('Classificação OPEX'!$O$4:$O$1666,'Classificação OPEX'!$Q$4:$Q$1666,"N",'Classificação OPEX'!$S$4:$S$1666,"NÃO",'Classificação OPEX'!$V$4:$V$1666,DRIVER_OPEX!A68,'Classificação OPEX'!$W$4:$W$1666,DRIVER_OPEX!B68) -> 0 | G68: =IF($F68="",0,VLOOKUP($E68,Drivers!$A$26:$F$48,MATCH(G$1,Drivers!$A$25:$F$25,0),0)*$F68) -> 0 | H68: =IF($F68="",0,VLOOKUP($E68,Drivers!$A$26:$F$48,MATCH(H$1,Drivers!$A$25:$F$25,0),0)*$F68) -> 0 | I68: =IF($F68="",0,VLOOKUP($E68,Drivers!$A$26:$F$48,MATCH(I$1,Drivers!$A$25:$F$25,0),0)*$F68) -> 0 | J68: =IF($F68="",0,VLOOKUP($E68,Drivers!$A$26:$F$48,MATCH(J$1,Drivers!$A$25:$F$25,0),0)*$F68) -> 0 | K68: =IF($F68="",0,VLOOKUP($E68,Drivers!$A$26:$F$48,MATCH(K$1,Drivers!$A$25:$F$25,0),0)*$F68) -> 0
A69: CUSTO_ODORIZAÇAO | B69: 4600 | C69: GERÊNCIA DE PESSOAS E CULTURA | D69: =VLOOKUP(B69,Centro_Custo!$A$2:$C$36,3) -> Encargos de Gestão | E69: Fixo | F69: =SUMIFS('Classificação OPEX'!$O$4:$O$1666,'Classificação OPEX'!$Q$4:$Q$1666,"N",'Classificação OPEX'!$S$4:$S$1666,"NÃO",'Classificação OPEX'!$V$4:$V$1666,DRIVER_OPEX!A69,'Classificação OPEX'!$W$4:$W$1666,DRIVER_OPEX!B69) -> 0 | G69: =IF($F69="",0,VLOOKUP($E69,Drivers!$A$26:$F$48,MATCH(G$1,Drivers!$A$25:$F$25,0),0)*$F69) -> 0 | H69: =IF($F69="",0,VLOOKUP($E69,Drivers!$A$26:$F$48,MATCH(H$1,Drivers!$A$25:$F$25,0),0)*$F69) -> 0 | I69: =IF($F69="",0,VLOOKUP($E69,Drivers!$A$26:$F$48,MATCH(I$1,Drivers!$A$25:$F$25,0),0)*$F69) -> 0 | J69: =IF($F69="",0,VLOOKUP($E69,Drivers!$A$26:$F$48,MATCH(J$1,Drivers!$A$25:$F$25,0),0)*$F69) -> 0 | K69: =IF($F69="",0,VLOOKUP($E69,Drivers!$A$26:$F$48,MATCH(K$1,Drivers!$A$25:$F$25,0),0)*$F69) -> 0
A70: CUSTO_ODORIZAÇAO | B70: 5100 | C70: GERÊNCIA DE ENGENHARIA | D70: =VLOOKUP(B70,Centro_Custo!$A$2:$C$36,3) -> OPEX&ODESP | E70: Fixo | F70: =SUMIFS('Classificação OPEX'!$O$4:$O$1666,'Classificação OPEX'!$Q$4:$Q$1666,"N",'Classificação OPEX'!$S$4:$S$1666,"NÃO",'Classificação OPEX'!$V$4:$V$1666,DRIVER_OPEX!A70,'Classificação OPEX'!$W$4:$W$1666,DRIVER_OPEX!B70) -> 0 | G70: =IF($F70="",0,VLOOKUP($E70,Drivers!$A$26:$F$48,MATCH(G$1,Drivers!$A$25:$F$25,0),0)*$F70) -> 0 | H70: =IF($F70="",0,VLOOKUP($E70,Drivers!$A$26:$F$48,MATCH(H$1,Drivers!$A$25:$F$25,0),0)*$F70) -> 0 | I70: =IF($F70="",0,VLOOKUP($E70,Drivers!$A$26:$F$48,MATCH(I$1,Drivers!$A$25:$F$25,0),0)*$F70) -> 0 | J70: =IF($F70="",0,VLOOKUP($E70,Drivers!$A$26:$F$48,MATCH(J$1,Drivers!$A$25:$F$25,0),0)*$F70) -> 0 | K70: =IF($F70="",0,VLOOKUP($E70,Drivers!$A$26:$F$48,MATCH(K$1,Drivers!$A$25:$F$25,0),0)*$F70) -> 0
A71: CUSTO_ODORIZAÇAO | B71: 5300 | C71: GERÊNCIA COMERCIAL | D71: =VLOOKUP(B71,Centro_Custo!$A$2:$C$36,3) -> Encargos de Comercialização | E71: Fixo | F71: =SUMIFS('Classificação OPEX'!$O$4:$O$1666,'Classificação OPEX'!$Q$4:$Q$1666,"N",'Classificação OPEX'!$S$4:$S$1666,"NÃO",'Classificação OPEX'!$V$4:$V$1666,DRIVER_OPEX!A71,'Classificação OPEX'!$W$4:$W$1666,DRIVER_OPEX!B71) -> 0 | G71: =IF($F71="",0,VLOOKUP($E71,Drivers!$A$26:$F$48,MATCH(G$1,Drivers!$A$25:$F$25,0),0)*$F71) -> 0 | H71: =IF($F71="",0,VLOOKUP($E71,Drivers!$A$26:$F$48,MATCH(H$1,Drivers!$A$25:$F$25,0),0)*$F71) -> 0 | I71: =IF($F71="",0,VLOOKUP($E71,Drivers!$A$26:$F$48,MATCH(I$1,Drivers!$A$25:$F$25,0),0)*$F71) -> 0 | J71: =IF($F71="",0,VLOOKUP($E71,Drivers!$A$26:$F$48,MATCH(J$1,Drivers!$A$25:$F$25,0),0)*$F71) -> 0 | K71: =IF($F71="",0,VLOOKUP($E71,Drivers!$A$26:$F$48,MATCH(K$1,Drivers!$A$25:$F$25,0),0)*$F71) -> 0
A72: CUSTO_ODORIZAÇAO | B72: 9999 | C72: RATEIO | D72: =VLOOKUP(B72,Centro_Custo!$A$2:$C$36,3) -> Encargos de Gestão | E72: Fixo | F72: =SUMIFS('Classificação OPEX'!$O$4:$O$1666,'Classificação OPEX'!$Q$4:$Q$1666,"N",'Classificação OPEX'!$S$4:$S$1666,"NÃO",'Classificação OPEX'!$V$4:$V$1666,DRIVER_OPEX!A72,'Classificação OPEX'!$W$4:$W$1666,DRIVER_OPEX!B72) -> 0 | G72: =IF($F72="",0,VLOOKUP($E72,Drivers!$A$26:$F$48,MATCH(G$1,Drivers!$A$25:$F$25,0),0)*$F72) -> 0 | H72: =IF($F72="",0,VLOOKUP($E72,Drivers!$A$26:$F$48,MATCH(H$1,Drivers!$A$25:$F$25,0),0)*$F72) -> 0 | I72: =IF($F72="",0,VLOOKUP($E72,Drivers!$A$26:$F$48,MATCH(I$1,Drivers!$A$25:$F$25,0),0)*$F72) -> 0 | J72: =IF($F72="",0,VLOOKUP($E72,Drivers!$A$26:$F$48,MATCH(J$1,Drivers!$A$25:$F$25,0),0)*$F72) -> 0 | K72: =IF($F72="",0,VLOOKUP($E72,Drivers!$A$26:$F$48,MATCH(K$1,Drivers!$A$25:$F$25,0),0)*$F72) -> 0
A73: CUSTO_ODORIZAÇAO | B73: 5400 | C73: GERÊNCIA COMERCIAL | D73: =VLOOKUP(B73,Centro_Custo!$A$2:$C$36,3) -> Encargos de Gestão | E73: Fixo | F73: =SUMIFS('Classificação OPEX'!$O$4:$O$1666,'Classificação OPEX'!$Q$4:$Q$1666,"N",'Classificação OPEX'!$S$4:$S$1666,"NÃO",'Classificação OPEX'!$V$4:$V$1666,DRIVER_OPEX!A73,'Classificação OPEX'!$W$4:$W$1666,DRIVER_OPEX!B73) -> 0 | G73: =IF($F73="",0,VLOOKUP($E73,Drivers!$A$26:$F$48,MATCH(G$1,Drivers!$A$25:$F$25,0),0)*$F73) -> 0 | H73: =IF($F73="",0,VLOOKUP($E73,Drivers!$A$26:$F$48,MATCH(H$1,Drivers!$A$25:$F$25,0),0)*$F73) -> 0 | I73: =IF($F73="",0,VLOOKUP($E73,Drivers!$A$26:$F$48,MATCH(I$1,Drivers!$A$25:$F$25,0),0)*$F73) -> 0 | J73: =IF($F73="",0,VLOOKUP($E73,Drivers!$A$26:$F$48,MATCH(J$1,Drivers!$A$25:$F$25,0),0)*$F73) -> 0 | K73: =IF($F73="",0,VLOOKUP($E73,Drivers!$A$26:$F$48,MATCH(K$1,Drivers!$A$25:$F$25,0),0)*$F73) -> 0
A74: CUSTO_ODORIZAÇAO | B74: 5500 | C74: GERÊNCIA COMERCIAL | D74: =VLOOKUP(B74,Centro_Custo!$A$2:$C$36,3) -> Encargos de Gestão | E74: Fixo | F74: =SUMIFS('Classificação OPEX'!$O$4:$O$1666,'Classificação OPEX'!$Q$4:$Q$1666,"N",'Classificação OPEX'!$S$4:$S$1666,"NÃO",'Classificação OPEX'!$V$4:$V$1666,DRIVER_OPEX!A74,'Classificação OPEX'!$W$4:$W$1666,DRIVER_OPEX!B74) -> 0 | G74: =IF($F74="",0,VLOOKUP($E74,Drivers!$A$26:$F$48,MATCH(G$1,Drivers!$A$25:$F$25,0),0)*$F74) -> 0 | H74: =IF($F74="",0,VLOOKUP($E74,Drivers!$A$26:$F$48,MATCH(H$1,Drivers!$A$25:$F$25,0),0)*$F74) -> 0 | I74: =IF($F74="",0,VLOOKUP($E74,Drivers!$A$26:$F$48,MATCH(I$1,Drivers!$A$25:$F$25,0),0)*$F74) -> 0 | J74: =IF($F74="",0,VLOOKUP($E74,Drivers!$A$26:$F$48,MATCH(J$1,Drivers!$A$25:$F$25,0),0)*$F74) -> 0 | K74: =IF($F74="",0,VLOOKUP($E74,Drivers!$A$26:$F$48,MATCH(K$1,Drivers!$A$25:$F$25,0),0)*$F74) -> 0
A75: DESPESAS_GERAIS | B75: TOTAL | C75: TOTAL | F75: =SUM(F76:F110) -> 6204113.465 | G75: =SUM(G76:G110) -> 6414643.314 | H75: 6709918.719 | I75: 6943121.913 | J75: 7096478.698 | K75: 7276702.764
A76: DESPESAS_GERAIS | B76: 1004 | C76: =VLOOKUP(B76,Centro_Custo!$A$2:$B$36,2,0) -> COMITÊ DE AUDITORIA ESTATUTÁRIA | D76: =VLOOKUP(B76,Centro_Custo!$A$2:$C$36,3) -> Encargos de Gestão | E76: Fixo | F76: =SUMIFS('Classificação OPEX'!$O$4:$O$1666,'Classificação OPEX'!$Q$4:$Q$1666,"N",'Classificação OPEX'!$S$4:$S$1666,"NÃO",'Classificação OPEX'!$V$4:$V$1666,DRIVER_OPEX!A76,'Classificação OPEX'!$W$4:$W$1666,DRIVER_OPEX!B76) -> 0 | G76: =IF($F76="",0,VLOOKUP($E76,Drivers!$A$26:$F$48,MATCH(G$1,Drivers!$A$25:$F$25,0),0)*$F76) -> 0 | H76: =IF($F76="",0,VLOOKUP($E76,Drivers!$A$26:$F$48,MATCH(H$1,Drivers!$A$25:$F$25,0),0)*$F76) -> 0 | I76: =IF($F76="",0,VLOOKUP($E76,Drivers!$A$26:$F$48,MATCH(I$1,Drivers!$A$25:$F$25,0),0)*$F76) -> 0 | J76: =IF($F76="",0,VLOOKUP($E76,Drivers!$A$26:$F$48,MATCH(J$1,Drivers!$A$25:$F$25,0),0)*$F76) -> 0 | K76: =IF($F76="",0,VLOOKUP($E76,Drivers!$A$26:$F$48,MATCH(K$1,Drivers!$A$25:$F$25,0),0)*$F76) -> 0
A77: DESPESAS_GERAIS | B77: 1005 | C77: =VLOOKUP(B77,Centro_Custo!$A$2:$B$36,2,0) -> AUDITORIA INTERNA | D77: =VLOOKUP(B77,Centro_Custo!$A$2:$C$36,3) -> Encargos de Gestão | E77: Fixo | F77: =SUMIFS('Classificação OPEX'!$O$4:$O$1666,'Classificação OPEX'!$Q$4:$Q$1666,"N",'Classificação OPEX'!$S$4:$S$1666,"NÃO",'Classificação OPEX'!$V$4:$V$1666,DRIVER_OPEX!A77,'Classificação OPEX'!$W$4:$W$1666,DRIVER_OPEX!B77) -> 4322.823012 | G77: =IF($F77="",0,VLOOKUP($E77,Drivers!$A$26:$F$48,MATCH(G$1,Drivers!$A$25:$F$25,0),0)*$F77) -> 4322.823012 | H77: =IF($F77="",0,VLOOKUP($E77,Drivers!$A$26:$F$48,MATCH(H$1,Drivers!$A$25:$F$25,0),0)*$F77) -> 4322.823012 | I77: =IF($F77="",0,VLOOKUP($E77,Drivers!$A$26:$F$48,MATCH(I$1,Drivers!$A$25:$F$25,0),0)*$F77) -> 4322.823012 | J77: =IF($F77="",0,VLOOKUP($E77,Drivers!$A$26:$F$48,MATCH(J$1,Drivers!$A$25:$F$25,0),0)*$F77) -> 4322.823012 | K77: =IF($F77="",0,VLOOKUP($E77,Drivers!$A$26:$F$48,MATCH(K$1,Drivers!$A$25:$F$25,0),0)*$F77) -> 4322.823012
A78: DESPESAS_GERAIS | B78: 1010 | C78: =VLOOKUP(B78,Centro_Custo!$A$2:$B$36,2,0) -> GOVERNANÇA SOCIETÁRIA | D78: =VLOOKUP(B78,Centro_Custo!$A$2:$C$36,3) -> Encargos de Gestão | E78: Fixo | F78: =SUMIFS('Classificação OPEX'!$O$4:$O$1666,'Classificação OPEX'!$Q$4:$Q$1666,"N",'Classificação OPEX'!$S$4:$S$1666,"NÃO",'Classificação OPEX'!$V$4:$V$1666,DRIVER_OPEX!A78,'Classificação OPEX'!$W$4:$W$1666,DRIVER_OPEX!B78) -> 37.64635599 | G78: =IF($F78="",0,VLOOKUP($E78,Drivers!$A$26:$F$48,MATCH(G$1,Drivers!$A$25:$F$25,0),0)*$F78) -> 37.64635599 | H78: =IF($F78="",0,VLOOKUP($E78,Drivers!$A$26:$F$48,MATCH(H$1,Drivers!$A$25:$F$25,0),0)*$F78) -> 37.64635599 | I78: =IF($F78="",0,VLOOKUP($E78,Drivers!$A$26:$F$48,MATCH(I$1,Drivers!$A$25:$F$25,0),0)*$F78) -> 37.64635599 | J78: =IF($F78="",0,VLOOKUP($E78,Drivers!$A$26:$F$48,MATCH(J$1,Drivers!$A$25:$F$25,0),0)*$F78) -> 37.64635599 | K78: =IF($F78="",0,VLOOKUP($E78,Drivers!$A$26:$F$48,MATCH(K$1,Drivers!$A$25:$F$25,0),0)*$F78) -> 37.64635599
A79: DESPESAS_GERAIS | B79: 2110 | C79: =VLOOKUP(B79,Centro_Custo!$A$2:$B$36,2,0) -> ASSESSORIA DA DIRETORIA EXECUTIVA | D79: =VLOOKUP(B79,Centro_Custo!$A$2:$C$36,3) -> Encargos de Gestão | E79: Fixo | F79: =SUMIFS('Classificação OPEX'!$O$4:$O$1666,'Classificação OPEX'!$Q$4:$Q$1666,"N",'Classificação OPEX'!$S$4:$S$1666,"NÃO",'Classificação OPEX'!$V$4:$V$1666,DRIVER_OPEX!A79,'Classificação OPEX'!$W$4:$W$1666,DRIVER_OPEX!B79) -> 8660.955765 | G79: =IF($F79="",0,VLOOKUP($E79,Drivers!$A$26:$F$48,MATCH(G$1,Drivers!$A$25:$F$25,0),0)*$F79) -> 8660.955765 | H79: =IF($F79="",0,VLOOKUP($E79,Drivers!$A$26:$F$48,MATCH(H$1,Drivers!$A$25:$F$25,0),0)*$F79) -> 8660.955765 | I79: =IF($F79="",0,VLOOKUP($E79,Drivers!$A$26:$F$48,MATCH(I$1,Drivers!$A$25:$F$25,0),0)*$F79) -> 8660.955765 | J79: =IF($F79="",0,VLOOKUP($E79,Drivers!$A$26:$F$48,MATCH(J$1,Drivers!$A$25:$F$25,0),0)*$F79) -> 8660.955765 | K79: =IF($F79="",0,VLOOKUP($E79,Drivers!$A$26:$F$48,MATCH(K$1,Drivers!$A$25:$F$25,0),0)*$F79) -> 8660.955765
A80: DESPESAS_GERAIS | B80: 2120 | C80: =VLOOKUP(B80,Centro_Custo!$A$2:$B$36,2,0) -> ASSESSORIA DA PRESIDÊNCIA | D80: =VLOOKUP(B80,Centro_Custo!$A$2:$C$36,3) -> Encargos de Gestão | E80: Fixo | F80: =SUMIFS('Classificação OPEX'!$O$4:$O$1666,'Classificação OPEX'!$Q$4:$Q$1666,"N",'Classificação OPEX'!$S$4:$S$1666,"NÃO",'Classificação OPEX'!$V$4:$V$1666,DRIVER_OPEX!A80,'Classificação OPEX'!$W$4:$W$1666,DRIVER_OPEX!B80) -> 34669.048 | G80: =IF($F80="",0,VLOOKUP($E80,Drivers!$A$26:$F$48,MATCH(G$1,Drivers!$A$25:$F$25,0),0)*$F80) -> 34669.048 | H80: =IF($F80="",0,VLOOKUP($E80,Drivers!$A$26:$F$48,MATCH(H$1,Drivers!$A$25:$F$25,0),0)*$F80) -> 34669.048 | I80: =IF($F80="",0,VLOOKUP($E80,Drivers!$A$26:$F$48,MATCH(I$1,Drivers!$A$25:$F$25,0),0)*$F80) -> 34669.048 | J80: =IF($F80="",0,VLOOKUP($E80,Drivers!$A$26:$F$48,MATCH(J$1,Drivers!$A$25:$F$25,0),0)*$F80) -> 34669.048 | K80: =IF($F80="",0,VLOOKUP($E80,Drivers!$A$26:$F$48,MATCH(K$1,Drivers!$A$25:$F$25,0),0)*$F80) -> 34669.048
A81: DESPESAS_GERAIS | B81: 2130 | C81: =VLOOKUP(B81,Centro_Custo!$A$2:$B$36,2,0) -> ASSESSORIA DE RELAÇÕES INSTITUCIONAIS E NOVOS NEGÓCIOS | D81: =VLOOKUP(B81,Centro_Custo!$A$2:$C$36,3) -> Encargos de Gestão | E81: Fixo | F81: =SUMIFS('Classificação OPEX'!$O$4:$O$1666,'Classificação OPEX'!$Q$4:$Q$1666,"N",'Classificação OPEX'!$S$4:$S$1666,"NÃO",'Classificação OPEX'!$V$4:$V$1666,DRIVER_OPEX!A81,'Classificação OPEX'!$W$4:$W$1666,DRIVER_OPEX!B81) -> 0 | G81: =IF($F81="",0,VLOOKUP($E81,Drivers!$A$26:$F$48,MATCH(G$1,Drivers!$A$25:$F$25,0),0)*$F81) -> 0 | H81: =IF($F81="",0,VLOOKUP($E81,Drivers!$A$26:$F$48,MATCH(H$1,Drivers!$A$25:$F$25,0),0)*$F81) -> 0 | I81: =IF($F81="",0,VLOOKUP($E81,Drivers!$A$26:$F$48,MATCH(I$1,Drivers!$A$25:$F$25,0),0)*$F81) -> 0 | J81: =IF($F81="",0,VLOOKUP($E81,Drivers!$A$26:$F$48,MATCH(J$1,Drivers!$A$25:$F$25,0),0)*$F81) -> 0 | K81: =IF($F81="",0,VLOOKUP($E81,Drivers!$A$26:$F$48,MATCH(K$1,Drivers!$A$25:$F$25,0),0)*$F81) -> 0
A82: DESPESAS_GERAIS | B82: 2140 | C82: =VLOOKUP(B82,Centro_Custo!$A$2:$B$36,2,0) -> ASSESSORIA DTC | D82: =VLOOKUP(B82,Centro_Custo!$A$2:$C$36,3) -> Encargos de Comercialização | E82: Fixo | F82: =SUMIFS('Classificação OPEX'!$O$4:$O$1666,'Classificação OPEX'!$Q$4:$Q$1666,"N",'Classificação OPEX'!$S$4:$S$1666,"NÃO",'Classificação OPEX'!$V$4:$V$1666,DRIVER_OPEX!A82,'Classificação OPEX'!$W$4:$W$1666,DRIVER_OPEX!B82) -> 0 | G82: =IF($F82="",0,VLOOKUP($E82,Drivers!$A$26:$F$48,MATCH(G$1,Drivers!$A$25:$F$25,0),0)*$F82) -> 0 | H82: =IF($F82="",0,VLOOKUP($E82,Drivers!$A$26:$F$48,MATCH(H$1,Drivers!$A$25:$F$25,0),0)*$F82) -> 0 | I82: =IF($F82="",0,VLOOKUP($E82,Drivers!$A$26:$F$48,MATCH(I$1,Drivers!$A$25:$F$25,0),0)*$F82) -> 0 | J82: =IF($F82="",0,VLOOKUP($E82,Drivers!$A$26:$F$48,MATCH(J$1,Drivers!$A$25:$F$25,0),0)*$F82) -> 0 | K82: =IF($F82="",0,VLOOKUP($E82,Drivers!$A$26:$F$48,MATCH(K$1,Drivers!$A$25:$F$25,0),0)*$F82) -> 0
A83: DESPESAS_GERAIS | B83: 2200 | C83: =VLOOKUP(B83,Centro_Custo!$A$2:$B$36,2,0) -> DIRETORIA COLEGIADA - PRESIDÊNCIA | D83: =VLOOKUP(B83,Centro_Custo!$A$2:$C$36,3) -> Encargos de Gestão | E83: Fixo | F83: =SUMIFS('Classificação OPEX'!$O$4:$O$1666,'Classificação OPEX'!$Q$4:$Q$1666,"N",'Classificação OPEX'!$S$4:$S$1666,"NÃO",'Classificação OPEX'!$V$4:$V$1666,DRIVER_OPEX!A83,'Classificação OPEX'!$W$4:$W$1666,DRIVER_OPEX!B83) -> 13438.28497 | G83: =IF($F83="",0,VLOOKUP($E83,Drivers!$A$26:$F$48,MATCH(G$1,Drivers!$A$25:$F$25,0),0)*$F83) -> 13438.28497 | H83: =IF($F83="",0,VLOOKUP($E83,Drivers!$A$26:$F$48,MATCH(H$1,Drivers!$A$25:$F$25,0),0)*$F83) -> 13438.28497 | I83: =IF($F83="",0,VLOOKUP($E83,Drivers!$A$26:$F$48,MATCH(I$1,Drivers!$A$25:$F$25,0),0)*$F83) -> 13438.28497 | J83: =IF($F83="",0,VLOOKUP($E83,Drivers!$A$26:$F$48,MATCH(J$1,Drivers!$A$25:$F$25,0),0)*$F83) -> 13438.28497 | K83: =IF($F83="",0,VLOOKUP($E83,Drivers!$A$26:$F$48,MATCH(K$1,Drivers!$A$25:$F$25,0),0)*$F83) -> 13438.28497
A84: DESPESAS_GERAIS | B84: 2300 | C84: =VLOOKUP(B84,Centro_Custo!$A$2:$B$36,2,0) -> DIRETORIA COLEGIADA - DAF | D84: =VLOOKUP(B84,Centro_Custo!$A$2:$C$36,3) -> Encargos de Gestão | E84: Fixo | F84: =SUMIFS('Classificação OPEX'!$O$4:$O$1666,'Classificação OPEX'!$Q$4:$Q$1666,"N",'Classificação OPEX'!$S$4:$S$1666,"NÃO",'Classificação OPEX'!$V$4:$V$1666,DRIVER_OPEX!A84,'Classificação OPEX'!$W$4:$W$1666,DRIVER_OPEX!B84) -> 754497.9911 | G84: =IF($F84="",0,VLOOKUP($E84,Drivers!$A$26:$F$48,MATCH(G$1,Drivers!$A$25:$F$25,0),0)*$F84) -> 754497.9911 | H84: =IF($F84="",0,VLOOKUP($E84,Drivers!$A$26:$F$48,MATCH(H$1,Drivers!$A$25:$F$25,0),0)*$F84) -> 754497.9911 | I84: =IF($F84="",0,VLOOKUP($E84,Drivers!$A$26:$F$48,MATCH(I$1,Drivers!$A$25:$F$25,0),0)*$F84) -> 754497.9911 | J84: =IF($F84="",0,VLOOKUP($E84,Drivers!$A$26:$F$48,MATCH(J$1,Drivers!$A$25:$F$25,0),0)*$F84) -> 754497.9911 | K84: =IF($F84="",0,VLOOKUP($E84,Drivers!$A$26:$F$48,MATCH(K$1,Drivers!$A$25:$F$25,0),0)*$F84) -> 754497.9911
A85: DESPESAS_GERAIS | B85: 2310 | C85: =VLOOKUP(B85,Centro_Custo!$A$2:$B$36,2,0) -> ASSESSORIA DAF | D85: =VLOOKUP(B85,Centro_Custo!$A$2:$C$36,3) -> Encargos de Gestão | E85: Fixo | F85: =SUMIFS('Classificação OPEX'!$O$4:$O$1666,'Classificação OPEX'!$Q$4:$Q$1666,"N",'Classificação OPEX'!$S$4:$S$1666,"NÃO",'Classificação OPEX'!$V$4:$V$1666,DRIVER_OPEX!A85,'Classificação OPEX'!$W$4:$W$1666,DRIVER_OPEX!B85) -> 5387.370978 | G85: =IF($F85="",0,VLOOKUP($E85,Drivers!$A$26:$F$48,MATCH(G$1,Drivers!$A$25:$F$25,0),0)*$F85) -> 5387.370978 | H85: =IF($F85="",0,VLOOKUP($E85,Drivers!$A$26:$F$48,MATCH(H$1,Drivers!$A$25:$F$25,0),0)*$F85) -> 5387.370978 | I85: =IF($F85="",0,VLOOKUP($E85,Drivers!$A$26:$F$48,MATCH(I$1,Drivers!$A$25:$F$25,0),0)*$F85) -> 5387.370978 | J85: =IF($F85="",0,VLOOKUP($E85,Drivers!$A$26:$F$48,MATCH(J$1,Drivers!$A$25:$F$25,0),0)*$F85) -> 5387.370978 | K85: =IF($F85="",0,VLOOKUP($E85,Drivers!$A$26:$F$48,MATCH(K$1,Drivers!$A$25:$F$25,0),0)*$F85) -> 5387.370978
A86: DESPESAS_GERAIS | B86: 2400 | C86: =VLOOKUP(B86,Centro_Custo!$A$2:$B$36,2,0) -> DIRETORIA COLEGIADA - DTC | D86: =VLOOKUP(B86,Centro_Custo!$A$2:$C$36,3) -> Encargos de Comercialização | E86: Fixo | F86: =SUMIFS('Classificação OPEX'!$O$4:$O$1666,'Classificação OPEX'!$Q$4:$Q$1666,"N",'Classificação OPEX'!$S$4:$S$1666,"NÃO",'Classificação OPEX'!$V$4:$V$1666,DRIVER_OPEX!A86,'Classificação OPEX'!$W$4:$W$1666,DRIVER_OPEX!B86) -> 672596.8474 | G86: =IF($F86="",0,VLOOKUP($E86,Drivers!$A$26:$F$48,MATCH(G$1,Drivers!$A$25:$F$25,0),0)*$F86) -> 672596.8474 | H86: =IF($F86="",0,VLOOKUP($E86,Drivers!$A$26:$F$48,MATCH(H$1,Drivers!$A$25:$F$25,0),0)*$F86) -> 672596.8474 | I86: =IF($F86="",0,VLOOKUP($E86,Drivers!$A$26:$F$48,MATCH(I$1,Drivers!$A$25:$F$25,0),0)*$F86) -> 672596.8474 | J86: =IF($F86="",0,VLOOKUP($E86,Drivers!$A$26:$F$48,MATCH(J$1,Drivers!$A$25:$F$25,0),0)*$F86) -> 672596.8474 | K86: =IF($F86="",0,VLOOKUP($E86,Drivers!$A$26:$F$48,MATCH(K$1,Drivers!$A$25:$F$25,0),0)*$F86) -> 672596.8474
A87: DESPESAS_GERAIS | B87: 2410 | C87: =VLOOKUP(B87,Centro_Custo!$A$2:$B$36,2,0) -> ASSESSORIA DE SEGURANÇA DO TRABALHO | D87: =VLOOKUP(B87,Centro_Custo!$A$2:$C$36,3) -> OPEX&ODESP | E87: Fixo | F87: =SUMIFS('Classificação OPEX'!$O$4:$O$1666,'Classificação OPEX'!$Q$4:$Q$1666,"N",'Classificação OPEX'!$S$4:$S$1666,"NÃO",'Classificação OPEX'!$V$4:$V$1666,DRIVER_OPEX!A87,'Classificação OPEX'!$W$4:$W$1666,DRIVER_OPEX!B87) -> 1687.888495 | G87: =IF($F87="",0,VLOOKUP($E87,Drivers!$A$26:$F$48,MATCH(G$1,Drivers!$A$25:$F$25,0),0)*$F87) -> 1687.888495 | H87: =IF($F87="",0,VLOOKUP($E87,Drivers!$A$26:$F$48,MATCH(H$1,Drivers!$A$25:$F$25,0),0)*$F87) -> 1687.888495 | I87: =IF($F87="",0,VLOOKUP($E87,Drivers!$A$26:$F$48,MATCH(I$1,Drivers!$A$25:$F$25,0),0)*$F87) -> 1687.888495 | J87: =IF($F87="",0,VLOOKUP($E87,Drivers!$A$26:$F$48,MATCH(J$1,Drivers!$A$25:$F$25,0),0)*$F87) -> 1687.888495 | K87: =IF($F87="",0,VLOOKUP($E87,Drivers!$A$26:$F$48,MATCH(K$1,Drivers!$A$25:$F$25,0),0)*$F87) -> 1687.888495
A88: DESPESAS_GERAIS | B88: 3100 | C88: =VLOOKUP(B88,Centro_Custo!$A$2:$B$36,2,0) -> SMS | D88: =VLOOKUP(B88,Centro_Custo!$A$2:$C$36,3) -> OPEX&ODESP | E88: Fixo | F88: =SUMIFS('Classificação OPEX'!$O$4:$O$1666,'Classificação OPEX'!$Q$4:$Q$1666,"N",'Classificação OPEX'!$S$4:$S$1666,"NÃO",'Classificação OPEX'!$V$4:$V$1666,DRIVER_OPEX!A88,'Classificação OPEX'!$W$4:$W$1666,DRIVER_OPEX!B88) -> 18104.18174 | G88: =IF($F88="",0,VLOOKUP($E88,Drivers!$A$26:$F$48,MATCH(G$1,Drivers!$A$25:$F$25,0),0)*$F88) -> 18104.18174 | H88: =IF($F88="",0,VLOOKUP($E88,Drivers!$A$26:$F$48,MATCH(H$1,Drivers!$A$25:$F$25,0),0)*$F88) -> 18104.18174 | I88: =IF($F88="",0,VLOOKUP($E88,Drivers!$A$26:$F$48,MATCH(I$1,Drivers!$A$25:$F$25,0),0)*$F88) -> 18104.18174 | J88: =IF($F88="",0,VLOOKUP($E88,Drivers!$A$26:$F$48,MATCH(J$1,Drivers!$A$25:$F$25,0),0)*$F88) -> 18104.18174 | K88: =IF($F88="",0,VLOOKUP($E88,Drivers!$A$26:$F$48,MATCH(K$1,Drivers!$A$25:$F$25,0),0)*$F88) -> 18104.18174
A89: DESPESAS_GERAIS | B89: 3200 | C89: =VLOOKUP(B89,Centro_Custo!$A$2:$B$36,2,0) -> GERÊNCIA DE PLANEJAMENTO E MEIO AMBIENTE | D89: =VLOOKUP(B89,Centro_Custo!$A$2:$C$36,3) -> OPEX&ODESP | E89: Fixo | F89: =SUMIFS('Classificação OPEX'!$O$4:$O$1666,'Classificação OPEX'!$Q$4:$Q$1666,"N",'Classificação OPEX'!$S$4:$S$1666,"NÃO",'Classificação OPEX'!$V$4:$V$1666,DRIVER_OPEX!A89,'Classificação OPEX'!$W$4:$W$1666,DRIVER_OPEX!B89) -> 68017.51133 | G89: =IF($F89="",0,VLOOKUP($E89,Drivers!$A$26:$F$48,MATCH(G$1,Drivers!$A$25:$F$25,0),0)*$F89) -> 68017.51133 | H89: =IF($F89="",0,VLOOKUP($E89,Drivers!$A$26:$F$48,MATCH(H$1,Drivers!$A$25:$F$25,0),0)*$F89) -> 68017.51133 | I89: =IF($F89="",0,VLOOKUP($E89,Drivers!$A$26:$F$48,MATCH(I$1,Drivers!$A$25:$F$25,0),0)*$F89) -> 68017.51133 | J89: =IF($F89="",0,VLOOKUP($E89,Drivers!$A$26:$F$48,MATCH(J$1,Drivers!$A$25:$F$25,0),0)*$F89) -> 68017.51133 | K89: =IF($F89="",0,VLOOKUP($E89,Drivers!$A$26:$F$48,MATCH(K$1,Drivers!$A$25:$F$25,0),0)*$F89) -> 68017.51133
A90: DESPESAS_GERAIS | B90: 3300 | C90: =VLOOKUP(B90,Centro_Custo!$A$2:$B$36,2,0) -> GERÊNCIA JURÍDICA | D90: =VLOOKUP(B90,Centro_Custo!$A$2:$C$36,3) -> Encargos de Gestão | E90: Fixo | F90: =SUMIFS('Classificação OPEX'!$O$4:$O$1666,'Classificação OPEX'!$Q$4:$Q$1666,"N",'Classificação OPEX'!$S$4:$S$1666,"NÃO",'Classificação OPEX'!$V$4:$V$1666,DRIVER_OPEX!A90,'Classificação OPEX'!$W$4:$W$1666,DRIVER_OPEX!B90) -> 23441.01473 | G90: =IF($F90="",0,VLOOKUP($E90,Drivers!$A$26:$F$48,MATCH(G$1,Drivers!$A$25:$F$25,0),0)*$F90) -> 23441.01473 | H90: =IF($F90="",0,VLOOKUP($E90,Drivers!$A$26:$F$48,MATCH(H$1,Drivers!$A$25:$F$25,0),0)*$F90) -> 23441.01473 | I90: =IF($F90="",0,VLOOKUP($E90,Drivers!$A$26:$F$48,MATCH(I$1,Drivers!$A$25:$F$25,0),0)*$F90) -> 23441.01473 | J90: =IF($F90="",0,VLOOKUP($E90,Drivers!$A$26:$F$48,MATCH(J$1,Drivers!$A$25:$F$25,0),0)*$F90) -> 23441.01473 | K90: =IF($F90="",0,VLOOKUP($E90,Drivers!$A$26:$F$48,MATCH(K$1,Drivers!$A$25:$F$25,0),0)*$F90) -> 23441.01473
A91: DESPESAS_GERAIS | B91: 3500 | C91: =VLOOKUP(B91,Centro_Custo!$A$2:$B$36,2,0) -> ASSESSORIA DE COMUNICAÇÃO INSTITUCIONAL | D91: =VLOOKUP(B91,Centro_Custo!$A$2:$C$36,3) -> Encargos de Gestão | E91: Fixo | F91: =SUMIFS('Classificação OPEX'!$O$4:$O$1666,'Classificação OPEX'!$Q$4:$Q$1666,"N",'Classificação OPEX'!$S$4:$S$1666,"NÃO",'Classificação OPEX'!$V$4:$V$1666,DRIVER_OPEX!A91,'Classificação OPEX'!$W$4:$W$1666,DRIVER_OPEX!B91) -> 45848.90449 | G91: =IF($F91="",0,VLOOKUP($E91,Drivers!$A$26:$F$48,MATCH(G$1,Drivers!$A$25:$F$25,0),0)*$F91) -> 45848.90449 | H91: =IF($F91="",0,VLOOKUP($E91,Drivers!$A$26:$F$48,MATCH(H$1,Drivers!$A$25:$F$25,0),0)*$F91) -> 45848.90449 | I91: =IF($F91="",0,VLOOKUP($E91,Drivers!$A$26:$F$48,MATCH(I$1,Drivers!$A$25:$F$25,0),0)*$F91) -> 45848.90449 | J91: =IF($F91="",0,VLOOKUP($E91,Drivers!$A$26:$F$48,MATCH(J$1,Drivers!$A$25:$F$25,0),0)*$F91) -> 45848.90449 | K91: =IF($F91="",0,VLOOKUP($E91,Drivers!$A$26:$F$48,MATCH(K$1,Drivers!$A$25:$F$25,0),0)*$F91) -> 45848.90449
A92: DESPESAS_GERAIS | B92: 3600 | C92: =VLOOKUP(B92,Centro_Custo!$A$2:$B$36,2,0) -> GERÊNCIA DE GOVERNANÇA, RISCO E COMPLIANCE | D92: =VLOOKUP(B92,Centro_Custo!$A$2:$C$36,3) -> Encargos de Gestão | E92: Fixo | F92: =SUMIFS('Classificação OPEX'!$O$4:$O$1666,'Classificação OPEX'!$Q$4:$Q$1666,"N",'Classificação OPEX'!$S$4:$S$1666,"NÃO",'Classificação OPEX'!$V$4:$V$1666,DRIVER_OPEX!A92,'Classificação OPEX'!$W$4:$W$1666,DRIVER_OPEX!B92) -> 37715.04888 | G92: =IF($F92="",0,VLOOKUP($E92,Drivers!$A$26:$F$48,MATCH(G$1,Drivers!$A$25:$F$25,0),0)*$F92) -> 37715.04888 | H92: =IF($F92="",0,VLOOKUP($E92,Drivers!$A$26:$F$48,MATCH(H$1,Drivers!$A$25:$F$25,0),0)*$F92) -> 37715.04888 | I92: =IF($F92="",0,VLOOKUP($E92,Drivers!$A$26:$F$48,MATCH(I$1,Drivers!$A$25:$F$25,0),0)*$F92) -> 37715.04888 | J92: =IF($F92="",0,VLOOKUP($E92,Drivers!$A$26:$F$48,MATCH(J$1,Drivers!$A$25:$F$25,0),0)*$F92) -> 37715.04888 | K92: =IF($F92="",0,VLOOKUP($E92,Drivers!$A$26:$F$48,MATCH(K$1,Drivers!$A$25:$F$25,0),0)*$F92) -> 37715.04888
A93: DESPESAS_GERAIS | B93: 3700 | C93: =VLOOKUP(B93,Centro_Custo!$A$2:$B$36,2,0) -> GERÊNCIA DE REGULAÇÃO | D93: =VLOOKUP(B93,Centro_Custo!$A$2:$C$36,3) -> Encargos de Gestão | E93: Fixo | F93: =SUMIFS('Classificação OPEX'!$O$4:$O$1666,'Classificação OPEX'!$Q$4:$Q$1666,"N",'Classificação OPEX'!$S$4:$S$1666,"NÃO",'Classificação OPEX'!$V$4:$V$1666,DRIVER_OPEX!A93,'Classificação OPEX'!$W$4:$W$1666,DRIVER_OPEX!B93) -> 648.0488759 | G93: =IF($F93="",0,VLOOKUP($E93,Drivers!$A$26:$F$48,MATCH(G$1,Drivers!$A$25:$F$25,0),0)*$F93) -> 648.0488759 | H93: =IF($F93="",0,VLOOKUP($E93,Drivers!$A$26:$F$48,MATCH(H$1,Drivers!$A$25:$F$25,0),0)*$F93) -> 648.0488759 | I93: =IF($F93="",0,VLOOKUP($E93,Drivers!$A$26:$F$48,MATCH(I$1,Drivers!$A$25:$F$25,0),0)*$F93) -> 648.0488759 | J93: =IF($F93="",0,VLOOKUP($E93,Drivers!$A$26:$F$48,MATCH(J$1,Drivers!$A$25:$F$25,0),0)*$F93) -> 648.0488759 | K93: =IF($F93="",0,VLOOKUP($E93,Drivers!$A$26:$F$48,MATCH(K$1,Drivers!$A$25:$F$25,0),0)*$F93) -> 648.0488759
A94: DESPESAS_GERAIS | B94: 4100 | C94: =VLOOKUP(B94,Centro_Custo!$A$2:$B$36,2,0) -> GERÊNCIA DE SERVIÇOS CORPORATIVOS | D94: =VLOOKUP(B94,Centro_Custo!$A$2:$C$36,3) -> Encargos de Gestão | E94: Município | F94: =SUMIFS('Classificação OPEX'!$O$4:$O$1666,'Classificação OPEX'!$Q$4:$Q$1666,"N",'Classificação OPEX'!$S$4:$S$1666,"NÃO",'Classificação OPEX'!$V$4:$V$1666,DRIVER_OPEX!A94,'Classificação OPEX'!$W$4:$W$1666,DRIVER_OPEX!B94) -> 656376.5925 | G94: =IF($F94="",0,VLOOKUP($E94,Drivers!$A$26:$F$48,MATCH(G$1,Drivers!$A$25:$F$25,0),0)*$F94) -> 700135.032 | H94: =IF($F94="",0,VLOOKUP($E94,Drivers!$A$26:$F$48,MATCH(H$1,Drivers!$A$25:$F$25,0),0)*$F94) -> 831410.3505 | I94: =IF($F94="",0,VLOOKUP($E94,Drivers!$A$26:$F$48,MATCH(I$1,Drivers!$A$25:$F$25,0),0)*$F94) -> 875168.79 | J94: =IF($F94="",0,VLOOKUP($E94,Drivers!$A$26:$F$48,MATCH(J$1,Drivers!$A$25:$F$25,0),0)*$F94) -> 875168.79 | K94: =IF($F94="",0,VLOOKUP($E94,Drivers!$A$26:$F$48,MATCH(K$1,Drivers!$A$25:$F$25,0),0)*$F94) -> 875168.79
A95: DESPESAS_GERAIS | B95: 4200 | C95: =VLOOKUP(B95,Centro_Custo!$A$2:$B$36,2,0) -> GERÊNCIA FINANCEIRA | D95: =VLOOKUP(B95,Centro_Custo!$A$2:$C$36,3) -> Encargos de Gestão | E95: Fixo | F95: =SUMIFS('Classificação OPEX'!$O$4:$O$1666,'Classificação OPEX'!$Q$4:$Q$1666,"N",'Classificação OPEX'!$S$4:$S$1666,"NÃO",'Classificação OPEX'!$V$4:$V$1666,DRIVER_OPEX!A95,'Classificação OPEX'!$W$4:$W$1666,DRIVER_OPEX!B95) -> 976870.5836 | G95: =IF($F95="",0,VLOOKUP($E95,Drivers!$A$26:$F$48,MATCH(G$1,Drivers!$A$25:$F$25,0),0)*$F95) -> 976870.5836 | H95: =IF($F95="",0,VLOOKUP($E95,Drivers!$A$26:$F$48,MATCH(H$1,Drivers!$A$25:$F$25,0),0)*$F95) -> 976870.5836 | I95: =IF($F95="",0,VLOOKUP($E95,Drivers!$A$26:$F$48,MATCH(I$1,Drivers!$A$25:$F$25,0),0)*$F95) -> 976870.5836 | J95: =IF($F95="",0,VLOOKUP($E95,Drivers!$A$26:$F$48,MATCH(J$1,Drivers!$A$25:$F$25,0),0)*$F95) -> 976870.5836 | K95: =IF($F95="",0,VLOOKUP($E95,Drivers!$A$26:$F$48,MATCH(K$1,Drivers!$A$25:$F$25,0),0)*$F95) -> 976870.5836
A96: DESPESAS_GERAIS | B96: 4300 | C96: =VLOOKUP(B96,Centro_Custo!$A$2:$B$36,2,0) -> GERÊNCIA DE TECNOLOGIA E SISTEMAS DE INFORMAÇÃO | D96: =VLOOKUP(B96,Centro_Custo!$A$2:$C$36,3) -> Encargos de Gestão | E96: Funcionário | F96: =SUMIFS('Classificação OPEX'!$O$4:$O$1666,'Classificação OPEX'!$Q$4:$Q$1666,"N",'Classificação OPEX'!$S$4:$S$1666,"NÃO",'Classificação OPEX'!$V$4:$V$1666,DRIVER_OPEX!A96,'Classificação OPEX'!$W$4:$W$1666,DRIVER_OPEX!B96) -> 152535.9195 | G96: =IF($F96="",0,VLOOKUP($E96,Drivers!$A$26:$F$48,MATCH(G$1,Drivers!$A$25:$F$25,0),0)*$F96) -> 162571.1774 | H96: =IF($F96="",0,VLOOKUP($E96,Drivers!$A$26:$F$48,MATCH(H$1,Drivers!$A$25:$F$25,0),0)*$F96) -> 166585.2805 | I96: =IF($F96="",0,VLOOKUP($E96,Drivers!$A$26:$F$48,MATCH(I$1,Drivers!$A$25:$F$25,0),0)*$F96) -> 167588.8063 | J96: =IF($F96="",0,VLOOKUP($E96,Drivers!$A$26:$F$48,MATCH(J$1,Drivers!$A$25:$F$25,0),0)*$F96) -> 167588.8063 | K96: =IF($F96="",0,VLOOKUP($E96,Drivers!$A$26:$F$48,MATCH(K$1,Drivers!$A$25:$F$25,0),0)*$F96) -> 167588.8063
A97: DESPESAS_GERAIS | B97: 4500 | C97: =VLOOKUP(B97,Centro_Custo!$A$2:$B$36,2,0) -> GERÊNCIA CONTÁBIL | D97: =VLOOKUP(B97,Centro_Custo!$A$2:$C$36,3) -> Encargos de Gestão | E97: Fixo | F97: =SUMIFS('Classificação OPEX'!$O$4:$O$1666,'Classificação OPEX'!$Q$4:$Q$1666,"N",'Classificação OPEX'!$S$4:$S$1666,"NÃO",'Classificação OPEX'!$V$4:$V$1666,DRIVER_OPEX!A97,'Classificação OPEX'!$W$4:$W$1666,DRIVER_OPEX!B97) -> 41908.36961 | G97: =IF($F97="",0,VLOOKUP($E97,Drivers!$A$26:$F$48,MATCH(G$1,Drivers!$A$25:$F$25,0),0)*$F97) -> 41908.36961 | H97: =IF($F97="",0,VLOOKUP($E97,Drivers!$A$26:$F$48,MATCH(H$1,Drivers!$A$25:$F$25,0),0)*$F97) -> 41908.36961 | I97: =IF($F97="",0,VLOOKUP($E97,Drivers!$A$26:$F$48,MATCH(I$1,Drivers!$A$25:$F$25,0),0)*$F97) -> 41908.36961 | J97: =IF($F97="",0,VLOOKUP($E97,Drivers!$A$26:$F$48,MATCH(J$1,Drivers!$A$25:$F$25,0),0)*$F97) -> 41908.36961 | K97: =IF($F97="",0,VLOOKUP($E97,Drivers!$A$26:$F$48,MATCH(K$1,Drivers!$A$25:$F$25,0),0)*$F97) -> 41908.36961
A98: DESPESAS_GERAIS | B98: 5100 | C98: =VLOOKUP(B98,Centro_Custo!$A$2:$B$36,2,0) -> GERÊNCIA DE ENGENHARIA | D98: =VLOOKUP(B98,Centro_Custo!$A$2:$C$36,3) -> OPEX&ODESP | E98: Extensão de Rede | F98: =SUMIFS('Classificação OPEX'!$O$4:$O$1666,'Classificação OPEX'!$Q$4:$Q$1666,"N",'Classificação OPEX'!$S$4:$S$1666,"NÃO",'Classificação OPEX'!$V$4:$V$1666,DRIVER_OPEX!A98,'Classificação OPEX'!$W$4:$W$1666,DRIVER_OPEX!B98) -> 139004.0126 | G98: =IF($F98="",0,VLOOKUP($E98,Drivers!$A$26:$F$48,MATCH(G$1,Drivers!$A$25:$F$25,0),0)*$F98) -> 148787.3686 | H98: =IF($F98="",0,VLOOKUP($E98,Drivers!$A$26:$F$48,MATCH(H$1,Drivers!$A$25:$F$25,0),0)*$F98) -> 162276.2907 | I98: =IF($F98="",0,VLOOKUP($E98,Drivers!$A$26:$F$48,MATCH(I$1,Drivers!$A$25:$F$25,0),0)*$F98) -> 167077.1915 | J98: =IF($F98="",0,VLOOKUP($E98,Drivers!$A$26:$F$48,MATCH(J$1,Drivers!$A$25:$F$25,0),0)*$F98) -> 173987.4928 | K98: =IF($F98="",0,VLOOKUP($E98,Drivers!$A$26:$F$48,MATCH(K$1,Drivers!$A$25:$F$25,0),0)*$F98) -> 179428.324
A99: DESPESAS_GERAIS | B99: 5200 | C99: =VLOOKUP(B99,Centro_Custo!$A$2:$B$36,2,0) -> GERÊNCIA DE OPERAÇÕES | D99: =VLOOKUP(B99,Centro_Custo!$A$2:$C$36,3) -> OPEX&ODESP | E99: Extensão de Rede | F99: =SUMIFS('Classificação OPEX'!$O$4:$O$1666,'Classificação OPEX'!$Q$4:$Q$1666,"N",'Classificação OPEX'!$S$4:$S$1666,"NÃO",'Classificação OPEX'!$V$4:$V$1666,DRIVER_OPEX!A99,'Classificação OPEX'!$W$4:$W$1666,DRIVER_OPEX!B99) -> 173266.0858 | G99: =IF($F99="",0,VLOOKUP($E99,Drivers!$A$26:$F$48,MATCH(G$1,Drivers!$A$25:$F$25,0),0)*$F99) -> 185460.8689 | H99: =IF($F99="",0,VLOOKUP($E99,Drivers!$A$26:$F$48,MATCH(H$1,Drivers!$A$25:$F$25,0),0)*$F99) -> 202274.576 | I99: =IF($F99="",0,VLOOKUP($E99,Drivers!$A$26:$F$48,MATCH(I$1,Drivers!$A$25:$F$25,0),0)*$F99) -> 208258.8153 | J99: =IF($F99="",0,VLOOKUP($E99,Drivers!$A$26:$F$48,MATCH(J$1,Drivers!$A$25:$F$25,0),0)*$F99) -> 216872.3858 | K99: =IF($F99="",0,VLOOKUP($E99,Drivers!$A$26:$F$48,MATCH(K$1,Drivers!$A$25:$F$25,0),0)*$F99) -> 223654.2874
A100: DESPESAS_GERAIS | B100: 5300 | C100: =VLOOKUP(B100,Centro_Custo!$A$2:$B$36,2,0) -> GERÊNCIA COMERCIAL | D100: =VLOOKUP(B100,Centro_Custo!$A$2:$C$36,3) -> Encargos de Comercialização | E100: Usuários total | F100: =SUMIFS('Classificação OPEX'!$O$4:$O$1666,'Classificação OPEX'!$Q$4:$Q$1666,"N",'Classificação OPEX'!$S$4:$S$1666,"NÃO",'Classificação OPEX'!$V$4:$V$1666,DRIVER_OPEX!A100,'Classificação OPEX'!$W$4:$W$1666,DRIVER_OPEX!B100) -> 1178181.118 | G100: =IF($F100="",0,VLOOKUP($E100,Drivers!$A$26:$F$48,MATCH(G$1,Drivers!$A$25:$F$25,0),0)*$F100) -> 1312939.132 | H100: =IF($F100="",0,VLOOKUP($E100,Drivers!$A$26:$F$48,MATCH(H$1,Drivers!$A$25:$F$25,0),0)*$F100) -> 1442622.486 | I100: =IF($F100="",0,VLOOKUP($E100,Drivers!$A$26:$F$48,MATCH(I$1,Drivers!$A$25:$F$25,0),0)*$F100) -> 1620278.574 | J100: =IF($F100="",0,VLOOKUP($E100,Drivers!$A$26:$F$48,MATCH(J$1,Drivers!$A$25:$F$25,0),0)*$F100) -> 1758111.487 | K100: =IF($F100="",0,VLOOKUP($E100,Drivers!$A$26:$F$48,MATCH(K$1,Drivers!$A$25:$F$25,0),0)*$F100) -> 1926112.821
A101: DESPESAS_GERAIS | B101: 9999 | C101: =VLOOKUP(B101,Centro_Custo!$A$2:$B$36,2,0) -> RATEIO | D101: =VLOOKUP(B101,Centro_Custo!$A$2:$C$36,3) -> Encargos de Gestão | E101: Fixo | F101: =SUMIFS('Classificação OPEX'!$O$4:$O$1666,'Classificação OPEX'!$Q$4:$Q$1666,"N",'Classificação OPEX'!$S$4:$S$1666,"NÃO",'Classificação OPEX'!$V$4:$V$1666,DRIVER_OPEX!A101,'Classificação OPEX'!$W$4:$W$1666,DRIVER_OPEX!B101) -> 249.0413655 | G101: =IF($F101="",0,VLOOKUP($E101,Drivers!$A$26:$F$48,MATCH(G$1,Drivers!$A$25:$F$25,0),0)*$F101) -> 249.0413655 | H101: =IF($F101="",0,VLOOKUP($E101,Drivers!$A$26:$F$48,MATCH(H$1,Drivers!$A$25:$F$25,0),0)*$F101) -> 249.0413655 | I101: =IF($F101="",0,VLOOKUP($E101,Drivers!$A$26:$F$48,MATCH(I$1,Drivers!$A$25:$F$25,0),0)*$F101) -> 249.0413655 | J101: =IF($F101="",0,VLOOKUP($E101,Drivers!$A$26:$F$48,MATCH(J$1,Drivers!$A$25:$F$25,0),0)*$F101) -> 249.0413655 | K101: =IF($F101="",0,VLOOKUP($E101,Drivers!$A$26:$F$48,MATCH(K$1,Drivers!$A$25:$F$25,0),0)*$F101) -> 249.0413655
A102: DESPESAS_GERAIS | B102: 1001 | C102: CONSELHO DE ADMINISTRAÇÃO | D102: =VLOOKUP(B102,Centro_Custo!$A$2:$C$36,3) -> Encargos de Gestão | E102: Fixo | F102: =SUMIFS('Classificação OPEX'!$O$4:$O$1666,'Classificação OPEX'!$Q$4:$Q$1666,"N",'Classificação OPEX'!$S$4:$S$1666,"NÃO",'Classificação OPEX'!$V$4:$V$1666,DRIVER_OPEX!A102,'Classificação OPEX'!$W$4:$W$1666,DRIVER_OPEX!B102) -> 18.57404109 | G102: =IF($F102="",0,VLOOKUP($E102,Drivers!$A$26:$F$48,MATCH(G$1,Drivers!$A$25:$F$25,0),0)*$F102) -> 18.57404109 | H102: =IF($F102="",0,VLOOKUP($E102,Drivers!$A$26:$F$48,MATCH(H$1,Drivers!$A$25:$F$25,0),0)*$F102) -> 18.57404109 | I102: =IF($F102="",0,VLOOKUP($E102,Drivers!$A$26:$F$48,MATCH(I$1,Drivers!$A$25:$F$25,0),0)*$F102) -> 18.57404109 | J102: =IF($F102="",0,VLOOKUP($E102,Drivers!$A$26:$F$48,MATCH(J$1,Drivers!$A$25:$F$25,0),0)*$F102) -> 18.57404109 | K102: =IF($F102="",0,VLOOKUP($E102,Drivers!$A$26:$F$48,MATCH(K$1,Drivers!$A$25:$F$25,0),0)*$F102) -> 18.57404109
A103: DESPESAS_GERAIS | B103: 1002 | C103: CONSELHO FISCAL | D103: =VLOOKUP(B103,Centro_Custo!$A$2:$C$36,3) -> Encargos de Gestão | E103: Fixo | F103: =SUMIFS('Classificação OPEX'!$O$4:$O$1666,'Classificação OPEX'!$Q$4:$Q$1666,"N",'Classificação OPEX'!$S$4:$S$1666,"NÃO",'Classificação OPEX'!$V$4:$V$1666,DRIVER_OPEX!A103,'Classificação OPEX'!$W$4:$W$1666,DRIVER_OPEX!B103) -> 114.19349 | G103: =IF($F103="",0,VLOOKUP($E103,Drivers!$A$26:$F$48,MATCH(G$1,Drivers!$A$25:$F$25,0),0)*$F103) -> 114.19349 | H103: =IF($F103="",0,VLOOKUP($E103,Drivers!$A$26:$F$48,MATCH(H$1,Drivers!$A$25:$F$25,0),0)*$F103) -> 114.19349 | I103: =IF($F103="",0,VLOOKUP($E103,Drivers!$A$26:$F$48,MATCH(I$1,Drivers!$A$25:$F$25,0),0)*$F103) -> 114.19349 | J103: =IF($F103="",0,VLOOKUP($E103,Drivers!$A$26:$F$48,MATCH(J$1,Drivers!$A$25:$F$25,0),0)*$F103) -> 114.19349 | K103: =IF($F103="",0,VLOOKUP($E103,Drivers!$A$26:$F$48,MATCH(K$1,Drivers!$A$25:$F$25,0),0)*$F103) -> 114.19349
A104: DESPESAS_GERAIS | B104: 1003 | C104: COMITÊ DE INDICAÇÃO E AVALIAÇÃO | D104: =VLOOKUP(B104,Centro_Custo!$A$2:$C$36,3) -> Encargos de Gestão | E104: Fixo | F104: =SUMIFS('Classificação OPEX'!$O$4:$O$1666,'Classificação OPEX'!$Q$4:$Q$1666,"N",'Classificação OPEX'!$S$4:$S$1666,"NÃO",'Classificação OPEX'!$V$4:$V$1666,DRIVER_OPEX!A104,'Classificação OPEX'!$W$4:$W$1666,DRIVER_OPEX!B104) -> 0 | G104: =IF($F104="",0,VLOOKUP($E104,Drivers!$A$26:$F$48,MATCH(G$1,Drivers!$A$25:$F$25,0),0)*$F104) -> 0 | H104: =IF($F104="",0,VLOOKUP($E104,Drivers!$A$26:$F$48,MATCH(H$1,Drivers!$A$25:$F$25,0),0)*$F104) -> 0 | I104: =IF($F104="",0,VLOOKUP($E104,Drivers!$A$26:$F$48,MATCH(I$1,Drivers!$A$25:$F$25,0),0)*$F104) -> 0 | J104: =IF($F104="",0,VLOOKUP($E104,Drivers!$A$26:$F$48,MATCH(J$1,Drivers!$A$25:$F$25,0),0)*$F104) -> 0 | K104: =IF($F104="",0,VLOOKUP($E104,Drivers!$A$26:$F$48,MATCH(K$1,Drivers!$A$25:$F$25,0),0)*$F104) -> 0
A105: DESPESAS_GERAIS | B105: 2100 | C105: SECRETARIA | D105: =VLOOKUP(B105,Centro_Custo!$A$2:$C$36,3) -> Encargos de Gestão | E105: Fixo | F105: =SUMIFS('Classificação OPEX'!$O$4:$O$1666,'Classificação OPEX'!$Q$4:$Q$1666,"N",'Classificação OPEX'!$S$4:$S$1666,"NÃO",'Classificação OPEX'!$V$4:$V$1666,DRIVER_OPEX!A105,'Classificação OPEX'!$W$4:$W$1666,DRIVER_OPEX!B105) -> 43340.08752 | G105: =IF($F105="",0,VLOOKUP($E105,Drivers!$A$26:$F$48,MATCH(G$1,Drivers!$A$25:$F$25,0),0)*$F105) -> 43340.08752 | H105: =IF($F105="",0,VLOOKUP($E105,Drivers!$A$26:$F$48,MATCH(H$1,Drivers!$A$25:$F$25,0),0)*$F105) -> 43340.08752 | I105: =IF($F105="",0,VLOOKUP($E105,Drivers!$A$26:$F$48,MATCH(I$1,Drivers!$A$25:$F$25,0),0)*$F105) -> 43340.08752 | J105: =IF($F105="",0,VLOOKUP($E105,Drivers!$A$26:$F$48,MATCH(J$1,Drivers!$A$25:$F$25,0),0)*$F105) -> 43340.08752 | K105: =IF($F105="",0,VLOOKUP($E105,Drivers!$A$26:$F$48,MATCH(K$1,Drivers!$A$25:$F$25,0),0)*$F105) -> 43340.08752
A106: DESPESAS_GERAIS | B106: 3400 | C106: MARKETING | D106: =VLOOKUP(B106,Centro_Custo!$A$2:$C$36,3) -> Encargos de Comercialização | E106: Fixo | F106: =SUMIFS('Classificação OPEX'!$O$4:$O$1666,'Classificação OPEX'!$Q$4:$Q$1666,"N",'Classificação OPEX'!$S$4:$S$1666,"NÃO",'Classificação OPEX'!$V$4:$V$1666,DRIVER_OPEX!A106,'Classificação OPEX'!$W$4:$W$1666,DRIVER_OPEX!B106) -> 66725.734 | G106: =IF($F106="",0,VLOOKUP($E106,Drivers!$A$26:$F$48,MATCH(G$1,Drivers!$A$25:$F$25,0),0)*$F106) -> 66725.734 | H106: =IF($F106="",0,VLOOKUP($E106,Drivers!$A$26:$F$48,MATCH(H$1,Drivers!$A$25:$F$25,0),0)*$F106) -> 66725.734 | I106: =IF($F106="",0,VLOOKUP($E106,Drivers!$A$26:$F$48,MATCH(I$1,Drivers!$A$25:$F$25,0),0)*$F106) -> 66725.734 | J106: =IF($F106="",0,VLOOKUP($E106,Drivers!$A$26:$F$48,MATCH(J$1,Drivers!$A$25:$F$25,0),0)*$F106) -> 66725.734 | K106: =IF($F106="",0,VLOOKUP($E106,Drivers!$A$26:$F$48,MATCH(K$1,Drivers!$A$25:$F$25,0),0)*$F106) -> 66725.734
A107: DESPESAS_GERAIS | B107: 4600 | C107: GERÊNCIA DE PESSOAS E CULTURA | D107: =VLOOKUP(B107,Centro_Custo!$A$2:$C$36,3) -> Encargos de Gestão | E107: Fixo | F107: =SUMIFS('Classificação OPEX'!$O$4:$O$1666,'Classificação OPEX'!$Q$4:$Q$1666,"N",'Classificação OPEX'!$S$4:$S$1666,"NÃO",'Classificação OPEX'!$V$4:$V$1666,DRIVER_OPEX!A107,'Classificação OPEX'!$W$4:$W$1666,DRIVER_OPEX!B107) -> 44841.32202 | G107: =IF($F107="",0,VLOOKUP($E107,Drivers!$A$26:$F$48,MATCH(G$1,Drivers!$A$25:$F$25,0),0)*$F107) -> 44841.32202 | H107: =IF($F107="",0,VLOOKUP($E107,Drivers!$A$26:$F$48,MATCH(H$1,Drivers!$A$25:$F$25,0),0)*$F107) -> 44841.32202 | I107: =IF($F107="",0,VLOOKUP($E107,Drivers!$A$26:$F$48,MATCH(I$1,Drivers!$A$25:$F$25,0),0)*$F107) -> 44841.32202 | J107: =IF($F107="",0,VLOOKUP($E107,Drivers!$A$26:$F$48,MATCH(J$1,Drivers!$A$25:$F$25,0),0)*$F107) -> 44841.32202 | K107: =IF($F107="",0,VLOOKUP($E107,Drivers!$A$26:$F$48,MATCH(K$1,Drivers!$A$25:$F$25,0),0)*$F107) -> 44841.32202
A108: DESPESAS_GERAIS | B108: 0000 | C108: RATEIO | D108: =VLOOKUP(B108,Centro_Custo!$A$2:$C$36,3) -> Encargos de Gestão | E108: Fixo | F108: =SUMIFS('Classificação OPEX'!$O$4:$O$1666,'Classificação OPEX'!$Q$4:$Q$1666,"N",'Classificação OPEX'!$S$4:$S$1666,"NÃO",'Classificação OPEX'!$V$4:$V$1666,DRIVER_OPEX!A108,'Classificação OPEX'!$W$4:$W$1666,DRIVER_OPEX!B108) -> 0 | G108: =IF($F108="",0,VLOOKUP($E108,Drivers!$A$26:$F$48,MATCH(G$1,Drivers!$A$25:$F$25,0),0)*$F108) -> 0 | H108: =IF($F108="",0,VLOOKUP($E108,Drivers!$A$26:$F$48,MATCH(H$1,Drivers!$A$25:$F$25,0),0)*$F108) -> 0 | I108: =IF($F108="",0,VLOOKUP($E108,Drivers!$A$26:$F$48,MATCH(I$1,Drivers!$A$25:$F$25,0),0)*$F108) -> 0 | J108: =IF($F108="",0,VLOOKUP($E108,Drivers!$A$26:$F$48,MATCH(J$1,Drivers!$A$25:$F$25,0),0)*$F108) -> 0 | K108: =IF($F108="",0,VLOOKUP($E108,Drivers!$A$26:$F$48,MATCH(K$1,Drivers!$A$25:$F$25,0),0)*$F108) -> 0
A109: DESPESAS_GERAIS | B109: 5400 | C109: GERÊNCIA COMERCIAL | D109: =VLOOKUP(B109,Centro_Custo!$A$2:$C$36,3) -> Encargos de Gestão | E109: Fixo | F109: =SUMIFS('Classificação OPEX'!$O$4:$O$1666,'Classificação OPEX'!$Q$4:$Q$1666,"N",'Classificação OPEX'!$S$4:$S$1666,"NÃO",'Classificação OPEX'!$V$4:$V$1666,DRIVER_OPEX!A109,'Classificação OPEX'!$W$4:$W$1666,DRIVER_OPEX!B109) -> 1024832.16 | G109: =IF($F109="",0,VLOOKUP($E109,Drivers!$A$26:$F$48,MATCH(G$1,Drivers!$A$25:$F$25,0),0)*$F109) -> 1024832.16 | H109: =IF($F109="",0,VLOOKUP($E109,Drivers!$A$26:$F$48,MATCH(H$1,Drivers!$A$25:$F$25,0),0)*$F109) -> 1024832.16 | I109: =IF($F109="",0,VLOOKUP($E109,Drivers!$A$26:$F$48,MATCH(I$1,Drivers!$A$25:$F$25,0),0)*$F109) -> 1024832.16 | J109: =IF($F109="",0,VLOOKUP($E109,Drivers!$A$26:$F$48,MATCH(J$1,Drivers!$A$25:$F$25,0),0)*$F109) -> 1024832.16 | K109: =IF($F109="",0,VLOOKUP($E109,Drivers!$A$26:$F$48,MATCH(K$1,Drivers!$A$25:$F$25,0),0)*$F109) -> 1024832.16
A110: DESPESAS_GERAIS | B110: 5500 | C110: GERÊNCIA COMERCIAL | D110: =VLOOKUP(B110,Centro_Custo!$A$2:$C$36,3) -> Encargos de Gestão | E110: Fixo | F110: =SUMIFS('Classificação OPEX'!$O$4:$O$1666,'Classificação OPEX'!$Q$4:$Q$1666,"N",'Classificação OPEX'!$S$4:$S$1666,"NÃO",'Classificação OPEX'!$V$4:$V$1666,DRIVER_OPEX!A110,'Classificação OPEX'!$W$4:$W$1666,DRIVER_OPEX!B110) -> 16776.10427 | G110: =IF($F110="",0,VLOOKUP($E110,Drivers!$A$26:$F$48,MATCH(G$1,Drivers!$A$25:$F$25,0),0)*$F110) -> 16776.10427 | H110: =IF($F110="",0,VLOOKUP($E110,Drivers!$A$26:$F$48,MATCH(H$1,Drivers!$A$25:$F$25,0),0)*$F110) -> 16776.10427 | I110: =IF($F110="",0,VLOOKUP($E110,Drivers!$A$26:$F$48,MATCH(I$1,Drivers!$A$25:$F$25,0),0)*$F110) -> 16776.10427 | J110: =IF($F110="",0,VLOOKUP($E110,Drivers!$A$26:$F$48,MATCH(J$1,Drivers!$A$25:$F$25,0),0)*$F110) -> 16776.10427 | K110: =IF($F110="",0,VLOOKUP($E110,Drivers!$A$26:$F$48,MATCH(K$1,Drivers!$A$25:$F$25,0),0)*$F110) -> 16776.10427
A111: DESPESAS_INSTITUCIONAIS | B111: TOTAL | C111: TOTAL | F111: =SUM(F112:F146) -> 2647911.112 | G111: =SUM(G112:G146) -> 2750292.698 | H111: 2848818.842 | I111: 2983791.982 | J111: 3088509.705 | K111: 3216147.703
A112: DESPESAS_INSTITUCIONAIS | B112: 3500 | C112: =VLOOKUP(B112,Centro_Custo!$A$2:$B$36,2,0) -> ASSESSORIA DE COMUNICAÇÃO INSTITUCIONAL | D112: =VLOOKUP(B112,Centro_Custo!$A$2:$C$36,3) -> Encargos de Gestão | E112: Usuários total | F112: =SUMIFS('Classificação OPEX'!$O$4:$O$1666,'Classificação OPEX'!$Q$4:$Q$1666,"N",'Classificação OPEX'!$S$4:$S$1666,"NÃO",'Classificação OPEX'!$V$4:$V$1666,DRIVER_OPEX!A112,'Classificação OPEX'!$W$4:$W$1666,DRIVER_OPEX!B112) -> 814098.7991 | G112: =IF($F112="",0,VLOOKUP($E112,Drivers!$A$26:$F$48,MATCH(G$1,Drivers!$A$25:$F$25,0),0)*$F112) -> 907213.8009 | H112: =IF($F112="",0,VLOOKUP($E112,Drivers!$A$26:$F$48,MATCH(H$1,Drivers!$A$25:$F$25,0),0)*$F112) -> 996822.3178 | I112: =IF($F112="",0,VLOOKUP($E112,Drivers!$A$26:$F$48,MATCH(I$1,Drivers!$A$25:$F$25,0),0)*$F112) -> 1119579.003 | J112: =IF($F112="",0,VLOOKUP($E112,Drivers!$A$26:$F$48,MATCH(J$1,Drivers!$A$25:$F$25,0),0)*$F112) -> 1214818.696 | K112: =IF($F112="",0,VLOOKUP($E112,Drivers!$A$26:$F$48,MATCH(K$1,Drivers!$A$25:$F$25,0),0)*$F112) -> 1330904.145
A113: DESPESAS_INSTITUCIONAIS | B113: 4100 | C113: =VLOOKUP(B113,Centro_Custo!$A$2:$B$36,2,0) -> GERÊNCIA DE SERVIÇOS CORPORATIVOS | D113: =VLOOKUP(B113,Centro_Custo!$A$2:$C$36,3) -> Encargos de Gestão | E113: Fixo | F113: =SUMIFS('Classificação OPEX'!$O$4:$O$1666,'Classificação OPEX'!$Q$4:$Q$1666,"N",'Classificação OPEX'!$S$4:$S$1666,"NÃO",'Classificação OPEX'!$V$4:$V$1666,DRIVER_OPEX!A113,'Classificação OPEX'!$W$4:$W$1666,DRIVER_OPEX!B113) -> 156334.4537 | G113: =IF($F113="",0,VLOOKUP($E113,Drivers!$A$26:$F$48,MATCH(G$1,Drivers!$A$25:$F$25,0),0)*$F113) -> 156334.4537 | H113: =IF($F113="",0,VLOOKUP($E113,Drivers!$A$26:$F$48,MATCH(H$1,Drivers!$A$25:$F$25,0),0)*$F113) -> 156334.4537 | I113: =IF($F113="",0,VLOOKUP($E113,Drivers!$A$26:$F$48,MATCH(I$1,Drivers!$A$25:$F$25,0),0)*$F113) -> 156334.4537 | J113: =IF($F113="",0,VLOOKUP($E113,Drivers!$A$26:$F$48,MATCH(J$1,Drivers!$A$25:$F$25,0),0)*$F113) -> 156334.4537 | K113: =IF($F113="",0,VLOOKUP($E113,Drivers!$A$26:$F$48,MATCH(K$1,Drivers!$A$25:$F$25,0),0)*$F113) -> 156334.4537
A114: DESPESAS_INSTITUCIONAIS | B114: 5300 | C114: =VLOOKUP(B114,Centro_Custo!$A$2:$B$36,2,0) -> GERÊNCIA COMERCIAL | D114: =VLOOKUP(B114,Centro_Custo!$A$2:$C$36,3) -> Encargos de Comercialização | E114: Usuários total | F114: =SUMIFS('Classificação OPEX'!$O$4:$O$1666,'Classificação OPEX'!$Q$4:$Q$1666,"N",'Classificação OPEX'!$S$4:$S$1666,"NÃO",'Classificação OPEX'!$V$4:$V$1666,DRIVER_OPEX!A114,'Classificação OPEX'!$W$4:$W$1666,DRIVER_OPEX!B114) -> 81017.18511 | G114: =IF($F114="",0,VLOOKUP($E114,Drivers!$A$26:$F$48,MATCH(G$1,Drivers!$A$25:$F$25,0),0)*$F114) -> 90283.76963 | H114: =IF($F114="",0,VLOOKUP($E114,Drivers!$A$26:$F$48,MATCH(H$1,Drivers!$A$25:$F$25,0),0)*$F114) -> 99201.39708 | I114: =IF($F114="",0,VLOOKUP($E114,Drivers!$A$26:$F$48,MATCH(I$1,Drivers!$A$25:$F$25,0),0)*$F114) -> 111417.8517 | J114: =IF($F114="",0,VLOOKUP($E114,Drivers!$A$26:$F$48,MATCH(J$1,Drivers!$A$25:$F$25,0),0)*$F114) -> 120895.8806 | K114: =IF($F114="",0,VLOOKUP($E114,Drivers!$A$26:$F$48,MATCH(K$1,Drivers!$A$25:$F$25,0),0)*$F114) -> 132448.4296
A115: DESPESAS_INSTITUCIONAIS | B115: 0000 | C115: RATEIO | D115: =VLOOKUP(B115,Centro_Custo!$A$2:$C$36,3) -> Encargos de Gestão | E115: Fixo | F115: =SUMIFS('Classificação OPEX'!$O$4:$O$1666,'Classificação OPEX'!$Q$4:$Q$1666,"N",'Classificação OPEX'!$S$4:$S$1666,"NÃO",'Classificação OPEX'!$V$4:$V$1666,DRIVER_OPEX!A115,'Classificação OPEX'!$W$4:$W$1666,DRIVER_OPEX!B115) -> 0 | G115: =IF($F115="",0,VLOOKUP($E115,Drivers!$A$26:$F$48,MATCH(G$1,Drivers!$A$25:$F$25,0),0)*$F115) -> 0 | H115: =IF($F115="",0,VLOOKUP($E115,Drivers!$A$26:$F$48,MATCH(H$1,Drivers!$A$25:$F$25,0),0)*$F115) -> 0 | I115: =IF($F115="",0,VLOOKUP($E115,Drivers!$A$26:$F$48,MATCH(I$1,Drivers!$A$25:$F$25,0),0)*$F115) -> 0 | J115: =IF($F115="",0,VLOOKUP($E115,Drivers!$A$26:$F$48,MATCH(J$1,Drivers!$A$25:$F$25,0),0)*$F115) -> 0 | K115: =IF($F115="",0,VLOOKUP($E115,Drivers!$A$26:$F$48,MATCH(K$1,Drivers!$A$25:$F$25,0),0)*$F115) -> 0
A116: DESPESAS_INSTITUCIONAIS | B116: 1001 | C116: CONSELHO DE ADMINISTRAÇÃO | D116: =VLOOKUP(B116,Centro_Custo!$A$2:$C$36,3) -> Encargos de Gestão | E116: Fixo | F116: =SUMIFS('Classificação OPEX'!$O$4:$O$1666,'Classificação OPEX'!$Q$4:$Q$1666,"N",'Classificação OPEX'!$S$4:$S$1666,"NÃO",'Classificação OPEX'!$V$4:$V$1666,DRIVER_OPEX!A116,'Classificação OPEX'!$W$4:$W$1666,DRIVER_OPEX!B116) -> 831604.2779 | G116: =IF($F116="",0,VLOOKUP($E116,Drivers!$A$26:$F$48,MATCH(G$1,Drivers!$A$25:$F$25,0),0)*$F116) -> 831604.2779 | H116: =IF($F116="",0,VLOOKUP($E116,Drivers!$A$26:$F$48,MATCH(H$1,Drivers!$A$25:$F$25,0),0)*$F116) -> 831604.2779 | I116: =IF($F116="",0,VLOOKUP($E116,Drivers!$A$26:$F$48,MATCH(I$1,Drivers!$A$25:$F$25,0),0)*$F116) -> 831604.2779 | J116: =IF($F116="",0,VLOOKUP($E116,Drivers!$A$26:$F$48,MATCH(J$1,Drivers!$A$25:$F$25,0),0)*$F116) -> 831604.2779 | K116: =IF($F116="",0,VLOOKUP($E116,Drivers!$A$26:$F$48,MATCH(K$1,Drivers!$A$25:$F$25,0),0)*$F116) -> 831604.2779
A117: DESPESAS_INSTITUCIONAIS | B117: 1002 | C117: CONSELHO FISCAL | D117: =VLOOKUP(B117,Centro_Custo!$A$2:$C$36,3) -> Encargos de Gestão | E117: Fixo | F117: =SUMIFS('Classificação OPEX'!$O$4:$O$1666,'Classificação OPEX'!$Q$4:$Q$1666,"N",'Classificação OPEX'!$S$4:$S$1666,"NÃO",'Classificação OPEX'!$V$4:$V$1666,DRIVER_OPEX!A117,'Classificação OPEX'!$W$4:$W$1666,DRIVER_OPEX!B117) -> 198661.0592 | G117: =IF($F117="",0,VLOOKUP($E117,Drivers!$A$26:$F$48,MATCH(G$1,Drivers!$A$25:$F$25,0),0)*$F117) -> 198661.0592 | H117: =IF($F117="",0,VLOOKUP($E117,Drivers!$A$26:$F$48,MATCH(H$1,Drivers!$A$25:$F$25,0),0)*$F117) -> 198661.0592 | I117: =IF($F117="",0,VLOOKUP($E117,Drivers!$A$26:$F$48,MATCH(I$1,Drivers!$A$25:$F$25,0),0)*$F117) -> 198661.0592 | J117: =IF($F117="",0,VLOOKUP($E117,Drivers!$A$26:$F$48,MATCH(J$1,Drivers!$A$25:$F$25,0),0)*$F117) -> 198661.0592 | K117: =IF($F117="",0,VLOOKUP($E117,Drivers!$A$26:$F$48,MATCH(K$1,Drivers!$A$25:$F$25,0),0)*$F117) -> 198661.0592
A118: DESPESAS_INSTITUCIONAIS | B118: 1003 | C118: COMITÊ DE INDICAÇÃO E AVALIAÇÃO | D118: =VLOOKUP(B118,Centro_Custo!$A$2:$C$36,3) -> Encargos de Gestão | E118: Fixo | F118: =SUMIFS('Classificação OPEX'!$O$4:$O$1666,'Classificação OPEX'!$Q$4:$Q$1666,"N",'Classificação OPEX'!$S$4:$S$1666,"NÃO",'Classificação OPEX'!$V$4:$V$1666,DRIVER_OPEX!A118,'Classificação OPEX'!$W$4:$W$1666,DRIVER_OPEX!B118) -> 0 | G118: =IF($F118="",0,VLOOKUP($E118,Drivers!$A$26:$F$48,MATCH(G$1,Drivers!$A$25:$F$25,0),0)*$F118) -> 0 | H118: =IF($F118="",0,VLOOKUP($E118,Drivers!$A$26:$F$48,MATCH(H$1,Drivers!$A$25:$F$25,0),0)*$F118) -> 0 | I118: =IF($F118="",0,VLOOKUP($E118,Drivers!$A$26:$F$48,MATCH(I$1,Drivers!$A$25:$F$25,0),0)*$F118) -> 0 | J118: =IF($F118="",0,VLOOKUP($E118,Drivers!$A$26:$F$48,MATCH(J$1,Drivers!$A$25:$F$25,0),0)*$F118) -> 0 | K118: =IF($F118="",0,VLOOKUP($E118,Drivers!$A$26:$F$48,MATCH(K$1,Drivers!$A$25:$F$25,0),0)*$F118) -> 0
A119: DESPESAS_INSTITUCIONAIS | B119: 1004 | C119: COMITÊ DE AUDITORIA ESTATUTÁRIA | D119: =VLOOKUP(B119,Centro_Custo!$A$2:$C$36,3) -> Encargos de Gestão | E119: Fixo | F119: =SUMIFS('Classificação OPEX'!$O$4:$O$1666,'Classificação OPEX'!$Q$4:$Q$1666,"N",'Classificação OPEX'!$S$4:$S$1666,"NÃO",'Classificação OPEX'!$V$4:$V$1666,DRIVER_OPEX!A119,'Classificação OPEX'!$W$4:$W$1666,DRIVER_OPEX!B119) -> 0 | G119: =IF($F119="",0,VLOOKUP($E119,Drivers!$A$26:$F$48,MATCH(G$1,Drivers!$A$25:$F$25,0),0)*$F119) -> 0 | H119: =IF($F119="",0,VLOOKUP($E119,Drivers!$A$26:$F$48,MATCH(H$1,Drivers!$A$25:$F$25,0),0)*$F119) -> 0 | I119: =IF($F119="",0,VLOOKUP($E119,Drivers!$A$26:$F$48,MATCH(I$1,Drivers!$A$25:$F$25,0),0)*$F119) -> 0 | J119: =IF($F119="",0,VLOOKUP($E119,Drivers!$A$26:$F$48,MATCH(J$1,Drivers!$A$25:$F$25,0),0)*$F119) -> 0 | K119: =IF($F119="",0,VLOOKUP($E119,Drivers!$A$26:$F$48,MATCH(K$1,Drivers!$A$25:$F$25,0),0)*$F119) -> 0
A120: DESPESAS_INSTITUCIONAIS | B120: 1005 | C120: AUDITORIA INTERNA | D120: =VLOOKUP(B120,Centro_Custo!$A$2:$C$36,3) -> Encargos de Gestão | E120: Fixo | F120: =SUMIFS('Classificação OPEX'!$O$4:$O$1666,'Classificação OPEX'!$Q$4:$Q$1666,"N",'Classificação OPEX'!$S$4:$S$1666,"NÃO",'Classificação OPEX'!$V$4:$V$1666,DRIVER_OPEX!A120,'Classificação OPEX'!$W$4:$W$1666,DRIVER_OPEX!B120) -> 0 | G120: =IF($F120="",0,VLOOKUP($E120,Drivers!$A$26:$F$48,MATCH(G$1,Drivers!$A$25:$F$25,0),0)*$F120) -> 0 | H120: =IF($F120="",0,VLOOKUP($E120,Drivers!$A$26:$F$48,MATCH(H$1,Drivers!$A$25:$F$25,0),0)*$F120) -> 0 | I120: =IF($F120="",0,VLOOKUP($E120,Drivers!$A$26:$F$48,MATCH(I$1,Drivers!$A$25:$F$25,0),0)*$F120) -> 0 | J120: =IF($F120="",0,VLOOKUP($E120,Drivers!$A$26:$F$48,MATCH(J$1,Drivers!$A$25:$F$25,0),0)*$F120) -> 0 | K120: =IF($F120="",0,VLOOKUP($E120,Drivers!$A$26:$F$48,MATCH(K$1,Drivers!$A$25:$F$25,0),0)*$F120) -> 0
A121: DESPESAS_INSTITUCIONAIS | B121: 1010 | C121: GOVERNANÇA SOCIETÁRIA | D121: =VLOOKUP(B121,Centro_Custo!$A$2:$C$36,3) -> Encargos de Gestão | E121: Fixo | F121: =SUMIFS('Classificação OPEX'!$O$4:$O$1666,'Classificação OPEX'!$Q$4:$Q$1666,"N",'Classificação OPEX'!$S$4:$S$1666,"NÃO",'Classificação OPEX'!$V$4:$V$1666,DRIVER_OPEX!A121,'Classificação OPEX'!$W$4:$W$1666,DRIVER_OPEX!B121) -> 1087.721661 | G121: =IF($F121="",0,VLOOKUP($E121,Drivers!$A$26:$F$48,MATCH(G$1,Drivers!$A$25:$F$25,0),0)*$F121) -> 1087.721661 | H121: =IF($F121="",0,VLOOKUP($E121,Drivers!$A$26:$F$48,MATCH(H$1,Drivers!$A$25:$F$25,0),0)*$F121) -> 1087.721661 | I121: =IF($F121="",0,VLOOKUP($E121,Drivers!$A$26:$F$48,MATCH(I$1,Drivers!$A$25:$F$25,0),0)*$F121) -> 1087.721661 | J121: =IF($F121="",0,VLOOKUP($E121,Drivers!$A$26:$F$48,MATCH(J$1,Drivers!$A$25:$F$25,0),0)*$F121) -> 1087.721661 | K121: =IF($F121="",0,VLOOKUP($E121,Drivers!$A$26:$F$48,MATCH(K$1,Drivers!$A$25:$F$25,0),0)*$F121) -> 1087.721661
A122: DESPESAS_INSTITUCIONAIS | B122: 2100 | C122: SECRETARIA | D122: =VLOOKUP(B122,Centro_Custo!$A$2:$C$36,3) -> Encargos de Gestão | E122: Fixo | F122: =SUMIFS('Classificação OPEX'!$O$4:$O$1666,'Classificação OPEX'!$Q$4:$Q$1666,"N",'Classificação OPEX'!$S$4:$S$1666,"NÃO",'Classificação OPEX'!$V$4:$V$1666,DRIVER_OPEX!A122,'Classificação OPEX'!$W$4:$W$1666,DRIVER_OPEX!B122) -> 10136.42268 | G122: =IF($F122="",0,VLOOKUP($E122,Drivers!$A$26:$F$48,MATCH(G$1,Drivers!$A$25:$F$25,0),0)*$F122) -> 10136.42268 | H122: =IF($F122="",0,VLOOKUP($E122,Drivers!$A$26:$F$48,MATCH(H$1,Drivers!$A$25:$F$25,0),0)*$F122) -> 10136.42268 | I122: =IF($F122="",0,VLOOKUP($E122,Drivers!$A$26:$F$48,MATCH(I$1,Drivers!$A$25:$F$25,0),0)*$F122) -> 10136.42268 | J122: =IF($F122="",0,VLOOKUP($E122,Drivers!$A$26:$F$48,MATCH(J$1,Drivers!$A$25:$F$25,0),0)*$F122) -> 10136.42268 | K122: =IF($F122="",0,VLOOKUP($E122,Drivers!$A$26:$F$48,MATCH(K$1,Drivers!$A$25:$F$25,0),0)*$F122) -> 10136.42268
A123: DESPESAS_INSTITUCIONAIS | B123: 2110 | C123: ASSESSORIA DA DIRETORIA EXECUTIVA | D123: =VLOOKUP(B123,Centro_Custo!$A$2:$C$36,3) -> Encargos de Gestão | E123: Fixo | F123: =SUMIFS('Classificação OPEX'!$O$4:$O$1666,'Classificação OPEX'!$Q$4:$Q$1666,"N",'Classificação OPEX'!$S$4:$S$1666,"NÃO",'Classificação OPEX'!$V$4:$V$1666,DRIVER_OPEX!A123,'Classificação OPEX'!$W$4:$W$1666,DRIVER_OPEX!B123) -> 5974.943061 | G123: =IF($F123="",0,VLOOKUP($E123,Drivers!$A$26:$F$48,MATCH(G$1,Drivers!$A$25:$F$25,0),0)*$F123) -> 5974.943061 | H123: =IF($F123="",0,VLOOKUP($E123,Drivers!$A$26:$F$48,MATCH(H$1,Drivers!$A$25:$F$25,0),0)*$F123) -> 5974.943061 | I123: =IF($F123="",0,VLOOKUP($E123,Drivers!$A$26:$F$48,MATCH(I$1,Drivers!$A$25:$F$25,0),0)*$F123) -> 5974.943061 | J123: =IF($F123="",0,VLOOKUP($E123,Drivers!$A$26:$F$48,MATCH(J$1,Drivers!$A$25:$F$25,0),0)*$F123) -> 5974.943061 | K123: =IF($F123="",0,VLOOKUP($E123,Drivers!$A$26:$F$48,MATCH(K$1,Drivers!$A$25:$F$25,0),0)*$F123) -> 5974.943061
A124: DESPESAS_INSTITUCIONAIS | B124: 2120 | C124: ASSESSORIA DA PRESIDÊNCIA | D124: =VLOOKUP(B124,Centro_Custo!$A$2:$C$36,3) -> Encargos de Gestão | E124: Fixo | F124: =SUMIFS('Classificação OPEX'!$O$4:$O$1666,'Classificação OPEX'!$Q$4:$Q$1666,"N",'Classificação OPEX'!$S$4:$S$1666,"NÃO",'Classificação OPEX'!$V$4:$V$1666,DRIVER_OPEX!A124,'Classificação OPEX'!$W$4:$W$1666,DRIVER_OPEX!B124) -> 24.82365066 | G124: =IF($F124="",0,VLOOKUP($E124,Drivers!$A$26:$F$48,MATCH(G$1,Drivers!$A$25:$F$25,0),0)*$F124) -> 24.82365066 | H124: =IF($F124="",0,VLOOKUP($E124,Drivers!$A$26:$F$48,MATCH(H$1,Drivers!$A$25:$F$25,0),0)*$F124) -> 24.82365066 | I124: =IF($F124="",0,VLOOKUP($E124,Drivers!$A$26:$F$48,MATCH(I$1,Drivers!$A$25:$F$25,0),0)*$F124) -> 24.82365066 | J124: =IF($F124="",0,VLOOKUP($E124,Drivers!$A$26:$F$48,MATCH(J$1,Drivers!$A$25:$F$25,0),0)*$F124) -> 24.82365066 | K124: =IF($F124="",0,VLOOKUP($E124,Drivers!$A$26:$F$48,MATCH(K$1,Drivers!$A$25:$F$25,0),0)*$F124) -> 24.82365066
